Workbook

Sheet Personalize (hidden)
A1: 260 | D1: FORM RESULTS | F1: 0 | G1: RotoChamp | H1: ESPN - T. Cockcroft | I1: CAIRO | J1: Teams | K1: Starters | L1: More Starters | N1: 2 | O1: =E2 -> TRUE | P1: =O1&"."&COUNTIF($O$1:$O1,O1) -> TRUE.1 | Q1: Runs | R1: CAIRO | S1: 0 | T1: 0 | U1: LAA | V1: TRUE | W1: C
A2: 25 | D2: R | E2: TRUE | F2: 1 | G2: CBS Projections | H2: Fake Teams | I2: Clay Davenport | J2: 6 | K2: 0 | L2: 0 | M2: Proj. $ Value | O2: TRUE | P2: =O2&"."&COUNTIF($O$1:$O2,O2) -> TRUE.2 | Q2: HR | R2: Clay Davenport | S2: 0 | T2: 0 | U2: ARI | V2: TRUE | W2: 1B
A3: =(A1)*E18 -> 3120 | B3: Team 1 | D3: HR | E3: TRUE | F3: 2 | H3: Fox Sports Staff | I3: Fangraphs - Depth Chart | J3: 7 | K3: 1 | L3: 1 | M3: By Position | O3: TRUE | P3: =O3&"."&COUNTIF($O$1:$O3,O3) -> TRUE.3 | Q3: AVG | R3: Fangraphs - Depth Chart | S3: 100 | T3: 0 | U3: ATL | V3: TRUE | W3: 2B
A4: 1 | B4: Team 2 | D4: AVG | E4: TRUE | F4: 3 | G4: ESPN Mock Draft Avg | H4: RotoChamp | I4: Fangraphs - Fan Projections | J4: 8 | K4: 2 | L4: 2 | M4: By Team | O4: TRUE | P4: =O4&"."&COUNTIF($O$1:$O4,O4) -> TRUE.4 | Q4: RBI | R4: Fangraphs - Fan Projections | S4: 0 | T4: 0 | U4: BAL | V4: TRUE | W4: 3B
A5: =A2*E18 -> 300 | B5: Team 3 | D5: RBI | E5: TRUE | F5: 4 | G5: Yahoo Site | H5: Fantasy Pros Avg | I5: MORPS | J5: 9 | K5: 3 | L5: 3 | M5: Exp. Rank | O5: TRUE | P5: =O5&"."&COUNTIF($O$1:$O5,O5) -> TRUE.5 | Q5: SB | R5: MORPS | S5: 0 | T5: 0 | U5: BOS | V5: TRUE | W5: SS
A6: =Filtered!AL15 -> 168 | B6: Team 4 | D6: SB | E6: TRUE | F6: 5 | G6: Yahoo Mock Draft Avg | I6: Mr. Cheatsheet's Special Blend | J6: 10 | K6: 4 | L6: 4 | M6: WERTH Rank | O6: TRUE | P6: =O6&"."&COUNTIF($O$1:$O6,O6) -> TRUE.6 | Q6: SLG | R6: Mr. Cheatsheet's Special Blend | S6: 0 | T6: 0 | U6: CHC | V6: TRUE | W6: OF
A7: ='Filtered-P'!AG6 -> 96 | B7: Team 5 | D7: SLG | E7: TRUE | F7: 6 | G7: FantasyPros Avg Experts | I7: Steamer | J7: 11 | K7: 5 | L7: 5 | M7: Pos WERTH | O7: FALSE | P7: =O7&"."&COUNTIF($O$1:$O7,O7) -> FALSE.1 | Q7: OBP | R7: Steamer | S7: 0 | T7: 100 | U7: CHW | V7: TRUE | W7: SP
A8: =A5-A6-A7 -> 36 | B8: Team 6 | D8: OBP | E8: FALSE | F8: 7 | G8: FantasyPros Projected | I8: Steamer - 600 PA | J8: 12 | L8: 6 | M8: =IFERROR(VLOOKUP("TRUE."&ROW(A1),$P$1:$Q$20,2,FALSE),"") -> Runs | O8: FALSE | P8: =O8&"."&COUNTIF($O$1:$O8,O8) -> FALSE.2 | Q8: OPS | R8: Steamer - 600 PA | S8: 0 | T8: 0 | U8: CIN | V8: TRUE | W8: RP
A9: =A3-A5 -> 2820 | B9: Team 7 | D9: OPS | E9: FALSE | F9: 8 | G9: Expert Average | I9: ZiPS | J9: 13 | L9: 7 | M9: =IFERROR(VLOOKUP("TRUE."&ROW(A2),$P$1:$Q$20,2,FALSE),"") -> HR | O9: TRUE | P9: =O9&"."&COUNTIF($O$1:$O9,O9) -> TRUE.7 | Q9: Wins | R9: ZiPS | S9: 0 | T9: 0 | U9: CLE | V9: TRUE | W9: DH
B10: Team 8 | D10: W | E10: TRUE | F10: 9 | G10: Imported Values | I10: Import Your Own Projections | J10: 14 | L10: 8 | M10: AVG | O10: TRUE | P10: =O10&"."&COUNTIF($O$1:$O10,O10) -> TRUE.8 | Q10: K's | S10: 0 | T10: 0 | U10: COL | V10: TRUE
A11: 70 | B11: Team 9 | D11: K | E11: TRUE | F11: 10 | I11: Your Own Custom Combination | J11: 15 | L11: 9 | M11: RBI | O11: TRUE | P11: =O11&"."&COUNTIF($O$1:$O11,O11) -> TRUE.9 | Q11: Saves | U11: DET | V11: TRUE
A12: 30 | B12: Team 10 | D12: S | E12: TRUE | F12: 11 | J12: 16 | M12: SB | O12: TRUE | P12: =O12&"."&COUNTIF($O$1:$O12,O12) -> TRUE.10 | Q12: ERA | U12: HOU | V12: TRUE
B13: Team 11 | D13: ERA | E13: TRUE | F13: 12 | J13: 17 | M13: SLG | O13: TRUE | P13: =O13&"."&COUNTIF($O$1:$O13,O13) -> TRUE.11 | Q13: WHIP | U13: KC | V13: TRUE
A14: =((((0.01*A12)*A9)*0.03)-A4)/4 -> 6.095 | B14: Team 12 | D14: WHIP | E14: TRUE | F14: 13 | J14: 18 | M14: Wins | O14: FALSE | P14: =O14&"."&COUNTIF($O$1:$O14,O14) -> FALSE.3 | Q14: K/9 | U14: LAD | V14: TRUE
A15: =((((0.01*A11)*A9)*0.02)-A4)/4 -> 9.62 | B15: Team 13 | D15: K/9 | E15: FALSE | F15: 14 | J15: 19 | M15: K's | O15: FALSE | P15: =O15&"."&COUNTIF($O$1:$O15,O15) -> FALSE.4 | Q15: Losses | U15: MIA | V15: TRUE
B16: Team 14 | D16: L | E16: FALSE | F16: 15 | J16: 20 | M16: Saves | O16: FALSE | P16: =O16&"."&COUNTIF($O$1:$O16,O16) -> FALSE.5 | Q16: QS | U16: MIL | V16: TRUE
B17: Team 15 | D17: QS | E17: FALSE | F17: 16 | M17: ERA | O17: =E37 -> FALSE | P17: =O17&"."&COUNTIF($O$1:$O17,O17) -> FALSE.6 | Q17: Holds | U17: MIN | V17: TRUE
B18: Team 16 | D18: # of Teams | E18: 12 | F18: 17 | M18: WHIP | O18: =E38 -> FALSE | P18: =O18&"."&COUNTIF($O$1:$O18,O18) -> FALSE.7 | Q18: Saves + Holds | U18: NYM | V18: TRUE
B19: Team 17 | D19: C | E19: 2 | F19: 18 | O19: =E39 -> FALSE | P19: =O19&"."&COUNTIF($O$1:$O19,O19) -> FALSE.8 | Q19: BB | U19: NYY | V19: TRUE
B20: Team 18 | D20: 1B | E20: 1 | F20: 19 | O20: =E40 -> FALSE | P20: =O20&"."&COUNTIF($O$1:$O20,O20) -> FALSE.9 | Q20: Hits | U20: OAK | V20: TRUE
B21: Team 19 | D21: 2B | E21: 1 | F21: 20 | U21: PHI | V21: TRUE
B22: Team 20 | D22: 3B | E22: 1 | F22: 21 | U22: PIT | V22: TRUE
B23: Team 21 | D23: SS | E23: 1 | F23: 22 | U23: SD | V23: TRUE
B24: Team 22 | D24: CI | E24: 1 | F24: 23 | U24: SEA | V24: TRUE
B25: Team 23 | D25: MI | E25: 1 | F25: 24 | U25: SF | V25: TRUE
B26: Team 24 | D26: OF | E26: 5 | U26: STL | V26: TRUE
D27: DH | E27: 1 | U27: TB | V27: TRUE
B28: TRUE | D28: RP | E28: 4 | U28: TEX | V28: TRUE
B29: TRUE | D29: SP | E29: 2 | U29: TOR | V29: TRUE
B30: FALSE | D30: P | E30: 2 | U30: WAS | V30: TRUE
B31: FALSE | D31: ADP Site: | E31: =IF(F31=G1,1,IF(F31=G2,2,IF(F31=G3,3,IF(F31=G4,4,IF(F31=G5,5,IF(F31=G6,6,IF(F31=G7,7,IF(F31=G8,8,0)))))))) -> 7 | F31: FantasyPros Avg Experts | U31: All Players
D32: Rankings: | E32: =IF(F32="RotoChamp",1,IF(F32="Fox Sports Staff",3,IF(F32="ESPN - T. Cockcroft",4,IF(F32="Fake Teams",5,IF(F32="Fantasy Pros Avg",8,0))))) -> 8 | F32: Fantasy Pros Avg | U32: NL-Only
D33: Projections: | E33: =IF(F33="CAIRO",1,IF(F33="Steamer",2,IF(F33="Steamer 600",10,IF(F33="ZiPS",4,IF(F33="Fangraphs - Depth Chart",5,IF(F33="Your Own Custom Combination",7,IF(F33="Marcel",6,IF(F33="Mr. Cheatsheet's Special Blend",11,IF(F33="Fangraphs - Fan Projections",3,IF(F33="Clay Davenport",9,IF(F33="MORPS",8,IF(F33="Import Your Own Projections",12,0)))))))))))) -> 11 | F33: Mr. Cheatsheet's Special Blend | U33: AL-Only
D34: LF | E34: 0 | U34: Custom
D35: CF | E35: 0
D36: RF | E36: 0
D37: Holds | E37: FALSE
D38: Saves + Holds | E38: FALSE
D39: BB | E39: FALSE
D40: Hits | E40: FALSE
D41: Total Bases | E41: FALSE
D42: Doubles | E42: FALSE
D43: Triples | E43: FALSE
D44: TB+BB | E44: FALSE
D45: IP | E45: FALSE
D46: K-BB | E46: FALSE
D47: BB-P | E47: FALSE
D48: H-P | E48: FALSE
D49: 2B+3B | E49: FALSE
D50: Net SB | E50: FALSE
D51: K-Batter | E51: FALSE
D52: HRA | E52: FALSE
D53: BAA | E53: FALSE
D54: K/BB | E54: FALSE
D55: IF | E55: 0
D56: CG | E56: FALSE
D57: SO | E57: FALSE
D58: ER | E58: FALSE
D59: GS | E59: FALSE
D60: 1B | E60: FALSE
D61: Combo | E61: FALSE
D62: CS | E62: FALSE
D63: Errors | E63: FALSE

Sheet Draft Central
AT1: Sort by: | AZ1: =SUMIF($D$7:$D$746,"*P",$B$7:$B$746) -> 0 | BB1: =((Personalize!A9*(0.01*Personalize!A12))-AZ1)-BA1 -> 846 | BC1: =SUM($J$7:$J$650) -> 2979.066667 | BD1: =SUMIFS($N$7:$N$746,$AZ$7:$AZ$746,"Yes",$D$7:$D$746,"*P") -> 311.2148992 | BE1: =((Personalize!A3*(Personalize!A11*0.01))-AZ2) / ((Personalize!A3*(Personalize!A11*0.01))-SUMIFS(J7:J661,AW7:AW661,"<>0",D7:D661,"<>*P")) -> 1 | BF1: Exp Hitter Inflation | BI1: =((Personalize!A3*(Personalize!A11*0.01))-AZ2) / ((Personalize!A3*(Personalize!A11*0.01))-SUMIFS(BH7:BH661,AW7:AW661,"<>0",D7:D661,"<>*P")) -> 1 | BJ1: In-Draft Hitter Inflation
AZ2: =SUMIF($D$7:$D$746,"<>*P",$B$7:$B$746) -> 0 | BB2: =((Personalize!A9*(0.01*Personalize!A11))-AZ2) -> 1974 | BD2: =SUMIFS($N$7:$N$746,$AZ$7:$AZ$746,"Yes",$D$7:$D$746,"<>*P") -> 696.135999 | BE2: =((Personalize!A3*(Personalize!A11*0.01))-AZ1) / ((Personalize!A3*(Personalize!A11*0.01))-SUMIFS(J7:J661,AW7:AW661,"<>0",D7:D661,"*P")) -> 1 | BF2: Exp Pitcher Inflation | BI2: =((Personalize!$A$3*(0.01*Personalize!$A$11))/SUMIFS($BG$7:$BG$661,$BG$7:$BG$661,">0",$D$7:$D$661,"<>*P")) -> 1.115929431 | BJ2: Hitter inflation (Orig)
C3: Player Info | H3: Auction Data | M3: WERTH Roto Value (Pitchers in Gray Rows) | AJ3: Projected Base Stats | AT3: Player Notes | AU3: 3 | AV3: 1 | AZ3: =SUMIF($AZ$7:$AZ$746,"Yes",$B$7:$B$746) -> 0 | BA3: =AVERAGEIFS($BB$7:$BB$746,$AZ$7:$AZ$746,"Yes",$D$7:$D$746,"*P") -> 3.965644943 | BB3: =AVERAGEIFS($BB$7:$BB$746,$AZ$7:$AZ$746,"Yes",$D$7:$D$746,"<>*P") -> 4.842970999 | BE3: =SQRT(AVERAGEIFS($BE$7:$BE$746,$AZ$7:$AZ$746,"Yes",$D$7:$D$746,"<>*P")) -> 3.313656936 | BG3: =AVERAGEIF(N7:N661,">0",N7:N661) -> 3.744794292 | BH3: Above 0 values | BI3: =((Personalize!$A$3*(0.01*Personalize!$A$12))/SUMIFS($BG$7:$BG$661,$BG$7:$BG$661,">0",$D$7:$D$661,"*P")) -> 1.032250438 | BJ3: Pitcher inflation
O4: =IF(OR(Personalize!E10=TRUE,Personalize!E10=""),"W","") -> W | P4: =IF(OR(Personalize!E12=TRUE,Personalize!E12=""),"S","") -> S | Q4: =IF(OR(Personalize!E11=TRUE,Personalize!E11=""),"K","") -> K | R4: =IF(OR(Personalize!E13=TRUE,Personalize!E13=""),"ERA","") -> ERA | S4: =IF(OR(Personalize!E14=TRUE,Personalize!E14=""),"WHIP","") -> WHIP | T4: =IF(OR(Personalize!E16=TRUE,Personalize!E16=""),"L","") ->  | U4: =IF(OR(Personalize!E15=TRUE,Personalize!E15=""),"K/9","") ->  | V4: =IF(OR(Personalize!E17=TRUE,Personalize!E17=""),"QS","") ->  | W4: =IF(OR(Personalize!E37=TRUE,Personalize!E37=""),"HLD","") ->  | X4: =IF(OR(Personalize!E38=TRUE,Personalize!E38=""),"H+S","") ->  | Y4: =IF(OR(Personalize!E45=TRUE,Personalize!E45=""),"IP","") ->  | Z4: =IF(OR(Personalize!E46=TRUE,Personalize!E46=""),"K-BB","") ->  | AA4: =IF(OR(Personalize!E47=TRUE,Personalize!E47=""),"BB","") ->  | AB4: =IF(OR(Personalize!E48=TRUE,Personalize!E48=""),"H","") ->  | AC4: =IF(OR(Personalize!E52=TRUE,Personalize!E52=""),"HRA","") ->  | AD4: =IF(OR(Personalize!E53=TRUE,Personalize!E53=""),"BAA","") ->  | AE4: =IF(OR(Personalize!E54=TRUE,Personalize!E54=""),"K/BB","") ->  | AF4: =IF(OR(Personalize!E56=TRUE,Personalize!E56=""),"CG","") ->  | AG4: =IF(OR(Personalize!E57=TRUE,Personalize!E57=""),"SO","") ->  | AH4: =IF(OR(Personalize!E58=TRUE,Personalize!E58=""),"ER","") ->  | AI4: =IF(OR(Personalize!E59=TRUE,Personalize!E59=""),"GS","") ->  | AZ4: =SUM(B7:B746) -> 0 | BA4: =IFERROR(SMALL(IF($AZ$7:$AZ$746="Yes",$BA$7:$BA$746,""),1),"") -> -0.7238230761 | BB4: =SUMIFS($N$7:$N$746,$AZ$7:$AZ$746,"Yes") -> 1007.350898 | BI4: =((Personalize!A3*(Personalize!A11*0.01))-AZ1) / ((Personalize!A3*(Personalize!A11*0.01))-SUMIFS(BH7:BH661,AW7:AW661,"<>0",D7:D661,"*P")) -> 1 | BJ4: In-Draft Pitcher Inflation
A5: Drafted By (click box to select team) | B5: Winning Bid | C5: Name | D5: Pos | E5: OF Elig | F5: Tm | G5: Age | H5: Current vs Original Proj $ | I5: Exp Orig $ Val | J5: Exp Curr $ Val | K5: Exp Rank | L5: WERTH Rank | M5: Werth Total | N5: Pos Adj WERTH | O5: =IF(OR(Personalize!E4=TRUE,Personalize!E4=""),"AVG","") -> AVG | P5: =IF(OR(Personalize!E3=TRUE,Personalize!E3=""),"HR","") -> HR | Q5: =IF(OR(Personalize!E2=TRUE,Personalize!E2=""),"R","") -> R | R5: =IF(OR(Personalize!E5=TRUE,Personalize!E5=""),"RBI","") -> RBI | S5: =IF(OR(Personalize!E6=TRUE,Personalize!E6=""),"SB","") -> SB | T5: =IF(OR(Personalize!E7=TRUE,Personalize!E7=""),"SLG","") -> SLG | U5: =IF(OR(Personalize!E8=TRUE,Personalize!E8=""),"OBP","") ->  | V5: =IF(OR(Personalize!E9=TRUE,Personalize!E9=""),"OPS","") ->  | W5: =IF(OR(Personalize!E39=TRUE,Personalize!E39=""),"BB","") ->  | X5: =IF(OR(Personalize!E40=TRUE,Personalize!E40=""),"H","") ->  | Y5: =IF(OR(Personalize!E41=TRUE,Personalize!E41=""),"TB","") ->  | Z5: =IF(OR(Personalize!E44=TRUE,Personalize!E44=""),"R-Pro","") ->  | AA5: =IF(OR(Personalize!E42=TRUE,Personalize!E42=""),"2B","") ->  | AB5: =IF(OR(Personalize!E43=TRUE,Personalize!E43=""),"3B","") ->  | AC5: =IF(OR(Personalize!E49=TRUE,Personalize!E49=""),"2B+3B","") ->  | AD5: =IF(OR(Personalize!E50=TRUE,Personalize!E50=""),"Net SB","") ->  | AE5: =IF(OR(Personalize!E51=TRUE,Personalize!E51=""),"K's","") ->  | AF5: =IF(OR(Personalize!E60=TRUE,Personalize!E60=""),"1B","") ->  | AG5: =IF(OR(Personalize!E61=TRUE,Personalize!E61=""),"CMB","") ->  | AH5: =IF(OR(Personalize!E62=TRUE,Personalize!E62=""),"CS","") ->  | AI5: =IF(OR(Personalize!E63=TRUE,Personalize!E63=""),"Errors","") ->  | AJ5: W | AK5: S | AL5: K | AM5: ERA | AN5: WHIP | AO5: AVG | AP5: HR | AQ5: RBI | AR5: R | AS5: SB | AU5: Drafted | AZ5: Proj Starter | BA5: WERTH+RL | BB5: W+RL+SM | BG5: Original Value | BH5: Orig Infl Value | BI5: In-Draft Inflation
A6: =VLOOKUP(B6,#REF!,2,FALSE) ->  | B6: =VLOOKUP(C6,#REF!,3,FALSE) -> 
C7: Mike Trout | D7: OF | E7: =IFERROR(IF(VLOOKUP(C7,'Starter Calc'!$B$2:$E$700,4,FALSE)="","",VLOOKUP(C7,'Starter Calc'!$B$2:$E$700,4,FALSE)),"") -> ,CF, | F7: =IFERROR(VLOOKUP($C7,'ADP-Rank'!$A$2:$G$581,5,FALSE),"") -> LAA | G7: =IFERROR(VLOOKUP($C7,'ADP-Rank'!$A$2:$X$581,6,FALSE),"") -> 24 | H7: =IFERROR(IF(ISBLANK($B7),"$"&(ROUND(BI7,0))&" | $"&ROUND(BH7,0),""),"") -> $49 | $49 | I7: =IFERROR(IF(RIGHT(D7,1)="P",J7*$BE$2,J7*$BE$1),"") -> 50.4 | J7: =IFERROR(CHOOSE(Personalize!$E$31,(VLOOKUP(C7,'ADP-Rank'!$A$2:$Z$581,7,FALSE)*(Personalize!$A$3)+1),(VLOOKUP(C7,'ADP-Rank'!$A$2:$Z$581,8,FALSE)*(Personalize!$A$3)+1),(VLOOKUP(C7,'ADP-Rank'!$A$2:$Z$581,9,FALSE)*(Personalize!$A$3)+1),(VLOOKUP(C7,'ADP-Rank'!$A$2:$AA$581,10,FALSE)*(Personalize!$A$3)+1),(VLOOKUP(C7,'ADP-Rank'!$A$2:$AA$581,11,FALSE)*(Personalize!$A$3)+1),(VLOOKUP(C7,'ADP-Rank'!$A$2:$AA$581,12,FALSE)*(Personalize!$A$3)+1),(VLOOKUP(C7,'ADP-Rank'!$A$2:$AA$581,13,FALSE)*(Personalize!$A$3)+1),(VLOOKUP(C7,'ADP-Rank'!$A$2:$AA$581,14,FALSE)*(Personalize!$A$3)+1),(VLOOKUP(C7,'ADP-Rank'!$A$2:$AA$581,15,FALSE)*(Personalize!$A$3)+1),(VLOOKUP(C7,'ADP-Rank'!$A$2:$AG$581,28,FALSE)*(Personalize!$A$3)+1)),"") -> 50.4 | K7: =VLOOKUP($C7,'ADP-Rank'!$A$2:$AB$581,26,FALSE) -> 1 | L7: =IFERROR(RANK($M7,$M$7:$M$746,0),"") -> 1 | M7: =IF((SUM(O7:AI7)=0),"",SUM(O7:AI7)) -> 13.1795465 | N7: =IFERROR(IF((OR($D7="RP",$D7="SP")),ABS(VLOOKUP(D7,'Filtered-P'!$AE$3:$AI$4,5,FALSE))+M7,ABS(VLOOKUP(D7,Filtered!$AJ$3:$AN$14,5,FALSE))+M7),"") -> 17.14922964 | O7: =IFERROR(IF((OR($D7="RP",$D7="SP")),IF(Personalize!$E$10=TRUE,(((VLOOKUP($C7,'Filtered-P'!$A$1:$P$700,2,FALSE))-'Filtered-P'!$AF$8)/'Filtered-P'!$AG$8),IF(ISBLANK(Personalize!$E$10),(((VLOOKUP($C7,'Filtered-P'!$A$1:$P$700,2,FALSE))-'Filtered-P'!$AF$8)/'Filtered-P'!$AG$8)*0.5,"")),IF(Personalize!$E$4=TRUE,(((VLOOKUP($C7,Filtered!$A$1:$X$626,22,FALSE))-Filtered!$AK$35)/Filtered!$AL$35),IF(ISBLANK(Personalize!$E$4),(((VLOOKUP($C7,Filtered!$A$1:$X$626,22,FALSE))-Filtered!$AK$35)/Filtered!$AL$35)*0.5,""))),"") -> 2.228981006 | P7: =IFERROR(IF((OR($D7="RP",$D7="SP")),IF(Personalize!$E$12=TRUE,(((VLOOKUP($C7,'Filtered-P'!$A$1:$P$700,9,FALSE))-'Filtered-P'!$AF$15)/'Filtered-P'!$AG$15),IF(ISBLANK(Personalize!$E$12),(((VLOOKUP($C7,'Filtered-P'!$A$1:$P$700,9,FALSE))-'Filtered-P'!$AF$15)/'Filtered-P'!$AG$15)*0.5,"")),IF(Personalize!$E$3=TRUE,(((VLOOKUP($C7,Filtered!$A$1:$AB$626,10,FALSE))-Filtered!$AK$25)/Filtered!$AL$25),IF(ISBLANK(Personalize!$E$3),(((VLOOKUP($C7,Filtered!$A$1:$AB$626,10,FALSE))-Filtered!$AK$25)/Filtered!$AL$25)*0.5,""))),"") -> 2.231185029 | Q7: =IFERROR(IF((OR($D7="RP",$D7="SP")),IF(Personalize!$E$11=TRUE,(((VLOOKUP($C7,'Filtered-P'!$A$1:$P$700,7,FALSE))-'Filtered-P'!$AF$13)/'Filtered-P'!$AG$13),IF(ISBLANK(Personalize!$E$11),(((VLOOKUP($C7,'Filtered-P'!$A$1:$P$700,7,FALSE))-'Filtered-P'!$AF$13)/'Filtered-P'!$AG$13)*0.5,"")),IF(Personalize!$E$2=TRUE,(((VLOOKUP($C7,Filtered!$A$1:$AB$626,5,FALSE))-Filtered!$AK$20)/Filtered!$AL$20),IF(ISBLANK(Personalize!$E$2),(((VLOOKUP($C7,Filtered!$A$1:$AB$626,5,FALSE))-Filtered!$AK$20)/Filtered!$AL$20)*0.5,""))),"") -> 2.497911815 | R7: =IFERROR(IF((OR($D7="RP",$D7="SP")),IF(Personalize!$E$13=TRUE,(((VLOOKUP($C7,'Filtered-P'!$A$1:$P$700,13,FALSE))-'Filtered-P'!$AF$19)/'Filtered-P'!$AG$19),IF(ISBLANK(Personalize!$E$13),(((VLOOKUP($C7,'Filtered-P'!$A$1:$P$700,13,FALSE))-'Filtered-P'!$AF$19)/'Filtered-P'!$AG$19)*0.5,"")),IF(Personalize!$E$5=TRUE,(((VLOOKUP($C7,Filtered!$A$1:$AB$626,11,FALSE))-Filtered!$AK$26)/Filtered!$AL$26),IF(ISBLANK(Personalize!$E$5),(((VLOOKUP($C7,Filtered!$A$1:$AB$626,11,FALSE))-Filtered!$AK$26)/Filtered!$AL$26)*0.5,""))),"") -> 1.984162792 | S7: =IFERROR(IF((OR($D7="RP",$D7="SP")),IF(Personalize!$E$14=TRUE,(((VLOOKUP($C7,'Filtered-P'!$A$1:$P$700,14,FALSE))-'Filtered-P'!$AF$20)/'Filtered-P'!$AG$20),IF(ISBLANK(Personalize!$E$14),(((VLOOKUP($C7,'Filtered-P'!$A$1:$P$700,14,FALSE))-'Filtered-P'!$AF$20)/'Filtered-P'!$AG$20)*0.5,"")),IF(Personalize!$E$6=TRUE,(((VLOOKUP($C7,Filtered!$A$1:$AB$626,12,FALSE))-Filtered!$AK$27)/Filtered!$AL$27),IF(ISBLANK(Personalize!$E$6),(((VLOOKUP($C7,Filtered!$A$1:$AB$626,12,FALSE))-Filtered!$AK$27)/Filtered!$AL$27)*0.5,""))),"") -> 0.8538606368 | T7: =IFERROR(IF((OR($D7="RP",$D7="SP")),IF(Personalize!$E$16=TRUE,(((VLOOKUP($C7,'Filtered-P'!$A$1:$P$700,3,FALSE))-'Filtered-P'!$AF$9)/'Filtered-P'!$AG$9),IF(ISBLANK(Personalize!$E$16),(((VLOOKUP($C7,'Filtered-P'!$A$1:$P$700,3,FALSE))-'Filtered-P'!$AF$9)/'Filtered-P'!$AG$9)*0.5,"")),IF(Personalize!$E$7=TRUE,(((VLOOKUP($C7,Filtered!$A$1:$BB$626,24,FALSE))-Filtered!$AK$37)/Filtered!$AL$37),IF(ISBLANK(Personalize!$E$7),(((VLOOKUP($C7,Filtered!$A$1:$BB$626,24,FALSE))-Filtered!$AK$37)/Filtered!$AL$37)*0.5,""))),"") -> 3.383445222 | U7: =IFERROR(IF((OR($D7="RP",$D7="SP")),IF(Personalize!$E$15=TRUE,(((VLOOKUP($C7,'Filtered-P'!$A$1:$P$700,15,FALSE))-'Filtered-P'!$AF$21)/'Filtered-P'!$AG$21),IF(ISBLANK(Personalize!$E$15),(((VLOOKUP($C7,'Filtered-P'!$A$1:$P$700,15,FALSE))-'Filtered-P'!$AF$21)/'Filtered-P'!$AG$21)*0.5,"")),IF(Personalize!$E$8=TRUE,(((VLOOKUP($C7,Filtered!$A$1:$BB$626,23,FALSE))-Filtered!$AK$36)/Filtered!$AL$36),IF(ISBLANK(Personalize!$E$8),(((VLOOKUP($C7,Filtered!$A$1:$BB$626,23,FALSE))-Filtered!$AK$36)/Filtered!$AL$36)*0.5,""))),"") ->  | V7: =IFERROR(IF((OR($D7="RP",$D7="SP")),IF(Personalize!$E$17=TRUE,(((VLOOKUP($C7,'Filtered-P'!$A$1:$P$700,16,FALSE))-'Filtered-P'!$AF$22)/'Filtered-P'!$AG$22),IF(ISBLANK(Personalize!$E$17),(((VLOOKUP($C7,'Filtered-P'!$A$1:$P$700,16,FALSE))-'Filtered-P'!$AF$22)/'Filtered-P'!$AG$22)*0.5,"")),IF(Personalize!$E$9=TRUE,(((VLOOKUP($C7,Filtered!$A$1:$BB$626,25,FALSE))-Filtered!$AK$38)/Filtered!$AL$38),IF(ISBLANK(Personalize!$E$9),(((VLOOKUP($C7,Filtered!$A$1:$BB$626,25,FALSE))-Filtered!$AK$38)/Filtered!$AL$38)*0.5,""))),"") ->  | W7: =IFERROR(IF((OR($D7="RP",$D7="SP")),IF(Personalize!$E$37=TRUE,(((VLOOKUP($C7,'Filtered-P'!$A$1:$Z$700,17,FALSE))-'Filtered-P'!$AF$25)/'Filtered-P'!$AG$25),IF(ISBLANK(Personalize!$E$37),(((VLOOKUP($C7,'Filtered-P'!$A$1:$Z$700,17,FALSE))-'Filtered-P'!$AF$25)/'Filtered-P'!$AG$25)*0.5,"")),IF(Personalize!$E$39=TRUE,(((VLOOKUP($C7,Filtered!$A$1:$X$626,14,FALSE))-Filtered!$AK$29)/Filtered!$AL$29),IF(ISBLANK(Personalize!$E$39),(((VLOOKUP($C7,Filtered!$A$1:$X$626,14,FALSE))-Filtered!$AK$29)/Filtered!$AL$29)*0.5,""))),"") ->  | X7: =IFERROR(IF((OR($D7="RP",$D7="SP")),IF(Personalize!$E$38=TRUE,(((VLOOKUP($C7,'Filtered-P'!$A$1:$Z$700,18,FALSE))-'Filtered-P'!$AF$26)/'Filtered-P'!$AG$26),IF(ISBLANK(Personalize!$E$38),(((VLOOKUP($C7,'Filtered-P'!$A$1:$Z$700,18,FALSE))-'Filtered-P'!$AF$26)/'Filtered-P'!$AG$26)*0.5,"")),IF(Personalize!$E$40=TRUE,(((VLOOKUP($C7,Filtered!$A$1:$X$626,6,FALSE))-Filtered!$AK$21)/Filtered!$AL$21),IF(ISBLANK(Personalize!$E$40),(((VLOOKUP($C7,Filtered!$A$1:$X$626,6,FALSE))-Filtered!$AK$21)/Filtered!$AL$21)*0.5,""))),"") ->  | Y7: =IFERROR(IF((OR($D7="RP",$D7="SP")),IF(Personalize!$E$45=TRUE,(((VLOOKUP($C7,'Filtered-P'!$A$1:$Z$700,4,FALSE))-'Filtered-P'!$AF$10)/'Filtered-P'!$AG$10),IF(ISBLANK(Personalize!$E$45),(((VLOOKUP($C7,'Filtered-P'!$A$1:$Z$700,4,FALSE))-'Filtered-P'!$AF$10)/'Filtered-P'!$AG$10)*0.5,"")),IF(Personalize!$E$41=TRUE,(((VLOOKUP($C7,Filtered!$A$1:$BB$626,20,FALSE))-Filtered!$AK$43)/Filtered!$AL$43),IF(ISBLANK(Personalize!$E$41),(((VLOOKUP($C7,Filtered!$A$1:$BB$626,20,FALSE))-Filtered!$AK$43)/Filtered!$AL$43)*0.5,""))),"") ->  | Z7: =IFERROR(IF((OR($D7="RP",$D7="SP")),IF(Personalize!$E$46=TRUE,(((VLOOKUP($C7,'Filtered-P'!$A$1:$Z$700,19,FALSE))-'Filtered-P'!$AF$27)/'Filtered-P'!$AG$27),IF(ISBLANK(Personalize!$E$46),(((VLOOKUP($C7,'Filtered-P'!$A$1:$Z$700,19,FALSE))-'Filtered-P'!$AF$27)/'Filtered-P'!$AG$27)*0.5,"")),IF(Personalize!$E$44=TRUE,(((VLOOKUP($C7,Filtered!$A$1:$BB$626,21,FALSE))-Filtered!$AK$44)/Filtered!$AL$44),IF(ISBLANK(Personalize!$E$44),(((VLOOKUP($C7,Filtered!$A$1:$BB$626,21,FALSE))-Filtered!$AK$44)/Filtered!$AL$44)*0.5,""))),"") ->  | AA7: =IFERROR(IF((OR($D7="RP",$D7="SP")),IF(Personalize!$E$47=TRUE,(((VLOOKUP($C7,'Filtered-P'!$A$1:$Z$700,6,FALSE))-'Filtered-P'!$AF$12)/'Filtered-P'!$AG$12),IF(ISBLANK(Personalize!$E$47),(((VLOOKUP($C7,'Filtered-P'!$A$1:$Z$700,6,FALSE))-'Filtered-P'!$AF$12)/'Filtered-P'!$AG$12)*0.5,"")),IF(Personalize!$E$42=TRUE,(((VLOOKUP($C7,Filtered!$A$1:$BB$626,8,FALSE))-Filtered!$AK$23)/Filtered!$AL$23),IF(ISBLANK(Personalize!$E$42),(((VLOOKUP($C7,Filtered!$A$1:$BB$626,8,FALSE))-Filtered!$AK$23)/Filtered!$AL$23)*0.5,""))),"") ->  | AB7: =IFERROR(IF((OR($D7="RP",$D7="SP")),IF(Personalize!$E$48=TRUE,(((VLOOKUP($C7,'Filtered-P'!$A$1:$Z$700,5,FALSE))-'Filtered-P'!$AF$11)/'Filtered-P'!$AG$11),IF(ISBLANK(Personalize!$E$48),(((VLOOKUP($C7,'Filtered-P'!$A$1:$Z$700,5,FALSE))-'Filtered-P'!$AF$11)/'Filtered-P'!$AG$11)*0.5,"")),IF(Personalize!$E$43=TRUE,(((VLOOKUP($C7,Filtered!$A$1:$BB$626,9,FALSE))-Filtered!$AK$24)/Filtered!$AL$24),IF(ISBLANK(Personalize!$E$43),(((VLOOKUP($C7,Filtered!$A$1:$BB$626,9,FALSE))-Filtered!$AK$24)/Filtered!$AL$24)*0.5,""))),"") ->  | AC7: =IFERROR(IF((OR($D7="RP",$D7="SP")),IF(Personalize!$E$52=TRUE,(((VLOOKUP($C7,'Filtered-P'!$A$1:$AD$700,21,FALSE))-'Filtered-P'!$AF$29)/(-1*'Filtered-P'!$AG$29)),IF(ISBLANK(Personalize!$E$52),(((VLOOKUP($C7,'Filtered-P'!$A$1:$AD$700,21,FALSE))-'Filtered-P'!$AF$29)/(-1*'Filtered-P'!$AG$29))*0.5,"")),IF(Personalize!$E$49=TRUE,(((VLOOKUP($C7,Filtered!$A$1:$AF$626,30,FALSE))-Filtered!$AK$45)/Filtered!$AL$45),IF(ISBLANK(Personalize!$E$49),(((VLOOKUP($C7,Filtered!$A$1:$AF$626,30,FALSE))-Filtered!$AK$45)/Filtered!$AL$45)*0.5,""))),"") ->  | AD7: =IFERROR(IF((OR($D7="RP",$D7="SP")),IF(Personalize!$E$53=TRUE,(((VLOOKUP($C7,'Filtered-P'!$A$1:$AD$700,23,FALSE))-'Filtered-P'!$AF$31)/(-1*'Filtered-P'!$AG$31)),IF(ISBLANK(Personalize!$E$53),(((VLOOKUP($C7,'Filtered-P'!$A$1:$AD$700,23,FALSE))-'Filtered-P'!$AF$31)/(-1*'Filtered-P'!$AG$31))*0.5,"")),IF(Personalize!$E$50=TRUE,(((VLOOKUP($C7,Filtered!$A$1:$AF$626,31,FALSE))-Filtered!$AK$46)/Filtered!$AL$46),IF(ISBLANK(Personalize!$E$50),(((VLOOKUP($C7,Filtered!$A$1:$AF$626,31,FALSE))-Filtered!$AK$46)/Filtered!$AL$46)*0.5,""))),"") ->  | AE7: =IFERROR(IF((OR($D7="RP",$D7="SP")),IF(Personalize!$E$54=TRUE,(((VLOOKUP($C7,'Filtered-P'!$A$1:$AD$700,24,FALSE))-'Filtered-P'!$AF$32)/'Filtered-P'!$AG$32),IF(ISBLANK(Personalize!$E$54),(((VLOOKUP($C7,'Filtered-P'!$A$1:$AD$700,24,FALSE))-'Filtered-P'!$AF$32)/'Filtered-P'!$AG$32)*0.5,"")),IF(Personalize!$E$51=TRUE,(((VLOOKUP($C7,Filtered!$A$1:$AF$626,15,FALSE))-Filtered!$AK$30)/(-1*Filtered!$AL$30)),IF(ISBLANK(Personalize!$E$51),(((VLOOKUP($C7,Filtered!$A$1:$AF$626,15,FALSE))-Filtered!$AK$30)/(-1*Filtered!$AL$30))*0.5,""))),"") ->  | AF7: =IFERROR(IF((OR($D7="RP",$D7="SP")),IF(Personalize!$E$56=TRUE,(((VLOOKUP($C7,'Filtered-P'!$A$1:$AD$700,29,FALSE))-'Filtered-P'!$AF$35)/'Filtered-P'!$AG$35),IF(ISBLANK(Personalize!$E$56),(((VLOOKUP($C7,'Filtered-P'!$A$1:$AD$700,29,FALSE))-'Filtered-P'!$AF$35)/'Filtered-P'!$AG$35)*0.5,"")),IF(Personalize!$E$60=TRUE,(((VLOOKUP($C7,Filtered!$A$1:$AF$626,7,FALSE))-Filtered!$AK$22)/Filtered!$AL$22),IF(ISBLANK(Personalize!$E$60),(((VLOOKUP($C7,Filtered!$A$1:$AF$626,7,FALSE))-Filtered!$AK$22)/Filtered!$AL$22)*0.5,""))),"") ->  | AG7: =IFERROR(IF((OR($D7="RP",$D7="SP")),IF(Personalize!$E$57=TRUE,(((VLOOKUP($C7,'Filtered-P'!$A$1:$AD$700,28,FALSE))-'Filtered-P'!$AF$34)/'Filtered-P'!$AG$34),IF(ISBLANK(Personalize!$E$57),(((VLOOKUP($C7,'Filtered-P'!$A$1:$AD$700,28,FALSE))-'Filtered-P'!$AF$34)/'Filtered-P'!$AG$34)*0.5,"")),IF(Personalize!$E$61=TRUE,(((VLOOKUP($C7,Filtered!$A$1:$AZ$626,34,FALSE))-Filtered!$AK$47)/Filtered!$AL$47),IF(ISBLANK(Personalize!$E$61),(((VLOOKUP($C7,Filtered!$A$1:$AZ$626,34,FALSE))-Filtered!$AK$47)/Filtered!$AL$47)*0.5,""))),"") ->  | AH7: =IFERROR(IF((OR($D7="RP",$D7="SP")),IF(Personalize!$E$58=TRUE,(((VLOOKUP($C7,'Filtered-P'!$A$1:$Z$700,8,FALSE))-'Filtered-P'!$AF$14)/'Filtered-P'!$AG$14),IF(ISBLANK(Personalize!$E$58),(((VLOOKUP($C7,'Filtered-P'!$A$1:$Z$700,8,FALSE))-'Filtered-P'!$AF$14)/'Filtered-P'!$AG$14)*0.5,"")),IF(Personalize!$E$62=TRUE,(((VLOOKUP($C7,Filtered!$A$1:$AF$626,13,FALSE))-Filtered!$AK$28)/(-1*Filtered!$AL$28)),IF(ISBLANK(Personalize!$E$62),(((VLOOKUP($C7,Filtered!$A$1:$AF$626,13,FALSE))-Filtered!$AK$28)/(-1*Filtered!$AL$28))*0.5,""))),"") ->  | AI7: =IFERROR(IF((OR($D7="RP",$D7="SP")),IF(Personalize!$E$59=TRUE,(((VLOOKUP($C7,'Filtered-P'!$A$1:$AD$700,27,FALSE))-'Filtered-P'!$AF$33)/'Filtered-P'!$AG$33),IF(ISBLANK(Personalize!$E$59),(((VLOOKUP($C7,'Filtered-P'!$A$1:$AD$700,27,FALSE))-'Filtered-P'!$AF$33)/'Filtered-P'!$AG$33)*0.5,"")),IF(Personalize!$E$63=TRUE,(((VLOOKUP($C7,Filtered!$A$1:$AZ$626,35,FALSE))-Filtered!$AK$48)/(-1*Filtered!$AL$48)),IF(ISBLANK(Personalize!$E$63),(((VLOOKUP($C7,Filtered!$A$1:$AZ$626,35,FALSE))-Filtered!$AK$48)/(-1*Filtered!$AL$48))*0.5,""))),"") ->  | AJ7: =IFERROR(IF((OR($D7="RP",$D7="SP")),VLOOKUP($C7,'Filtered-P'!$A$1:$P$580,2,FALSE),""),"") ->  | AK7: =IFERROR(IF((OR($D7="RP",$D7="SP")),VLOOKUP($C7,'Filtered-P'!$A$1:$P$580,9,FALSE),""),"") ->  | AL7: =IFERROR(IF((OR($D7="RP",$D7="SP")),VLOOKUP($C7,'Filtered-P'!$A$1:$P$580,7,FALSE),""),"") ->  | AM7: =IFERROR(IF((OR($D7="RP",$D7="SP")),VLOOKUP($C7,'Filtered-P'!$A$1:$P$580,10,FALSE),""),"") ->  | AN7: =IFERROR(IF((OR($D7="RP",$D7="SP")),VLOOKUP($C7,'Filtered-P'!$A$1:$P$580,11,FALSE),""),"") ->  | AO7: =IFERROR(IF((OR($D7="RP",$D7="SP")),"",VLOOKUP($C7,Filtered!$A$1:$X$600,16,FALSE)),"") -> 0.3047805104 | AP7: =IFERROR(IF((OR($D7="RP",$D7="SP")),"",VLOOKUP($C7,Filtered!$A$1:$X$600,10,FALSE)),"") -> 35.99463728 | AQ7: =IFERROR(IF((OR($D7="RP",$D7="SP")),"",VLOOKUP($C7,Filtered!$A$1:$X$600,11,FALSE)),"") -> 101.6638407 | AR7: =IFERROR(IF((OR($D7="RP",$D7="SP")),"",VLOOKUP($C7,Filtered!$A$1:$X$600,5,FALSE)),"") -> 105.3525991 | AS7: =IFERROR(IF((OR($D7="RP",$D7="SP")),"",VLOOKUP($C7,Filtered!$A$1:$X$600,12,FALSE)),"") -> 16.74398914 | AU7: =IF(ISBLANK(A7),0,1) -> 0 | AV7: =IF(M7="",0,1) -> 1 | AW7: =A7 -> 0 | AX7: =IF(D7="C",1,IF(D7="1B",2,IF(D7="2B",3,IF(D7="3B",4,IF(D7="SS",5,IF(D7="CI",6,IF(D7="MI",7,IF(D7="OF",11,IF(D7="LF",8,IF(D7="CF",9,IF(D7="RF",10,IF(D7="DH",12,IF(D7="SP",13,IF(D7="RP",14,IF(D7="P",15,16))))))))))))))) -> 11 | AY7: =VLOOKUP(C7,'Starter Calc'!$B$2:$BS$700,70,FALSE) -> Bench | AZ7: =VLOOKUP(C7,'Starter Calc'!$B$2:$AO$700,40,FALSE) -> Yes | BA7: =IFERROR(IF(ISTEXT($A7),"",IF((OR($D7="RP",$D7="SP")),ABS(VLOOKUP(D7,'Filtered-P'!$AE$3:$AI$4,5,FALSE))+M7,ABS(VLOOKUP(D7,Filtered!$AJ$3:$AN$14,5,FALSE))+M7)),"") -> 17.14922964 | BB7: =IFERROR(BA7+ABS($BA$4),"") -> 17.87305271 | BC7: =IF(AND($A7<>"",$B7<>""),B7,"N") -> N | BD7: =IFERROR(VLOOKUP($C7,'ADP-Rank'!$A$2:$AB$581,25,FALSE),TRUE) -> TRUE | BE7: =IFERROR((BB7-BB$3)^2,"") -> 169.7830294 | BF7: =VLOOKUP(C7,'Starter Calc'!$B$2:$CD$700,71,FALSE) -> OF.Yes | BG7: =IFERROR(((Personalize!$A$1-(1*Personalize!$A$2))/Personalize!$A$2)*(N7/$BG$3)+1,"") -> 44.04715987 | BH7: =IFERROR(IF(RIGHT(D7,1)="P",BG7*$BI$3,BG7*$BI$2),"") -> 49.15352204 | BI7: =IFERROR(IF(RIGHT(D7,1)="P",BH7*$BI$4,BH7*$BI$1),"") -> 49.15352204
C8: Clayton Kershaw | D8: SP | E8: =IFERROR(IF(VLOOKUP(C8,'Starter Calc'!$B$2:$E$700,4,FALSE)="","",VLOOKUP(C8,'Starter Calc'!$B$2:$E$700,4,FALSE)),"") -> ,, | F8: =IFERROR(VLOOKUP($C8,'ADP-Rank'!$A$2:$G$581,5,FALSE),"") -> LAD | G8: =IFERROR(VLOOKUP($C8,'ADP-Rank'!$A$2:$X$581,6,FALSE),"") -> 27 | H8: =IFERROR(IF(ISBLANK($B8),"$"&(ROUND(BI8,0))&" | $"&ROUND(BH8,0),""),"") -> $41 | $41 | I8: =IFERROR(IF(RIGHT(D8,1)="P",J8*$BE$2,J8*$BE$1),"") -> 40 | J8: =IFERROR(CHOOSE(Personalize!$E$31,(VLOOKUP(C8,'ADP-Rank'!$A$2:$Z$581,7,FALSE)*(Personalize!$A$3)+1),(VLOOKUP(C8,'ADP-Rank'!$A$2:$Z$581,8,FALSE)*(Personalize!$A$3)+1),(VLOOKUP(C8,'ADP-Rank'!$A$2:$Z$581,9,FALSE)*(Personalize!$A$3)+1),(VLOOKUP(C8,'ADP-Rank'!$A$2:$AA$581,10,FALSE)*(Personalize!$A$3)+1),(VLOOKUP(C8,'ADP-Rank'!$A$2:$AA$581,11,FALSE)*(Personalize!$A$3)+1),(VLOOKUP(C8,'ADP-Rank'!$A$2:$AA$581,12,FALSE)*(Personalize!$A$3)+1),(VLOOKUP(C8,'ADP-Rank'!$A$2:$AA$581,13,FALSE)*(Personalize!$A$3)+1),(VLOOKUP(C8,'ADP-Rank'!$A$2:$AA$581,14,FALSE)*(Personalize!$A$3)+1),(VLOOKUP(C8,'ADP-Rank'!$A$2:$AA$581,15,FALSE)*(Personalize!$A$3)+1),(VLOOKUP(C8,'ADP-Rank'!$A$2:$AG$581,28,FALSE)*(Personalize!$A$3)+1)),"") -> 40 | K8: =VLOOKUP($C8,'ADP-Rank'!$A$2:$AB$581,26,FALSE) -> 5 | L8: =IFERROR(RANK($M8,$M$7:$M$746,0),"") -> 2 | M8: =IF((SUM(O8:AI8)=0),"",SUM(O8:AI8)) -> 12.45024302 | N8: =IFERROR(IF((OR($D8="RP",$D8="SP")),ABS(VLOOKUP(D8,'Filtered-P'!$AE$3:$AI$4,5,FALSE))+M8,ABS(VLOOKUP(D8,Filtered!$AJ$3:$AN$14,5,FALSE))+M8),"") -> 15.56365397 | O8: =IFERROR(IF((OR($D8="RP",$D8="SP")),IF(Personalize!$E$10=TRUE,(((VLOOKUP($C8,'Filtered-P'!$A$1:$P$700,2,FALSE))-'Filtered-P'!$AF$8)/'Filtered-P'!$AG$8),IF(ISBLANK(Personalize!$E$10),(((VLOOKUP($C8,'Filtered-P'!$A$1:$P$700,2,FALSE))-'Filtered-P'!$AF$8)/'Filtered-P'!$AG$8)*0.5,"")),IF(Personalize!$E$4=TRUE,(((VLOOKUP($C8,Filtered!$A$1:$X$626,22,FALSE))-Filtered!$AK$35)/Filtered!$AL$35),IF(ISBLANK(Personalize!$E$4),(((VLOOKUP($C8,Filtered!$A$1:$X$626,22,FALSE))-Filtered!$AK$35)/Filtered!$AL$35)*0.5,""))),"") -> 2.058388815 | P8: =IFERROR(IF((OR($D8="RP",$D8="SP")),IF(Personalize!$E$12=TRUE,(((VLOOKUP($C8,'Filtered-P'!$A$1:$P$700,9,FALSE))-'Filtered-P'!$AF$15)/'Filtered-P'!$AG$15),IF(ISBLANK(Personalize!$E$12),(((VLOOKUP($C8,'Filtered-P'!$A$1:$P$700,9,FALSE))-'Filtered-P'!$AF$15)/'Filtered-P'!$AG$15)*0.5,"")),IF(Personalize!$E$3=TRUE,(((VLOOKUP($C8,Filtered!$A$1:$AB$626,10,FALSE))-Filtered!$AK$25)/Filtered!$AL$25),IF(ISBLANK(Personalize!$E$3),(((VLOOKUP($C8,Filtered!$A$1:$AB$626,10,FALSE))-Filtered!$AK$25)/Filtered!$AL$25)*0.5,""))),"") -> -0.4827187472 | Q8: =IFERROR(IF((OR($D8="RP",$D8="SP")),IF(Personalize!$E$11=TRUE,(((VLOOKUP($C8,'Filtered-P'!$A$1:$P$700,7,FALSE))-'Filtered-P'!$AF$13)/'Filtered-P'!$AG$13),IF(ISBLANK(Personalize!$E$11),(((VLOOKUP($C8,'Filtered-P'!$A$1:$P$700,7,FALSE))-'Filtered-P'!$AF$13)/'Filtered-P'!$AG$13)*0.5,"")),IF(Personalize!$E$2=TRUE,(((VLOOKUP($C8,Filtered!$A$1:$AB$626,5,FALSE))-Filtered!$AK$20)/Filtered!$AL$20),IF(ISBLANK(Personalize!$E$2),(((VLOOKUP($C8,Filtered!$A$1:$AB$626,5,FALSE))-Filtered!$AK$20)/Filtered!$AL$20)*0.5,""))),"") -> 2.349187929 | R8: =IFERROR(IF((OR($D8="RP",$D8="SP")),IF(Personalize!$E$13=TRUE,(((VLOOKUP($C8,'Filtered-P'!$A$1:$P$700,13,FALSE))-'Filtered-P'!$AF$19)/'Filtered-P'!$AG$19),IF(ISBLANK(Personalize!$E$13),(((VLOOKUP($C8,'Filtered-P'!$A$1:$P$700,13,FALSE))-'Filtered-P'!$AF$19)/'Filtered-P'!$AG$19)*0.5,"")),IF(Personalize!$E$5=TRUE,(((VLOOKUP($C8,Filtered!$A$1:$AB$626,11,FALSE))-Filtered!$AK$26)/Filtered!$AL$26),IF(ISBLANK(Personalize!$E$5),(((VLOOKUP($C8,Filtered!$A$1:$AB$626,11,FALSE))-Filtered!$AK$26)/Filtered!$AL$26)*0.5,""))),"") -> 4.488067008 | S8: =IFERROR(IF((OR($D8="RP",$D8="SP")),IF(Personalize!$E$14=TRUE,(((VLOOKUP($C8,'Filtered-P'!$A$1:$P$700,14,FALSE))-'Filtered-P'!$AF$20)/'Filtered-P'!$AG$20),IF(ISBLANK(Personalize!$E$14),(((VLOOKUP($C8,'Filtered-P'!$A$1:$P$700,14,FALSE))-'Filtered-P'!$AF$20)/'Filtered-P'!$AG$20)*0.5,"")),IF(Personalize!$E$6=TRUE,(((VLOOKUP($C8,Filtered!$A$1:$AB$626,12,FALSE))-Filtered!$AK$27)/Filtered!$AL$27),IF(ISBLANK(Personalize!$E$6),(((VLOOKUP($C8,Filtered!$A$1:$AB$626,12,FALSE))-Filtered!$AK$27)/Filtered!$AL$27)*0.5,""))),"") -> 4.037318016 | T8: =IFERROR(IF((OR($D8="RP",$D8="SP")),IF(Personalize!$E$16=TRUE,(((VLOOKUP($C8,'Filtered-P'!$A$1:$P$700,3,FALSE))-'Filtered-P'!$AF$9)/'Filtered-P'!$AG$9),IF(ISBLANK(Personalize!$E$16),(((VLOOKUP($C8,'Filtered-P'!$A$1:$P$700,3,FALSE))-'Filtered-P'!$AF$9)/'Filtered-P'!$AG$9)*0.5,"")),IF(Personalize!$E$7=TRUE,(((VLOOKUP($C8,Filtered!$A$1:$BB$626,24,FALSE))-Filtered!$AK$37)/Filtered!$AL$37),IF(ISBLANK(Personalize!$E$7),(((VLOOKUP($C8,Filtered!$A$1:$BB$626,24,FALSE))-Filtered!$AK$37)/Filtered!$AL$37)*0.5,""))),"") ->  | U8: =IFERROR(IF((OR($D8="RP",$D8="SP")),IF(Personalize!$E$15=TRUE,(((VLOOKUP($C8,'Filtered-P'!$A$1:$P$700,15,FALSE))-'Filtered-P'!$AF$21)/'Filtered-P'!$AG$21),IF(ISBLANK(Personalize!$E$15),(((VLOOKUP($C8,'Filtered-P'!$A$1:$P$700,15,FALSE))-'Filtered-P'!$AF$21)/'Filtered-P'!$AG$21)*0.5,"")),IF(Personalize!$E$8=TRUE,(((VLOOKUP($C8,Filtered!$A$1:$BB$626,23,FALSE))-Filtered!$AK$36)/Filtered!$AL$36),IF(ISBLANK(Personalize!$E$8),(((VLOOKUP($C8,Filtered!$A$1:$BB$626,23,FALSE))-Filtered!$AK$36)/Filtered!$AL$36)*0.5,""))),"") ->  | V8: =IFERROR(IF((OR($D8="RP",$D8="SP")),IF(Personalize!$E$17=TRUE,(((VLOOKUP($C8,'Filtered-P'!$A$1:$P$700,16,FALSE))-'Filtered-P'!$AF$22)/'Filtered-P'!$AG$22),IF(ISBLANK(Personalize!$E$17),(((VLOOKUP($C8,'Filtered-P'!$A$1:$P$700,16,FALSE))-'Filtered-P'!$AF$22)/'Filtered-P'!$AG$22)*0.5,"")),IF(Personalize!$E$9=TRUE,(((VLOOKUP($C8,Filtered!$A$1:$BB$626,25,FALSE))-Filtered!$AK$38)/Filtered!$AL$38),IF(ISBLANK(Personalize!$E$9),(((VLOOKUP($C8,Filtered!$A$1:$BB$626,25,FALSE))-Filtered!$AK$38)/Filtered!$AL$38)*0.5,""))),"") ->  | W8: =IFERROR(IF((OR($D8="RP",$D8="SP")),IF(Personalize!$E$37=TRUE,(((VLOOKUP($C8,'Filtered-P'!$A$1:$Z$700,17,FALSE))-'Filtered-P'!$AF$25)/'Filtered-P'!$AG$25),IF(ISBLANK(Personalize!$E$37),(((VLOOKUP($C8,'Filtered-P'!$A$1:$Z$700,17,FALSE))-'Filtered-P'!$AF$25)/'Filtered-P'!$AG$25)*0.5,"")),IF(Personalize!$E$39=TRUE,(((VLOOKUP($C8,Filtered!$A$1:$X$626,14,FALSE))-Filtered!$AK$29)/Filtered!$AL$29),IF(ISBLANK(Personalize!$E$39),(((VLOOKUP($C8,Filtered!$A$1:$X$626,14,FALSE))-Filtered!$AK$29)/Filtered!$AL$29)*0.5,""))),"") ->  | X8: =IFERROR(IF((OR($D8="RP",$D8="SP")),IF(Personalize!$E$38=TRUE,(((VLOOKUP($C8,'Filtered-P'!$A$1:$Z$700,18,FALSE))-'Filtered-P'!$AF$26)/'Filtered-P'!$AG$26),IF(ISBLANK(Personalize!$E$38),(((VLOOKUP($C8,'Filtered-P'!$A$1:$Z$700,18,FALSE))-'Filtered-P'!$AF$26)/'Filtered-P'!$AG$26)*0.5,"")),IF(Personalize!$E$40=TRUE,(((VLOOKUP($C8,Filtered!$A$1:$X$626,6,FALSE))-Filtered!$AK$21)/Filtered!$AL$21),IF(ISBLANK(Personalize!$E$40),(((VLOOKUP($C8,Filtered!$A$1:$X$626,6,FALSE))-Filtered!$AK$21)/Filtered!$AL$21)*0.5,""))),"") ->  | Y8: =IFERROR(IF((OR($D8="RP",$D8="SP")),IF(Personalize!$E$45=TRUE,(((VLOOKUP($C8,'Filtered-P'!$A$1:$Z$700,4,FALSE))-'Filtered-P'!$AF$10)/'Filtered-P'!$AG$10),IF(ISBLANK(Personalize!$E$45),(((VLOOKUP($C8,'Filtered-P'!$A$1:$Z$700,4,FALSE))-'Filtered-P'!$AF$10)/'Filtered-P'!$AG$10)*0.5,"")),IF(Personalize!$E$41=TRUE,(((VLOOKUP($C8,Filtered!$A$1:$BB$626,20,FALSE))-Filtered!$AK$43)/Filtered!$AL$43),IF(ISBLANK(Personalize!$E$41),(((VLOOKUP($C8,Filtered!$A$1:$BB$626,20,FALSE))-Filtered!$AK$43)/Filtered!$AL$43)*0.5,""))),"") ->  | Z8: =IFERROR(IF((OR($D8="RP",$D8="SP")),IF(Personalize!$E$46=TRUE,(((VLOOKUP($C8,'Filtered-P'!$A$1:$Z$700,19,FALSE))-'Filtered-P'!$AF$27)/'Filtered-P'!$AG$27),IF(ISBLANK(Personalize!$E$46),(((VLOOKUP($C8,'Filtered-P'!$A$1:$Z$700,19,FALSE))-'Filtered-P'!$AF$27)/'Filtered-P'!$AG$27)*0.5,"")),IF(Personalize!$E$44=TRUE,(((VLOOKUP($C8,Filtered!$A$1:$BB$626,21,FALSE))-Filtered!$AK$44)/Filtered!$AL$44),IF(ISBLANK(Personalize!$E$44),(((VLOOKUP($C8,Filtered!$A$1:$BB$626,21,FALSE))-Filtered!$AK$44)/Filtered!$AL$44)*0.5,""))),"") ->  | AA8: =IFERROR(IF((OR($D8="RP",$D8="SP")),IF(Personalize!$E$47=TRUE,(((VLOOKUP($C8,'Filtered-P'!$A$1:$Z$700,6,FALSE))-'Filtered-P'!$AF$12)/'Filtered-P'!$AG$12),IF(ISBLANK(Personalize!$E$47),(((VLOOKUP($C8,'Filtered-P'!$A$1:$Z$700,6,FALSE))-'Filtered-P'!$AF$12)/'Filtered-P'!$AG$12)*0.5,"")),IF(Personalize!$E$42=TRUE,(((VLOOKUP($C8,Filtered!$A$1:$BB$626,8,FALSE))-Filtered!$AK$23)/Filtered!$AL$23),IF(ISBLANK(Personalize!$E$42),(((VLOOKUP($C8,Filtered!$A$1:$BB$626,8,FALSE))-Filtered!$AK$23)/Filtered!$AL$23)*0.5,""))),"") ->  | AB8: =IFERROR(IF((OR($D8="RP",$D8="SP")),IF(Personalize!$E$48=TRUE,(((VLOOKUP($C8,'Filtered-P'!$A$1:$Z$700,5,FALSE))-'Filtered-P'!$AF$11)/'Filtered-P'!$AG$11),IF(ISBLANK(Personalize!$E$48),(((VLOOKUP($C8,'Filtered-P'!$A$1:$Z$700,5,FALSE))-'Filtered-P'!$AF$11)/'Filtered-P'!$AG$11)*0.5,"")),IF(Personalize!$E$43=TRUE,(((VLOOKUP($C8,Filtered!$A$1:$BB$626,9,FALSE))-Filtered!$AK$24)/Filtered!$AL$24),IF(ISBLANK(Personalize!$E$43),(((VLOOKUP($C8,Filtered!$A$1:$BB$626,9,FALSE))-Filtered!$AK$24)/Filtered!$AL$24)*0.5,""))),"") ->  | AC8: =IFERROR(IF((OR($D8="RP",$D8="SP")),IF(Personalize!$E$52=TRUE,(((VLOOKUP($C8,'Filtered-P'!$A$1:$AD$700,21,FALSE))-'Filtered-P'!$AF$29)/(-1*'Filtered-P'!$AG$29)),IF(ISBLANK(Personalize!$E$52),(((VLOOKUP($C8,'Filtered-P'!$A$1:$AD$700,21,FALSE))-'Filtered-P'!$AF$29)/(-1*'Filtered-P'!$AG$29))*0.5,"")),IF(Personalize!$E$49=TRUE,(((VLOOKUP($C8,Filtered!$A$1:$AF$626,30,FALSE))-Filtered!$AK$45)/Filtered!$AL$45),IF(ISBLANK(Personalize!$E$49),(((VLOOKUP($C8,Filtered!$A$1:$AF$626,30,FALSE))-Filtered!$AK$45)/Filtered!$AL$45)*0.5,""))),"") ->  | AD8: =IFERROR(IF((OR($D8="RP",$D8="SP")),IF(Personalize!$E$53=TRUE,(((VLOOKUP($C8,'Filtered-P'!$A$1:$AD$700,23,FALSE))-'Filtered-P'!$AF$31)/(-1*'Filtered-P'!$AG$31)),IF(ISBLANK(Personalize!$E$53),(((VLOOKUP($C8,'Filtered-P'!$A$1:$AD$700,23,FALSE))-'Filtered-P'!$AF$31)/(-1*'Filtered-P'!$AG$31))*0.5,"")),IF(Personalize!$E$50=TRUE,(((VLOOKUP($C8,Filtered!$A$1:$AF$626,31,FALSE))-Filtered!$AK$46)/Filtered!$AL$46),IF(ISBLANK(Personalize!$E$50),(((VLOOKUP($C8,Filtered!$A$1:$AF$626,31,FALSE))-Filtered!$AK$46)/Filtered!$AL$46)*0.5,""))),"") ->  | AE8: =IFERROR(IF((OR($D8="RP",$D8="SP")),IF(Personalize!$E$54=TRUE,(((VLOOKUP($C8,'Filtered-P'!$A$1:$AD$700,24,FALSE))-'Filtered-P'!$AF$32)/'Filtered-P'!$AG$32),IF(ISBLANK(Personalize!$E$54),(((VLOOKUP($C8,'Filtered-P'!$A$1:$AD$700,24,FALSE))-'Filtered-P'!$AF$32)/'Filtered-P'!$AG$32)*0.5,"")),IF(Personalize!$E$51=TRUE,(((VLOOKUP($C8,Filtered!$A$1:$AF$626,15,FALSE))-Filtered!$AK$30)/(-1*Filtered!$AL$30)),IF(ISBLANK(Personalize!$E$51),(((VLOOKUP($C8,Filtered!$A$1:$AF$626,15,FALSE))-Filtered!$AK$30)/(-1*Filtered!$AL$30))*0.5,""))),"") ->  | AF8: =IFERROR(IF((OR($D8="RP",$D8="SP")),IF(Personalize!$E$56=TRUE,(((VLOOKUP($C8,'Filtered-P'!$A$1:$AD$700,29,FALSE))-'Filtered-P'!$AF$35)/'Filtered-P'!$AG$35),IF(ISBLANK(Personalize!$E$56),(((VLOOKUP($C8,'Filtered-P'!$A$1:$AD$700,29,FALSE))-'Filtered-P'!$AF$35)/'Filtered-P'!$AG$35)*0.5,"")),IF(Personalize!$E$60=TRUE,(((VLOOKUP($C8,Filtered!$A$1:$AF$626,7,FALSE))-Filtered!$AK$22)/Filtered!$AL$22),IF(ISBLANK(Personalize!$E$60),(((VLOOKUP($C8,Filtered!$A$1:$AF$626,7,FALSE))-Filtered!$AK$22)/Filtered!$AL$22)*0.5,""))),"") ->  | AG8: =IFERROR(IF((OR($D8="RP",$D8="SP")),IF(Personalize!$E$57=TRUE,(((VLOOKUP($C8,'Filtered-P'!$A$1:$AD$700,28,FALSE))-'Filtered-P'!$AF$34)/'Filtered-P'!$AG$34),IF(ISBLANK(Personalize!$E$57),(((VLOOKUP($C8,'Filtered-P'!$A$1:$AD$700,28,FALSE))-'Filtered-P'!$AF$34)/'Filtered-P'!$AG$34)*0.5,"")),IF(Personalize!$E$61=TRUE,(((VLOOKUP($C8,Filtered!$A$1:$AZ$626,34,FALSE))-Filtered!$AK$47)/Filtered!$AL$47),IF(ISBLANK(Personalize!$E$61),(((VLOOKUP($C8,Filtered!$A$1:$AZ$626,34,FALSE))-Filtered!$AK$47)/Filtered!$AL$47)*0.5,""))),"") ->  | AH8: =IFERROR(IF((OR($D8="RP",$D8="SP")),IF(Personalize!$E$58=TRUE,(((VLOOKUP($C8,'Filtered-P'!$A$1:$Z$700,8,FALSE))-'Filtered-P'!$AF$14)/'Filtered-P'!$AG$14),IF(ISBLANK(Personalize!$E$58),(((VLOOKUP($C8,'Filtered-P'!$A$1:$Z$700,8,FALSE))-'Filtered-P'!$AF$14)/'Filtered-P'!$AG$14)*0.5,"")),IF(Personalize!$E$62=TRUE,(((VLOOKUP($C8,Filtered!$A$1:$AF$626,13,FALSE))-Filtered!$AK$28)/(-1*Filtered!$AL$28)),IF(ISBLANK(Personalize!$E$62),(((VLOOKUP($C8,Filtered!$A$1:$AF$626,13,FALSE))-Filtered!$AK$28)/(-1*Filtered!$AL$28))*0.5,""))),"") ->  | AI8: =IFERROR(IF((OR($D8="RP",$D8="SP")),IF(Personalize!$E$59=TRUE,(((VLOOKUP($C8,'Filtered-P'!$A$1:$AD$700,27,FALSE))-'Filtered-P'!$AF$33)/'Filtered-P'!$AG$33),IF(ISBLANK(Personalize!$E$59),(((VLOOKUP($C8,'Filtered-P'!$A$1:$AD$700,27,FALSE))-'Filtered-P'!$AF$33)/'Filtered-P'!$AG$33)*0.5,"")),IF(Personalize!$E$63=TRUE,(((VLOOKUP($C8,Filtered!$A$1:$AZ$626,35,FALSE))-Filtered!$AK$48)/(-1*Filtered!$AL$48)),IF(ISBLANK(Personalize!$E$63),(((VLOOKUP($C8,Filtered!$A$1:$AZ$626,35,FALSE))-Filtered!$AK$48)/(-1*Filtered!$AL$48))*0.5,""))),"") ->  | AJ8: =IFERROR(IF((OR($D8="RP",$D8="SP")),VLOOKUP($C8,'Filtered-P'!$A$1:$P$580,2,FALSE),""),"") -> 17.75859325 | AK8: =IFERROR(IF((OR($D8="RP",$D8="SP")),VLOOKUP($C8,'Filtered-P'!$A$1:$P$580,9,FALSE),""),"") -> 0 | AL8: =IFERROR(IF((OR($D8="RP",$D8="SP")),VLOOKUP($C8,'Filtered-P'!$A$1:$P$580,7,FALSE),""),"") -> 260.3883333 | AM8: =IFERROR(IF((OR($D8="RP",$D8="SP")),VLOOKUP($C8,'Filtered-P'!$A$1:$P$580,10,FALSE),""),"") -> 2.182151996 | AN8: =IFERROR(IF((OR($D8="RP",$D8="SP")),VLOOKUP($C8,'Filtered-P'!$A$1:$P$580,11,FALSE),""),"") -> 0.9606030406 | AO8: =IFERROR(IF((OR($D8="RP",$D8="SP")),"",VLOOKUP($C8,Filtered!$A$1:$X$600,16,FALSE)),"") ->  | AP8: =IFERROR(IF((OR($D8="RP",$D8="SP")),"",VLOOKUP($C8,Filtered!$A$1:$X$600,10,FALSE)),"") ->  | AQ8: =IFERROR(IF((OR($D8="RP",$D8="SP")),"",VLOOKUP($C8,Filtered!$A$1:$X$600,11,FALSE)),"") ->  | AR8: =IFERROR(IF((OR($D8="RP",$D8="SP")),"",VLOOKUP($C8,Filtered!$A$1:$X$600,5,FALSE)),"") ->  | AS8: =IFERROR(IF((OR($D8="RP",$D8="SP")),"",VLOOKUP($C8,Filtered!$A$1:$X$600,12,FALSE)),"") ->  | AU8: =IF(ISBLANK(A8),0,1) -> 0 | AV8: =IF(M8="",0,1) -> 1 | AW8: =A8 -> 0 | AX8: =IF(D8="C",1,IF(D8="1B",2,IF(D8="2B",3,IF(D8="3B",4,IF(D8="SS",5,IF(D8="CI",6,IF(D8="MI",7,IF(D8="OF",11,IF(D8="LF",8,IF(D8="CF",9,IF(D8="RF",10,IF(D8="DH",12,IF(D8="SP",13,IF(D8="RP",14,IF(D8="P",15,16))))))))))))))) -> 13 | AY8: =VLOOKUP(C8,'Starter Calc'!$B$2:$BS$700,70,FALSE) -> Bench | AZ8: =VLOOKUP(C8,'Starter Calc'!$B$2:$AO$700,40,FALSE) -> Yes | BA8: =IFERROR(IF(ISTEXT($A8),"",IF((OR($D8="RP",$D8="SP")),ABS(VLOOKUP(D8,'Filtered-P'!$AE$3:$AI$4,5,FALSE))+M8,ABS(VLOOKUP(D8,Filtered!$AJ$3:$AN$14,5,FALSE))+M8)),"") -> 15.56365397 | BB8: =IFERROR(BA8+ABS($BA$4),"") -> 16.28747704 | BC8: =IF(AND($A8<>"",$B8<>""),B8,"N") -> N | BD8: =IFERROR(VLOOKUP($C8,'ADP-Rank'!$A$2:$AB$581,25,FALSE),TRUE) -> TRUE | BE8: =IFERROR((BB8-BB$3)^2,"") -> 130.9767186 | BF8: =VLOOKUP(C8,'Starter Calc'!$B$2:$CD$700,71,FALSE) -> SP.No | BG8: =IFERROR(((Personalize!$A$1-(1*Personalize!$A$2))/Personalize!$A$2)*(N8/$BG$3)+1,"") -> 40.06712516 | BH8: 41.35930751 | BI8: 41.35930751
C9: Bryce Harper | D9: OF | E9: =IFERROR(IF(VLOOKUP(C9,'Starter Calc'!$B$2:$E$700,4,FALSE)="","",VLOOKUP(C9,'Starter Calc'!$B$2:$E$700,4,FALSE)),"") -> LF,CF,RF | F9: =IFERROR(VLOOKUP($C9,'ADP-Rank'!$A$2:$G$581,5,FALSE),"") -> WAS | G9: =IFERROR(VLOOKUP($C9,'ADP-Rank'!$A$2:$X$581,6,FALSE),"") -> 23 | H9: =IFERROR(IF(ISBLANK($B9),"$"&(ROUND(BI9,0))&" | $"&ROUND(BH9,0),""),"") -> $44 | $44 | I9: =IFERROR(IF(RIGHT(D9,1)="P",J9*$BE$2,J9*$BE$1),"") -> 42.6 | J9: =IFERROR(CHOOSE(Personalize!$E$31,(VLOOKUP(C9,'ADP-Rank'!$A$2:$Z$581,7,FALSE)*(Personalize!$A$3)+1),(VLOOKUP(C9,'ADP-Rank'!$A$2:$Z$581,8,FALSE)*(Personalize!$A$3)+1),(VLOOKUP(C9,'ADP-Rank'!$A$2:$Z$581,9,FALSE)*(Personalize!$A$3)+1),(VLOOKUP(C9,'ADP-Rank'!$A$2:$AA$581,10,FALSE)*(Personalize!$A$3)+1),(VLOOKUP(C9,'ADP-Rank'!$A$2:$AA$581,11,FALSE)*(Personalize!$A$3)+1),(VLOOKUP(C9,'ADP-Rank'!$A$2:$AA$581,12,FALSE)*(Personalize!$A$3)+1),(VLOOKUP(C9,'ADP-Rank'!$A$2:$AA$581,13,FALSE)*(Personalize!$A$3)+1),(VLOOKUP(C9,'ADP-Rank'!$A$2:$AA$581,14,FALSE)*(Personalize!$A$3)+1),(VLOOKUP(C9,'ADP-Rank'!$A$2:$AA$581,15,FALSE)*(Personalize!$A$3)+1),(VLOOKUP(C9,'ADP-Rank'!$A$2:$AG$581,28,FALSE)*(Personalize!$A$3)+1)),"") -> 42.6 | K9: =VLOOKUP($C9,'ADP-Rank'!$A$2:$AB$581,26,FALSE) -> 2 | L9: =IFERROR(RANK($M9,$M$7:$M$746,0),"") -> 3 | M9: =IF((SUM(O9:AI9)=0),"",SUM(O9:AI9)) -> 11.36698915 | N9: =IFERROR(IF((OR($D9="RP",$D9="SP")),ABS(VLOOKUP(D9,'Filtered-P'!$AE$3:$AI$4,5,FALSE))+M9,ABS(VLOOKUP(D9,Filtered!$AJ$3:$AN$14,5,FALSE))+M9),"") -> 15.33667229 | O9: =IFERROR(IF((OR($D9="RP",$D9="SP")),IF(Personalize!$E$10=TRUE,(((VLOOKUP($C9,'Filtered-P'!$A$1:$P$700,2,FALSE))-'Filtered-P'!$AF$8)/'Filtered-P'!$AG$8),IF(ISBLANK(Personalize!$E$10),(((VLOOKUP($C9,'Filtered-P'!$A$1:$P$700,2,FALSE))-'Filtered-P'!$AF$8)/'Filtered-P'!$AG$8)*0.5,"")),IF(Personalize!$E$4=TRUE,(((VLOOKUP($C9,Filtered!$A$1:$X$626,22,FALSE))-Filtered!$AK$35)/Filtered!$AL$35),IF(ISBLANK(Personalize!$E$4),(((VLOOKUP($C9,Filtered!$A$1:$X$626,22,FALSE))-Filtered!$AK$35)/Filtered!$AL$35)*0.5,""))),"") -> 2.273341296 | P9: =IFERROR(IF((OR($D9="RP",$D9="SP")),IF(Personalize!$E$12=TRUE,(((VLOOKUP($C9,'Filtered-P'!$A$1:$P$700,9,FALSE))-'Filtered-P'!$AF$15)/'Filtered-P'!$AG$15),IF(ISBLANK(Personalize!$E$12),(((VLOOKUP($C9,'Filtered-P'!$A$1:$P$700,9,FALSE))-'Filtered-P'!$AF$15)/'Filtered-P'!$AG$15)*0.5,"")),IF(Personalize!$E$3=TRUE,(((VLOOKUP($C9,Filtered!$A$1:$AB$626,10,FALSE))-Filtered!$AK$25)/Filtered!$AL$25),IF(ISBLANK(Personalize!$E$3),(((VLOOKUP($C9,Filtered!$A$1:$AB$626,10,FALSE))-Filtered!$AK$25)/Filtered!$AL$25)*0.5,""))),"") -> 2.393147433 | Q9: =IFERROR(IF((OR($D9="RP",$D9="SP")),IF(Personalize!$E$11=TRUE,(((VLOOKUP($C9,'Filtered-P'!$A$1:$P$700,7,FALSE))-'Filtered-P'!$AF$13)/'Filtered-P'!$AG$13),IF(ISBLANK(Personalize!$E$11),(((VLOOKUP($C9,'Filtered-P'!$A$1:$P$700,7,FALSE))-'Filtered-P'!$AF$13)/'Filtered-P'!$AG$13)*0.5,"")),IF(Personalize!$E$2=TRUE,(((VLOOKUP($C9,Filtered!$A$1:$AB$626,5,FALSE))-Filtered!$AK$20)/Filtered!$AL$20),IF(ISBLANK(Personalize!$E$2),(((VLOOKUP($C9,Filtered!$A$1:$AB$626,5,FALSE))-Filtered!$AK$20)/Filtered!$AL$20)*0.5,""))),"") -> 2.162827736 | R9: =IFERROR(IF((OR($D9="RP",$D9="SP")),IF(Personalize!$E$13=TRUE,(((VLOOKUP($C9,'Filtered-P'!$A$1:$P$700,13,FALSE))-'Filtered-P'!$AF$19)/'Filtered-P'!$AG$19),IF(ISBLANK(Personalize!$E$13),(((VLOOKUP($C9,'Filtered-P'!$A$1:$P$700,13,FALSE))-'Filtered-P'!$AF$19)/'Filtered-P'!$AG$19)*0.5,"")),IF(Personalize!$E$5=TRUE,(((VLOOKUP($C9,Filtered!$A$1:$AB$626,11,FALSE))-Filtered!$AK$26)/Filtered!$AL$26),IF(ISBLANK(Personalize!$E$5),(((VLOOKUP($C9,Filtered!$A$1:$AB$626,11,FALSE))-Filtered!$AK$26)/Filtered!$AL$26)*0.5,""))),"") -> 1.620668138 | S9: =IFERROR(IF((OR($D9="RP",$D9="SP")),IF(Personalize!$E$14=TRUE,(((VLOOKUP($C9,'Filtered-P'!$A$1:$P$700,14,FALSE))-'Filtered-P'!$AF$20)/'Filtered-P'!$AG$20),IF(ISBLANK(Personalize!$E$14),(((VLOOKUP($C9,'Filtered-P'!$A$1:$P$700,14,FALSE))-'Filtered-P'!$AF$20)/'Filtered-P'!$AG$20)*0.5,"")),IF(Personalize!$E$6=TRUE,(((VLOOKUP($C9,Filtered!$A$1:$AB$626,12,FALSE))-Filtered!$AK$27)/Filtered!$AL$27),IF(ISBLANK(Personalize!$E$6),(((VLOOKUP($C9,Filtered!$A$1:$AB$626,12,FALSE))-Filtered!$AK$27)/Filtered!$AL$27)*0.5,""))),"") -> -0.3070267227 | T9: =IFERROR(IF((OR($D9="RP",$D9="SP")),IF(Personalize!$E$16=TRUE,(((VLOOKUP($C9,'Filtered-P'!$A$1:$P$700,3,FALSE))-'Filtered-P'!$AF$9)/'Filtered-P'!$AG$9),IF(ISBLANK(Personalize!$E$16),(((VLOOKUP($C9,'Filtered-P'!$A$1:$P$700,3,FALSE))-'Filtered-P'!$AF$9)/'Filtered-P'!$AG$9)*0.5,"")),IF(Personalize!$E$7=TRUE,(((VLOOKUP($C9,Filtered!$A$1:$BB$626,24,FALSE))-Filtered!$AK$37)/Filtered!$AL$37),IF(ISBLANK(Personalize!$E$7),(((VLOOKUP($C9,Filtered!$A$1:$BB$626,24,FALSE))-Filtered!$AK$37)/Filtered!$AL$37)*0.5,""))),"") -> 3.224031273 | U9: =IFERROR(IF((OR($D9="RP",$D9="SP")),IF(Personalize!$E$15=TRUE,(((VLOOKUP($C9,'Filtered-P'!$A$1:$P$700,15,FALSE))-'Filtered-P'!$AF$21)/'Filtered-P'!$AG$21),IF(ISBLANK(Personalize!$E$15),(((VLOOKUP($C9,'Filtered-P'!$A$1:$P$700,15,FALSE))-'Filtered-P'!$AF$21)/'Filtered-P'!$AG$21)*0.5,"")),IF(Personalize!$E$8=TRUE,(((VLOOKUP($C9,Filtered!$A$1:$BB$626,23,FALSE))-Filtered!$AK$36)/Filtered!$AL$36),IF(ISBLANK(Personalize!$E$8),(((VLOOKUP($C9,Filtered!$A$1:$BB$626,23,FALSE))-Filtered!$AK$36)/Filtered!$AL$36)*0.5,""))),"") ->  | V9: =IFERROR(IF((OR($D9="RP",$D9="SP")),IF(Personalize!$E$17=TRUE,(((VLOOKUP($C9,'Filtered-P'!$A$1:$P$700,16,FALSE))-'Filtered-P'!$AF$22)/'Filtered-P'!$AG$22),IF(ISBLANK(Personalize!$E$17),(((VLOOKUP($C9,'Filtered-P'!$A$1:$P$700,16,FALSE))-'Filtered-P'!$AF$22)/'Filtered-P'!$AG$22)*0.5,"")),IF(Personalize!$E$9=TRUE,(((VLOOKUP($C9,Filtered!$A$1:$BB$626,25,FALSE))-Filtered!$AK$38)/Filtered!$AL$38),IF(ISBLANK(Personalize!$E$9),(((VLOOKUP($C9,Filtered!$A$1:$BB$626,25,FALSE))-Filtered!$AK$38)/Filtered!$AL$38)*0.5,""))),"") ->  | W9: =IFERROR(IF((OR($D9="RP",$D9="SP")),IF(Personalize!$E$37=TRUE,(((VLOOKUP($C9,'Filtered-P'!$A$1:$Z$700,17,FALSE))-'Filtered-P'!$AF$25)/'Filtered-P'!$AG$25),IF(ISBLANK(Personalize!$E$37),(((VLOOKUP($C9,'Filtered-P'!$A$1:$Z$700,17,FALSE))-'Filtered-P'!$AF$25)/'Filtered-P'!$AG$25)*0.5,"")),IF(Personalize!$E$39=TRUE,(((VLOOKUP($C9,Filtered!$A$1:$X$626,14,FALSE))-Filtered!$AK$29)/Filtered!$AL$29),IF(ISBLANK(Personalize!$E$39),(((VLOOKUP($C9,Filtered!$A$1:$X$626,14,FALSE))-Filtered!$AK$29)/Filtered!$AL$29)*0.5,""))),"") ->  | X9: =IFERROR(IF((OR($D9="RP",$D9="SP")),IF(Personalize!$E$38=TRUE,(((VLOOKUP($C9,'Filtered-P'!$A$1:$Z$700,18,FALSE))-'Filtered-P'!$AF$26)/'Filtered-P'!$AG$26),IF(ISBLANK(Personalize!$E$38),(((VLOOKUP($C9,'Filtered-P'!$A$1:$Z$700,18,FALSE))-'Filtered-P'!$AF$26)/'Filtered-P'!$AG$26)*0.5,"")),IF(Personalize!$E$40=TRUE,(((VLOOKUP($C9,Filtered!$A$1:$X$626,6,FALSE))-Filtered!$AK$21)/Filtered!$AL$21),IF(ISBLANK(Personalize!$E$40),(((VLOOKUP($C9,Filtered!$A$1:$X$626,6,FALSE))-Filtered!$AK$21)/Filtered!$AL$21)*0.5,""))),"") ->  | Y9: =IFERROR(IF((OR($D9="RP",$D9="SP")),IF(Personalize!$E$45=TRUE,(((VLOOKUP($C9,'Filtered-P'!$A$1:$Z$700,4,FALSE))-'Filtered-P'!$AF$10)/'Filtered-P'!$AG$10),IF(ISBLANK(Personalize!$E$45),(((VLOOKUP($C9,'Filtered-P'!$A$1:$Z$700,4,FALSE))-'Filtered-P'!$AF$10)/'Filtered-P'!$AG$10)*0.5,"")),IF(Personalize!$E$41=TRUE,(((VLOOKUP($C9,Filtered!$A$1:$BB$626,20,FALSE))-Filtered!$AK$43)/Filtered!$AL$43),IF(ISBLANK(Personalize!$E$41),(((VLOOKUP($C9,Filtered!$A$1:$BB$626,20,FALSE))-Filtered!$AK$43)/Filtered!$AL$43)*0.5,""))),"") ->  | Z9: =IFERROR(IF((OR($D9="RP",$D9="SP")),IF(Personalize!$E$46=TRUE,(((VLOOKUP($C9,'Filtered-P'!$A$1:$Z$700,19,FALSE))-'Filtered-P'!$AF$27)/'Filtered-P'!$AG$27),IF(ISBLANK(Personalize!$E$46),(((VLOOKUP($C9,'Filtered-P'!$A$1:$Z$700,19,FALSE))-'Filtered-P'!$AF$27)/'Filtered-P'!$AG$27)*0.5,"")),IF(Personalize!$E$44=TRUE,(((VLOOKUP($C9,Filtered!$A$1:$BB$626,21,FALSE))-Filtered!$AK$44)/Filtered!$AL$44),IF(ISBLANK(Personalize!$E$44),(((VLOOKUP($C9,Filtered!$A$1:$BB$626,21,FALSE))-Filtered!$AK$44)/Filtered!$AL$44)*0.5,""))),"") ->  | AA9: =IFERROR(IF((OR($D9="RP",$D9="SP")),IF(Personalize!$E$47=TRUE,(((VLOOKUP($C9,'Filtered-P'!$A$1:$Z$700,6,FALSE))-'Filtered-P'!$AF$12)/'Filtered-P'!$AG$12),IF(ISBLANK(Personalize!$E$47),(((VLOOKUP($C9,'Filtered-P'!$A$1:$Z$700,6,FALSE))-'Filtered-P'!$AF$12)/'Filtered-P'!$AG$12)*0.5,"")),IF(Personalize!$E$42=TRUE,(((VLOOKUP($C9,Filtered!$A$1:$BB$626,8,FALSE))-Filtered!$AK$23)/Filtered!$AL$23),IF(ISBLANK(Personalize!$E$42),(((VLOOKUP($C9,Filtered!$A$1:$BB$626,8,FALSE))-Filtered!$AK$23)/Filtered!$AL$23)*0.5,""))),"") ->  | AB9: =IFERROR(IF((OR($D9="RP",$D9="SP")),IF(Personalize!$E$48=TRUE,(((VLOOKUP($C9,'Filtered-P'!$A$1:$Z$700,5,FALSE))-'Filtered-P'!$AF$11)/'Filtered-P'!$AG$11),IF(ISBLANK(Personalize!$E$48),(((VLOOKUP($C9,'Filtered-P'!$A$1:$Z$700,5,FALSE))-'Filtered-P'!$AF$11)/'Filtered-P'!$AG$11)*0.5,"")),IF(Personalize!$E$43=TRUE,(((VLOOKUP($C9,Filtered!$A$1:$BB$626,9,FALSE))-Filtered!$AK$24)/Filtered!$AL$24),IF(ISBLANK(Personalize!$E$43),(((VLOOKUP($C9,Filtered!$A$1:$BB$626,9,FALSE))-Filtered!$AK$24)/Filtered!$AL$24)*0.5,""))),"") ->  | AC9: =IFERROR(IF((OR($D9="RP",$D9="SP")),IF(Personalize!$E$52=TRUE,(((VLOOKUP($C9,'Filtered-P'!$A$1:$AD$700,21,FALSE))-'Filtered-P'!$AF$29)/(-1*'Filtered-P'!$AG$29)),IF(ISBLANK(Personalize!$E$52),(((VLOOKUP($C9,'Filtered-P'!$A$1:$AD$700,21,FALSE))-'Filtered-P'!$AF$29)/(-1*'Filtered-P'!$AG$29))*0.5,"")),IF(Personalize!$E$49=TRUE,(((VLOOKUP($C9,Filtered!$A$1:$AF$626,30,FALSE))-Filtered!$AK$45)/Filtered!$AL$45),IF(ISBLANK(Personalize!$E$49),(((VLOOKUP($C9,Filtered!$A$1:$AF$626,30,FALSE))-Filtered!$AK$45)/Filtered!$AL$45)*0.5,""))),"") ->  | AD9: =IFERROR(IF((OR($D9="RP",$D9="SP")),IF(Personalize!$E$53=TRUE,(((VLOOKUP($C9,'Filtered-P'!$A$1:$AD$700,23,FALSE))-'Filtered-P'!$AF$31)/(-1*'Filtered-P'!$AG$31)),IF(ISBLANK(Personalize!$E$53),(((VLOOKUP($C9,'Filtered-P'!$A$1:$AD$700,23,FALSE))-'Filtered-P'!$AF$31)/(-1*'Filtered-P'!$AG$31))*0.5,"")),IF(Personalize!$E$50=TRUE,(((VLOOKUP($C9,Filtered!$A$1:$AF$626,31,FALSE))-Filtered!$AK$46)/Filtered!$AL$46),IF(ISBLANK(Personalize!$E$50),(((VLOOKUP($C9,Filtered!$A$1:$AF$626,31,FALSE))-Filtered!$AK$46)/Filtered!$AL$46)*0.5,""))),"") ->  | AE9: =IFERROR(IF((OR($D9="RP",$D9="SP")),IF(Personalize!$E$54=TRUE,(((VLOOKUP($C9,'Filtered-P'!$A$1:$AD$700,24,FALSE))-'Filtered-P'!$AF$32)/'Filtered-P'!$AG$32),IF(ISBLANK(Personalize!$E$54),(((VLOOKUP($C9,'Filtered-P'!$A$1:$AD$700,24,FALSE))-'Filtered-P'!$AF$32)/'Filtered-P'!$AG$32)*0.5,"")),IF(Personalize!$E$51=TRUE,(((VLOOKUP($C9,Filtered!$A$1:$AF$626,15,FALSE))-Filtered!$AK$30)/(-1*Filtered!$AL$30)),IF(ISBLANK(Personalize!$E$51),(((VLOOKUP($C9,Filtered!$A$1:$AF$626,15,FALSE))-Filtered!$AK$30)/(-1*Filtered!$AL$30))*0.5,""))),"") ->  | AF9: =IFERROR(IF((OR($D9="RP",$D9="SP")),IF(Personalize!$E$56=TRUE,(((VLOOKUP($C9,'Filtered-P'!$A$1:$AD$700,29,FALSE))-'Filtered-P'!$AF$35)/'Filtered-P'!$AG$35),IF(ISBLANK(Personalize!$E$56),(((VLOOKUP($C9,'Filtered-P'!$A$1:$AD$700,29,FALSE))-'Filtered-P'!$AF$35)/'Filtered-P'!$AG$35)*0.5,"")),IF(Personalize!$E$60=TRUE,(((VLOOKUP($C9,Filtered!$A$1:$AF$626,7,FALSE))-Filtered!$AK$22)/Filtered!$AL$22),IF(ISBLANK(Personalize!$E$60),(((VLOOKUP($C9,Filtered!$A$1:$AF$626,7,FALSE))-Filtered!$AK$22)/Filtered!$AL$22)*0.5,""))),"") ->  | AG9: =IFERROR(IF((OR($D9="RP",$D9="SP")),IF(Personalize!$E$57=TRUE,(((VLOOKUP($C9,'Filtered-P'!$A$1:$AD$700,28,FALSE))-'Filtered-P'!$AF$34)/'Filtered-P'!$AG$34),IF(ISBLANK(Personalize!$E$57),(((VLOOKUP($C9,'Filtered-P'!$A$1:$AD$700,28,FALSE))-'Filtered-P'!$AF$34)/'Filtered-P'!$AG$34)*0.5,"")),IF(Personalize!$E$61=TRUE,(((VLOOKUP($C9,Filtered!$A$1:$AZ$626,34,FALSE))-Filtered!$AK$47)/Filtered!$AL$47),IF(ISBLANK(Personalize!$E$61),(((VLOOKUP($C9,Filtered!$A$1:$AZ$626,34,FALSE))-Filtered!$AK$47)/Filtered!$AL$47)*0.5,""))),"") ->  | AH9: =IFERROR(IF((OR($D9="RP",$D9="SP")),IF(Personalize!$E$58=TRUE,(((VLOOKUP($C9,'Filtered-P'!$A$1:$Z$700,8,FALSE))-'Filtered-P'!$AF$14)/'Filtered-P'!$AG$14),IF(ISBLANK(Personalize!$E$58),(((VLOOKUP($C9,'Filtered-P'!$A$1:$Z$700,8,FALSE))-'Filtered-P'!$AF$14)/'Filtered-P'!$AG$14)*0.5,"")),IF(Personalize!$E$62=TRUE,(((VLOOKUP($C9,Filtered!$A$1:$AF$626,13,FALSE))-Filtered!$AK$28)/(-1*Filtered!$AL$28)),IF(ISBLANK(Personalize!$E$62),(((VLOOKUP($C9,Filtered!$A$1:$AF$626,13,FALSE))-Filtered!$AK$28)/(-1*Filtered!$AL$28))*0.5,""))),"") ->  | AI9: =IFERROR(IF((OR($D9="RP",$D9="SP")),IF(Personalize!$E$59=TRUE,(((VLOOKUP($C9,'Filtered-P'!$A$1:$AD$700,27,FALSE))-'Filtered-P'!$AF$33)/'Filtered-P'!$AG$33),IF(ISBLANK(Personalize!$E$59),(((VLOOKUP($C9,'Filtered-P'!$A$1:$AD$700,27,FALSE))-'Filtered-P'!$AF$33)/'Filtered-P'!$AG$33)*0.5,"")),IF(Personalize!$E$63=TRUE,(((VLOOKUP($C9,Filtered!$A$1:$AZ$626,35,FALSE))-Filtered!$AK$48)/(-1*Filtered!$AL$48)),IF(ISBLANK(Personalize!$E$63),(((VLOOKUP($C9,Filtered!$A$1:$AZ$626,35,FALSE))-Filtered!$AK$48)/(-1*Filtered!$AL$48))*0.5,""))),"") ->  | AJ9: =IFERROR(IF((OR($D9="RP",$D9="SP")),VLOOKUP($C9,'Filtered-P'!$A$1:$P$580,2,FALSE),""),"") ->  | AK9: =IFERROR(IF((OR($D9="RP",$D9="SP")),VLOOKUP($C9,'Filtered-P'!$A$1:$P$580,9,FALSE),""),"") ->  | AL9: =IFERROR(IF((OR($D9="RP",$D9="SP")),VLOOKUP($C9,'Filtered-P'!$A$1:$P$580,7,FALSE),""),"") ->  | AM9: =IFERROR(IF((OR($D9="RP",$D9="SP")),VLOOKUP($C9,'Filtered-P'!$A$1:$P$580,10,FALSE),""),"") ->  | AN9: =IFERROR(IF((OR($D9="RP",$D9="SP")),VLOOKUP($C9,'Filtered-P'!$A$1:$P$580,11,FALSE),""),"") ->  | AO9: =IFERROR(IF((OR($D9="RP",$D9="SP")),"",VLOOKUP($C9,Filtered!$A$1:$X$600,16,FALSE)),"") -> 0.3066180626 | AP9: =IFERROR(IF((OR($D9="RP",$D9="SP")),"",VLOOKUP($C9,Filtered!$A$1:$X$600,10,FALSE)),"") -> 37.30414466 | AQ9: =IFERROR(IF((OR($D9="RP",$D9="SP")),"",VLOOKUP($C9,Filtered!$A$1:$X$600,11,FALSE)),"") -> 95.5760316 | AR9: =IFERROR(IF((OR($D9="RP",$D9="SP")),"",VLOOKUP($C9,Filtered!$A$1:$X$600,5,FALSE)),"") -> 100.5949174 | AS9: =IFERROR(IF((OR($D9="RP",$D9="SP")),"",VLOOKUP($C9,Filtered!$A$1:$X$600,12,FALSE)),"") -> 6.801261954 | AU9: =IF(ISBLANK(A9),0,1) -> 0 | AV9: =IF(M9="",0,1) -> 1 | AW9: =A9 -> 0 | AX9: =IF(D9="C",1,IF(D9="1B",2,IF(D9="2B",3,IF(D9="3B",4,IF(D9="SS",5,IF(D9="CI",6,IF(D9="MI",7,IF(D9="OF",11,IF(D9="LF",8,IF(D9="CF",9,IF(D9="RF",10,IF(D9="DH",12,IF(D9="SP",13,IF(D9="RP",14,IF(D9="P",15,16))))))))))))))) -> 11 | AY9: =VLOOKUP(C9,'Starter Calc'!$B$2:$BS$700,70,FALSE) -> Bench | AZ9: =VLOOKUP(C9,'Starter Calc'!$B$2:$AO$700,40,FALSE) -> Yes | BA9: =IFERROR(IF(ISTEXT($A9),"",IF((OR($D9="RP",$D9="SP")),ABS(VLOOKUP(D9,'Filtered-P'!$AE$3:$AI$4,5,FALSE))+M9,ABS(VLOOKUP(D9,Filtered!$AJ$3:$AN$14,5,FALSE))+M9)),"") -> 15.33667229 | BB9: =IFERROR(BA9+ABS($BA$4),"") -> 16.06049536 | BC9: =IF(AND($A9<>"",$B9<>""),B9,"N") -> N | BD9: =IFERROR(VLOOKUP($C9,'ADP-Rank'!$A$2:$AB$581,25,FALSE),TRUE) -> TRUE | BE9: =IFERROR((BB9-BB$3)^2,"") -> 125.8328529 | BF9: =VLOOKUP(C9,'Starter Calc'!$B$2:$CD$700,71,FALSE) -> OF.Yes | BG9: =IFERROR(((Personalize!$A$1-(1*Personalize!$A$2))/Personalize!$A$2)*(N9/$BG$3)+1,"") -> 39.49736682 | BH9: 44.07627406 | BI9: 44.07627406
C10: Paul Goldschmidt | D10: 1B | E10: =IFERROR(IF(VLOOKUP(C10,'Starter Calc'!$B$2:$E$700,4,FALSE)="","",VLOOKUP(C10,'Starter Calc'!$B$2:$E$700,4,FALSE)),"") -> ,, | F10: =IFERROR(VLOOKUP($C10,'ADP-Rank'!$A$2:$G$581,5,FALSE),"") -> ARI | G10: =IFERROR(VLOOKUP($C10,'ADP-Rank'!$A$2:$X$581,6,FALSE),"") -> 28 | H10: =IFERROR(IF(ISBLANK($B10),"$"&(ROUND(BI10,0))&" | $"&ROUND(BH10,0),""),"") -> $35 | $35 | I10: =IFERROR(IF(RIGHT(D10,1)="P",J10*$BE$2,J10*$BE$1),"") -> 40.86666667 | J10: =IFERROR(CHOOSE(Personalize!$E$31,(VLOOKUP(C10,'ADP-Rank'!$A$2:$Z$581,7,FALSE)*(Personalize!$A$3)+1),(VLOOKUP(C10,'ADP-Rank'!$A$2:$Z$581,8,FALSE)*(Personalize!$A$3)+1),(VLOOKUP(C10,'ADP-Rank'!$A$2:$Z$581,9,FALSE)*(Personalize!$A$3)+1),(VLOOKUP(C10,'ADP-Rank'!$A$2:$AA$581,10,FALSE)*(Personalize!$A$3)+1),(VLOOKUP(C10,'ADP-Rank'!$A$2:$AA$581,11,FALSE)*(Personalize!$A$3)+1),(VLOOKUP(C10,'ADP-Rank'!$A$2:$AA$581,12,FALSE)*(Personalize!$A$3)+1),(VLOOKUP(C10,'ADP-Rank'!$A$2:$AA$581,13,FALSE)*(Personalize!$A$3)+1),(VLOOKUP(C10,'ADP-Rank'!$A$2:$AA$581,14,FALSE)*(Personalize!$A$3)+1),(VLOOKUP(C10,'ADP-Rank'!$A$2:$AA$581,15,FALSE)*(Personalize!$A$3)+1),(VLOOKUP(C10,'ADP-Rank'!$A$2:$AG$581,28,FALSE)*(Personalize!$A$3)+1)),"") -> 40.86666667 | K10: =VLOOKUP($C10,'ADP-Rank'!$A$2:$AB$581,26,FALSE) -> 3 | L10: =IFERROR(RANK($M10,$M$7:$M$746,0),"") -> 4 | M10: =IF((SUM(O10:AI10)=0),"",SUM(O10:AI10)) -> 10.4191541 | N10: =IFERROR(IF((OR($D10="RP",$D10="SP")),ABS(VLOOKUP(D10,'Filtered-P'!$AE$3:$AI$4,5,FALSE))+M10,ABS(VLOOKUP(D10,Filtered!$AJ$3:$AN$14,5,FALSE))+M10),"") -> 12.12264734 | O10: =IFERROR(IF((OR($D10="RP",$D10="SP")),IF(Personalize!$E$10=TRUE,(((VLOOKUP($C10,'Filtered-P'!$A$1:$P$700,2,FALSE))-'Filtered-P'!$AF$8)/'Filtered-P'!$AG$8),IF(ISBLANK(Personalize!$E$10),(((VLOOKUP($C10,'Filtered-P'!$A$1:$P$700,2,FALSE))-'Filtered-P'!$AF$8)/'Filtered-P'!$AG$8)*0.5,"")),IF(Personalize!$E$4=TRUE,(((VLOOKUP($C10,Filtered!$A$1:$X$626,22,FALSE))-Filtered!$AK$35)/Filtered!$AL$35),IF(ISBLANK(Personalize!$E$4),(((VLOOKUP($C10,Filtered!$A$1:$X$626,22,FALSE))-Filtered!$AK$35)/Filtered!$AL$35)*0.5,""))),"") -> 1.674463268 | P10: =IFERROR(IF((OR($D10="RP",$D10="SP")),IF(Personalize!$E$12=TRUE,(((VLOOKUP($C10,'Filtered-P'!$A$1:$P$700,9,FALSE))-'Filtered-P'!$AF$15)/'Filtered-P'!$AG$15),IF(ISBLANK(Personalize!$E$12),(((VLOOKUP($C10,'Filtered-P'!$A$1:$P$700,9,FALSE))-'Filtered-P'!$AF$15)/'Filtered-P'!$AG$15)*0.5,"")),IF(Personalize!$E$3=TRUE,(((VLOOKUP($C10,Filtered!$A$1:$AB$626,10,FALSE))-Filtered!$AK$25)/Filtered!$AL$25),IF(ISBLANK(Personalize!$E$3),(((VLOOKUP($C10,Filtered!$A$1:$AB$626,10,FALSE))-Filtered!$AK$25)/Filtered!$AL$25)*0.5,""))),"") -> 1.650396175 | Q10: =IFERROR(IF((OR($D10="RP",$D10="SP")),IF(Personalize!$E$11=TRUE,(((VLOOKUP($C10,'Filtered-P'!$A$1:$P$700,7,FALSE))-'Filtered-P'!$AF$13)/'Filtered-P'!$AG$13),IF(ISBLANK(Personalize!$E$11),(((VLOOKUP($C10,'Filtered-P'!$A$1:$P$700,7,FALSE))-'Filtered-P'!$AF$13)/'Filtered-P'!$AG$13)*0.5,"")),IF(Personalize!$E$2=TRUE,(((VLOOKUP($C10,Filtered!$A$1:$AB$626,5,FALSE))-Filtered!$AK$20)/Filtered!$AL$20),IF(ISBLANK(Personalize!$E$2),(((VLOOKUP($C10,Filtered!$A$1:$AB$626,5,FALSE))-Filtered!$AK$20)/Filtered!$AL$20)*0.5,""))),"") -> 1.933043646 | R10: =IFERROR(IF((OR($D10="RP",$D10="SP")),IF(Personalize!$E$13=TRUE,(((VLOOKUP($C10,'Filtered-P'!$A$1:$P$700,13,FALSE))-'Filtered-P'!$AF$19)/'Filtered-P'!$AG$19),IF(ISBLANK(Personalize!$E$13),(((VLOOKUP($C10,'Filtered-P'!$A$1:$P$700,13,FALSE))-'Filtered-P'!$AF$19)/'Filtered-P'!$AG$19)*0.5,"")),IF(Personalize!$E$5=TRUE,(((VLOOKUP($C10,Filtered!$A$1:$AB$626,11,FALSE))-Filtered!$AK$26)/Filtered!$AL$26),IF(ISBLANK(Personalize!$E$5),(((VLOOKUP($C10,Filtered!$A$1:$AB$626,11,FALSE))-Filtered!$AK$26)/Filtered!$AL$26)*0.5,""))),"") -> 1.961074042 | S10: =IFERROR(IF((OR($D10="RP",$D10="SP")),IF(Personalize!$E$14=TRUE,(((VLOOKUP($C10,'Filtered-P'!$A$1:$P$700,14,FALSE))-'Filtered-P'!$AF$20)/'Filtered-P'!$AG$20),IF(ISBLANK(Personalize!$E$14),(((VLOOKUP($C10,'Filtered-P'!$A$1:$P$700,14,FALSE))-'Filtered-P'!$AF$20)/'Filtered-P'!$AG$20)*0.5,"")),IF(Personalize!$E$6=TRUE,(((VLOOKUP($C10,Filtered!$A$1:$AB$626,12,FALSE))-Filtered!$AK$27)/Filtered!$AL$27),IF(ISBLANK(Personalize!$E$6),(((VLOOKUP($C10,Filtered!$A$1:$AB$626,12,FALSE))-Filtered!$AK$27)/Filtered!$AL$27)*0.5,""))),"") -> 0.808041342 | T10: =IFERROR(IF((OR($D10="RP",$D10="SP")),IF(Personalize!$E$16=TRUE,(((VLOOKUP($C10,'Filtered-P'!$A$1:$P$700,3,FALSE))-'Filtered-P'!$AF$9)/'Filtered-P'!$AG$9),IF(ISBLANK(Personalize!$E$16),(((VLOOKUP($C10,'Filtered-P'!$A$1:$P$700,3,FALSE))-'Filtered-P'!$AF$9)/'Filtered-P'!$AG$9)*0.5,"")),IF(Personalize!$E$7=TRUE,(((VLOOKUP($C10,Filtered!$A$1:$BB$626,24,FALSE))-Filtered!$AK$37)/Filtered!$AL$37),IF(ISBLANK(Personalize!$E$7),(((VLOOKUP($C10,Filtered!$A$1:$BB$626,24,FALSE))-Filtered!$AK$37)/Filtered!$AL$37)*0.5,""))),"") -> 2.392135625 | U10: =IFERROR(IF((OR($D10="RP",$D10="SP")),IF(Personalize!$E$15=TRUE,(((VLOOKUP($C10,'Filtered-P'!$A$1:$P$700,15,FALSE))-'Filtered-P'!$AF$21)/'Filtered-P'!$AG$21),IF(ISBLANK(Personalize!$E$15),(((VLOOKUP($C10,'Filtered-P'!$A$1:$P$700,15,FALSE))-'Filtered-P'!$AF$21)/'Filtered-P'!$AG$21)*0.5,"")),IF(Personalize!$E$8=TRUE,(((VLOOKUP($C10,Filtered!$A$1:$BB$626,23,FALSE))-Filtered!$AK$36)/Filtered!$AL$36),IF(ISBLANK(Personalize!$E$8),(((VLOOKUP($C10,Filtered!$A$1:$BB$626,23,FALSE))-Filtered!$AK$36)/Filtered!$AL$36)*0.5,""))),"") ->  | V10: =IFERROR(IF((OR($D10="RP",$D10="SP")),IF(Personalize!$E$17=TRUE,(((VLOOKUP($C10,'Filtered-P'!$A$1:$P$700,16,FALSE))-'Filtered-P'!$AF$22)/'Filtered-P'!$AG$22),IF(ISBLANK(Personalize!$E$17),(((VLOOKUP($C10,'Filtered-P'!$A$1:$P$700,16,FALSE))-'Filtered-P'!$AF$22)/'Filtered-P'!$AG$22)*0.5,"")),IF(Personalize!$E$9=TRUE,(((VLOOKUP($C10,Filtered!$A$1:$BB$626,25,FALSE))-Filtered!$AK$38)/Filtered!$AL$38),IF(ISBLANK(Personalize!$E$9),(((VLOOKUP($C10,Filtered!$A$1:$BB$626,25,FALSE))-Filtered!$AK$38)/Filtered!$AL$38)*0.5,""))),"") ->  | W10: =IFERROR(IF((OR($D10="RP",$D10="SP")),IF(Personalize!$E$37=TRUE,(((VLOOKUP($C10,'Filtered-P'!$A$1:$Z$700,17,FALSE))-'Filtered-P'!$AF$25)/'Filtered-P'!$AG$25),IF(ISBLANK(Personalize!$E$37),(((VLOOKUP($C10,'Filtered-P'!$A$1:$Z$700,17,FALSE))-'Filtered-P'!$AF$25)/'Filtered-P'!$AG$25)*0.5,"")),IF(Personalize!$E$39=TRUE,(((VLOOKUP($C10,Filtered!$A$1:$X$626,14,FALSE))-Filtered!$AK$29)/Filtered!$AL$29),IF(ISBLANK(Personalize!$E$39),(((VLOOKUP($C10,Filtered!$A$1:$X$626,14,FALSE))-Filtered!$AK$29)/Filtered!$AL$29)*0.5,""))),"") ->  | X10: =IFERROR(IF((OR($D10="RP",$D10="SP")),IF(Personalize!$E$38=TRUE,(((VLOOKUP($C10,'Filtered-P'!$A$1:$Z$700,18,FALSE))-'Filtered-P'!$AF$26)/'Filtered-P'!$AG$26),IF(ISBLANK(Personalize!$E$38),(((VLOOKUP($C10,'Filtered-P'!$A$1:$Z$700,18,FALSE))-'Filtered-P'!$AF$26)/'Filtered-P'!$AG$26)*0.5,"")),IF(Personalize!$E$40=TRUE,(((VLOOKUP($C10,Filtered!$A$1:$X$626,6,FALSE))-Filtered!$AK$21)/Filtered!$AL$21),IF(ISBLANK(Personalize!$E$40),(((VLOOKUP($C10,Filtered!$A$1:$X$626,6,FALSE))-Filtered!$AK$21)/Filtered!$AL$21)*0.5,""))),"") ->  | Y10: =IFERROR(IF((OR($D10="RP",$D10="SP")),IF(Personalize!$E$45=TRUE,(((VLOOKUP($C10,'Filtered-P'!$A$1:$Z$700,4,FALSE))-'Filtered-P'!$AF$10)/'Filtered-P'!$AG$10),IF(ISBLANK(Personalize!$E$45),(((VLOOKUP($C10,'Filtered-P'!$A$1:$Z$700,4,FALSE))-'Filtered-P'!$AF$10)/'Filtered-P'!$AG$10)*0.5,"")),IF(Personalize!$E$41=TRUE,(((VLOOKUP($C10,Filtered!$A$1:$BB$626,20,FALSE))-Filtered!$AK$43)/Filtered!$AL$43),IF(ISBLANK(Personalize!$E$41),(((VLOOKUP($C10,Filtered!$A$1:$BB$626,20,FALSE))-Filtered!$AK$43)/Filtered!$AL$43)*0.5,""))),"") ->  | Z10: =IFERROR(IF((OR($D10="RP",$D10="SP")),IF(Personalize!$E$46=TRUE,(((VLOOKUP($C10,'Filtered-P'!$A$1:$Z$700,19,FALSE))-'Filtered-P'!$AF$27)/'Filtered-P'!$AG$27),IF(ISBLANK(Personalize!$E$46),(((VLOOKUP($C10,'Filtered-P'!$A$1:$Z$700,19,FALSE))-'Filtered-P'!$AF$27)/'Filtered-P'!$AG$27)*0.5,"")),IF(Personalize!$E$44=TRUE,(((VLOOKUP($C10,Filtered!$A$1:$BB$626,21,FALSE))-Filtered!$AK$44)/Filtered!$AL$44),IF(ISBLANK(Personalize!$E$44),(((VLOOKUP($C10,Filtered!$A$1:$BB$626,21,FALSE))-Filtered!$AK$44)/Filtered!$AL$44)*0.5,""))),"") ->  | AA10: =IFERROR(IF((OR($D10="RP",$D10="SP")),IF(Personalize!$E$47=TRUE,(((VLOOKUP($C10,'Filtered-P'!$A$1:$Z$700,6,FALSE))-'Filtered-P'!$AF$12)/'Filtered-P'!$AG$12),IF(ISBLANK(Personalize!$E$47),(((VLOOKUP($C10,'Filtered-P'!$A$1:$Z$700,6,FALSE))-'Filtered-P'!$AF$12)/'Filtered-P'!$AG$12)*0.5,"")),IF(Personalize!$E$42=TRUE,(((VLOOKUP($C10,Filtered!$A$1:$BB$626,8,FALSE))-Filtered!$AK$23)/Filtered!$AL$23),IF(ISBLANK(Personalize!$E$42),(((VLOOKUP($C10,Filtered!$A$1:$BB$626,8,FALSE))-Filtered!$AK$23)/Filtered!$AL$23)*0.5,""))),"") ->  | AB10: =IFERROR(IF((OR($D10="RP",$D10="SP")),IF(Personalize!$E$48=TRUE,(((VLOOKUP($C10,'Filtered-P'!$A$1:$Z$700,5,FALSE))-'Filtered-P'!$AF$11)/'Filtered-P'!$AG$11),IF(ISBLANK(Personalize!$E$48),(((VLOOKUP($C10,'Filtered-P'!$A$1:$Z$700,5,FALSE))-'Filtered-P'!$AF$11)/'Filtered-P'!$AG$11)*0.5,"")),IF(Personalize!$E$43=TRUE,(((VLOOKUP($C10,Filtered!$A$1:$BB$626,9,FALSE))-Filtered!$AK$24)/Filtered!$AL$24),IF(ISBLANK(Personalize!$E$43),(((VLOOKUP($C10,Filtered!$A$1:$BB$626,9,FALSE))-Filtered!$AK$24)/Filtered!$AL$24)*0.5,""))),"") ->  | AC10: =IFERROR(IF((OR($D10="RP",$D10="SP")),IF(Personalize!$E$52=TRUE,(((VLOOKUP($C10,'Filtered-P'!$A$1:$AD$700,21,FALSE))-'Filtered-P'!$AF$29)/(-1*'Filtered-P'!$AG$29)),IF(ISBLANK(Personalize!$E$52),(((VLOOKUP($C10,'Filtered-P'!$A$1:$AD$700,21,FALSE))-'Filtered-P'!$AF$29)/(-1*'Filtered-P'!$AG$29))*0.5,"")),IF(Personalize!$E$49=TRUE,(((VLOOKUP($C10,Filtered!$A$1:$AF$626,30,FALSE))-Filtered!$AK$45)/Filtered!$AL$45),IF(ISBLANK(Personalize!$E$49),(((VLOOKUP($C10,Filtered!$A$1:$AF$626,30,FALSE))-Filtered!$AK$45)/Filtered!$AL$45)*0.5,""))),"") ->  | AD10: =IFERROR(IF((OR($D10="RP",$D10="SP")),IF(Personalize!$E$53=TRUE,(((VLOOKUP($C10,'Filtered-P'!$A$1:$AD$700,23,FALSE))-'Filtered-P'!$AF$31)/(-1*'Filtered-P'!$AG$31)),IF(ISBLANK(Personalize!$E$53),(((VLOOKUP($C10,'Filtered-P'!$A$1:$AD$700,23,FALSE))-'Filtered-P'!$AF$31)/(-1*'Filtered-P'!$AG$31))*0.5,"")),IF(Personalize!$E$50=TRUE,(((VLOOKUP($C10,Filtered!$A$1:$AF$626,31,FALSE))-Filtered!$AK$46)/Filtered!$AL$46),IF(ISBLANK(Personalize!$E$50),(((VLOOKUP($C10,Filtered!$A$1:$AF$626,31,FALSE))-Filtered!$AK$46)/Filtered!$AL$46)*0.5,""))),"") ->  | AE10: =IFERROR(IF((OR($D10="RP",$D10="SP")),IF(Personalize!$E$54=TRUE,(((VLOOKUP($C10,'Filtered-P'!$A$1:$AD$700,24,FALSE))-'Filtered-P'!$AF$32)/'Filtered-P'!$AG$32),IF(ISBLANK(Personalize!$E$54),(((VLOOKUP($C10,'Filtered-P'!$A$1:$AD$700,24,FALSE))-'Filtered-P'!$AF$32)/'Filtered-P'!$AG$32)*0.5,"")),IF(Personalize!$E$51=TRUE,(((VLOOKUP($C10,Filtered!$A$1:$AF$626,15,FALSE))-Filtered!$AK$30)/(-1*Filtered!$AL$30)),IF(ISBLANK(Personalize!$E$51),(((VLOOKUP($C10,Filtered!$A$1:$AF$626,15,FALSE))-Filtered!$AK$30)/(-1*Filtered!$AL$30))*0.5,""))),"") ->  | AF10: =IFERROR(IF((OR($D10="RP",$D10="SP")),IF(Personalize!$E$56=TRUE,(((VLOOKUP($C10,'Filtered-P'!$A$1:$AD$700,29,FALSE))-'Filtered-P'!$AF$35)/'Filtered-P'!$AG$35),IF(ISBLANK(Personalize!$E$56),(((VLOOKUP($C10,'Filtered-P'!$A$1:$AD$700,29,FALSE))-'Filtered-P'!$AF$35)/'Filtered-P'!$AG$35)*0.5,"")),IF(Personalize!$E$60=TRUE,(((VLOOKUP($C10,Filtered!$A$1:$AF$626,7,FALSE))-Filtered!$AK$22)/Filtered!$AL$22),IF(ISBLANK(Personalize!$E$60),(((VLOOKUP($C10,Filtered!$A$1:$AF$626,7,FALSE))-Filtered!$AK$22)/Filtered!$AL$22)*0.5,""))),"") ->  | AG10: =IFERROR(IF((OR($D10="RP",$D10="SP")),IF(Personalize!$E$57=TRUE,(((VLOOKUP($C10,'Filtered-P'!$A$1:$AD$700,28,FALSE))-'Filtered-P'!$AF$34)/'Filtered-P'!$AG$34),IF(ISBLANK(Personalize!$E$57),(((VLOOKUP($C10,'Filtered-P'!$A$1:$AD$700,28,FALSE))-'Filtered-P'!$AF$34)/'Filtered-P'!$AG$34)*0.5,"")),IF(Personalize!$E$61=TRUE,(((VLOOKUP($C10,Filtered!$A$1:$AZ$626,34,FALSE))-Filtered!$AK$47)/Filtered!$AL$47),IF(ISBLANK(Personalize!$E$61),(((VLOOKUP($C10,Filtered!$A$1:$AZ$626,34,FALSE))-Filtered!$AK$47)/Filtered!$AL$47)*0.5,""))),"") ->  | AH10: =IFERROR(IF((OR($D10="RP",$D10="SP")),IF(Personalize!$E$58=TRUE,(((VLOOKUP($C10,'Filtered-P'!$A$1:$Z$700,8,FALSE))-'Filtered-P'!$AF$14)/'Filtered-P'!$AG$14),IF(ISBLANK(Personalize!$E$58),(((VLOOKUP($C10,'Filtered-P'!$A$1:$Z$700,8,FALSE))-'Filtered-P'!$AF$14)/'Filtered-P'!$AG$14)*0.5,"")),IF(Personalize!$E$62=TRUE,(((VLOOKUP($C10,Filtered!$A$1:$AF$626,13,FALSE))-Filtered!$AK$28)/(-1*Filtered!$AL$28)),IF(ISBLANK(Personalize!$E$62),(((VLOOKUP($C10,Filtered!$A$1:$AF$626,13,FALSE))-Filtered!$AK$28)/(-1*Filtered!$AL$28))*0.5,""))),"") ->  | AI10: =IFERROR(IF((OR($D10="RP",$D10="SP")),IF(Personalize!$E$59=TRUE,(((VLOOKUP($C10,'Filtered-P'!$A$1:$AD$700,27,FALSE))-'Filtered-P'!$AF$33)/'Filtered-P'!$AG$33),IF(ISBLANK(Personalize!$E$59),(((VLOOKUP($C10,'Filtered-P'!$A$1:$AD$700,27,FALSE))-'Filtered-P'!$AF$33)/'Filtered-P'!$AG$33)*0.5,"")),IF(Personalize!$E$63=TRUE,(((VLOOKUP($C10,Filtered!$A$1:$AZ$626,35,FALSE))-Filtered!$AK$48)/(-1*Filtered!$AL$48)),IF(ISBLANK(Personalize!$E$63),(((VLOOKUP($C10,Filtered!$A$1:$AZ$626,35,FALSE))-Filtered!$AK$48)/(-1*Filtered!$AL$48))*0.5,""))),"") ->  | AJ10: =IFERROR(IF((OR($D10="RP",$D10="SP")),VLOOKUP($C10,'Filtered-P'!$A$1:$P$580,2,FALSE),""),"") ->  | AK10: =IFERROR(IF((OR($D10="RP",$D10="SP")),VLOOKUP($C10,'Filtered-P'!$A$1:$P$580,9,FALSE),""),"") ->  | AL10: =IFERROR(IF((OR($D10="RP",$D10="SP")),VLOOKUP($C10,'Filtered-P'!$A$1:$P$580,7,FALSE),""),"") ->  | AM10: =IFERROR(IF((OR($D10="RP",$D10="SP")),VLOOKUP($C10,'Filtered-P'!$A$1:$P$580,10,FALSE),""),"") ->  | AN10: =IFERROR(IF((OR($D10="RP",$D10="SP")),VLOOKUP($C10,'Filtered-P'!$A$1:$P$580,11,FALSE),""),"") ->  | AO10: =IFERROR(IF((OR($D10="RP",$D10="SP")),"",VLOOKUP($C10,Filtered!$A$1:$X$600,16,FALSE)),"") -> 0.2953646958 | AP10: =IFERROR(IF((OR($D10="RP",$D10="SP")),"",VLOOKUP($C10,Filtered!$A$1:$X$600,10,FALSE)),"") -> 31.29881113 | AQ10: =IFERROR(IF((OR($D10="RP",$D10="SP")),"",VLOOKUP($C10,Filtered!$A$1:$X$600,11,FALSE)),"") -> 101.2771503 | AR10: =IFERROR(IF((OR($D10="RP",$D10="SP")),"",VLOOKUP($C10,Filtered!$A$1:$X$600,5,FALSE)),"") -> 97.33233454 | AS10: =IFERROR(IF((OR($D10="RP",$D10="SP")),"",VLOOKUP($C10,Filtered!$A$1:$X$600,12,FALSE)),"") -> 16.35155765 | AU10: =IF(ISBLANK(A10),0,1) -> 0 | AV10: =IF(M10="",0,1) -> 1 | AW10: =A10 -> 0 | AX10: =IF(D10="C",1,IF(D10="1B",2,IF(D10="2B",3,IF(D10="3B",4,IF(D10="SS",5,IF(D10="CI",6,IF(D10="MI",7,IF(D10="OF",11,IF(D10="LF",8,IF(D10="CF",9,IF(D10="RF",10,IF(D10="DH",12,IF(D10="SP",13,IF(D10="RP",14,IF(D10="P",15,16))))))))))))))) -> 2 | AY10: =VLOOKUP(C10,'Starter Calc'!$B$2:$BS$700,70,FALSE) -> Bench | AZ10: =VLOOKUP(C10,'Starter Calc'!$B$2:$AO$700,40,FALSE) -> Yes | BA10: =IFERROR(IF(ISTEXT($A10),"",IF((OR($D10="RP",$D10="SP")),ABS(VLOOKUP(D10,'Filtered-P'!$AE$3:$AI$4,5,FALSE))+M10,ABS(VLOOKUP(D10,Filtered!$AJ$3:$AN$14,5,FALSE))+M10)),"") -> 12.12264734 | BB10: =IFERROR(BA10+ABS($BA$4),"") -> 12.84647042 | BC10: =IF(AND($A10<>"",$B10<>""),B10,"N") -> N | BD10: =IFERROR(VLOOKUP($C10,'ADP-Rank'!$A$2:$AB$581,25,FALSE),TRUE) -> TRUE | BE10: =IFERROR((BB10-BB$3)^2,"") -> 64.05600294 | BF10: =VLOOKUP(C10,'Starter Calc'!$B$2:$CD$700,71,FALSE) -> 1B.Yes | BG10: =IFERROR(((Personalize!$A$1-(1*Personalize!$A$2))/Personalize!$A$2)*(N10/$BG$3)+1,"") -> 31.42967814 | BH10: 35.07330283 | BI10: 35.07330283
C11: Giancarlo Stanton | D11: OF | E11: =IFERROR(IF(VLOOKUP(C11,'Starter Calc'!$B$2:$E$700,4,FALSE)="","",VLOOKUP(C11,'Starter Calc'!$B$2:$E$700,4,FALSE)),"") -> ,,RF | F11: =IFERROR(VLOOKUP($C11,'ADP-Rank'!$A$2:$G$581,5,FALSE),"") -> MIA | G11: =IFERROR(VLOOKUP($C11,'ADP-Rank'!$A$2:$X$581,6,FALSE),"") -> 26 | H11: =IFERROR(IF(ISBLANK($B11),"$"&(ROUND(BI11,0))&" | $"&ROUND(BH11,0),""),"") -> $40 | $40 | I11: =IFERROR(IF(RIGHT(D11,1)="P",J11*$BE$2,J11*$BE$1),"") -> 31.33333333 | J11: =IFERROR(CHOOSE(Personalize!$E$31,(VLOOKUP(C11,'ADP-Rank'!$A$2:$Z$581,7,FALSE)*(Personalize!$A$3)+1),(VLOOKUP(C11,'ADP-Rank'!$A$2:$Z$581,8,FALSE)*(Personalize!$A$3)+1),(VLOOKUP(C11,'ADP-Rank'!$A$2:$Z$581,9,FALSE)*(Personalize!$A$3)+1),(VLOOKUP(C11,'ADP-Rank'!$A$2:$AA$581,10,FALSE)*(Personalize!$A$3)+1),(VLOOKUP(C11,'ADP-Rank'!$A$2:$AA$581,11,FALSE)*(Personalize!$A$3)+1),(VLOOKUP(C11,'ADP-Rank'!$A$2:$AA$581,12,FALSE)*(Personalize!$A$3)+1),(VLOOKUP(C11,'ADP-Rank'!$A$2:$AA$581,13,FALSE)*(Personalize!$A$3)+1),(VLOOKUP(C11,'ADP-Rank'!$A$2:$AA$581,14,FALSE)*(Personalize!$A$3)+1),(VLOOKUP(C11,'ADP-Rank'!$A$2:$AA$581,15,FALSE)*(Personalize!$A$3)+1),(VLOOKUP(C11,'ADP-Rank'!$A$2:$AG$581,28,FALSE)*(Personalize!$A$3)+1)),"") -> 31.33333333 | K11: =VLOOKUP($C11,'ADP-Rank'!$A$2:$AB$581,26,FALSE) -> 6 | L11: =IFERROR(RANK($M11,$M$7:$M$746,0),"") -> 5 | M11: =IF((SUM(O11:AI11)=0),"",SUM(O11:AI11)) -> 9.984175696 | N11: =IFERROR(IF((OR($D11="RP",$D11="SP")),ABS(VLOOKUP(D11,'Filtered-P'!$AE$3:$AI$4,5,FALSE))+M11,ABS(VLOOKUP(D11,Filtered!$AJ$3:$AN$14,5,FALSE))+M11),"") -> 13.95385883 | O11: =IFERROR(IF((OR($D11="RP",$D11="SP")),IF(Personalize!$E$10=TRUE,(((VLOOKUP($C11,'Filtered-P'!$A$1:$P$700,2,FALSE))-'Filtered-P'!$AF$8)/'Filtered-P'!$AG$8),IF(ISBLANK(Personalize!$E$10),(((VLOOKUP($C11,'Filtered-P'!$A$1:$P$700,2,FALSE))-'Filtered-P'!$AF$8)/'Filtered-P'!$AG$8)*0.5,"")),IF(Personalize!$E$4=TRUE,(((VLOOKUP($C11,Filtered!$A$1:$X$626,22,FALSE))-Filtered!$AK$35)/Filtered!$AL$35),IF(ISBLANK(Personalize!$E$4),(((VLOOKUP($C11,Filtered!$A$1:$X$626,22,FALSE))-Filtered!$AK$35)/Filtered!$AL$35)*0.5,""))),"") -> 0.2756638476 | P11: =IFERROR(IF((OR($D11="RP",$D11="SP")),IF(Personalize!$E$12=TRUE,(((VLOOKUP($C11,'Filtered-P'!$A$1:$P$700,9,FALSE))-'Filtered-P'!$AF$15)/'Filtered-P'!$AG$15),IF(ISBLANK(Personalize!$E$12),(((VLOOKUP($C11,'Filtered-P'!$A$1:$P$700,9,FALSE))-'Filtered-P'!$AF$15)/'Filtered-P'!$AG$15)*0.5,"")),IF(Personalize!$E$3=TRUE,(((VLOOKUP($C11,Filtered!$A$1:$AB$626,10,FALSE))-Filtered!$AK$25)/Filtered!$AL$25),IF(ISBLANK(Personalize!$E$3),(((VLOOKUP($C11,Filtered!$A$1:$AB$626,10,FALSE))-Filtered!$AK$25)/Filtered!$AL$25)*0.5,""))),"") -> 3.064533469 | Q11: =IFERROR(IF((OR($D11="RP",$D11="SP")),IF(Personalize!$E$11=TRUE,(((VLOOKUP($C11,'Filtered-P'!$A$1:$P$700,7,FALSE))-'Filtered-P'!$AF$13)/'Filtered-P'!$AG$13),IF(ISBLANK(Personalize!$E$11),(((VLOOKUP($C11,'Filtered-P'!$A$1:$P$700,7,FALSE))-'Filtered-P'!$AF$13)/'Filtered-P'!$AG$13)*0.5,"")),IF(Personalize!$E$2=TRUE,(((VLOOKUP($C11,Filtered!$A$1:$AB$626,5,FALSE))-Filtered!$AK$20)/Filtered!$AL$20),IF(ISBLANK(Personalize!$E$2),(((VLOOKUP($C11,Filtered!$A$1:$AB$626,5,FALSE))-Filtered!$AK$20)/Filtered!$AL$20)*0.5,""))),"") -> 1.696127373 | R11: =IFERROR(IF((OR($D11="RP",$D11="SP")),IF(Personalize!$E$13=TRUE,(((VLOOKUP($C11,'Filtered-P'!$A$1:$P$700,13,FALSE))-'Filtered-P'!$AF$19)/'Filtered-P'!$AG$19),IF(ISBLANK(Personalize!$E$13),(((VLOOKUP($C11,'Filtered-P'!$A$1:$P$700,13,FALSE))-'Filtered-P'!$AF$19)/'Filtered-P'!$AG$19)*0.5,"")),IF(Personalize!$E$5=TRUE,(((VLOOKUP($C11,Filtered!$A$1:$AB$626,11,FALSE))-Filtered!$AK$26)/Filtered!$AL$26),IF(ISBLANK(Personalize!$E$5),(((VLOOKUP($C11,Filtered!$A$1:$AB$626,11,FALSE))-Filtered!$AK$26)/Filtered!$AL$26)*0.5,""))),"") -> 2.109845393 | S11: =IFERROR(IF((OR($D11="RP",$D11="SP")),IF(Personalize!$E$14=TRUE,(((VLOOKUP($C11,'Filtered-P'!$A$1:$P$700,14,FALSE))-'Filtered-P'!$AF$20)/'Filtered-P'!$AG$20),IF(ISBLANK(Personalize!$E$14),(((VLOOKUP($C11,'Filtered-P'!$A$1:$P$700,14,FALSE))-'Filtered-P'!$AF$20)/'Filtered-P'!$AG$20)*0.5,"")),IF(Personalize!$E$6=TRUE,(((VLOOKUP($C11,Filtered!$A$1:$AB$626,12,FALSE))-Filtered!$AK$27)/Filtered!$AL$27),IF(ISBLANK(Personalize!$E$6),(((VLOOKUP($C11,Filtered!$A$1:$AB$626,12,FALSE))-Filtered!$AK$27)/Filtered!$AL$27)*0.5,""))),"") -> -0.1960323004 | T11: =IFERROR(IF((OR($D11="RP",$D11="SP")),IF(Personalize!$E$16=TRUE,(((VLOOKUP($C11,'Filtered-P'!$A$1:$P$700,3,FALSE))-'Filtered-P'!$AF$9)/'Filtered-P'!$AG$9),IF(ISBLANK(Personalize!$E$16),(((VLOOKUP($C11,'Filtered-P'!$A$1:$P$700,3,FALSE))-'Filtered-P'!$AF$9)/'Filtered-P'!$AG$9)*0.5,"")),IF(Personalize!$E$7=TRUE,(((VLOOKUP($C11,Filtered!$A$1:$BB$626,24,FALSE))-Filtered!$AK$37)/Filtered!$AL$37),IF(ISBLANK(Personalize!$E$7),(((VLOOKUP($C11,Filtered!$A$1:$BB$626,24,FALSE))-Filtered!$AK$37)/Filtered!$AL$37)*0.5,""))),"") -> 3.034037914 | U11: =IFERROR(IF((OR($D11="RP",$D11="SP")),IF(Personalize!$E$15=TRUE,(((VLOOKUP($C11,'Filtered-P'!$A$1:$P$700,15,FALSE))-'Filtered-P'!$AF$21)/'Filtered-P'!$AG$21),IF(ISBLANK(Personalize!$E$15),(((VLOOKUP($C11,'Filtered-P'!$A$1:$P$700,15,FALSE))-'Filtered-P'!$AF$21)/'Filtered-P'!$AG$21)*0.5,"")),IF(Personalize!$E$8=TRUE,(((VLOOKUP($C11,Filtered!$A$1:$BB$626,23,FALSE))-Filtered!$AK$36)/Filtered!$AL$36),IF(ISBLANK(Personalize!$E$8),(((VLOOKUP($C11,Filtered!$A$1:$BB$626,23,FALSE))-Filtered!$AK$36)/Filtered!$AL$36)*0.5,""))),"") ->  | V11: =IFERROR(IF((OR($D11="RP",$D11="SP")),IF(Personalize!$E$17=TRUE,(((VLOOKUP($C11,'Filtered-P'!$A$1:$P$700,16,FALSE))-'Filtered-P'!$AF$22)/'Filtered-P'!$AG$22),IF(ISBLANK(Personalize!$E$17),(((VLOOKUP($C11,'Filtered-P'!$A$1:$P$700,16,FALSE))-'Filtered-P'!$AF$22)/'Filtered-P'!$AG$22)*0.5,"")),IF(Personalize!$E$9=TRUE,(((VLOOKUP($C11,Filtered!$A$1:$BB$626,25,FALSE))-Filtered!$AK$38)/Filtered!$AL$38),IF(ISBLANK(Personalize!$E$9),(((VLOOKUP($C11,Filtered!$A$1:$BB$626,25,FALSE))-Filtered!$AK$38)/Filtered!$AL$38)*0.5,""))),"") ->  | W11: =IFERROR(IF((OR($D11="RP",$D11="SP")),IF(Personalize!$E$37=TRUE,(((VLOOKUP($C11,'Filtered-P'!$A$1:$Z$700,17,FALSE))-'Filtered-P'!$AF$25)/'Filtered-P'!$AG$25),IF(ISBLANK(Personalize!$E$37),(((VLOOKUP($C11,'Filtered-P'!$A$1:$Z$700,17,FALSE))-'Filtered-P'!$AF$25)/'Filtered-P'!$AG$25)*0.5,"")),IF(Personalize!$E$39=TRUE,(((VLOOKUP($C11,Filtered!$A$1:$X$626,14,FALSE))-Filtered!$AK$29)/Filtered!$AL$29),IF(ISBLANK(Personalize!$E$39),(((VLOOKUP($C11,Filtered!$A$1:$X$626,14,FALSE))-Filtered!$AK$29)/Filtered!$AL$29)*0.5,""))),"") ->  | X11: =IFERROR(IF((OR($D11="RP",$D11="SP")),IF(Personalize!$E$38=TRUE,(((VLOOKUP($C11,'Filtered-P'!$A$1:$Z$700,18,FALSE))-'Filtered-P'!$AF$26)/'Filtered-P'!$AG$26),IF(ISBLANK(Personalize!$E$38),(((VLOOKUP($C11,'Filtered-P'!$A$1:$Z$700,18,FALSE))-'Filtered-P'!$AF$26)/'Filtered-P'!$AG$26)*0.5,"")),IF(Personalize!$E$40=TRUE,(((VLOOKUP($C11,Filtered!$A$1:$X$626,6,FALSE))-Filtered!$AK$21)/Filtered!$AL$21),IF(ISBLANK(Personalize!$E$40),(((VLOOKUP($C11,Filtered!$A$1:$X$626,6,FALSE))-Filtered!$AK$21)/Filtered!$AL$21)*0.5,""))),"") ->  | Y11: =IFERROR(IF((OR($D11="RP",$D11="SP")),IF(Personalize!$E$45=TRUE,(((VLOOKUP($C11,'Filtered-P'!$A$1:$Z$700,4,FALSE))-'Filtered-P'!$AF$10)/'Filtered-P'!$AG$10),IF(ISBLANK(Personalize!$E$45),(((VLOOKUP($C11,'Filtered-P'!$A$1:$Z$700,4,FALSE))-'Filtered-P'!$AF$10)/'Filtered-P'!$AG$10)*0.5,"")),IF(Personalize!$E$41=TRUE,(((VLOOKUP($C11,Filtered!$A$1:$BB$626,20,FALSE))-Filtered!$AK$43)/Filtered!$AL$43),IF(ISBLANK(Personalize!$E$41),(((VLOOKUP($C11,Filtered!$A$1:$BB$626,20,FALSE))-Filtered!$AK$43)/Filtered!$AL$43)*0.5,""))),"") ->  | Z11: =IFERROR(IF((OR($D11="RP",$D11="SP")),IF(Personalize!$E$46=TRUE,(((VLOOKUP($C11,'Filtered-P'!$A$1:$Z$700,19,FALSE))-'Filtered-P'!$AF$27)/'Filtered-P'!$AG$27),IF(ISBLANK(Personalize!$E$46),(((VLOOKUP($C11,'Filtered-P'!$A$1:$Z$700,19,FALSE))-'Filtered-P'!$AF$27)/'Filtered-P'!$AG$27)*0.5,"")),IF(Personalize!$E$44=TRUE,(((VLOOKUP($C11,Filtered!$A$1:$BB$626,21,FALSE))-Filtered!$AK$44)/Filtered!$AL$44),IF(ISBLANK(Personalize!$E$44),(((VLOOKUP($C11,Filtered!$A$1:$BB$626,21,FALSE))-Filtered!$AK$44)/Filtered!$AL$44)*0.5,""))),"") ->  | AA11: =IFERROR(IF((OR($D11="RP",$D11="SP")),IF(Personalize!$E$47=TRUE,(((VLOOKUP($C11,'Filtered-P'!$A$1:$Z$700,6,FALSE))-'Filtered-P'!$AF$12)/'Filtered-P'!$AG$12),IF(ISBLANK(Personalize!$E$47),(((VLOOKUP($C11,'Filtered-P'!$A$1:$Z$700,6,FALSE))-'Filtered-P'!$AF$12)/'Filtered-P'!$AG$12)*0.5,"")),IF(Personalize!$E$42=TRUE,(((VLOOKUP($C11,Filtered!$A$1:$BB$626,8,FALSE))-Filtered!$AK$23)/Filtered!$AL$23),IF(ISBLANK(Personalize!$E$42),(((VLOOKUP($C11,Filtered!$A$1:$BB$626,8,FALSE))-Filtered!$AK$23)/Filtered!$AL$23)*0.5,""))),"") ->  | AB11: =IFERROR(IF((OR($D11="RP",$D11="SP")),IF(Personalize!$E$48=TRUE,(((VLOOKUP($C11,'Filtered-P'!$A$1:$Z$700,5,FALSE))-'Filtered-P'!$AF$11)/'Filtered-P'!$AG$11),IF(ISBLANK(Personalize!$E$48),(((VLOOKUP($C11,'Filtered-P'!$A$1:$Z$700,5,FALSE))-'Filtered-P'!$AF$11)/'Filtered-P'!$AG$11)*0.5,"")),IF(Personalize!$E$43=TRUE,(((VLOOKUP($C11,Filtered!$A$1:$BB$626,9,FALSE))-Filtered!$AK$24)/Filtered!$AL$24),IF(ISBLANK(Personalize!$E$43),(((VLOOKUP($C11,Filtered!$A$1:$BB$626,9,FALSE))-Filtered!$AK$24)/Filtered!$AL$24)*0.5,""))),"") ->  | AC11: =IFERROR(IF((OR($D11="RP",$D11="SP")),IF(Personalize!$E$52=TRUE,(((VLOOKUP($C11,'Filtered-P'!$A$1:$AD$700,21,FALSE))-'Filtered-P'!$AF$29)/(-1*'Filtered-P'!$AG$29)),IF(ISBLANK(Personalize!$E$52),(((VLOOKUP($C11,'Filtered-P'!$A$1:$AD$700,21,FALSE))-'Filtered-P'!$AF$29)/(-1*'Filtered-P'!$AG$29))*0.5,"")),IF(Personalize!$E$49=TRUE,(((VLOOKUP($C11,Filtered!$A$1:$AF$626,30,FALSE))-Filtered!$AK$45)/Filtered!$AL$45),IF(ISBLANK(Personalize!$E$49),(((VLOOKUP($C11,Filtered!$A$1:$AF$626,30,FALSE))-Filtered!$AK$45)/Filtered!$AL$45)*0.5,""))),"") ->  | AD11: =IFERROR(IF((OR($D11="RP",$D11="SP")),IF(Personalize!$E$53=TRUE,(((VLOOKUP($C11,'Filtered-P'!$A$1:$AD$700,23,FALSE))-'Filtered-P'!$AF$31)/(-1*'Filtered-P'!$AG$31)),IF(ISBLANK(Personalize!$E$53),(((VLOOKUP($C11,'Filtered-P'!$A$1:$AD$700,23,FALSE))-'Filtered-P'!$AF$31)/(-1*'Filtered-P'!$AG$31))*0.5,"")),IF(Personalize!$E$50=TRUE,(((VLOOKUP($C11,Filtered!$A$1:$AF$626,31,FALSE))-Filtered!$AK$46)/Filtered!$AL$46),IF(ISBLANK(Personalize!$E$50),(((VLOOKUP($C11,Filtered!$A$1:$AF$626,31,FALSE))-Filtered!$AK$46)/Filtered!$AL$46)*0.5,""))),"") ->  | AE11: =IFERROR(IF((OR($D11="RP",$D11="SP")),IF(Personalize!$E$54=TRUE,(((VLOOKUP($C11,'Filtered-P'!$A$1:$AD$700,24,FALSE))-'Filtered-P'!$AF$32)/'Filtered-P'!$AG$32),IF(ISBLANK(Personalize!$E$54),(((VLOOKUP($C11,'Filtered-P'!$A$1:$AD$700,24,FALSE))-'Filtered-P'!$AF$32)/'Filtered-P'!$AG$32)*0.5,"")),IF(Personalize!$E$51=TRUE,(((VLOOKUP($C11,Filtered!$A$1:$AF$626,15,FALSE))-Filtered!$AK$30)/(-1*Filtered!$AL$30)),IF(ISBLANK(Personalize!$E$51),(((VLOOKUP($C11,Filtered!$A$1:$AF$626,15,FALSE))-Filtered!$AK$30)/(-1*Filtered!$AL$30))*0.5,""))),"") ->  | AF11: =IFERROR(IF((OR($D11="RP",$D11="SP")),IF(Personalize!$E$56=TRUE,(((VLOOKUP($C11,'Filtered-P'!$A$1:$AD$700,29,FALSE))-'Filtered-P'!$AF$35)/'Filtered-P'!$AG$35),IF(ISBLANK(Personalize!$E$56),(((VLOOKUP($C11,'Filtered-P'!$A$1:$AD$700,29,FALSE))-'Filtered-P'!$AF$35)/'Filtered-P'!$AG$35)*0.5,"")),IF(Personalize!$E$60=TRUE,(((VLOOKUP($C11,Filtered!$A$1:$AF$626,7,FALSE))-Filtered!$AK$22)/Filtered!$AL$22),IF(ISBLANK(Personalize!$E$60),(((VLOOKUP($C11,Filtered!$A$1:$AF$626,7,FALSE))-Filtered!$AK$22)/Filtered!$AL$22)*0.5,""))),"") ->  | AG11: =IFERROR(IF((OR($D11="RP",$D11="SP")),IF(Personalize!$E$57=TRUE,(((VLOOKUP($C11,'Filtered-P'!$A$1:$AD$700,28,FALSE))-'Filtered-P'!$AF$34)/'Filtered-P'!$AG$34),IF(ISBLANK(Personalize!$E$57),(((VLOOKUP($C11,'Filtered-P'!$A$1:$AD$700,28,FALSE))-'Filtered-P'!$AF$34)/'Filtered-P'!$AG$34)*0.5,"")),IF(Personalize!$E$61=TRUE,(((VLOOKUP($C11,Filtered!$A$1:$AZ$626,34,FALSE))-Filtered!$AK$47)/Filtered!$AL$47),IF(ISBLANK(Personalize!$E$61),(((VLOOKUP($C11,Filtered!$A$1:$AZ$626,34,FALSE))-Filtered!$AK$47)/Filtered!$AL$47)*0.5,""))),"") ->  | AH11: =IFERROR(IF((OR($D11="RP",$D11="SP")),IF(Personalize!$E$58=TRUE,(((VLOOKUP($C11,'Filtered-P'!$A$1:$Z$700,8,FALSE))-'Filtered-P'!$AF$14)/'Filtered-P'!$AG$14),IF(ISBLANK(Personalize!$E$58),(((VLOOKUP($C11,'Filtered-P'!$A$1:$Z$700,8,FALSE))-'Filtered-P'!$AF$14)/'Filtered-P'!$AG$14)*0.5,"")),IF(Personalize!$E$62=TRUE,(((VLOOKUP($C11,Filtered!$A$1:$AF$626,13,FALSE))-Filtered!$AK$28)/(-1*Filtered!$AL$28)),IF(ISBLANK(Personalize!$E$62),(((VLOOKUP($C11,Filtered!$A$1:$AF$626,13,FALSE))-Filtered!$AK$28)/(-1*Filtered!$AL$28))*0.5,""))),"") ->  | AI11: =IFERROR(IF((OR($D11="RP",$D11="SP")),IF(Personalize!$E$59=TRUE,(((VLOOKUP($C11,'Filtered-P'!$A$1:$AD$700,27,FALSE))-'Filtered-P'!$AF$33)/'Filtered-P'!$AG$33),IF(ISBLANK(Personalize!$E$59),(((VLOOKUP($C11,'Filtered-P'!$A$1:$AD$700,27,FALSE))-'Filtered-P'!$AF$33)/'Filtered-P'!$AG$33)*0.5,"")),IF(Personalize!$E$63=TRUE,(((VLOOKUP($C11,Filtered!$A$1:$AZ$626,35,FALSE))-Filtered!$AK$48)/(-1*Filtered!$AL$48)),IF(ISBLANK(Personalize!$E$63),(((VLOOKUP($C11,Filtered!$A$1:$AZ$626,35,FALSE))-Filtered!$AK$48)/(-1*Filtered!$AL$48))*0.5,""))),"") ->  | AJ11: =IFERROR(IF((OR($D11="RP",$D11="SP")),VLOOKUP($C11,'Filtered-P'!$A$1:$P$580,2,FALSE),""),"") ->  | AK11: =IFERROR(IF((OR($D11="RP",$D11="SP")),VLOOKUP($C11,'Filtered-P'!$A$1:$P$580,9,FALSE),""),"") ->  | AL11: =IFERROR(IF((OR($D11="RP",$D11="SP")),VLOOKUP($C11,'Filtered-P'!$A$1:$P$580,7,FALSE),""),"") ->  | AM11: =IFERROR(IF((OR($D11="RP",$D11="SP")),VLOOKUP($C11,'Filtered-P'!$A$1:$P$580,10,FALSE),""),"") ->  | AN11: =IFERROR(IF((OR($D11="RP",$D11="SP")),VLOOKUP($C11,'Filtered-P'!$A$1:$P$580,11,FALSE),""),"") ->  | AO11: =IFERROR(IF((OR($D11="RP",$D11="SP")),"",VLOOKUP($C11,Filtered!$A$1:$X$600,16,FALSE)),"") -> 0.2727086828 | AP11: =IFERROR(IF((OR($D11="RP",$D11="SP")),"",VLOOKUP($C11,Filtered!$A$1:$X$600,10,FALSE)),"") -> 42.73247215 | AQ11: =IFERROR(IF((OR($D11="RP",$D11="SP")),"",VLOOKUP($C11,Filtered!$A$1:$X$600,11,FALSE)),"") -> 103.7687732 | AR11: =IFERROR(IF((OR($D11="RP",$D11="SP")),"",VLOOKUP($C11,Filtered!$A$1:$X$600,5,FALSE)),"") -> 93.9684856 | AS11: =IFERROR(IF((OR($D11="RP",$D11="SP")),"",VLOOKUP($C11,Filtered!$A$1:$X$600,12,FALSE)),"") -> 7.751903075 | AU11: =IF(ISBLANK(A11),0,1) -> 0 | AV11: =IF(M11="",0,1) -> 1 | AW11: =A11 -> 0 | AX11: =IF(D11="C",1,IF(D11="1B",2,IF(D11="2B",3,IF(D11="3B",4,IF(D11="SS",5,IF(D11="CI",6,IF(D11="MI",7,IF(D11="OF",11,IF(D11="LF",8,IF(D11="CF",9,IF(D11="RF",10,IF(D11="DH",12,IF(D11="SP",13,IF(D11="RP",14,IF(D11="P",15,16))))))))))))))) -> 11 | AY11: =VLOOKUP(C11,'Starter Calc'!$B$2:$BS$700,70,FALSE) -> Bench | AZ11: =VLOOKUP(C11,'Starter Calc'!$B$2:$AO$700,40,FALSE) -> Yes | BA11: =IFERROR(IF(ISTEXT($A11),"",IF((OR($D11="RP",$D11="SP")),ABS(VLOOKUP(D11,'Filtered-P'!$AE$3:$AI$4,5,FALSE))+M11,ABS(VLOOKUP(D11,Filtered!$AJ$3:$AN$14,5,FALSE))+M11)),"") -> 13.95385883 | BB11: =IFERROR(BA11+ABS($BA$4),"") -> 14.67768191 | BC11: =IF(AND($A11<>"",$B11<>""),B11,"N") -> N | BD11: =IFERROR(VLOOKUP($C11,'ADP-Rank'!$A$2:$AB$581,25,FALSE),TRUE) -> TRUE | BE11: =IFERROR((BB11-BB$3)^2,"") -> 96.72153866 | BF11: =VLOOKUP(C11,'Starter Calc'!$B$2:$CD$700,71,FALSE) -> OF.Yes | BG11: =IFERROR(((Personalize!$A$1-(1*Personalize!$A$2))/Personalize!$A$2)*(N11/$BG$3)+1,"") -> 36.02629592 | BH11: 40.20280389 | BI11: 40.20280389
C12: Miguel Cabrera | D12: 1B | E12: =IFERROR(IF(VLOOKUP(C12,'Starter Calc'!$B$2:$E$700,4,FALSE)="","",VLOOKUP(C12,'Starter Calc'!$B$2:$E$700,4,FALSE)),"") -> ,, | F12: =IFERROR(VLOOKUP($C12,'ADP-Rank'!$A$2:$G$581,5,FALSE),"") -> DET | G12: =IFERROR(VLOOKUP($C12,'ADP-Rank'!$A$2:$X$581,6,FALSE),"") -> 32 | H12: =IFERROR(IF(ISBLANK($B12),"$"&(ROUND(BI12,0))&" | $"&ROUND(BH12,0),""),"") -> $30 | $30 | I12: =IFERROR(IF(RIGHT(D12,1)="P",J12*$BE$2,J12*$BE$1),"") -> 31.33333333 | J12: =IFERROR(CHOOSE(Personalize!$E$31,(VLOOKUP(C12,'ADP-Rank'!$A$2:$Z$581,7,FALSE)*(Personalize!$A$3)+1),(VLOOKUP(C12,'ADP-Rank'!$A$2:$Z$581,8,FALSE)*(Personalize!$A$3)+1),(VLOOKUP(C12,'ADP-Rank'!$A$2:$Z$581,9,FALSE)*(Personalize!$A$3)+1),(VLOOKUP(C12,'ADP-Rank'!$A$2:$AA$581,10,FALSE)*(Personalize!$A$3)+1),(VLOOKUP(C12,'ADP-Rank'!$A$2:$AA$581,11,FALSE)*(Personalize!$A$3)+1),(VLOOKUP(C12,'ADP-Rank'!$A$2:$AA$581,12,FALSE)*(Personalize!$A$3)+1),(VLOOKUP(C12,'ADP-Rank'!$A$2:$AA$581,13,FALSE)*(Personalize!$A$3)+1),(VLOOKUP(C12,'ADP-Rank'!$A$2:$AA$581,14,FALSE)*(Personalize!$A$3)+1),(VLOOKUP(C12,'ADP-Rank'!$A$2:$AA$581,15,FALSE)*(Personalize!$A$3)+1),(VLOOKUP(C12,'ADP-Rank'!$A$2:$AG$581,28,FALSE)*(Personalize!$A$3)+1)),"") -> 31.33333333 | K12: =VLOOKUP($C12,'ADP-Rank'!$A$2:$AB$581,26,FALSE) -> 11 | L12: =IFERROR(RANK($M12,$M$7:$M$746,0),"") -> 6 | M12: =IF((SUM(O12:AI12)=0),"",SUM(O12:AI12)) -> 8.50539822 | N12: =IFERROR(IF((OR($D12="RP",$D12="SP")),ABS(VLOOKUP(D12,'Filtered-P'!$AE$3:$AI$4,5,FALSE))+M12,ABS(VLOOKUP(D12,Filtered!$AJ$3:$AN$14,5,FALSE))+M12),"") -> 10.20889146 | O12: =IFERROR(IF((OR($D12="RP",$D12="SP")),IF(Personalize!$E$10=TRUE,(((VLOOKUP($C12,'Filtered-P'!$A$1:$P$700,2,FALSE))-'Filtered-P'!$AF$8)/'Filtered-P'!$AG$8),IF(ISBLANK(Personalize!$E$10),(((VLOOKUP($C12,'Filtered-P'!$A$1:$P$700,2,FALSE))-'Filtered-P'!$AF$8)/'Filtered-P'!$AG$8)*0.5,"")),IF(Personalize!$E$4=TRUE,(((VLOOKUP($C12,Filtered!$A$1:$X$626,22,FALSE))-Filtered!$AK$35)/Filtered!$AL$35),IF(ISBLANK(Personalize!$E$4),(((VLOOKUP($C12,Filtered!$A$1:$X$626,22,FALSE))-Filtered!$AK$35)/Filtered!$AL$35)*0.5,""))),"") -> 2.64952209 | P12: =IFERROR(IF((OR($D12="RP",$D12="SP")),IF(Personalize!$E$12=TRUE,(((VLOOKUP($C12,'Filtered-P'!$A$1:$P$700,9,FALSE))-'Filtered-P'!$AF$15)/'Filtered-P'!$AG$15),IF(ISBLANK(Personalize!$E$12),(((VLOOKUP($C12,'Filtered-P'!$A$1:$P$700,9,FALSE))-'Filtered-P'!$AF$15)/'Filtered-P'!$AG$15)*0.5,"")),IF(Personalize!$E$3=TRUE,(((VLOOKUP($C12,Filtered!$A$1:$AB$626,10,FALSE))-Filtered!$AK$25)/Filtered!$AL$25),IF(ISBLANK(Personalize!$E$3),(((VLOOKUP($C12,Filtered!$A$1:$AB$626,10,FALSE))-Filtered!$AK$25)/Filtered!$AL$25)*0.5,""))),"") -> 1.233240666 | Q12: =IFERROR(IF((OR($D12="RP",$D12="SP")),IF(Personalize!$E$11=TRUE,(((VLOOKUP($C12,'Filtered-P'!$A$1:$P$700,7,FALSE))-'Filtered-P'!$AF$13)/'Filtered-P'!$AG$13),IF(ISBLANK(Personalize!$E$11),(((VLOOKUP($C12,'Filtered-P'!$A$1:$P$700,7,FALSE))-'Filtered-P'!$AF$13)/'Filtered-P'!$AG$13)*0.5,"")),IF(Personalize!$E$2=TRUE,(((VLOOKUP($C12,Filtered!$A$1:$AB$626,5,FALSE))-Filtered!$AK$20)/Filtered!$AL$20),IF(ISBLANK(Personalize!$E$2),(((VLOOKUP($C12,Filtered!$A$1:$AB$626,5,FALSE))-Filtered!$AK$20)/Filtered!$AL$20)*0.5,""))),"") -> 1.436153288 | R12: =IFERROR(IF((OR($D12="RP",$D12="SP")),IF(Personalize!$E$13=TRUE,(((VLOOKUP($C12,'Filtered-P'!$A$1:$P$700,13,FALSE))-'Filtered-P'!$AF$19)/'Filtered-P'!$AG$19),IF(ISBLANK(Personalize!$E$13),(((VLOOKUP($C12,'Filtered-P'!$A$1:$P$700,13,FALSE))-'Filtered-P'!$AF$19)/'Filtered-P'!$AG$19)*0.5,"")),IF(Personalize!$E$5=TRUE,(((VLOOKUP($C12,Filtered!$A$1:$AB$626,11,FALSE))-Filtered!$AK$26)/Filtered!$AL$26),IF(ISBLANK(Personalize!$E$5),(((VLOOKUP($C12,Filtered!$A$1:$AB$626,11,FALSE))-Filtered!$AK$26)/Filtered!$AL$26)*0.5,""))),"") -> 1.954182628 | S12: =IFERROR(IF((OR($D12="RP",$D12="SP")),IF(Personalize!$E$14=TRUE,(((VLOOKUP($C12,'Filtered-P'!$A$1:$P$700,14,FALSE))-'Filtered-P'!$AF$20)/'Filtered-P'!$AG$20),IF(ISBLANK(Personalize!$E$14),(((VLOOKUP($C12,'Filtered-P'!$A$1:$P$700,14,FALSE))-'Filtered-P'!$AF$20)/'Filtered-P'!$AG$20)*0.5,"")),IF(Personalize!$E$6=TRUE,(((VLOOKUP($C12,Filtered!$A$1:$AB$626,12,FALSE))-Filtered!$AK$27)/Filtered!$AL$27),IF(ISBLANK(Personalize!$E$6),(((VLOOKUP($C12,Filtered!$A$1:$AB$626,12,FALSE))-Filtered!$AK$27)/Filtered!$AL$27)*0.5,""))),"") -> -0.87028254 | T12: =IFERROR(IF((OR($D12="RP",$D12="SP")),IF(Personalize!$E$16=TRUE,(((VLOOKUP($C12,'Filtered-P'!$A$1:$P$700,3,FALSE))-'Filtered-P'!$AF$9)/'Filtered-P'!$AG$9),IF(ISBLANK(Personalize!$E$16),(((VLOOKUP($C12,'Filtered-P'!$A$1:$P$700,3,FALSE))-'Filtered-P'!$AF$9)/'Filtered-P'!$AG$9)*0.5,"")),IF(Personalize!$E$7=TRUE,(((VLOOKUP($C12,Filtered!$A$1:$BB$626,24,FALSE))-Filtered!$AK$37)/Filtered!$AL$37),IF(ISBLANK(Personalize!$E$7),(((VLOOKUP($C12,Filtered!$A$1:$BB$626,24,FALSE))-Filtered!$AK$37)/Filtered!$AL$37)*0.5,""))),"") -> 2.102582088 | U12: =IFERROR(IF((OR($D12="RP",$D12="SP")),IF(Personalize!$E$15=TRUE,(((VLOOKUP($C12,'Filtered-P'!$A$1:$P$700,15,FALSE))-'Filtered-P'!$AF$21)/'Filtered-P'!$AG$21),IF(ISBLANK(Personalize!$E$15),(((VLOOKUP($C12,'Filtered-P'!$A$1:$P$700,15,FALSE))-'Filtered-P'!$AF$21)/'Filtered-P'!$AG$21)*0.5,"")),IF(Personalize!$E$8=TRUE,(((VLOOKUP($C12,Filtered!$A$1:$BB$626,23,FALSE))-Filtered!$AK$36)/Filtered!$AL$36),IF(ISBLANK(Personalize!$E$8),(((VLOOKUP($C12,Filtered!$A$1:$BB$626,23,FALSE))-Filtered!$AK$36)/Filtered!$AL$36)*0.5,""))),"") ->  | V12: =IFERROR(IF((OR($D12="RP",$D12="SP")),IF(Personalize!$E$17=TRUE,(((VLOOKUP($C12,'Filtered-P'!$A$1:$P$700,16,FALSE))-'Filtered-P'!$AF$22)/'Filtered-P'!$AG$22),IF(ISBLANK(Personalize!$E$17),(((VLOOKUP($C12,'Filtered-P'!$A$1:$P$700,16,FALSE))-'Filtered-P'!$AF$22)/'Filtered-P'!$AG$22)*0.5,"")),IF(Personalize!$E$9=TRUE,(((VLOOKUP($C12,Filtered!$A$1:$BB$626,25,FALSE))-Filtered!$AK$38)/Filtered!$AL$38),IF(ISBLANK(Personalize!$E$9),(((VLOOKUP($C12,Filtered!$A$1:$BB$626,25,FALSE))-Filtered!$AK$38)/Filtered!$AL$38)*0.5,""))),"") ->  | W12: =IFERROR(IF((OR($D12="RP",$D12="SP")),IF(Personalize!$E$37=TRUE,(((VLOOKUP($C12,'Filtered-P'!$A$1:$Z$700,17,FALSE))-'Filtered-P'!$AF$25)/'Filtered-P'!$AG$25),IF(ISBLANK(Personalize!$E$37),(((VLOOKUP($C12,'Filtered-P'!$A$1:$Z$700,17,FALSE))-'Filtered-P'!$AF$25)/'Filtered-P'!$AG$25)*0.5,"")),IF(Personalize!$E$39=TRUE,(((VLOOKUP($C12,Filtered!$A$1:$X$626,14,FALSE))-Filtered!$AK$29)/Filtered!$AL$29),IF(ISBLANK(Personalize!$E$39),(((VLOOKUP($C12,Filtered!$A$1:$X$626,14,FALSE))-Filtered!$AK$29)/Filtered!$AL$29)*0.5,""))),"") ->  | X12: =IFERROR(IF((OR($D12="RP",$D12="SP")),IF(Personalize!$E$38=TRUE,(((VLOOKUP($C12,'Filtered-P'!$A$1:$Z$700,18,FALSE))-'Filtered-P'!$AF$26)/'Filtered-P'!$AG$26),IF(ISBLANK(Personalize!$E$38),(((VLOOKUP($C12,'Filtered-P'!$A$1:$Z$700,18,FALSE))-'Filtered-P'!$AF$26)/'Filtered-P'!$AG$26)*0.5,"")),IF(Personalize!$E$40=TRUE,(((VLOOKUP($C12,Filtered!$A$1:$X$626,6,FALSE))-Filtered!$AK$21)/Filtered!$AL$21),IF(ISBLANK(Personalize!$E$40),(((VLOOKUP($C12,Filtered!$A$1:$X$626,6,FALSE))-Filtered!$AK$21)/Filtered!$AL$21)*0.5,""))),"") ->  | Y12: =IFERROR(IF((OR($D12="RP",$D12="SP")),IF(Personalize!$E$45=TRUE,(((VLOOKUP($C12,'Filtered-P'!$A$1:$Z$700,4,FALSE))-'Filtered-P'!$AF$10)/'Filtered-P'!$AG$10),IF(ISBLANK(Personalize!$E$45),(((VLOOKUP($C12,'Filtered-P'!$A$1:$Z$700,4,FALSE))-'Filtered-P'!$AF$10)/'Filtered-P'!$AG$10)*0.5,"")),IF(Personalize!$E$41=TRUE,(((VLOOKUP($C12,Filtered!$A$1:$BB$626,20,FALSE))-Filtered!$AK$43)/Filtered!$AL$43),IF(ISBLANK(Personalize!$E$41),(((VLOOKUP($C12,Filtered!$A$1:$BB$626,20,FALSE))-Filtered!$AK$43)/Filtered!$AL$43)*0.5,""))),"") ->  | Z12: =IFERROR(IF((OR($D12="RP",$D12="SP")),IF(Personalize!$E$46=TRUE,(((VLOOKUP($C12,'Filtered-P'!$A$1:$Z$700,19,FALSE))-'Filtered-P'!$AF$27)/'Filtered-P'!$AG$27),IF(ISBLANK(Personalize!$E$46),(((VLOOKUP($C12,'Filtered-P'!$A$1:$Z$700,19,FALSE))-'Filtered-P'!$AF$27)/'Filtered-P'!$AG$27)*0.5,"")),IF(Personalize!$E$44=TRUE,(((VLOOKUP($C12,Filtered!$A$1:$BB$626,21,FALSE))-Filtered!$AK$44)/Filtered!$AL$44),IF(ISBLANK(Personalize!$E$44),(((VLOOKUP($C12,Filtered!$A$1:$BB$626,21,FALSE))-Filtered!$AK$44)/Filtered!$AL$44)*0.5,""))),"") ->  | AA12: =IFERROR(IF((OR($D12="RP",$D12="SP")),IF(Personalize!$E$47=TRUE,(((VLOOKUP($C12,'Filtered-P'!$A$1:$Z$700,6,FALSE))-'Filtered-P'!$AF$12)/'Filtered-P'!$AG$12),IF(ISBLANK(Personalize!$E$47),(((VLOOKUP($C12,'Filtered-P'!$A$1:$Z$700,6,FALSE))-'Filtered-P'!$AF$12)/'Filtered-P'!$AG$12)*0.5,"")),IF(Personalize!$E$42=TRUE,(((VLOOKUP($C12,Filtered!$A$1:$BB$626,8,FALSE))-Filtered!$AK$23)/Filtered!$AL$23),IF(ISBLANK(Personalize!$E$42),(((VLOOKUP($C12,Filtered!$A$1:$BB$626,8,FALSE))-Filtered!$AK$23)/Filtered!$AL$23)*0.5,""))),"") ->  | AB12: =IFERROR(IF((OR($D12="RP",$D12="SP")),IF(Personalize!$E$48=TRUE,(((VLOOKUP($C12,'Filtered-P'!$A$1:$Z$700,5,FALSE))-'Filtered-P'!$AF$11)/'Filtered-P'!$AG$11),IF(ISBLANK(Personalize!$E$48),(((VLOOKUP($C12,'Filtered-P'!$A$1:$Z$700,5,FALSE))-'Filtered-P'!$AF$11)/'Filtered-P'!$AG$11)*0.5,"")),IF(Personalize!$E$43=TRUE,(((VLOOKUP($C12,Filtered!$A$1:$BB$626,9,FALSE))-Filtered!$AK$24)/Filtered!$AL$24),IF(ISBLANK(Personalize!$E$43),(((VLOOKUP($C12,Filtered!$A$1:$BB$626,9,FALSE))-Filtered!$AK$24)/Filtered!$AL$24)*0.5,""))),"") ->  | AC12: =IFERROR(IF((OR($D12="RP",$D12="SP")),IF(Personalize!$E$52=TRUE,(((VLOOKUP($C12,'Filtered-P'!$A$1:$AD$700,21,FALSE))-'Filtered-P'!$AF$29)/(-1*'Filtered-P'!$AG$29)),IF(ISBLANK(Personalize!$E$52),(((VLOOKUP($C12,'Filtered-P'!$A$1:$AD$700,21,FALSE))-'Filtered-P'!$AF$29)/(-1*'Filtered-P'!$AG$29))*0.5,"")),IF(Personalize!$E$49=TRUE,(((VLOOKUP($C12,Filtered!$A$1:$AF$626,30,FALSE))-Filtered!$AK$45)/Filtered!$AL$45),IF(ISBLANK(Personalize!$E$49),(((VLOOKUP($C12,Filtered!$A$1:$AF$626,30,FALSE))-Filtered!$AK$45)/Filtered!$AL$45)*0.5,""))),"") ->  | AD12: =IFERROR(IF((OR($D12="RP",$D12="SP")),IF(Personalize!$E$53=TRUE,(((VLOOKUP($C12,'Filtered-P'!$A$1:$AD$700,23,FALSE))-'Filtered-P'!$AF$31)/(-1*'Filtered-P'!$AG$31)),IF(ISBLANK(Personalize!$E$53),(((VLOOKUP($C12,'Filtered-P'!$A$1:$AD$700,23,FALSE))-'Filtered-P'!$AF$31)/(-1*'Filtered-P'!$AG$31))*0.5,"")),IF(Personalize!$E$50=TRUE,(((VLOOKUP($C12,Filtered!$A$1:$AF$626,31,FALSE))-Filtered!$AK$46)/Filtered!$AL$46),IF(ISBLANK(Personalize!$E$50),(((VLOOKUP($C12,Filtered!$A$1:$AF$626,31,FALSE))-Filtered!$AK$46)/Filtered!$AL$46)*0.5,""))),"") ->  | AE12: =IFERROR(IF((OR($D12="RP",$D12="SP")),IF(Personalize!$E$54=TRUE,(((VLOOKUP($C12,'Filtered-P'!$A$1:$AD$700,24,FALSE))-'Filtered-P'!$AF$32)/'Filtered-P'!$AG$32),IF(ISBLANK(Personalize!$E$54),(((VLOOKUP($C12,'Filtered-P'!$A$1:$AD$700,24,FALSE))-'Filtered-P'!$AF$32)/'Filtered-P'!$AG$32)*0.5,"")),IF(Personalize!$E$51=TRUE,(((VLOOKUP($C12,Filtered!$A$1:$AF$626,15,FALSE))-Filtered!$AK$30)/(-1*Filtered!$AL$30)),IF(ISBLANK(Personalize!$E$51),(((VLOOKUP($C12,Filtered!$A$1:$AF$626,15,FALSE))-Filtered!$AK$30)/(-1*Filtered!$AL$30))*0.5,""))),"") ->  | AF12: =IFERROR(IF((OR($D12="RP",$D12="SP")),IF(Personalize!$E$56=TRUE,(((VLOOKUP($C12,'Filtered-P'!$A$1:$AD$700,29,FALSE))-'Filtered-P'!$AF$35)/'Filtered-P'!$AG$35),IF(ISBLANK(Personalize!$E$56),(((VLOOKUP($C12,'Filtered-P'!$A$1:$AD$700,29,FALSE))-'Filtered-P'!$AF$35)/'Filtered-P'!$AG$35)*0.5,"")),IF(Personalize!$E$60=TRUE,(((VLOOKUP($C12,Filtered!$A$1:$AF$626,7,FALSE))-Filtered!$AK$22)/Filtered!$AL$22),IF(ISBLANK(Personalize!$E$60),(((VLOOKUP($C12,Filtered!$A$1:$AF$626,7,FALSE))-Filtered!$AK$22)/Filtered!$AL$22)*0.5,""))),"") ->  | AG12: =IFERROR(IF((OR($D12="RP",$D12="SP")),IF(Personalize!$E$57=TRUE,(((VLOOKUP($C12,'Filtered-P'!$A$1:$AD$700,28,FALSE))-'Filtered-P'!$AF$34)/'Filtered-P'!$AG$34),IF(ISBLANK(Personalize!$E$57),(((VLOOKUP($C12,'Filtered-P'!$A$1:$AD$700,28,FALSE))-'Filtered-P'!$AF$34)/'Filtered-P'!$AG$34)*0.5,"")),IF(Personalize!$E$61=TRUE,(((VLOOKUP($C12,Filtered!$A$1:$AZ$626,34,FALSE))-Filtered!$AK$47)/Filtered!$AL$47),IF(ISBLANK(Personalize!$E$61),(((VLOOKUP($C12,Filtered!$A$1:$AZ$626,34,FALSE))-Filtered!$AK$47)/Filtered!$AL$47)*0.5,""))),"") ->  | AH12: =IFERROR(IF((OR($D12="RP",$D12="SP")),IF(Personalize!$E$58=TRUE,(((VLOOKUP($C12,'Filtered-P'!$A$1:$Z$700,8,FALSE))-'Filtered-P'!$AF$14)/'Filtered-P'!$AG$14),IF(ISBLANK(Personalize!$E$58),(((VLOOKUP($C12,'Filtered-P'!$A$1:$Z$700,8,FALSE))-'Filtered-P'!$AF$14)/'Filtered-P'!$AG$14)*0.5,"")),IF(Personalize!$E$62=TRUE,(((VLOOKUP($C12,Filtered!$A$1:$AF$626,13,FALSE))-Filtered!$AK$28)/(-1*Filtered!$AL$28)),IF(ISBLANK(Personalize!$E$62),(((VLOOKUP($C12,Filtered!$A$1:$AF$626,13,FALSE))-Filtered!$AK$28)/(-1*Filtered!$AL$28))*0.5,""))),"") ->  | AI12: =IFERROR(IF((OR($D12="RP",$D12="SP")),IF(Personalize!$E$59=TRUE,(((VLOOKUP($C12,'Filtered-P'!$A$1:$AD$700,27,FALSE))-'Filtered-P'!$AF$33)/'Filtered-P'!$AG$33),IF(ISBLANK(Personalize!$E$59),(((VLOOKUP($C12,'Filtered-P'!$A$1:$AD$700,27,FALSE))-'Filtered-P'!$AF$33)/'Filtered-P'!$AG$33)*0.5,"")),IF(Personalize!$E$63=TRUE,(((VLOOKUP($C12,Filtered!$A$1:$AZ$626,35,FALSE))-Filtered!$AK$48)/(-1*Filtered!$AL$48)),IF(ISBLANK(Personalize!$E$63),(((VLOOKUP($C12,Filtered!$A$1:$AZ$626,35,FALSE))-Filtered!$AK$48)/(-1*Filtered!$AL$48))*0.5,""))),"") ->  | AJ12: =IFERROR(IF((OR($D12="RP",$D12="SP")),VLOOKUP($C12,'Filtered-P'!$A$1:$P$580,2,FALSE),""),"") ->  | AK12: =IFERROR(IF((OR($D12="RP",$D12="SP")),VLOOKUP($C12,'Filtered-P'!$A$1:$P$580,9,FALSE),""),"") ->  | AL12: =IFERROR(IF((OR($D12="RP",$D12="SP")),VLOOKUP($C12,'Filtered-P'!$A$1:$P$580,7,FALSE),""),"") ->  | AM12: =IFERROR(IF((OR($D12="RP",$D12="SP")),VLOOKUP($C12,'Filtered-P'!$A$1:$P$580,10,FALSE),""),"") ->  | AN12: =IFERROR(IF((OR($D12="RP",$D12="SP")),VLOOKUP($C12,'Filtered-P'!$A$1:$P$580,11,FALSE),""),"") ->  | AO12: =IFERROR(IF((OR($D12="RP",$D12="SP")),"",VLOOKUP($C12,Filtered!$A$1:$X$600,16,FALSE)),"") -> 0.3114815717 | AP12: =IFERROR(IF((OR($D12="RP",$D12="SP")),"",VLOOKUP($C12,Filtered!$A$1:$X$600,10,FALSE)),"") -> 27.92600234 | AQ12: =IFERROR(IF((OR($D12="RP",$D12="SP")),"",VLOOKUP($C12,Filtered!$A$1:$X$600,11,FALSE)),"") -> 101.1617329 | AR12: =IFERROR(IF((OR($D12="RP",$D12="SP")),"",VLOOKUP($C12,Filtered!$A$1:$X$600,5,FALSE)),"") -> 90.27725097 | AS12: =IFERROR(IF((OR($D12="RP",$D12="SP")),"",VLOOKUP($C12,Filtered!$A$1:$X$600,12,FALSE)),"") -> 1.977108363 | AU12: =IF(ISBLANK(A12),0,1) -> 0 | AV12: =IF(M12="",0,1) -> 1 | AW12: =A12 -> 0 | AX12: =IF(D12="C",1,IF(D12="1B",2,IF(D12="2B",3,IF(D12="3B",4,IF(D12="SS",5,IF(D12="CI",6,IF(D12="MI",7,IF(D12="OF",11,IF(D12="LF",8,IF(D12="CF",9,IF(D12="RF",10,IF(D12="DH",12,IF(D12="SP",13,IF(D12="RP",14,IF(D12="P",15,16))))))))))))))) -> 2 | AY12: =VLOOKUP(C12,'Starter Calc'!$B$2:$BS$700,70,FALSE) -> Bench | AZ12: =VLOOKUP(C12,'Starter Calc'!$B$2:$AO$700,40,FALSE) -> Yes | BA12: =IFERROR(IF(ISTEXT($A12),"",IF((OR($D12="RP",$D12="SP")),ABS(VLOOKUP(D12,'Filtered-P'!$AE$3:$AI$4,5,FALSE))+M12,ABS(VLOOKUP(D12,Filtered!$AJ$3:$AN$14,5,FALSE))+M12)),"") -> 10.20889146 | BB12: =IFERROR(BA12+ABS($BA$4),"") -> 10.93271454 | BC12: =IF(AND($A12<>"",$B12<>""),B12,"N") -> N | BD12: =IFERROR(VLOOKUP($C12,'ADP-Rank'!$A$2:$AB$581,25,FALSE),TRUE) -> TRUE | BE12: =IFERROR((BB12-BB$3)^2,"") -> 37.08497637 | BF12: =VLOOKUP(C12,'Starter Calc'!$B$2:$CD$700,71,FALSE) -> 1B.Yes | BG12: =IFERROR(((Personalize!$A$1-(1*Personalize!$A$2))/Personalize!$A$2)*(N12/$BG$3)+1,"") -> 26.62586147 | BH12: 29.71258243 | BI12: 29.71258243
C13: Nolan Arenado | D13: 3B | E13: =IFERROR(IF(VLOOKUP(C13,'Starter Calc'!$B$2:$E$700,4,FALSE)="","",VLOOKUP(C13,'Starter Calc'!$B$2:$E$700,4,FALSE)),"") -> ,, | F13: =IFERROR(VLOOKUP($C13,'ADP-Rank'!$A$2:$G$581,5,FALSE),"") -> COL | G13: =IFERROR(VLOOKUP($C13,'ADP-Rank'!$A$2:$X$581,6,FALSE),"") -> 24 | H13: =IFERROR(IF(ISBLANK($B13),"$"&(ROUND(BI13,0))&" | $"&ROUND(BH13,0),""),"") -> $31 | $31 | I13: =IFERROR(IF(RIGHT(D13,1)="P",J13*$BE$2,J13*$BE$1),"") -> 28.73333333 | J13: =IFERROR(CHOOSE(Personalize!$E$31,(VLOOKUP(C13,'ADP-Rank'!$A$2:$Z$581,7,FALSE)*(Personalize!$A$3)+1),(VLOOKUP(C13,'ADP-Rank'!$A$2:$Z$581,8,FALSE)*(Personalize!$A$3)+1),(VLOOKUP(C13,'ADP-Rank'!$A$2:$Z$581,9,FALSE)*(Personalize!$A$3)+1),(VLOOKUP(C13,'ADP-Rank'!$A$2:$AA$581,10,FALSE)*(Personalize!$A$3)+1),(VLOOKUP(C13,'ADP-Rank'!$A$2:$AA$581,11,FALSE)*(Personalize!$A$3)+1),(VLOOKUP(C13,'ADP-Rank'!$A$2:$AA$581,12,FALSE)*(Personalize!$A$3)+1),(VLOOKUP(C13,'ADP-Rank'!$A$2:$AA$581,13,FALSE)*(Personalize!$A$3)+1),(VLOOKUP(C13,'ADP-Rank'!$A$2:$AA$581,14,FALSE)*(Personalize!$A$3)+1),(VLOOKUP(C13,'ADP-Rank'!$A$2:$AA$581,15,FALSE)*(Personalize!$A$3)+1),(VLOOKUP(C13,'ADP-Rank'!$A$2:$AG$581,28,FALSE)*(Personalize!$A$3)+1)),"") -> 28.73333333 | K13: =VLOOKUP($C13,'ADP-Rank'!$A$2:$AB$581,26,FALSE) -> 10 | L13: =IFERROR(RANK($M13,$M$7:$M$746,0),"") -> 7 | M13: =IF((SUM(O13:AI13)=0),"",SUM(O13:AI13)) -> 8.218377188 | N13: =IFERROR(IF((OR($D13="RP",$D13="SP")),ABS(VLOOKUP(D13,'Filtered-P'!$AE$3:$AI$4,5,FALSE))+M13,ABS(VLOOKUP(D13,Filtered!$AJ$3:$AN$14,5,FALSE))+M13),"") -> 10.59181904 | O13: =IFERROR(IF((OR($D13="RP",$D13="SP")),IF(Personalize!$E$10=TRUE,(((VLOOKUP($C13,'Filtered-P'!$A$1:$P$700,2,FALSE))-'Filtered-P'!$AF$8)/'Filtered-P'!$AG$8),IF(ISBLANK(Personalize!$E$10),(((VLOOKUP($C13,'Filtered-P'!$A$1:$P$700,2,FALSE))-'Filtered-P'!$AF$8)/'Filtered-P'!$AG$8)*0.5,"")),IF(Personalize!$E$4=TRUE,(((VLOOKUP($C13,Filtered!$A$1:$X$626,22,FALSE))-Filtered!$AK$35)/Filtered!$AL$35),IF(ISBLANK(Personalize!$E$4),(((VLOOKUP($C13,Filtered!$A$1:$X$626,22,FALSE))-Filtered!$AK$35)/Filtered!$AL$35)*0.5,""))),"") -> 1.448958695 | P13: =IFERROR(IF((OR($D13="RP",$D13="SP")),IF(Personalize!$E$12=TRUE,(((VLOOKUP($C13,'Filtered-P'!$A$1:$P$700,9,FALSE))-'Filtered-P'!$AF$15)/'Filtered-P'!$AG$15),IF(ISBLANK(Personalize!$E$12),(((VLOOKUP($C13,'Filtered-P'!$A$1:$P$700,9,FALSE))-'Filtered-P'!$AF$15)/'Filtered-P'!$AG$15)*0.5,"")),IF(Personalize!$E$3=TRUE,(((VLOOKUP($C13,Filtered!$A$1:$AB$626,10,FALSE))-Filtered!$AK$25)/Filtered!$AL$25),IF(ISBLANK(Personalize!$E$3),(((VLOOKUP($C13,Filtered!$A$1:$AB$626,10,FALSE))-Filtered!$AK$25)/Filtered!$AL$25)*0.5,""))),"") -> 1.881892027 | Q13: =IFERROR(IF((OR($D13="RP",$D13="SP")),IF(Personalize!$E$11=TRUE,(((VLOOKUP($C13,'Filtered-P'!$A$1:$P$700,7,FALSE))-'Filtered-P'!$AF$13)/'Filtered-P'!$AG$13),IF(ISBLANK(Personalize!$E$11),(((VLOOKUP($C13,'Filtered-P'!$A$1:$P$700,7,FALSE))-'Filtered-P'!$AF$13)/'Filtered-P'!$AG$13)*0.5,"")),IF(Personalize!$E$2=TRUE,(((VLOOKUP($C13,Filtered!$A$1:$AB$626,5,FALSE))-Filtered!$AK$20)/Filtered!$AL$20),IF(ISBLANK(Personalize!$E$2),(((VLOOKUP($C13,Filtered!$A$1:$AB$626,5,FALSE))-Filtered!$AK$20)/Filtered!$AL$20)*0.5,""))),"") -> 1.084708942 | R13: =IFERROR(IF((OR($D13="RP",$D13="SP")),IF(Personalize!$E$13=TRUE,(((VLOOKUP($C13,'Filtered-P'!$A$1:$P$700,13,FALSE))-'Filtered-P'!$AF$19)/'Filtered-P'!$AG$19),IF(ISBLANK(Personalize!$E$13),(((VLOOKUP($C13,'Filtered-P'!$A$1:$P$700,13,FALSE))-'Filtered-P'!$AF$19)/'Filtered-P'!$AG$19)*0.5,"")),IF(Personalize!$E$5=TRUE,(((VLOOKUP($C13,Filtered!$A$1:$AB$626,11,FALSE))-Filtered!$AK$26)/Filtered!$AL$26),IF(ISBLANK(Personalize!$E$5),(((VLOOKUP($C13,Filtered!$A$1:$AB$626,11,FALSE))-Filtered!$AK$26)/Filtered!$AL$26)*0.5,""))),"") -> 1.956155157 | S13: =IFERROR(IF((OR($D13="RP",$D13="SP")),IF(Personalize!$E$14=TRUE,(((VLOOKUP($C13,'Filtered-P'!$A$1:$P$700,14,FALSE))-'Filtered-P'!$AF$20)/'Filtered-P'!$AG$20),IF(ISBLANK(Personalize!$E$14),(((VLOOKUP($C13,'Filtered-P'!$A$1:$P$700,14,FALSE))-'Filtered-P'!$AF$20)/'Filtered-P'!$AG$20)*0.5,"")),IF(Personalize!$E$6=TRUE,(((VLOOKUP($C13,Filtered!$A$1:$AB$626,12,FALSE))-Filtered!$AK$27)/Filtered!$AL$27),IF(ISBLANK(Personalize!$E$6),(((VLOOKUP($C13,Filtered!$A$1:$AB$626,12,FALSE))-Filtered!$AK$27)/Filtered!$AL$27)*0.5,""))),"") -> -0.7267427004 | T13: =IFERROR(IF((OR($D13="RP",$D13="SP")),IF(Personalize!$E$16=TRUE,(((VLOOKUP($C13,'Filtered-P'!$A$1:$P$700,3,FALSE))-'Filtered-P'!$AF$9)/'Filtered-P'!$AG$9),IF(ISBLANK(Personalize!$E$16),(((VLOOKUP($C13,'Filtered-P'!$A$1:$P$700,3,FALSE))-'Filtered-P'!$AF$9)/'Filtered-P'!$AG$9)*0.5,"")),IF(Personalize!$E$7=TRUE,(((VLOOKUP($C13,Filtered!$A$1:$BB$626,24,FALSE))-Filtered!$AK$37)/Filtered!$AL$37),IF(ISBLANK(Personalize!$E$7),(((VLOOKUP($C13,Filtered!$A$1:$BB$626,24,FALSE))-Filtered!$AK$37)/Filtered!$AL$37)*0.5,""))),"") -> 2.573405068 | U13: =IFERROR(IF((OR($D13="RP",$D13="SP")),IF(Personalize!$E$15=TRUE,(((VLOOKUP($C13,'Filtered-P'!$A$1:$P$700,15,FALSE))-'Filtered-P'!$AF$21)/'Filtered-P'!$AG$21),IF(ISBLANK(Personalize!$E$15),(((VLOOKUP($C13,'Filtered-P'!$A$1:$P$700,15,FALSE))-'Filtered-P'!$AF$21)/'Filtered-P'!$AG$21)*0.5,"")),IF(Personalize!$E$8=TRUE,(((VLOOKUP($C13,Filtered!$A$1:$BB$626,23,FALSE))-Filtered!$AK$36)/Filtered!$AL$36),IF(ISBLANK(Personalize!$E$8),(((VLOOKUP($C13,Filtered!$A$1:$BB$626,23,FALSE))-Filtered!$AK$36)/Filtered!$AL$36)*0.5,""))),"") ->  | V13: =IFERROR(IF((OR($D13="RP",$D13="SP")),IF(Personalize!$E$17=TRUE,(((VLOOKUP($C13,'Filtered-P'!$A$1:$P$700,16,FALSE))-'Filtered-P'!$AF$22)/'Filtered-P'!$AG$22),IF(ISBLANK(Personalize!$E$17),(((VLOOKUP($C13,'Filtered-P'!$A$1:$P$700,16,FALSE))-'Filtered-P'!$AF$22)/'Filtered-P'!$AG$22)*0.5,"")),IF(Personalize!$E$9=TRUE,(((VLOOKUP($C13,Filtered!$A$1:$BB$626,25,FALSE))-Filtered!$AK$38)/Filtered!$AL$38),IF(ISBLANK(Personalize!$E$9),(((VLOOKUP($C13,Filtered!$A$1:$BB$626,25,FALSE))-Filtered!$AK$38)/Filtered!$AL$38)*0.5,""))),"") ->  | W13: =IFERROR(IF((OR($D13="RP",$D13="SP")),IF(Personalize!$E$37=TRUE,(((VLOOKUP($C13,'Filtered-P'!$A$1:$Z$700,17,FALSE))-'Filtered-P'!$AF$25)/'Filtered-P'!$AG$25),IF(ISBLANK(Personalize!$E$37),(((VLOOKUP($C13,'Filtered-P'!$A$1:$Z$700,17,FALSE))-'Filtered-P'!$AF$25)/'Filtered-P'!$AG$25)*0.5,"")),IF(Personalize!$E$39=TRUE,(((VLOOKUP($C13,Filtered!$A$1:$X$626,14,FALSE))-Filtered!$AK$29)/Filtered!$AL$29),IF(ISBLANK(Personalize!$E$39),(((VLOOKUP($C13,Filtered!$A$1:$X$626,14,FALSE))-Filtered!$AK$29)/Filtered!$AL$29)*0.5,""))),"") ->  | X13: =IFERROR(IF((OR($D13="RP",$D13="SP")),IF(Personalize!$E$38=TRUE,(((VLOOKUP($C13,'Filtered-P'!$A$1:$Z$700,18,FALSE))-'Filtered-P'!$AF$26)/'Filtered-P'!$AG$26),IF(ISBLANK(Personalize!$E$38),(((VLOOKUP($C13,'Filtered-P'!$A$1:$Z$700,18,FALSE))-'Filtered-P'!$AF$26)/'Filtered-P'!$AG$26)*0.5,"")),IF(Personalize!$E$40=TRUE,(((VLOOKUP($C13,Filtered!$A$1:$X$626,6,FALSE))-Filtered!$AK$21)/Filtered!$AL$21),IF(ISBLANK(Personalize!$E$40),(((VLOOKUP($C13,Filtered!$A$1:$X$626,6,FALSE))-Filtered!$AK$21)/Filtered!$AL$21)*0.5,""))),"") ->  | Y13: =IFERROR(IF((OR($D13="RP",$D13="SP")),IF(Personalize!$E$45=TRUE,(((VLOOKUP($C13,'Filtered-P'!$A$1:$Z$700,4,FALSE))-'Filtered-P'!$AF$10)/'Filtered-P'!$AG$10),IF(ISBLANK(Personalize!$E$45),(((VLOOKUP($C13,'Filtered-P'!$A$1:$Z$700,4,FALSE))-'Filtered-P'!$AF$10)/'Filtered-P'!$AG$10)*0.5,"")),IF(Personalize!$E$41=TRUE,(((VLOOKUP($C13,Filtered!$A$1:$BB$626,20,FALSE))-Filtered!$AK$43)/Filtered!$AL$43),IF(ISBLANK(Personalize!$E$41),(((VLOOKUP($C13,Filtered!$A$1:$BB$626,20,FALSE))-Filtered!$AK$43)/Filtered!$AL$43)*0.5,""))),"") ->  | Z13: =IFERROR(IF((OR($D13="RP",$D13="SP")),IF(Personalize!$E$46=TRUE,(((VLOOKUP($C13,'Filtered-P'!$A$1:$Z$700,19,FALSE))-'Filtered-P'!$AF$27)/'Filtered-P'!$AG$27),IF(ISBLANK(Personalize!$E$46),(((VLOOKUP($C13,'Filtered-P'!$A$1:$Z$700,19,FALSE))-'Filtered-P'!$AF$27)/'Filtered-P'!$AG$27)*0.5,"")),IF(Personalize!$E$44=TRUE,(((VLOOKUP($C13,Filtered!$A$1:$BB$626,21,FALSE))-Filtered!$AK$44)/Filtered!$AL$44),IF(ISBLANK(Personalize!$E$44),(((VLOOKUP($C13,Filtered!$A$1:$BB$626,21,FALSE))-Filtered!$AK$44)/Filtered!$AL$44)*0.5,""))),"") ->  | AA13: =IFERROR(IF((OR($D13="RP",$D13="SP")),IF(Personalize!$E$47=TRUE,(((VLOOKUP($C13,'Filtered-P'!$A$1:$Z$700,6,FALSE))-'Filtered-P'!$AF$12)/'Filtered-P'!$AG$12),IF(ISBLANK(Personalize!$E$47),(((VLOOKUP($C13,'Filtered-P'!$A$1:$Z$700,6,FALSE))-'Filtered-P'!$AF$12)/'Filtered-P'!$AG$12)*0.5,"")),IF(Personalize!$E$42=TRUE,(((VLOOKUP($C13,Filtered!$A$1:$BB$626,8,FALSE))-Filtered!$AK$23)/Filtered!$AL$23),IF(ISBLANK(Personalize!$E$42),(((VLOOKUP($C13,Filtered!$A$1:$BB$626,8,FALSE))-Filtered!$AK$23)/Filtered!$AL$23)*0.5,""))),"") ->  | AB13: =IFERROR(IF((OR($D13="RP",$D13="SP")),IF(Personalize!$E$48=TRUE,(((VLOOKUP($C13,'Filtered-P'!$A$1:$Z$700,5,FALSE))-'Filtered-P'!$AF$11)/'Filtered-P'!$AG$11),IF(ISBLANK(Personalize!$E$48),(((VLOOKUP($C13,'Filtered-P'!$A$1:$Z$700,5,FALSE))-'Filtered-P'!$AF$11)/'Filtered-P'!$AG$11)*0.5,"")),IF(Personalize!$E$43=TRUE,(((VLOOKUP($C13,Filtered!$A$1:$BB$626,9,FALSE))-Filtered!$AK$24)/Filtered!$AL$24),IF(ISBLANK(Personalize!$E$43),(((VLOOKUP($C13,Filtered!$A$1:$BB$626,9,FALSE))-Filtered!$AK$24)/Filtered!$AL$24)*0.5,""))),"") ->  | AC13: =IFERROR(IF((OR($D13="RP",$D13="SP")),IF(Personalize!$E$52=TRUE,(((VLOOKUP($C13,'Filtered-P'!$A$1:$AD$700,21,FALSE))-'Filtered-P'!$AF$29)/(-1*'Filtered-P'!$AG$29)),IF(ISBLANK(Personalize!$E$52),(((VLOOKUP($C13,'Filtered-P'!$A$1:$AD$700,21,FALSE))-'Filtered-P'!$AF$29)/(-1*'Filtered-P'!$AG$29))*0.5,"")),IF(Personalize!$E$49=TRUE,(((VLOOKUP($C13,Filtered!$A$1:$AF$626,30,FALSE))-Filtered!$AK$45)/Filtered!$AL$45),IF(ISBLANK(Personalize!$E$49),(((VLOOKUP($C13,Filtered!$A$1:$AF$626,30,FALSE))-Filtered!$AK$45)/Filtered!$AL$45)*0.5,""))),"") ->  | AD13: =IFERROR(IF((OR($D13="RP",$D13="SP")),IF(Personalize!$E$53=TRUE,(((VLOOKUP($C13,'Filtered-P'!$A$1:$AD$700,23,FALSE))-'Filtered-P'!$AF$31)/(-1*'Filtered-P'!$AG$31)),IF(ISBLANK(Personalize!$E$53),(((VLOOKUP($C13,'Filtered-P'!$A$1:$AD$700,23,FALSE))-'Filtered-P'!$AF$31)/(-1*'Filtered-P'!$AG$31))*0.5,"")),IF(Personalize!$E$50=TRUE,(((VLOOKUP($C13,Filtered!$A$1:$AF$626,31,FALSE))-Filtered!$AK$46)/Filtered!$AL$46),IF(ISBLANK(Personalize!$E$50),(((VLOOKUP($C13,Filtered!$A$1:$AF$626,31,FALSE))-Filtered!$AK$46)/Filtered!$AL$46)*0.5,""))),"") ->  | AE13: =IFERROR(IF((OR($D13="RP",$D13="SP")),IF(Personalize!$E$54=TRUE,(((VLOOKUP($C13,'Filtered-P'!$A$1:$AD$700,24,FALSE))-'Filtered-P'!$AF$32)/'Filtered-P'!$AG$32),IF(ISBLANK(Personalize!$E$54),(((VLOOKUP($C13,'Filtered-P'!$A$1:$AD$700,24,FALSE))-'Filtered-P'!$AF$32)/'Filtered-P'!$AG$32)*0.5,"")),IF(Personalize!$E$51=TRUE,(((VLOOKUP($C13,Filtered!$A$1:$AF$626,15,FALSE))-Filtered!$AK$30)/(-1*Filtered!$AL$30)),IF(ISBLANK(Personalize!$E$51),(((VLOOKUP($C13,Filtered!$A$1:$AF$626,15,FALSE))-Filtered!$AK$30)/(-1*Filtered!$AL$30))*0.5,""))),"") ->  | AF13: =IFERROR(IF((OR($D13="RP",$D13="SP")),IF(Personalize!$E$56=TRUE,(((VLOOKUP($C13,'Filtered-P'!$A$1:$AD$700,29,FALSE))-'Filtered-P'!$AF$35)/'Filtered-P'!$AG$35),IF(ISBLANK(Personalize!$E$56),(((VLOOKUP($C13,'Filtered-P'!$A$1:$AD$700,29,FALSE))-'Filtered-P'!$AF$35)/'Filtered-P'!$AG$35)*0.5,"")),IF(Personalize!$E$60=TRUE,(((VLOOKUP($C13,Filtered!$A$1:$AF$626,7,FALSE))-Filtered!$AK$22)/Filtered!$AL$22),IF(ISBLANK(Personalize!$E$60),(((VLOOKUP($C13,Filtered!$A$1:$AF$626,7,FALSE))-Filtered!$AK$22)/Filtered!$AL$22)*0.5,""))),"") ->  | AG13: =IFERROR(IF((OR($D13="RP",$D13="SP")),IF(Personalize!$E$57=TRUE,(((VLOOKUP($C13,'Filtered-P'!$A$1:$AD$700,28,FALSE))-'Filtered-P'!$AF$34)/'Filtered-P'!$AG$34),IF(ISBLANK(Personalize!$E$57),(((VLOOKUP($C13,'Filtered-P'!$A$1:$AD$700,28,FALSE))-'Filtered-P'!$AF$34)/'Filtered-P'!$AG$34)*0.5,"")),IF(Personalize!$E$61=TRUE,(((VLOOKUP($C13,Filtered!$A$1:$AZ$626,34,FALSE))-Filtered!$AK$47)/Filtered!$AL$47),IF(ISBLANK(Personalize!$E$61),(((VLOOKUP($C13,Filtered!$A$1:$AZ$626,34,FALSE))-Filtered!$AK$47)/Filtered!$AL$47)*0.5,""))),"") ->  | AH13: =IFERROR(IF((OR($D13="RP",$D13="SP")),IF(Personalize!$E$58=TRUE,(((VLOOKUP($C13,'Filtered-P'!$A$1:$Z$700,8,FALSE))-'Filtered-P'!$AF$14)/'Filtered-P'!$AG$14),IF(ISBLANK(Personalize!$E$58),(((VLOOKUP($C13,'Filtered-P'!$A$1:$Z$700,8,FALSE))-'Filtered-P'!$AF$14)/'Filtered-P'!$AG$14)*0.5,"")),IF(Personalize!$E$62=TRUE,(((VLOOKUP($C13,Filtered!$A$1:$AF$626,13,FALSE))-Filtered!$AK$28)/(-1*Filtered!$AL$28)),IF(ISBLANK(Personalize!$E$62),(((VLOOKUP($C13,Filtered!$A$1:$AF$626,13,FALSE))-Filtered!$AK$28)/(-1*Filtered!$AL$28))*0.5,""))),"") ->  | AI13: =IFERROR(IF((OR($D13="RP",$D13="SP")),IF(Personalize!$E$59=TRUE,(((VLOOKUP($C13,'Filtered-P'!$A$1:$AD$700,27,FALSE))-'Filtered-P'!$AF$33)/'Filtered-P'!$AG$33),IF(ISBLANK(Personalize!$E$59),(((VLOOKUP($C13,'Filtered-P'!$A$1:$AD$700,27,FALSE))-'Filtered-P'!$AF$33)/'Filtered-P'!$AG$33)*0.5,"")),IF(Personalize!$E$63=TRUE,(((VLOOKUP($C13,Filtered!$A$1:$AZ$626,35,FALSE))-Filtered!$AK$48)/(-1*Filtered!$AL$48)),IF(ISBLANK(Personalize!$E$63),(((VLOOKUP($C13,Filtered!$A$1:$AZ$626,35,FALSE))-Filtered!$AK$48)/(-1*Filtered!$AL$48))*0.5,""))),"") ->  | AJ13: =IFERROR(IF((OR($D13="RP",$D13="SP")),VLOOKUP($C13,'Filtered-P'!$A$1:$P$580,2,FALSE),""),"") ->  | AK13: =IFERROR(IF((OR($D13="RP",$D13="SP")),VLOOKUP($C13,'Filtered-P'!$A$1:$P$580,9,FALSE),""),"") ->  | AL13: =IFERROR(IF((OR($D13="RP",$D13="SP")),VLOOKUP($C13,'Filtered-P'!$A$1:$P$580,7,FALSE),""),"") ->  | AM13: =IFERROR(IF((OR($D13="RP",$D13="SP")),VLOOKUP($C13,'Filtered-P'!$A$1:$P$580,10,FALSE),""),"") ->  | AN13: =IFERROR(IF((OR($D13="RP",$D13="SP")),VLOOKUP($C13,'Filtered-P'!$A$1:$P$580,11,FALSE),""),"") ->  | AO13: =IFERROR(IF((OR($D13="RP",$D13="SP")),"",VLOOKUP($C13,Filtered!$A$1:$X$600,16,FALSE)),"") -> 0.2893088866 | AP13: =IFERROR(IF((OR($D13="RP",$D13="SP")),"",VLOOKUP($C13,Filtered!$A$1:$X$600,10,FALSE)),"") -> 33.17051419 | AQ13: =IFERROR(IF((OR($D13="RP",$D13="SP")),"",VLOOKUP($C13,Filtered!$A$1:$X$600,11,FALSE)),"") -> 101.1947688 | AR13: =IFERROR(IF((OR($D13="RP",$D13="SP")),"",VLOOKUP($C13,Filtered!$A$1:$X$600,5,FALSE)),"") -> 85.28727846 | AS13: =IFERROR(IF((OR($D13="RP",$D13="SP")),"",VLOOKUP($C13,Filtered!$A$1:$X$600,12,FALSE)),"") -> 3.206493327 | AU13: =IF(ISBLANK(A13),0,1) -> 0 | AV13: =IF(M13="",0,1) -> 1 | AW13: =A13 -> 0 | AX13: =IF(D13="C",1,IF(D13="1B",2,IF(D13="2B",3,IF(D13="3B",4,IF(D13="SS",5,IF(D13="CI",6,IF(D13="MI",7,IF(D13="OF",11,IF(D13="LF",8,IF(D13="CF",9,IF(D13="RF",10,IF(D13="DH",12,IF(D13="SP",13,IF(D13="RP",14,IF(D13="P",15,16))))))))))))))) -> 4 | AY13: =VLOOKUP(C13,'Starter Calc'!$B$2:$BS$700,70,FALSE) -> Bench | AZ13: =VLOOKUP(C13,'Starter Calc'!$B$2:$AO$700,40,FALSE) -> Yes | BA13: =IFERROR(IF(ISTEXT($A13),"",IF((OR($D13="RP",$D13="SP")),ABS(VLOOKUP(D13,'Filtered-P'!$AE$3:$AI$4,5,FALSE))+M13,ABS(VLOOKUP(D13,Filtered!$AJ$3:$AN$14,5,FALSE))+M13)),"") -> 10.59181904 | BB13: =IFERROR(BA13+ABS($BA$4),"") -> 11.31564211 | BC13: =IF(AND($A13<>"",$B13<>""),B13,"N") -> N | BD13: =IFERROR(VLOOKUP($C13,'ADP-Rank'!$A$2:$AB$581,25,FALSE),TRUE) -> TRUE | BE13: =IFERROR((BB13-BB$3)^2,"") -> 41.89547135 | BF13: =VLOOKUP(C13,'Starter Calc'!$B$2:$CD$700,71,FALSE) -> 3B.Yes | BG13: =IFERROR(((Personalize!$A$1-(1*Personalize!$A$2))/Personalize!$A$2)*(N13/$BG$3)+1,"") -> 27.58706759 | BH13: 30.78522063 | BI13: 30.78522063
C14: Max Scherzer | D14: SP | E14: =IFERROR(IF(VLOOKUP(C14,'Starter Calc'!$B$2:$E$700,4,FALSE)="","",VLOOKUP(C14,'Starter Calc'!$B$2:$E$700,4,FALSE)),"") -> ,, | F14: =IFERROR(VLOOKUP($C14,'ADP-Rank'!$A$2:$G$581,5,FALSE),"") -> WAS | G14: =IFERROR(VLOOKUP($C14,'ADP-Rank'!$A$2:$X$581,6,FALSE),"") -> 31 | H14: =IFERROR(IF(ISBLANK($B14),"$"&(ROUND(BI14,0))&" | $"&ROUND(BH14,0),""),"") -> $30 | $30 | I14: =IFERROR(IF(RIGHT(D14,1)="P",J14*$BE$2,J14*$BE$1),"") -> 28.73333333 | J14: =IFERROR(CHOOSE(Personalize!$E$31,(VLOOKUP(C14,'ADP-Rank'!$A$2:$Z$581,7,FALSE)*(Personalize!$A$3)+1),(VLOOKUP(C14,'ADP-Rank'!$A$2:$Z$581,8,FALSE)*(Personalize!$A$3)+1),(VLOOKUP(C14,'ADP-Rank'!$A$2:$Z$581,9,FALSE)*(Personalize!$A$3)+1),(VLOOKUP(C14,'ADP-Rank'!$A$2:$AA$581,10,FALSE)*(Personalize!$A$3)+1),(VLOOKUP(C14,'ADP-Rank'!$A$2:$AA$581,11,FALSE)*(Personalize!$A$3)+1),(VLOOKUP(C14,'ADP-Rank'!$A$2:$AA$581,12,FALSE)*(Personalize!$A$3)+1),(VLOOKUP(C14,'ADP-Rank'!$A$2:$AA$581,13,FALSE)*(Personalize!$A$3)+1),(VLOOKUP(C14,'ADP-Rank'!$A$2:$AA$581,14,FALSE)*(Personalize!$A$3)+1),(VLOOKUP(C14,'ADP-Rank'!$A$2:$AA$581,15,FALSE)*(Personalize!$A$3)+1),(VLOOKUP(C14,'ADP-Rank'!$A$2:$AG$581,28,FALSE)*(Personalize!$A$3)+1)),"") -> 28.73333333 | K14: =VLOOKUP($C14,'ADP-Rank'!$A$2:$AB$581,26,FALSE) -> 16 | L14: =IFERROR(RANK($M14,$M$7:$M$746,0),"") -> 8 | M14: =IF((SUM(O14:AI14)=0),"",SUM(O14:AI14)) -> 8.036130828 | N14: =IFERROR(IF((OR($D14="RP",$D14="SP")),ABS(VLOOKUP(D14,'Filtered-P'!$AE$3:$AI$4,5,FALSE))+M14,ABS(VLOOKUP(D14,Filtered!$AJ$3:$AN$14,5,FALSE))+M14),"") -> 11.14954177 | O14: =IFERROR(IF((OR($D14="RP",$D14="SP")),IF(Personalize!$E$10=TRUE,(((VLOOKUP($C14,'Filtered-P'!$A$1:$P$700,2,FALSE))-'Filtered-P'!$AF$8)/'Filtered-P'!$AG$8),IF(ISBLANK(Personalize!$E$10),(((VLOOKUP($C14,'Filtered-P'!$A$1:$P$700,2,FALSE))-'Filtered-P'!$AF$8)/'Filtered-P'!$AG$8)*0.5,"")),IF(Personalize!$E$4=TRUE,(((VLOOKUP($C14,Filtered!$A$1:$X$626,22,FALSE))-Filtered!$AK$35)/Filtered!$AL$35),IF(ISBLANK(Personalize!$E$4),(((VLOOKUP($C14,Filtered!$A$1:$X$626,22,FALSE))-Filtered!$AK$35)/Filtered!$AL$35)*0.5,""))),"") -> 1.565578061 | P14: =IFERROR(IF((OR($D14="RP",$D14="SP")),IF(Personalize!$E$12=TRUE,(((VLOOKUP($C14,'Filtered-P'!$A$1:$P$700,9,FALSE))-'Filtered-P'!$AF$15)/'Filtered-P'!$AG$15),IF(ISBLANK(Personalize!$E$12),(((VLOOKUP($C14,'Filtered-P'!$A$1:$P$700,9,FALSE))-'Filtered-P'!$AF$15)/'Filtered-P'!$AG$15)*0.5,"")),IF(Personalize!$E$3=TRUE,(((VLOOKUP($C14,Filtered!$A$1:$AB$626,10,FALSE))-Filtered!$AK$25)/Filtered!$AL$25),IF(ISBLANK(Personalize!$E$3),(((VLOOKUP($C14,Filtered!$A$1:$AB$626,10,FALSE))-Filtered!$AK$25)/Filtered!$AL$25)*0.5,""))),"") -> -0.4827187472 | Q14: =IFERROR(IF((OR($D14="RP",$D14="SP")),IF(Personalize!$E$11=TRUE,(((VLOOKUP($C14,'Filtered-P'!$A$1:$P$700,7,FALSE))-'Filtered-P'!$AF$13)/'Filtered-P'!$AG$13),IF(ISBLANK(Personalize!$E$11),(((VLOOKUP($C14,'Filtered-P'!$A$1:$P$700,7,FALSE))-'Filtered-P'!$AF$13)/'Filtered-P'!$AG$13)*0.5,"")),IF(Personalize!$E$2=TRUE,(((VLOOKUP($C14,Filtered!$A$1:$AB$626,5,FALSE))-Filtered!$AK$20)/Filtered!$AL$20),IF(ISBLANK(Personalize!$E$2),(((VLOOKUP($C14,Filtered!$A$1:$AB$626,5,FALSE))-Filtered!$AK$20)/Filtered!$AL$20)*0.5,""))),"") -> 2.082278794 | R14: =IFERROR(IF((OR($D14="RP",$D14="SP")),IF(Personalize!$E$13=TRUE,(((VLOOKUP($C14,'Filtered-P'!$A$1:$P$700,13,FALSE))-'Filtered-P'!$AF$19)/'Filtered-P'!$AG$19),IF(ISBLANK(Personalize!$E$13),(((VLOOKUP($C14,'Filtered-P'!$A$1:$P$700,13,FALSE))-'Filtered-P'!$AF$19)/'Filtered-P'!$AG$19)*0.5,"")),IF(Personalize!$E$5=TRUE,(((VLOOKUP($C14,Filtered!$A$1:$AB$626,11,FALSE))-Filtered!$AK$26)/Filtered!$AL$26),IF(ISBLANK(Personalize!$E$5),(((VLOOKUP($C14,Filtered!$A$1:$AB$626,11,FALSE))-Filtered!$AK$26)/Filtered!$AL$26)*0.5,""))),"") -> 2.2276678 | S14: =IFERROR(IF((OR($D14="RP",$D14="SP")),IF(Personalize!$E$14=TRUE,(((VLOOKUP($C14,'Filtered-P'!$A$1:$P$700,14,FALSE))-'Filtered-P'!$AF$20)/'Filtered-P'!$AG$20),IF(ISBLANK(Personalize!$E$14),(((VLOOKUP($C14,'Filtered-P'!$A$1:$P$700,14,FALSE))-'Filtered-P'!$AF$20)/'Filtered-P'!$AG$20)*0.5,"")),IF(Personalize!$E$6=TRUE,(((VLOOKUP($C14,Filtered!$A$1:$AB$626,12,FALSE))-Filtered!$AK$27)/Filtered!$AL$27),IF(ISBLANK(Personalize!$E$6),(((VLOOKUP($C14,Filtered!$A$1:$AB$626,12,FALSE))-Filtered!$AK$27)/Filtered!$AL$27)*0.5,""))),"") -> 2.64332492 | T14: =IFERROR(IF((OR($D14="RP",$D14="SP")),IF(Personalize!$E$16=TRUE,(((VLOOKUP($C14,'Filtered-P'!$A$1:$P$700,3,FALSE))-'Filtered-P'!$AF$9)/'Filtered-P'!$AG$9),IF(ISBLANK(Personalize!$E$16),(((VLOOKUP($C14,'Filtered-P'!$A$1:$P$700,3,FALSE))-'Filtered-P'!$AF$9)/'Filtered-P'!$AG$9)*0.5,"")),IF(Personalize!$E$7=TRUE,(((VLOOKUP($C14,Filtered!$A$1:$BB$626,24,FALSE))-Filtered!$AK$37)/Filtered!$AL$37),IF(ISBLANK(Personalize!$E$7),(((VLOOKUP($C14,Filtered!$A$1:$BB$626,24,FALSE))-Filtered!$AK$37)/Filtered!$AL$37)*0.5,""))),"") ->  | U14: =IFERROR(IF((OR($D14="RP",$D14="SP")),IF(Personalize!$E$15=TRUE,(((VLOOKUP($C14,'Filtered-P'!$A$1:$P$700,15,FALSE))-'Filtered-P'!$AF$21)/'Filtered-P'!$AG$21),IF(ISBLANK(Personalize!$E$15),(((VLOOKUP($C14,'Filtered-P'!$A$1:$P$700,15,FALSE))-'Filtered-P'!$AF$21)/'Filtered-P'!$AG$21)*0.5,"")),IF(Personalize!$E$8=TRUE,(((VLOOKUP($C14,Filtered!$A$1:$BB$626,23,FALSE))-Filtered!$AK$36)/Filtered!$AL$36),IF(ISBLANK(Personalize!$E$8),(((VLOOKUP($C14,Filtered!$A$1:$BB$626,23,FALSE))-Filtered!$AK$36)/Filtered!$AL$36)*0.5,""))),"") ->  | V14: =IFERROR(IF((OR($D14="RP",$D14="SP")),IF(Personalize!$E$17=TRUE,(((VLOOKUP($C14,'Filtered-P'!$A$1:$P$700,16,FALSE))-'Filtered-P'!$AF$22)/'Filtered-P'!$AG$22),IF(ISBLANK(Personalize!$E$17),(((VLOOKUP($C14,'Filtered-P'!$A$1:$P$700,16,FALSE))-'Filtered-P'!$AF$22)/'Filtered-P'!$AG$22)*0.5,"")),IF(Personalize!$E$9=TRUE,(((VLOOKUP($C14,Filtered!$A$1:$BB$626,25,FALSE))-Filtered!$AK$38)/Filtered!$AL$38),IF(ISBLANK(Personalize!$E$9),(((VLOOKUP($C14,Filtered!$A$1:$BB$626,25,FALSE))-Filtered!$AK$38)/Filtered!$AL$38)*0.5,""))),"") ->  | W14: =IFERROR(IF((OR($D14="RP",$D14="SP")),IF(Personalize!$E$37=TRUE,(((VLOOKUP($C14,'Filtered-P'!$A$1:$Z$700,17,FALSE))-'Filtered-P'!$AF$25)/'Filtered-P'!$AG$25),IF(ISBLANK(Personalize!$E$37),(((VLOOKUP($C14,'Filtered-P'!$A$1:$Z$700,17,FALSE))-'Filtered-P'!$AF$25)/'Filtered-P'!$AG$25)*0.5,"")),IF(Personalize!$E$39=TRUE,(((VLOOKUP($C14,Filtered!$A$1:$X$626,14,FALSE))-Filtered!$AK$29)/Filtered!$AL$29),IF(ISBLANK(Personalize!$E$39),(((VLOOKUP($C14,Filtered!$A$1:$X$626,14,FALSE))-Filtered!$AK$29)/Filtered!$AL$29)*0.5,""))),"") ->  | X14: =IFERROR(IF((OR($D14="RP",$D14="SP")),IF(Personalize!$E$38=TRUE,(((VLOOKUP($C14,'Filtered-P'!$A$1:$Z$700,18,FALSE))-'Filtered-P'!$AF$26)/'Filtered-P'!$AG$26),IF(ISBLANK(Personalize!$E$38),(((VLOOKUP($C14,'Filtered-P'!$A$1:$Z$700,18,FALSE))-'Filtered-P'!$AF$26)/'Filtered-P'!$AG$26)*0.5,"")),IF(Personalize!$E$40=TRUE,(((VLOOKUP($C14,Filtered!$A$1:$X$626,6,FALSE))-Filtered!$AK$21)/Filtered!$AL$21),IF(ISBLANK(Personalize!$E$40),(((VLOOKUP($C14,Filtered!$A$1:$X$626,6,FALSE))-Filtered!$AK$21)/Filtered!$AL$21)*0.5,""))),"") ->  | Y14: =IFERROR(IF((OR($D14="RP",$D14="SP")),IF(Personalize!$E$45=TRUE,(((VLOOKUP($C14,'Filtered-P'!$A$1:$Z$700,4,FALSE))-'Filtered-P'!$AF$10)/'Filtered-P'!$AG$10),IF(ISBLANK(Personalize!$E$45),(((VLOOKUP($C14,'Filtered-P'!$A$1:$Z$700,4,FALSE))-'Filtered-P'!$AF$10)/'Filtered-P'!$AG$10)*0.5,"")),IF(Personalize!$E$41=TRUE,(((VLOOKUP($C14,Filtered!$A$1:$BB$626,20,FALSE))-Filtered!$AK$43)/Filtered!$AL$43),IF(ISBLANK(Personalize!$E$41),(((VLOOKUP($C14,Filtered!$A$1:$BB$626,20,FALSE))-Filtered!$AK$43)/Filtered!$AL$43)*0.5,""))),"") ->  | Z14: =IFERROR(IF((OR($D14="RP",$D14="SP")),IF(Personalize!$E$46=TRUE,(((VLOOKUP($C14,'Filtered-P'!$A$1:$Z$700,19,FALSE))-'Filtered-P'!$AF$27)/'Filtered-P'!$AG$27),IF(ISBLANK(Personalize!$E$46),(((VLOOKUP($C14,'Filtered-P'!$A$1:$Z$700,19,FALSE))-'Filtered-P'!$AF$27)/'Filtered-P'!$AG$27)*0.5,"")),IF(Personalize!$E$44=TRUE,(((VLOOKUP($C14,Filtered!$A$1:$BB$626,21,FALSE))-Filtered!$AK$44)/Filtered!$AL$44),IF(ISBLANK(Personalize!$E$44),(((VLOOKUP($C14,Filtered!$A$1:$BB$626,21,FALSE))-Filtered!$AK$44)/Filtered!$AL$44)*0.5,""))),"") ->  | AA14: =IFERROR(IF((OR($D14="RP",$D14="SP")),IF(Personalize!$E$47=TRUE,(((VLOOKUP($C14,'Filtered-P'!$A$1:$Z$700,6,FALSE))-'Filtered-P'!$AF$12)/'Filtered-P'!$AG$12),IF(ISBLANK(Personalize!$E$47),(((VLOOKUP($C14,'Filtered-P'!$A$1:$Z$700,6,FALSE))-'Filtered-P'!$AF$12)/'Filtered-P'!$AG$12)*0.5,"")),IF(Personalize!$E$42=TRUE,(((VLOOKUP($C14,Filtered!$A$1:$BB$626,8,FALSE))-Filtered!$AK$23)/Filtered!$AL$23),IF(ISBLANK(Personalize!$E$42),(((VLOOKUP($C14,Filtered!$A$1:$BB$626,8,FALSE))-Filtered!$AK$23)/Filtered!$AL$23)*0.5,""))),"") ->  | AB14: =IFERROR(IF((OR($D14="RP",$D14="SP")),IF(Personalize!$E$48=TRUE,(((VLOOKUP($C14,'Filtered-P'!$A$1:$Z$700,5,FALSE))-'Filtered-P'!$AF$11)/'Filtered-P'!$AG$11),IF(ISBLANK(Personalize!$E$48),(((VLOOKUP($C14,'Filtered-P'!$A$1:$Z$700,5,FALSE))-'Filtered-P'!$AF$11)/'Filtered-P'!$AG$11)*0.5,"")),IF(Personalize!$E$43=TRUE,(((VLOOKUP($C14,Filtered!$A$1:$BB$626,9,FALSE))-Filtered!$AK$24)/Filtered!$AL$24),IF(ISBLANK(Personalize!$E$43),(((VLOOKUP($C14,Filtered!$A$1:$BB$626,9,FALSE))-Filtered!$AK$24)/Filtered!$AL$24)*0.5,""))),"") ->  | AC14: =IFERROR(IF((OR($D14="RP",$D14="SP")),IF(Personalize!$E$52=TRUE,(((VLOOKUP($C14,'Filtered-P'!$A$1:$AD$700,21,FALSE))-'Filtered-P'!$AF$29)/(-1*'Filtered-P'!$AG$29)),IF(ISBLANK(Personalize!$E$52),(((VLOOKUP($C14,'Filtered-P'!$A$1:$AD$700,21,FALSE))-'Filtered-P'!$AF$29)/(-1*'Filtered-P'!$AG$29))*0.5,"")),IF(Personalize!$E$49=TRUE,(((VLOOKUP($C14,Filtered!$A$1:$AF$626,30,FALSE))-Filtered!$AK$45)/Filtered!$AL$45),IF(ISBLANK(Personalize!$E$49),(((VLOOKUP($C14,Filtered!$A$1:$AF$626,30,FALSE))-Filtered!$AK$45)/Filtered!$AL$45)*0.5,""))),"") ->  | AD14: =IFERROR(IF((OR($D14="RP",$D14="SP")),IF(Personalize!$E$53=TRUE,(((VLOOKUP($C14,'Filtered-P'!$A$1:$AD$700,23,FALSE))-'Filtered-P'!$AF$31)/(-1*'Filtered-P'!$AG$31)),IF(ISBLANK(Personalize!$E$53),(((VLOOKUP($C14,'Filtered-P'!$A$1:$AD$700,23,FALSE))-'Filtered-P'!$AF$31)/(-1*'Filtered-P'!$AG$31))*0.5,"")),IF(Personalize!$E$50=TRUE,(((VLOOKUP($C14,Filtered!$A$1:$AF$626,31,FALSE))-Filtered!$AK$46)/Filtered!$AL$46),IF(ISBLANK(Personalize!$E$50),(((VLOOKUP($C14,Filtered!$A$1:$AF$626,31,FALSE))-Filtered!$AK$46)/Filtered!$AL$46)*0.5,""))),"") ->  | AE14: =IFERROR(IF((OR($D14="RP",$D14="SP")),IF(Personalize!$E$54=TRUE,(((VLOOKUP($C14,'Filtered-P'!$A$1:$AD$700,24,FALSE))-'Filtered-P'!$AF$32)/'Filtered-P'!$AG$32),IF(ISBLANK(Personalize!$E$54),(((VLOOKUP($C14,'Filtered-P'!$A$1:$AD$700,24,FALSE))-'Filtered-P'!$AF$32)/'Filtered-P'!$AG$32)*0.5,"")),IF(Personalize!$E$51=TRUE,(((VLOOKUP($C14,Filtered!$A$1:$AF$626,15,FALSE))-Filtered!$AK$30)/(-1*Filtered!$AL$30)),IF(ISBLANK(Personalize!$E$51),(((VLOOKUP($C14,Filtered!$A$1:$AF$626,15,FALSE))-Filtered!$AK$30)/(-1*Filtered!$AL$30))*0.5,""))),"") ->  | AF14: =IFERROR(IF((OR($D14="RP",$D14="SP")),IF(Personalize!$E$56=TRUE,(((VLOOKUP($C14,'Filtered-P'!$A$1:$AD$700,29,FALSE))-'Filtered-P'!$AF$35)/'Filtered-P'!$AG$35),IF(ISBLANK(Personalize!$E$56),(((VLOOKUP($C14,'Filtered-P'!$A$1:$AD$700,29,FALSE))-'Filtered-P'!$AF$35)/'Filtered-P'!$AG$35)*0.5,"")),IF(Personalize!$E$60=TRUE,(((VLOOKUP($C14,Filtered!$A$1:$AF$626,7,FALSE))-Filtered!$AK$22)/Filtered!$AL$22),IF(ISBLANK(Personalize!$E$60),(((VLOOKUP($C14,Filtered!$A$1:$AF$626,7,FALSE))-Filtered!$AK$22)/Filtered!$AL$22)*0.5,""))),"") ->  | AG14: =IFERROR(IF((OR($D14="RP",$D14="SP")),IF(Personalize!$E$57=TRUE,(((VLOOKUP($C14,'Filtered-P'!$A$1:$AD$700,28,FALSE))-'Filtered-P'!$AF$34)/'Filtered-P'!$AG$34),IF(ISBLANK(Personalize!$E$57),(((VLOOKUP($C14,'Filtered-P'!$A$1:$AD$700,28,FALSE))-'Filtered-P'!$AF$34)/'Filtered-P'!$AG$34)*0.5,"")),IF(Personalize!$E$61=TRUE,(((VLOOKUP($C14,Filtered!$A$1:$AZ$626,34,FALSE))-Filtered!$AK$47)/Filtered!$AL$47),IF(ISBLANK(Personalize!$E$61),(((VLOOKUP($C14,Filtered!$A$1:$AZ$626,34,FALSE))-Filtered!$AK$47)/Filtered!$AL$47)*0.5,""))),"") ->  | AH14: =IFERROR(IF((OR($D14="RP",$D14="SP")),IF(Personalize!$E$58=TRUE,(((VLOOKUP($C14,'Filtered-P'!$A$1:$Z$700,8,FALSE))-'Filtered-P'!$AF$14)/'Filtered-P'!$AG$14),IF(ISBLANK(Personalize!$E$58),(((VLOOKUP($C14,'Filtered-P'!$A$1:$Z$700,8,FALSE))-'Filtered-P'!$AF$14)/'Filtered-P'!$AG$14)*0.5,"")),IF(Personalize!$E$62=TRUE,(((VLOOKUP($C14,Filtered!$A$1:$AF$626,13,FALSE))-Filtered!$AK$28)/(-1*Filtered!$AL$28)),IF(ISBLANK(Personalize!$E$62),(((VLOOKUP($C14,Filtered!$A$1:$AF$626,13,FALSE))-Filtered!$AK$28)/(-1*Filtered!$AL$28))*0.5,""))),"") ->  | AI14: =IFERROR(IF((OR($D14="RP",$D14="SP")),IF(Personalize!$E$59=TRUE,(((VLOOKUP($C14,'Filtered-P'!$A$1:$AD$700,27,FALSE))-'Filtered-P'!$AF$33)/'Filtered-P'!$AG$33),IF(ISBLANK(Personalize!$E$59),(((VLOOKUP($C14,'Filtered-P'!$A$1:$AD$700,27,FALSE))-'Filtered-P'!$AF$33)/'Filtered-P'!$AG$33)*0.5,"")),IF(Personalize!$E$63=TRUE,(((VLOOKUP($C14,Filtered!$A$1:$AZ$626,35,FALSE))-Filtered!$AK$48)/(-1*Filtered!$AL$48)),IF(ISBLANK(Personalize!$E$63),(((VLOOKUP($C14,Filtered!$A$1:$AZ$626,35,FALSE))-Filtered!$AK$48)/(-1*Filtered!$AL$48))*0.5,""))),"") ->  | AJ14: =IFERROR(IF((OR($D14="RP",$D14="SP")),VLOOKUP($C14,'Filtered-P'!$A$1:$P$580,2,FALSE),""),"") -> 15.78304703 | AK14: =IFERROR(IF((OR($D14="RP",$D14="SP")),VLOOKUP($C14,'Filtered-P'!$A$1:$P$580,9,FALSE),""),"") -> 0 | AL14: =IFERROR(IF((OR($D14="RP",$D14="SP")),VLOOKUP($C14,'Filtered-P'!$A$1:$P$580,7,FALSE),""),"") -> 247.1080049 | AM14: =IFERROR(IF((OR($D14="RP",$D14="SP")),VLOOKUP($C14,'Filtered-P'!$A$1:$P$580,10,FALSE),""),"") -> 2.805819041 | AN14: =IFERROR(IF((OR($D14="RP",$D14="SP")),VLOOKUP($C14,'Filtered-P'!$A$1:$P$580,11,FALSE),""),"") -> 1.034583591 | AO14: =IFERROR(IF((OR($D14="RP",$D14="SP")),"",VLOOKUP($C14,Filtered!$A$1:$X$600,16,FALSE)),"") ->  | AP14: =IFERROR(IF((OR($D14="RP",$D14="SP")),"",VLOOKUP($C14,Filtered!$A$1:$X$600,10,FALSE)),"") ->  | AQ14: =IFERROR(IF((OR($D14="RP",$D14="SP")),"",VLOOKUP($C14,Filtered!$A$1:$X$600,11,FALSE)),"") ->  | AR14: =IFERROR(IF((OR($D14="RP",$D14="SP")),"",VLOOKUP($C14,Filtered!$A$1:$X$600,5,FALSE)),"") ->  | AS14: =IFERROR(IF((OR($D14="RP",$D14="SP")),"",VLOOKUP($C14,Filtered!$A$1:$X$600,12,FALSE)),"") ->  | AU14: =IF(ISBLANK(A14),0,1) -> 0 | AV14: =IF(M14="",0,1) -> 1 | AW14: =A14 -> 0 | AX14: =IF(D14="C",1,IF(D14="1B",2,IF(D14="2B",3,IF(D14="3B",4,IF(D14="SS",5,IF(D14="CI",6,IF(D14="MI",7,IF(D14="OF",11,IF(D14="LF",8,IF(D14="CF",9,IF(D14="RF",10,IF(D14="DH",12,IF(D14="SP",13,IF(D14="RP",14,IF(D14="P",15,16))))))))))))))) -> 13 | AY14: =VLOOKUP(C14,'Starter Calc'!$B$2:$BS$700,70,FALSE) -> Bench | AZ14: =VLOOKUP(C14,'Starter Calc'!$B$2:$AO$700,40,FALSE) -> Yes | BA14: =IFERROR(IF(ISTEXT($A14),"",IF((OR($D14="RP",$D14="SP")),ABS(VLOOKUP(D14,'Filtered-P'!$AE$3:$AI$4,5,FALSE))+M14,ABS(VLOOKUP(D14,Filtered!$AJ$3:$AN$14,5,FALSE))+M14)),"") -> 11.14954177 | BB14: =IFERROR(BA14+ABS($BA$4),"") -> 11.87336485 | BC14: =IF(AND($A14<>"",$B14<>""),B14,"N") -> N | BD14: =IFERROR(VLOOKUP($C14,'ADP-Rank'!$A$2:$AB$581,25,FALSE),TRUE) -> TRUE | BE14: =IFERROR((BB14-BB$3)^2,"") -> 49.42643771 | BF14: =VLOOKUP(C14,'Starter Calc'!$B$2:$CD$700,71,FALSE) -> SP.No | BG14: =IFERROR(((Personalize!$A$1-(1*Personalize!$A$2))/Personalize!$A$2)*(N14/$BG$3)+1,"") -> 28.98703601 | BH14: 29.92188062 | BI14: 29.92188062
C15: Andrew McCutchen | D15: OF | E15: =IFERROR(IF(VLOOKUP(C15,'Starter Calc'!$B$2:$E$700,4,FALSE)="","",VLOOKUP(C15,'Starter Calc'!$B$2:$E$700,4,FALSE)),"") -> ,CF, | F15: =IFERROR(VLOOKUP($C15,'ADP-Rank'!$A$2:$G$581,5,FALSE),"") -> PIT | G15: =IFERROR(VLOOKUP($C15,'ADP-Rank'!$A$2:$X$581,6,FALSE),"") -> 29 | H15: =IFERROR(IF(ISBLANK($B15),"$"&(ROUND(BI15,0))&" | $"&ROUND(BH15,0),""),"") -> $34 | $34 | I15: =IFERROR(IF(RIGHT(D15,1)="P",J15*$BE$2,J15*$BE$1),"") -> 33.06666667 | J15: =IFERROR(CHOOSE(Personalize!$E$31,(VLOOKUP(C15,'ADP-Rank'!$A$2:$Z$581,7,FALSE)*(Personalize!$A$3)+1),(VLOOKUP(C15,'ADP-Rank'!$A$2:$Z$581,8,FALSE)*(Personalize!$A$3)+1),(VLOOKUP(C15,'ADP-Rank'!$A$2:$Z$581,9,FALSE)*(Personalize!$A$3)+1),(VLOOKUP(C15,'ADP-Rank'!$A$2:$AA$581,10,FALSE)*(Personalize!$A$3)+1),(VLOOKUP(C15,'ADP-Rank'!$A$2:$AA$581,11,FALSE)*(Personalize!$A$3)+1),(VLOOKUP(C15,'ADP-Rank'!$A$2:$AA$581,12,FALSE)*(Personalize!$A$3)+1),(VLOOKUP(C15,'ADP-Rank'!$A$2:$AA$581,13,FALSE)*(Personalize!$A$3)+1),(VLOOKUP(C15,'ADP-Rank'!$A$2:$AA$581,14,FALSE)*(Personalize!$A$3)+1),(VLOOKUP(C15,'ADP-Rank'!$A$2:$AA$581,15,FALSE)*(Personalize!$A$3)+1),(VLOOKUP(C15,'ADP-Rank'!$A$2:$AG$581,28,FALSE)*(Personalize!$A$3)+1)),"") -> 33.06666667 | K15: =VLOOKUP($C15,'ADP-Rank'!$A$2:$AB$581,26,FALSE) -> 9 | L15: =IFERROR(RANK($M15,$M$7:$M$746,0),"") -> 9 | M15: =IF((SUM(O15:AI15)=0),"",SUM(O15:AI15)) -> 7.61845692 | N15: =IFERROR(IF((OR($D15="RP",$D15="SP")),ABS(VLOOKUP(D15,'Filtered-P'!$AE$3:$AI$4,5,FALSE))+M15,ABS(VLOOKUP(D15,Filtered!$AJ$3:$AN$14,5,FALSE))+M15),"") -> 11.58814006 | O15: =IFERROR(IF((OR($D15="RP",$D15="SP")),IF(Personalize!$E$10=TRUE,(((VLOOKUP($C15,'Filtered-P'!$A$1:$P$700,2,FALSE))-'Filtered-P'!$AF$8)/'Filtered-P'!$AG$8),IF(ISBLANK(Personalize!$E$10),(((VLOOKUP($C15,'Filtered-P'!$A$1:$P$700,2,FALSE))-'Filtered-P'!$AF$8)/'Filtered-P'!$AG$8)*0.5,"")),IF(Personalize!$E$4=TRUE,(((VLOOKUP($C15,Filtered!$A$1:$X$626,22,FALSE))-Filtered!$AK$35)/Filtered!$AL$35),IF(ISBLANK(Personalize!$E$4),(((VLOOKUP($C15,Filtered!$A$1:$X$626,22,FALSE))-Filtered!$AK$35)/Filtered!$AL$35)*0.5,""))),"") -> 1.945912194 | P15: =IFERROR(IF((OR($D15="RP",$D15="SP")),IF(Personalize!$E$12=TRUE,(((VLOOKUP($C15,'Filtered-P'!$A$1:$P$700,9,FALSE))-'Filtered-P'!$AF$15)/'Filtered-P'!$AG$15),IF(ISBLANK(Personalize!$E$12),(((VLOOKUP($C15,'Filtered-P'!$A$1:$P$700,9,FALSE))-'Filtered-P'!$AF$15)/'Filtered-P'!$AG$15)*0.5,"")),IF(Personalize!$E$3=TRUE,(((VLOOKUP($C15,Filtered!$A$1:$AB$626,10,FALSE))-Filtered!$AK$25)/Filtered!$AL$25),IF(ISBLANK(Personalize!$E$3),(((VLOOKUP($C15,Filtered!$A$1:$AB$626,10,FALSE))-Filtered!$AK$25)/Filtered!$AL$25)*0.5,""))),"") -> 0.6771913696 | Q15: =IFERROR(IF((OR($D15="RP",$D15="SP")),IF(Personalize!$E$11=TRUE,(((VLOOKUP($C15,'Filtered-P'!$A$1:$P$700,7,FALSE))-'Filtered-P'!$AF$13)/'Filtered-P'!$AG$13),IF(ISBLANK(Personalize!$E$11),(((VLOOKUP($C15,'Filtered-P'!$A$1:$P$700,7,FALSE))-'Filtered-P'!$AF$13)/'Filtered-P'!$AG$13)*0.5,"")),IF(Personalize!$E$2=TRUE,(((VLOOKUP($C15,Filtered!$A$1:$AB$626,5,FALSE))-Filtered!$AK$20)/Filtered!$AL$20),IF(ISBLANK(Personalize!$E$2),(((VLOOKUP($C15,Filtered!$A$1:$AB$626,5,FALSE))-Filtered!$AK$20)/Filtered!$AL$20)*0.5,""))),"") -> 1.509357386 | R15: =IFERROR(IF((OR($D15="RP",$D15="SP")),IF(Personalize!$E$13=TRUE,(((VLOOKUP($C15,'Filtered-P'!$A$1:$P$700,13,FALSE))-'Filtered-P'!$AF$19)/'Filtered-P'!$AG$19),IF(ISBLANK(Personalize!$E$13),(((VLOOKUP($C15,'Filtered-P'!$A$1:$P$700,13,FALSE))-'Filtered-P'!$AF$19)/'Filtered-P'!$AG$19)*0.5,"")),IF(Personalize!$E$5=TRUE,(((VLOOKUP($C15,Filtered!$A$1:$AB$626,11,FALSE))-Filtered!$AK$26)/Filtered!$AL$26),IF(ISBLANK(Personalize!$E$5),(((VLOOKUP($C15,Filtered!$A$1:$AB$626,11,FALSE))-Filtered!$AK$26)/Filtered!$AL$26)*0.5,""))),"") -> 1.377928441 | S15: =IFERROR(IF((OR($D15="RP",$D15="SP")),IF(Personalize!$E$14=TRUE,(((VLOOKUP($C15,'Filtered-P'!$A$1:$P$700,14,FALSE))-'Filtered-P'!$AF$20)/'Filtered-P'!$AG$20),IF(ISBLANK(Personalize!$E$14),(((VLOOKUP($C15,'Filtered-P'!$A$1:$P$700,14,FALSE))-'Filtered-P'!$AF$20)/'Filtered-P'!$AG$20)*0.5,"")),IF(Personalize!$E$6=TRUE,(((VLOOKUP($C15,Filtered!$A$1:$AB$626,12,FALSE))-Filtered!$AK$27)/Filtered!$AL$27),IF(ISBLANK(Personalize!$E$6),(((VLOOKUP($C15,Filtered!$A$1:$AB$626,12,FALSE))-Filtered!$AK$27)/Filtered!$AL$27)*0.5,""))),"") -> 0.621222434 | T15: =IFERROR(IF((OR($D15="RP",$D15="SP")),IF(Personalize!$E$16=TRUE,(((VLOOKUP($C15,'Filtered-P'!$A$1:$P$700,3,FALSE))-'Filtered-P'!$AF$9)/'Filtered-P'!$AG$9),IF(ISBLANK(Personalize!$E$16),(((VLOOKUP($C15,'Filtered-P'!$A$1:$P$700,3,FALSE))-'Filtered-P'!$AF$9)/'Filtered-P'!$AG$9)*0.5,"")),IF(Personalize!$E$7=TRUE,(((VLOOKUP($C15,Filtered!$A$1:$BB$626,24,FALSE))-Filtered!$AK$37)/Filtered!$AL$37),IF(ISBLANK(Personalize!$E$7),(((VLOOKUP($C15,Filtered!$A$1:$BB$626,24,FALSE))-Filtered!$AK$37)/Filtered!$AL$37)*0.5,""))),"") -> 1.486845096 | U15: =IFERROR(IF((OR($D15="RP",$D15="SP")),IF(Personalize!$E$15=TRUE,(((VLOOKUP($C15,'Filtered-P'!$A$1:$P$700,15,FALSE))-'Filtered-P'!$AF$21)/'Filtered-P'!$AG$21),IF(ISBLANK(Personalize!$E$15),(((VLOOKUP($C15,'Filtered-P'!$A$1:$P$700,15,FALSE))-'Filtered-P'!$AF$21)/'Filtered-P'!$AG$21)*0.5,"")),IF(Personalize!$E$8=TRUE,(((VLOOKUP($C15,Filtered!$A$1:$BB$626,23,FALSE))-Filtered!$AK$36)/Filtered!$AL$36),IF(ISBLANK(Personalize!$E$8),(((VLOOKUP($C15,Filtered!$A$1:$BB$626,23,FALSE))-Filtered!$AK$36)/Filtered!$AL$36)*0.5,""))),"") ->  | V15: =IFERROR(IF((OR($D15="RP",$D15="SP")),IF(Personalize!$E$17=TRUE,(((VLOOKUP($C15,'Filtered-P'!$A$1:$P$700,16,FALSE))-'Filtered-P'!$AF$22)/'Filtered-P'!$AG$22),IF(ISBLANK(Personalize!$E$17),(((VLOOKUP($C15,'Filtered-P'!$A$1:$P$700,16,FALSE))-'Filtered-P'!$AF$22)/'Filtered-P'!$AG$22)*0.5,"")),IF(Personalize!$E$9=TRUE,(((VLOOKUP($C15,Filtered!$A$1:$BB$626,25,FALSE))-Filtered!$AK$38)/Filtered!$AL$38),IF(ISBLANK(Personalize!$E$9),(((VLOOKUP($C15,Filtered!$A$1:$BB$626,25,FALSE))-Filtered!$AK$38)/Filtered!$AL$38)*0.5,""))),"") ->  | W15: =IFERROR(IF((OR($D15="RP",$D15="SP")),IF(Personalize!$E$37=TRUE,(((VLOOKUP($C15,'Filtered-P'!$A$1:$Z$700,17,FALSE))-'Filtered-P'!$AF$25)/'Filtered-P'!$AG$25),IF(ISBLANK(Personalize!$E$37),(((VLOOKUP($C15,'Filtered-P'!$A$1:$Z$700,17,FALSE))-'Filtered-P'!$AF$25)/'Filtered-P'!$AG$25)*0.5,"")),IF(Personalize!$E$39=TRUE,(((VLOOKUP($C15,Filtered!$A$1:$X$626,14,FALSE))-Filtered!$AK$29)/Filtered!$AL$29),IF(ISBLANK(Personalize!$E$39),(((VLOOKUP($C15,Filtered!$A$1:$X$626,14,FALSE))-Filtered!$AK$29)/Filtered!$AL$29)*0.5,""))),"") ->  | X15: =IFERROR(IF((OR($D15="RP",$D15="SP")),IF(Personalize!$E$38=TRUE,(((VLOOKUP($C15,'Filtered-P'!$A$1:$Z$700,18,FALSE))-'Filtered-P'!$AF$26)/'Filtered-P'!$AG$26),IF(ISBLANK(Personalize!$E$38),(((VLOOKUP($C15,'Filtered-P'!$A$1:$Z$700,18,FALSE))-'Filtered-P'!$AF$26)/'Filtered-P'!$AG$26)*0.5,"")),IF(Personalize!$E$40=TRUE,(((VLOOKUP($C15,Filtered!$A$1:$X$626,6,FALSE))-Filtered!$AK$21)/Filtered!$AL$21),IF(ISBLANK(Personalize!$E$40),(((VLOOKUP($C15,Filtered!$A$1:$X$626,6,FALSE))-Filtered!$AK$21)/Filtered!$AL$21)*0.5,""))),"") ->  | Y15: =IFERROR(IF((OR($D15="RP",$D15="SP")),IF(Personalize!$E$45=TRUE,(((VLOOKUP($C15,'Filtered-P'!$A$1:$Z$700,4,FALSE))-'Filtered-P'!$AF$10)/'Filtered-P'!$AG$10),IF(ISBLANK(Personalize!$E$45),(((VLOOKUP($C15,'Filtered-P'!$A$1:$Z$700,4,FALSE))-'Filtered-P'!$AF$10)/'Filtered-P'!$AG$10)*0.5,"")),IF(Personalize!$E$41=TRUE,(((VLOOKUP($C15,Filtered!$A$1:$BB$626,20,FALSE))-Filtered!$AK$43)/Filtered!$AL$43),IF(ISBLANK(Personalize!$E$41),(((VLOOKUP($C15,Filtered!$A$1:$BB$626,20,FALSE))-Filtered!$AK$43)/Filtered!$AL$43)*0.5,""))),"") ->  | Z15: =IFERROR(IF((OR($D15="RP",$D15="SP")),IF(Personalize!$E$46=TRUE,(((VLOOKUP($C15,'Filtered-P'!$A$1:$Z$700,19,FALSE))-'Filtered-P'!$AF$27)/'Filtered-P'!$AG$27),IF(ISBLANK(Personalize!$E$46),(((VLOOKUP($C15,'Filtered-P'!$A$1:$Z$700,19,FALSE))-'Filtered-P'!$AF$27)/'Filtered-P'!$AG$27)*0.5,"")),IF(Personalize!$E$44=TRUE,(((VLOOKUP($C15,Filtered!$A$1:$BB$626,21,FALSE))-Filtered!$AK$44)/Filtered!$AL$44),IF(ISBLANK(Personalize!$E$44),(((VLOOKUP($C15,Filtered!$A$1:$BB$626,21,FALSE))-Filtered!$AK$44)/Filtered!$AL$44)*0.5,""))),"") ->  | AA15: =IFERROR(IF((OR($D15="RP",$D15="SP")),IF(Personalize!$E$47=TRUE,(((VLOOKUP($C15,'Filtered-P'!$A$1:$Z$700,6,FALSE))-'Filtered-P'!$AF$12)/'Filtered-P'!$AG$12),IF(ISBLANK(Personalize!$E$47),(((VLOOKUP($C15,'Filtered-P'!$A$1:$Z$700,6,FALSE))-'Filtered-P'!$AF$12)/'Filtered-P'!$AG$12)*0.5,"")),IF(Personalize!$E$42=TRUE,(((VLOOKUP($C15,Filtered!$A$1:$BB$626,8,FALSE))-Filtered!$AK$23)/Filtered!$AL$23),IF(ISBLANK(Personalize!$E$42),(((VLOOKUP($C15,Filtered!$A$1:$BB$626,8,FALSE))-Filtered!$AK$23)/Filtered!$AL$23)*0.5,""))),"") ->  | AB15: =IFERROR(IF((OR($D15="RP",$D15="SP")),IF(Personalize!$E$48=TRUE,(((VLOOKUP($C15,'Filtered-P'!$A$1:$Z$700,5,FALSE))-'Filtered-P'!$AF$11)/'Filtered-P'!$AG$11),IF(ISBLANK(Personalize!$E$48),(((VLOOKUP($C15,'Filtered-P'!$A$1:$Z$700,5,FALSE))-'Filtered-P'!$AF$11)/'Filtered-P'!$AG$11)*0.5,"")),IF(Personalize!$E$43=TRUE,(((VLOOKUP($C15,Filtered!$A$1:$BB$626,9,FALSE))-Filtered!$AK$24)/Filtered!$AL$24),IF(ISBLANK(Personalize!$E$43),(((VLOOKUP($C15,Filtered!$A$1:$BB$626,9,FALSE))-Filtered!$AK$24)/Filtered!$AL$24)*0.5,""))),"") ->  | AC15: =IFERROR(IF((OR($D15="RP",$D15="SP")),IF(Personalize!$E$52=TRUE,(((VLOOKUP($C15,'Filtered-P'!$A$1:$AD$700,21,FALSE))-'Filtered-P'!$AF$29)/(-1*'Filtered-P'!$AG$29)),IF(ISBLANK(Personalize!$E$52),(((VLOOKUP($C15,'Filtered-P'!$A$1:$AD$700,21,FALSE))-'Filtered-P'!$AF$29)/(-1*'Filtered-P'!$AG$29))*0.5,"")),IF(Personalize!$E$49=TRUE,(((VLOOKUP($C15,Filtered!$A$1:$AF$626,30,FALSE))-Filtered!$AK$45)/Filtered!$AL$45),IF(ISBLANK(Personalize!$E$49),(((VLOOKUP($C15,Filtered!$A$1:$AF$626,30,FALSE))-Filtered!$AK$45)/Filtered!$AL$45)*0.5,""))),"") ->  | AD15: =IFERROR(IF((OR($D15="RP",$D15="SP")),IF(Personalize!$E$53=TRUE,(((VLOOKUP($C15,'Filtered-P'!$A$1:$AD$700,23,FALSE))-'Filtered-P'!$AF$31)/(-1*'Filtered-P'!$AG$31)),IF(ISBLANK(Personalize!$E$53),(((VLOOKUP($C15,'Filtered-P'!$A$1:$AD$700,23,FALSE))-'Filtered-P'!$AF$31)/(-1*'Filtered-P'!$AG$31))*0.5,"")),IF(Personalize!$E$50=TRUE,(((VLOOKUP($C15,Filtered!$A$1:$AF$626,31,FALSE))-Filtered!$AK$46)/Filtered!$AL$46),IF(ISBLANK(Personalize!$E$50),(((VLOOKUP($C15,Filtered!$A$1:$AF$626,31,FALSE))-Filtered!$AK$46)/Filtered!$AL$46)*0.5,""))),"") ->  | AE15: =IFERROR(IF((OR($D15="RP",$D15="SP")),IF(Personalize!$E$54=TRUE,(((VLOOKUP($C15,'Filtered-P'!$A$1:$AD$700,24,FALSE))-'Filtered-P'!$AF$32)/'Filtered-P'!$AG$32),IF(ISBLANK(Personalize!$E$54),(((VLOOKUP($C15,'Filtered-P'!$A$1:$AD$700,24,FALSE))-'Filtered-P'!$AF$32)/'Filtered-P'!$AG$32)*0.5,"")),IF(Personalize!$E$51=TRUE,(((VLOOKUP($C15,Filtered!$A$1:$AF$626,15,FALSE))-Filtered!$AK$30)/(-1*Filtered!$AL$30)),IF(ISBLANK(Personalize!$E$51),(((VLOOKUP($C15,Filtered!$A$1:$AF$626,15,FALSE))-Filtered!$AK$30)/(-1*Filtered!$AL$30))*0.5,""))),"") ->  | AF15: =IFERROR(IF((OR($D15="RP",$D15="SP")),IF(Personalize!$E$56=TRUE,(((VLOOKUP($C15,'Filtered-P'!$A$1:$AD$700,29,FALSE))-'Filtered-P'!$AF$35)/'Filtered-P'!$AG$35),IF(ISBLANK(Personalize!$E$56),(((VLOOKUP($C15,'Filtered-P'!$A$1:$AD$700,29,FALSE))-'Filtered-P'!$AF$35)/'Filtered-P'!$AG$35)*0.5,"")),IF(Personalize!$E$60=TRUE,(((VLOOKUP($C15,Filtered!$A$1:$AF$626,7,FALSE))-Filtered!$AK$22)/Filtered!$AL$22),IF(ISBLANK(Personalize!$E$60),(((VLOOKUP($C15,Filtered!$A$1:$AF$626,7,FALSE))-Filtered!$AK$22)/Filtered!$AL$22)*0.5,""))),"") ->  | AG15: =IFERROR(IF((OR($D15="RP",$D15="SP")),IF(Personalize!$E$57=TRUE,(((VLOOKUP($C15,'Filtered-P'!$A$1:$AD$700,28,FALSE))-'Filtered-P'!$AF$34)/'Filtered-P'!$AG$34),IF(ISBLANK(Personalize!$E$57),(((VLOOKUP($C15,'Filtered-P'!$A$1:$AD$700,28,FALSE))-'Filtered-P'!$AF$34)/'Filtered-P'!$AG$34)*0.5,"")),IF(Personalize!$E$61=TRUE,(((VLOOKUP($C15,Filtered!$A$1:$AZ$626,34,FALSE))-Filtered!$AK$47)/Filtered!$AL$47),IF(ISBLANK(Personalize!$E$61),(((VLOOKUP($C15,Filtered!$A$1:$AZ$626,34,FALSE))-Filtered!$AK$47)/Filtered!$AL$47)*0.5,""))),"") ->  | AH15: =IFERROR(IF((OR($D15="RP",$D15="SP")),IF(Personalize!$E$58=TRUE,(((VLOOKUP($C15,'Filtered-P'!$A$1:$Z$700,8,FALSE))-'Filtered-P'!$AF$14)/'Filtered-P'!$AG$14),IF(ISBLANK(Personalize!$E$58),(((VLOOKUP($C15,'Filtered-P'!$A$1:$Z$700,8,FALSE))-'Filtered-P'!$AF$14)/'Filtered-P'!$AG$14)*0.5,"")),IF(Personalize!$E$62=TRUE,(((VLOOKUP($C15,Filtered!$A$1:$AF$626,13,FALSE))-Filtered!$AK$28)/(-1*Filtered!$AL$28)),IF(ISBLANK(Personalize!$E$62),(((VLOOKUP($C15,Filtered!$A$1:$AF$626,13,FALSE))-Filtered!$AK$28)/(-1*Filtered!$AL$28))*0.5,""))),"") ->  | AI15: =IFERROR(IF((OR($D15="RP",$D15="SP")),IF(Personalize!$E$59=TRUE,(((VLOOKUP($C15,'Filtered-P'!$A$1:$AD$700,27,FALSE))-'Filtered-P'!$AF$33)/'Filtered-P'!$AG$33),IF(ISBLANK(Personalize!$E$59),(((VLOOKUP($C15,'Filtered-P'!$A$1:$AD$700,27,FALSE))-'Filtered-P'!$AF$33)/'Filtered-P'!$AG$33)*0.5,"")),IF(Personalize!$E$63=TRUE,(((VLOOKUP($C15,Filtered!$A$1:$AZ$626,35,FALSE))-Filtered!$AK$48)/(-1*Filtered!$AL$48)),IF(ISBLANK(Personalize!$E$63),(((VLOOKUP($C15,Filtered!$A$1:$AZ$626,35,FALSE))-Filtered!$AK$48)/(-1*Filtered!$AL$48))*0.5,""))),"") ->  | AJ15: =IFERROR(IF((OR($D15="RP",$D15="SP")),VLOOKUP($C15,'Filtered-P'!$A$1:$P$580,2,FALSE),""),"") ->  | AK15: =IFERROR(IF((OR($D15="RP",$D15="SP")),VLOOKUP($C15,'Filtered-P'!$A$1:$P$580,9,FALSE),""),"") ->  | AL15: =IFERROR(IF((OR($D15="RP",$D15="SP")),VLOOKUP($C15,'Filtered-P'!$A$1:$P$580,7,FALSE),""),"") ->  | AM15: =IFERROR(IF((OR($D15="RP",$D15="SP")),VLOOKUP($C15,'Filtered-P'!$A$1:$P$580,10,FALSE),""),"") ->  | AN15: =IFERROR(IF((OR($D15="RP",$D15="SP")),VLOOKUP($C15,'Filtered-P'!$A$1:$P$580,11,FALSE),""),"") ->  | AO15: =IFERROR(IF((OR($D15="RP",$D15="SP")),"",VLOOKUP($C15,Filtered!$A$1:$X$600,16,FALSE)),"") -> 0.2992431692 | AP15: =IFERROR(IF((OR($D15="RP",$D15="SP")),"",VLOOKUP($C15,Filtered!$A$1:$X$600,10,FALSE)),"") -> 23.43020184 | AQ15: =IFERROR(IF((OR($D15="RP",$D15="SP")),"",VLOOKUP($C15,Filtered!$A$1:$X$600,11,FALSE)),"") -> 91.51062669 | AR15: =IFERROR(IF((OR($D15="RP",$D15="SP")),"",VLOOKUP($C15,Filtered!$A$1:$X$600,5,FALSE)),"") -> 91.31663727 | AS15: =IFERROR(IF((OR($D15="RP",$D15="SP")),"",VLOOKUP($C15,Filtered!$A$1:$X$600,12,FALSE)),"") -> 14.75149765 | AU15: =IF(ISBLANK(A15),0,1) -> 0 | AV15: =IF(M15="",0,1) -> 1 | AW15: =A15 -> 0 | AX15: =IF(D15="C",1,IF(D15="1B",2,IF(D15="2B",3,IF(D15="3B",4,IF(D15="SS",5,IF(D15="CI",6,IF(D15="MI",7,IF(D15="OF",11,IF(D15="LF",8,IF(D15="CF",9,IF(D15="RF",10,IF(D15="DH",12,IF(D15="SP",13,IF(D15="RP",14,IF(D15="P",15,16))))))))))))))) -> 11 | AY15: =VLOOKUP(C15,'Starter Calc'!$B$2:$BS$700,70,FALSE) -> Bench | AZ15: =VLOOKUP(C15,'Starter Calc'!$B$2:$AO$700,40,FALSE) -> Yes | BA15: =IFERROR(IF(ISTEXT($A15),"",IF((OR($D15="RP",$D15="SP")),ABS(VLOOKUP(D15,'Filtered-P'!$AE$3:$AI$4,5,FALSE))+M15,ABS(VLOOKUP(D15,Filtered!$AJ$3:$AN$14,5,FALSE))+M15)),"") -> 11.58814006 | BB15: =IFERROR(BA15+ABS($BA$4),"") -> 12.31196313 | BC15: =IF(AND($A15<>"",$B15<>""),B15,"N") -> N | BD15: =IFERROR(VLOOKUP($C15,'ADP-Rank'!$A$2:$AB$581,25,FALSE),TRUE) -> TRUE | BE15: =IFERROR((BB15-BB$3)^2,"") -> 55.78584347 | BF15: =VLOOKUP(C15,'Starter Calc'!$B$2:$CD$700,71,FALSE) -> OF.Yes | BG15: =IFERROR(((Personalize!$A$1-(1*Personalize!$A$2))/Personalize!$A$2)*(N15/$BG$3)+1,"") -> 30.08798402 | BH15: 33.57606687 | BI15: 33.57606687
C16: Josh Donaldson | D16: 3B | E16: =IFERROR(IF(VLOOKUP(C16,'Starter Calc'!$B$2:$E$700,4,FALSE)="","",VLOOKUP(C16,'Starter Calc'!$B$2:$E$700,4,FALSE)),"") -> ,, | F16: =IFERROR(VLOOKUP($C16,'ADP-Rank'!$A$2:$G$581,5,FALSE),"") -> TOR | G16: =IFERROR(VLOOKUP($C16,'ADP-Rank'!$A$2:$X$581,6,FALSE),"") -> 30 | H16: =IFERROR(IF(ISBLANK($B16),"$"&(ROUND(BI16,0))&" | $"&ROUND(BH16,0),""),"") -> $29 | $29 | I16: =IFERROR(IF(RIGHT(D16,1)="P",J16*$BE$2,J16*$BE$1),"") -> 33.93333333 | J16: =IFERROR(CHOOSE(Personalize!$E$31,(VLOOKUP(C16,'ADP-Rank'!$A$2:$Z$581,7,FALSE)*(Personalize!$A$3)+1),(VLOOKUP(C16,'ADP-Rank'!$A$2:$Z$581,8,FALSE)*(Personalize!$A$3)+1),(VLOOKUP(C16,'ADP-Rank'!$A$2:$Z$581,9,FALSE)*(Personalize!$A$3)+1),(VLOOKUP(C16,'ADP-Rank'!$A$2:$AA$581,10,FALSE)*(Personalize!$A$3)+1),(VLOOKUP(C16,'ADP-Rank'!$A$2:$AA$581,11,FALSE)*(Personalize!$A$3)+1),(VLOOKUP(C16,'ADP-Rank'!$A$2:$AA$581,12,FALSE)*(Personalize!$A$3)+1),(VLOOKUP(C16,'ADP-Rank'!$A$2:$AA$581,13,FALSE)*(Personalize!$A$3)+1),(VLOOKUP(C16,'ADP-Rank'!$A$2:$AA$581,14,FALSE)*(Personalize!$A$3)+1),(VLOOKUP(C16,'ADP-Rank'!$A$2:$AA$581,15,FALSE)*(Personalize!$A$3)+1),(VLOOKUP(C16,'ADP-Rank'!$A$2:$AG$581,28,FALSE)*(Personalize!$A$3)+1)),"") -> 33.93333333 | K16: =VLOOKUP($C16,'ADP-Rank'!$A$2:$AB$581,26,FALSE) -> 4 | L16: =IFERROR(RANK($M16,$M$7:$M$746,0),"") -> 10 | M16: =IF((SUM(O16:AI16)=0),"",SUM(O16:AI16)) -> 7.529981687 | N16: =IFERROR(IF((OR($D16="RP",$D16="SP")),ABS(VLOOKUP(D16,'Filtered-P'!$AE$3:$AI$4,5,FALSE))+M16,ABS(VLOOKUP(D16,Filtered!$AJ$3:$AN$14,5,FALSE))+M16),"") -> 9.903423536 | O16: =IFERROR(IF((OR($D16="RP",$D16="SP")),IF(Personalize!$E$10=TRUE,(((VLOOKUP($C16,'Filtered-P'!$A$1:$P$700,2,FALSE))-'Filtered-P'!$AF$8)/'Filtered-P'!$AG$8),IF(ISBLANK(Personalize!$E$10),(((VLOOKUP($C16,'Filtered-P'!$A$1:$P$700,2,FALSE))-'Filtered-P'!$AF$8)/'Filtered-P'!$AG$8)*0.5,"")),IF(Personalize!$E$4=TRUE,(((VLOOKUP($C16,Filtered!$A$1:$X$626,22,FALSE))-Filtered!$AK$35)/Filtered!$AL$35),IF(ISBLANK(Personalize!$E$4),(((VLOOKUP($C16,Filtered!$A$1:$X$626,22,FALSE))-Filtered!$AK$35)/Filtered!$AL$35)*0.5,""))),"") -> 0.7414083104 | P16: =IFERROR(IF((OR($D16="RP",$D16="SP")),IF(Personalize!$E$12=TRUE,(((VLOOKUP($C16,'Filtered-P'!$A$1:$P$700,9,FALSE))-'Filtered-P'!$AF$15)/'Filtered-P'!$AG$15),IF(ISBLANK(Personalize!$E$12),(((VLOOKUP($C16,'Filtered-P'!$A$1:$P$700,9,FALSE))-'Filtered-P'!$AF$15)/'Filtered-P'!$AG$15)*0.5,"")),IF(Personalize!$E$3=TRUE,(((VLOOKUP($C16,Filtered!$A$1:$AB$626,10,FALSE))-Filtered!$AK$25)/Filtered!$AL$25),IF(ISBLANK(Personalize!$E$3),(((VLOOKUP($C16,Filtered!$A$1:$AB$626,10,FALSE))-Filtered!$AK$25)/Filtered!$AL$25)*0.5,""))),"") -> 1.693336908 | Q16: =IFERROR(IF((OR($D16="RP",$D16="SP")),IF(Personalize!$E$11=TRUE,(((VLOOKUP($C16,'Filtered-P'!$A$1:$P$700,7,FALSE))-'Filtered-P'!$AF$13)/'Filtered-P'!$AG$13),IF(ISBLANK(Personalize!$E$11),(((VLOOKUP($C16,'Filtered-P'!$A$1:$P$700,7,FALSE))-'Filtered-P'!$AF$13)/'Filtered-P'!$AG$13)*0.5,"")),IF(Personalize!$E$2=TRUE,(((VLOOKUP($C16,Filtered!$A$1:$AB$626,5,FALSE))-Filtered!$AK$20)/Filtered!$AL$20),IF(ISBLANK(Personalize!$E$2),(((VLOOKUP($C16,Filtered!$A$1:$AB$626,5,FALSE))-Filtered!$AK$20)/Filtered!$AL$20)*0.5,""))),"") -> 1.8538082 | R16: =IFERROR(IF((OR($D16="RP",$D16="SP")),IF(Personalize!$E$13=TRUE,(((VLOOKUP($C16,'Filtered-P'!$A$1:$P$700,13,FALSE))-'Filtered-P'!$AF$19)/'Filtered-P'!$AG$19),IF(ISBLANK(Personalize!$E$13),(((VLOOKUP($C16,'Filtered-P'!$A$1:$P$700,13,FALSE))-'Filtered-P'!$AF$19)/'Filtered-P'!$AG$19)*0.5,"")),IF(Personalize!$E$5=TRUE,(((VLOOKUP($C16,Filtered!$A$1:$AB$626,11,FALSE))-Filtered!$AK$26)/Filtered!$AL$26),IF(ISBLANK(Personalize!$E$5),(((VLOOKUP($C16,Filtered!$A$1:$AB$626,11,FALSE))-Filtered!$AK$26)/Filtered!$AL$26)*0.5,""))),"") -> 1.807542429 | S16: =IFERROR(IF((OR($D16="RP",$D16="SP")),IF(Personalize!$E$14=TRUE,(((VLOOKUP($C16,'Filtered-P'!$A$1:$P$700,14,FALSE))-'Filtered-P'!$AF$20)/'Filtered-P'!$AG$20),IF(ISBLANK(Personalize!$E$14),(((VLOOKUP($C16,'Filtered-P'!$A$1:$P$700,14,FALSE))-'Filtered-P'!$AF$20)/'Filtered-P'!$AG$20)*0.5,"")),IF(Personalize!$E$6=TRUE,(((VLOOKUP($C16,Filtered!$A$1:$AB$626,12,FALSE))-Filtered!$AK$27)/Filtered!$AL$27),IF(ISBLANK(Personalize!$E$6),(((VLOOKUP($C16,Filtered!$A$1:$AB$626,12,FALSE))-Filtered!$AK$27)/Filtered!$AL$27)*0.5,""))),"") -> -0.4485166552 | T16: =IFERROR(IF((OR($D16="RP",$D16="SP")),IF(Personalize!$E$16=TRUE,(((VLOOKUP($C16,'Filtered-P'!$A$1:$P$700,3,FALSE))-'Filtered-P'!$AF$9)/'Filtered-P'!$AG$9),IF(ISBLANK(Personalize!$E$16),(((VLOOKUP($C16,'Filtered-P'!$A$1:$P$700,3,FALSE))-'Filtered-P'!$AF$9)/'Filtered-P'!$AG$9)*0.5,"")),IF(Personalize!$E$7=TRUE,(((VLOOKUP($C16,Filtered!$A$1:$BB$626,24,FALSE))-Filtered!$AK$37)/Filtered!$AL$37),IF(ISBLANK(Personalize!$E$7),(((VLOOKUP($C16,Filtered!$A$1:$BB$626,24,FALSE))-Filtered!$AK$37)/Filtered!$AL$37)*0.5,""))),"") -> 1.882402495 | U16: =IFERROR(IF((OR($D16="RP",$D16="SP")),IF(Personalize!$E$15=TRUE,(((VLOOKUP($C16,'Filtered-P'!$A$1:$P$700,15,FALSE))-'Filtered-P'!$AF$21)/'Filtered-P'!$AG$21),IF(ISBLANK(Personalize!$E$15),(((VLOOKUP($C16,'Filtered-P'!$A$1:$P$700,15,FALSE))-'Filtered-P'!$AF$21)/'Filtered-P'!$AG$21)*0.5,"")),IF(Personalize!$E$8=TRUE,(((VLOOKUP($C16,Filtered!$A$1:$BB$626,23,FALSE))-Filtered!$AK$36)/Filtered!$AL$36),IF(ISBLANK(Personalize!$E$8),(((VLOOKUP($C16,Filtered!$A$1:$BB$626,23,FALSE))-Filtered!$AK$36)/Filtered!$AL$36)*0.5,""))),"") ->  | V16: =IFERROR(IF((OR($D16="RP",$D16="SP")),IF(Personalize!$E$17=TRUE,(((VLOOKUP($C16,'Filtered-P'!$A$1:$P$700,16,FALSE))-'Filtered-P'!$AF$22)/'Filtered-P'!$AG$22),IF(ISBLANK(Personalize!$E$17),(((VLOOKUP($C16,'Filtered-P'!$A$1:$P$700,16,FALSE))-'Filtered-P'!$AF$22)/'Filtered-P'!$AG$22)*0.5,"")),IF(Personalize!$E$9=TRUE,(((VLOOKUP($C16,Filtered!$A$1:$BB$626,25,FALSE))-Filtered!$AK$38)/Filtered!$AL$38),IF(ISBLANK(Personalize!$E$9),(((VLOOKUP($C16,Filtered!$A$1:$BB$626,25,FALSE))-Filtered!$AK$38)/Filtered!$AL$38)*0.5,""))),"") ->  | W16: =IFERROR(IF((OR($D16="RP",$D16="SP")),IF(Personalize!$E$37=TRUE,(((VLOOKUP($C16,'Filtered-P'!$A$1:$Z$700,17,FALSE))-'Filtered-P'!$AF$25)/'Filtered-P'!$AG$25),IF(ISBLANK(Personalize!$E$37),(((VLOOKUP($C16,'Filtered-P'!$A$1:$Z$700,17,FALSE))-'Filtered-P'!$AF$25)/'Filtered-P'!$AG$25)*0.5,"")),IF(Personalize!$E$39=TRUE,(((VLOOKUP($C16,Filtered!$A$1:$X$626,14,FALSE))-Filtered!$AK$29)/Filtered!$AL$29),IF(ISBLANK(Personalize!$E$39),(((VLOOKUP($C16,Filtered!$A$1:$X$626,14,FALSE))-Filtered!$AK$29)/Filtered!$AL$29)*0.5,""))),"") ->  | X16: =IFERROR(IF((OR($D16="RP",$D16="SP")),IF(Personalize!$E$38=TRUE,(((VLOOKUP($C16,'Filtered-P'!$A$1:$Z$700,18,FALSE))-'Filtered-P'!$AF$26)/'Filtered-P'!$AG$26),IF(ISBLANK(Personalize!$E$38),(((VLOOKUP($C16,'Filtered-P'!$A$1:$Z$700,18,FALSE))-'Filtered-P'!$AF$26)/'Filtered-P'!$AG$26)*0.5,"")),IF(Personalize!$E$40=TRUE,(((VLOOKUP($C16,Filtered!$A$1:$X$626,6,FALSE))-Filtered!$AK$21)/Filtered!$AL$21),IF(ISBLANK(Personalize!$E$40),(((VLOOKUP($C16,Filtered!$A$1:$X$626,6,FALSE))-Filtered!$AK$21)/Filtered!$AL$21)*0.5,""))),"") ->  | Y16: =IFERROR(IF((OR($D16="RP",$D16="SP")),IF(Personalize!$E$45=TRUE,(((VLOOKUP($C16,'Filtered-P'!$A$1:$Z$700,4,FALSE))-'Filtered-P'!$AF$10)/'Filtered-P'!$AG$10),IF(ISBLANK(Personalize!$E$45),(((VLOOKUP($C16,'Filtered-P'!$A$1:$Z$700,4,FALSE))-'Filtered-P'!$AF$10)/'Filtered-P'!$AG$10)*0.5,"")),IF(Personalize!$E$41=TRUE,(((VLOOKUP($C16,Filtered!$A$1:$BB$626,20,FALSE))-Filtered!$AK$43)/Filtered!$AL$43),IF(ISBLANK(Personalize!$E$41),(((VLOOKUP($C16,Filtered!$A$1:$BB$626,20,FALSE))-Filtered!$AK$43)/Filtered!$AL$43)*0.5,""))),"") ->  | Z16: =IFERROR(IF((OR($D16="RP",$D16="SP")),IF(Personalize!$E$46=TRUE,(((VLOOKUP($C16,'Filtered-P'!$A$1:$Z$700,19,FALSE))-'Filtered-P'!$AF$27)/'Filtered-P'!$AG$27),IF(ISBLANK(Personalize!$E$46),(((VLOOKUP($C16,'Filtered-P'!$A$1:$Z$700,19,FALSE))-'Filtered-P'!$AF$27)/'Filtered-P'!$AG$27)*0.5,"")),IF(Personalize!$E$44=TRUE,(((VLOOKUP($C16,Filtered!$A$1:$BB$626,21,FALSE))-Filtered!$AK$44)/Filtered!$AL$44),IF(ISBLANK(Personalize!$E$44),(((VLOOKUP($C16,Filtered!$A$1:$BB$626,21,FALSE))-Filtered!$AK$44)/Filtered!$AL$44)*0.5,""))),"") ->  | AA16: =IFERROR(IF((OR($D16="RP",$D16="SP")),IF(Personalize!$E$47=TRUE,(((VLOOKUP($C16,'Filtered-P'!$A$1:$Z$700,6,FALSE))-'Filtered-P'!$AF$12)/'Filtered-P'!$AG$12),IF(ISBLANK(Personalize!$E$47),(((VLOOKUP($C16,'Filtered-P'!$A$1:$Z$700,6,FALSE))-'Filtered-P'!$AF$12)/'Filtered-P'!$AG$12)*0.5,"")),IF(Personalize!$E$42=TRUE,(((VLOOKUP($C16,Filtered!$A$1:$BB$626,8,FALSE))-Filtered!$AK$23)/Filtered!$AL$23),IF(ISBLANK(Personalize!$E$42),(((VLOOKUP($C16,Filtered!$A$1:$BB$626,8,FALSE))-Filtered!$AK$23)/Filtered!$AL$23)*0.5,""))),"") ->  | AB16: =IFERROR(IF((OR($D16="RP",$D16="SP")),IF(Personalize!$E$48=TRUE,(((VLOOKUP($C16,'Filtered-P'!$A$1:$Z$700,5,FALSE))-'Filtered-P'!$AF$11)/'Filtered-P'!$AG$11),IF(ISBLANK(Personalize!$E$48),(((VLOOKUP($C16,'Filtered-P'!$A$1:$Z$700,5,FALSE))-'Filtered-P'!$AF$11)/'Filtered-P'!$AG$11)*0.5,"")),IF(Personalize!$E$43=TRUE,(((VLOOKUP($C16,Filtered!$A$1:$BB$626,9,FALSE))-Filtered!$AK$24)/Filtered!$AL$24),IF(ISBLANK(Personalize!$E$43),(((VLOOKUP($C16,Filtered!$A$1:$BB$626,9,FALSE))-Filtered!$AK$24)/Filtered!$AL$24)*0.5,""))),"") ->  | AC16: =IFERROR(IF((OR($D16="RP",$D16="SP")),IF(Personalize!$E$52=TRUE,(((VLOOKUP($C16,'Filtered-P'!$A$1:$AD$700,21,FALSE))-'Filtered-P'!$AF$29)/(-1*'Filtered-P'!$AG$29)),IF(ISBLANK(Personalize!$E$52),(((VLOOKUP($C16,'Filtered-P'!$A$1:$AD$700,21,FALSE))-'Filtered-P'!$AF$29)/(-1*'Filtered-P'!$AG$29))*0.5,"")),IF(Personalize!$E$49=TRUE,(((VLOOKUP($C16,Filtered!$A$1:$AF$626,30,FALSE))-Filtered!$AK$45)/Filtered!$AL$45),IF(ISBLANK(Personalize!$E$49),(((VLOOKUP($C16,Filtered!$A$1:$AF$626,30,FALSE))-Filtered!$AK$45)/Filtered!$AL$45)*0.5,""))),"") ->  | AD16: =IFERROR(IF((OR($D16="RP",$D16="SP")),IF(Personalize!$E$53=TRUE,(((VLOOKUP($C16,'Filtered-P'!$A$1:$AD$700,23,FALSE))-'Filtered-P'!$AF$31)/(-1*'Filtered-P'!$AG$31)),IF(ISBLANK(Personalize!$E$53),(((VLOOKUP($C16,'Filtered-P'!$A$1:$AD$700,23,FALSE))-'Filtered-P'!$AF$31)/(-1*'Filtered-P'!$AG$31))*0.5,"")),IF(Personalize!$E$50=TRUE,(((VLOOKUP($C16,Filtered!$A$1:$AF$626,31,FALSE))-Filtered!$AK$46)/Filtered!$AL$46),IF(ISBLANK(Personalize!$E$50),(((VLOOKUP($C16,Filtered!$A$1:$AF$626,31,FALSE))-Filtered!$AK$46)/Filtered!$AL$46)*0.5,""))),"") ->  | AE16: =IFERROR(IF((OR($D16="RP",$D16="SP")),IF(Personalize!$E$54=TRUE,(((VLOOKUP($C16,'Filtered-P'!$A$1:$AD$700,24,FALSE))-'Filtered-P'!$AF$32)/'Filtered-P'!$AG$32),IF(ISBLANK(Personalize!$E$54),(((VLOOKUP($C16,'Filtered-P'!$A$1:$AD$700,24,FALSE))-'Filtered-P'!$AF$32)/'Filtered-P'!$AG$32)*0.5,"")),IF(Personalize!$E$51=TRUE,(((VLOOKUP($C16,Filtered!$A$1:$AF$626,15,FALSE))-Filtered!$AK$30)/(-1*Filtered!$AL$30)),IF(ISBLANK(Personalize!$E$51),(((VLOOKUP($C16,Filtered!$A$1:$AF$626,15,FALSE))-Filtered!$AK$30)/(-1*Filtered!$AL$30))*0.5,""))),"") ->  | AF16: =IFERROR(IF((OR($D16="RP",$D16="SP")),IF(Personalize!$E$56=TRUE,(((VLOOKUP($C16,'Filtered-P'!$A$1:$AD$700,29,FALSE))-'Filtered-P'!$AF$35)/'Filtered-P'!$AG$35),IF(ISBLANK(Personalize!$E$56),(((VLOOKUP($C16,'Filtered-P'!$A$1:$AD$700,29,FALSE))-'Filtered-P'!$AF$35)/'Filtered-P'!$AG$35)*0.5,"")),IF(Personalize!$E$60=TRUE,(((VLOOKUP($C16,Filtered!$A$1:$AF$626,7,FALSE))-Filtered!$AK$22)/Filtered!$AL$22),IF(ISBLANK(Personalize!$E$60),(((VLOOKUP($C16,Filtered!$A$1:$AF$626,7,FALSE))-Filtered!$AK$22)/Filtered!$AL$22)*0.5,""))),"") ->  | AG16: =IFERROR(IF((OR($D16="RP",$D16="SP")),IF(Personalize!$E$57=TRUE,(((VLOOKUP($C16,'Filtered-P'!$A$1:$AD$700,28,FALSE))-'Filtered-P'!$AF$34)/'Filtered-P'!$AG$34),IF(ISBLANK(Personalize!$E$57),(((VLOOKUP($C16,'Filtered-P'!$A$1:$AD$700,28,FALSE))-'Filtered-P'!$AF$34)/'Filtered-P'!$AG$34)*0.5,"")),IF(Personalize!$E$61=TRUE,(((VLOOKUP($C16,Filtered!$A$1:$AZ$626,34,FALSE))-Filtered!$AK$47)/Filtered!$AL$47),IF(ISBLANK(Personalize!$E$61),(((VLOOKUP($C16,Filtered!$A$1:$AZ$626,34,FALSE))-Filtered!$AK$47)/Filtered!$AL$47)*0.5,""))),"") ->  | AH16: =IFERROR(IF((OR($D16="RP",$D16="SP")),IF(Personalize!$E$58=TRUE,(((VLOOKUP($C16,'Filtered-P'!$A$1:$Z$700,8,FALSE))-'Filtered-P'!$AF$14)/'Filtered-P'!$AG$14),IF(ISBLANK(Personalize!$E$58),(((VLOOKUP($C16,'Filtered-P'!$A$1:$Z$700,8,FALSE))-'Filtered-P'!$AF$14)/'Filtered-P'!$AG$14)*0.5,"")),IF(Personalize!$E$62=TRUE,(((VLOOKUP($C16,Filtered!$A$1:$AF$626,13,FALSE))-Filtered!$AK$28)/(-1*Filtered!$AL$28)),IF(ISBLANK(Personalize!$E$62),(((VLOOKUP($C16,Filtered!$A$1:$AF$626,13,FALSE))-Filtered!$AK$28)/(-1*Filtered!$AL$28))*0.5,""))),"") ->  | AI16: =IFERROR(IF((OR($D16="RP",$D16="SP")),IF(Personalize!$E$59=TRUE,(((VLOOKUP($C16,'Filtered-P'!$A$1:$AD$700,27,FALSE))-'Filtered-P'!$AF$33)/'Filtered-P'!$AG$33),IF(ISBLANK(Personalize!$E$59),(((VLOOKUP($C16,'Filtered-P'!$A$1:$AD$700,27,FALSE))-'Filtered-P'!$AF$33)/'Filtered-P'!$AG$33)*0.5,"")),IF(Personalize!$E$63=TRUE,(((VLOOKUP($C16,Filtered!$A$1:$AZ$626,35,FALSE))-Filtered!$AK$48)/(-1*Filtered!$AL$48)),IF(ISBLANK(Personalize!$E$63),(((VLOOKUP($C16,Filtered!$A$1:$AZ$626,35,FALSE))-Filtered!$AK$48)/(-1*Filtered!$AL$48))*0.5,""))),"") ->  | AJ16: =IFERROR(IF((OR($D16="RP",$D16="SP")),VLOOKUP($C16,'Filtered-P'!$A$1:$P$580,2,FALSE),""),"") ->  | AK16: =IFERROR(IF((OR($D16="RP",$D16="SP")),VLOOKUP($C16,'Filtered-P'!$A$1:$P$580,9,FALSE),""),"") ->  | AL16: =IFERROR(IF((OR($D16="RP",$D16="SP")),VLOOKUP($C16,'Filtered-P'!$A$1:$P$580,7,FALSE),""),"") ->  | AM16: =IFERROR(IF((OR($D16="RP",$D16="SP")),VLOOKUP($C16,'Filtered-P'!$A$1:$P$580,10,FALSE),""),"") ->  | AN16: =IFERROR(IF((OR($D16="RP",$D16="SP")),VLOOKUP($C16,'Filtered-P'!$A$1:$P$580,11,FALSE),""),"") ->  | AO16: =IFERROR(IF((OR($D16="RP",$D16="SP")),"",VLOOKUP($C16,Filtered!$A$1:$X$600,16,FALSE)),"") -> 0.2796704794 | AP16: =IFERROR(IF((OR($D16="RP",$D16="SP")),"",VLOOKUP($C16,Filtered!$A$1:$X$600,10,FALSE)),"") -> 31.64599791 | AQ16: =IFERROR(IF((OR($D16="RP",$D16="SP")),"",VLOOKUP($C16,Filtered!$A$1:$X$600,11,FALSE)),"") -> 98.70580257 | AR16: =IFERROR(IF((OR($D16="RP",$D16="SP")),"",VLOOKUP($C16,Filtered!$A$1:$X$600,5,FALSE)),"") -> 96.20731232 | AS16: =IFERROR(IF((OR($D16="RP",$D16="SP")),"",VLOOKUP($C16,Filtered!$A$1:$X$600,12,FALSE)),"") -> 5.589433962 | AU16: =IF(ISBLANK(A16),0,1) -> 0 | AV16: =IF(M16="",0,1) -> 1 | AW16: =A16 -> 0 | AX16: =IF(D16="C",1,IF(D16="1B",2,IF(D16="2B",3,IF(D16="3B",4,IF(D16="SS",5,IF(D16="CI",6,IF(D16="MI",7,IF(D16="OF",11,IF(D16="LF",8,IF(D16="CF",9,IF(D16="RF",10,IF(D16="DH",12,IF(D16="SP",13,IF(D16="RP",14,IF(D16="P",15,16))))))))))))))) -> 4 | AY16: =VLOOKUP(C16,'Starter Calc'!$B$2:$BS$700,70,FALSE) -> Bench | AZ16: =VLOOKUP(C16,'Starter Calc'!$B$2:$AO$700,40,FALSE) -> Yes | BA16: =IFERROR(IF(ISTEXT($A16),"",IF((OR($D16="RP",$D16="SP")),ABS(VLOOKUP(D16,'Filtered-P'!$AE$3:$AI$4,5,FALSE))+M16,ABS(VLOOKUP(D16,Filtered!$AJ$3:$AN$14,5,FALSE))+M16)),"") -> 9.903423536 | BB16: =IFERROR(BA16+ABS($BA$4),"") -> 10.62724661 | BC16: =IF(AND($A16<>"",$B16<>""),B16,"N") -> N | BD16: =IFERROR(VLOOKUP($C16,'ADP-Rank'!$A$2:$AB$581,25,FALSE),TRUE) -> TRUE | BE16: =IFERROR((BB16-BB$3)^2,"") -> 33.45784437 | BF16: =VLOOKUP(C16,'Starter Calc'!$B$2:$CD$700,71,FALSE) -> 3B.Yes | BG16: =IFERROR(((Personalize!$A$1-(1*Personalize!$A$2))/Personalize!$A$2)*(N16/$BG$3)+1,"") -> 25.85909078 | BH16: 28.85692045 | BI16: 28.85692045
C17: Anthony Rizzo | D17: 1B | E17: =IFERROR(IF(VLOOKUP(C17,'Starter Calc'!$B$2:$E$700,4,FALSE)="","",VLOOKUP(C17,'Starter Calc'!$B$2:$E$700,4,FALSE)),"") -> ,, | F17: =IFERROR(VLOOKUP($C17,'ADP-Rank'!$A$2:$G$581,5,FALSE),"") -> CHC | G17: =IFERROR(VLOOKUP($C17,'ADP-Rank'!$A$2:$X$581,6,FALSE),"") -> 26 | H17: =IFERROR(IF(ISBLANK($B17),"$"&(ROUND(BI17,0))&" | $"&ROUND(BH17,0),""),"") -> $27 | $27 | I17: =IFERROR(IF(RIGHT(D17,1)="P",J17*$BE$2,J17*$BE$1),"") -> 31.33333333 | J17: =IFERROR(CHOOSE(Personalize!$E$31,(VLOOKUP(C17,'ADP-Rank'!$A$2:$Z$581,7,FALSE)*(Personalize!$A$3)+1),(VLOOKUP(C17,'ADP-Rank'!$A$2:$Z$581,8,FALSE)*(Personalize!$A$3)+1),(VLOOKUP(C17,'ADP-Rank'!$A$2:$Z$581,9,FALSE)*(Personalize!$A$3)+1),(VLOOKUP(C17,'ADP-Rank'!$A$2:$AA$581,10,FALSE)*(Personalize!$A$3)+1),(VLOOKUP(C17,'ADP-Rank'!$A$2:$AA$581,11,FALSE)*(Personalize!$A$3)+1),(VLOOKUP(C17,'ADP-Rank'!$A$2:$AA$581,12,FALSE)*(Personalize!$A$3)+1),(VLOOKUP(C17,'ADP-Rank'!$A$2:$AA$581,13,FALSE)*(Personalize!$A$3)+1),(VLOOKUP(C17,'ADP-Rank'!$A$2:$AA$581,14,FALSE)*(Personalize!$A$3)+1),(VLOOKUP(C17,'ADP-Rank'!$A$2:$AA$581,15,FALSE)*(Personalize!$A$3)+1),(VLOOKUP(C17,'ADP-Rank'!$A$2:$AG$581,28,FALSE)*(Personalize!$A$3)+1)),"") -> 31.33333333 | K17: =VLOOKUP($C17,'ADP-Rank'!$A$2:$AB$581,26,FALSE) -> 8 | L17: =IFERROR(RANK($M17,$M$7:$M$746,0),"") -> 11 | M17: =IF((SUM(O17:AI17)=0),"",SUM(O17:AI17)) -> 7.509092717 | N17: =IFERROR(IF((OR($D17="RP",$D17="SP")),ABS(VLOOKUP(D17,'Filtered-P'!$AE$3:$AI$4,5,FALSE))+M17,ABS(VLOOKUP(D17,Filtered!$AJ$3:$AN$14,5,FALSE))+M17),"") -> 9.212585959 | O17: =IFERROR(IF((OR($D17="RP",$D17="SP")),IF(Personalize!$E$10=TRUE,(((VLOOKUP($C17,'Filtered-P'!$A$1:$P$700,2,FALSE))-'Filtered-P'!$AF$8)/'Filtered-P'!$AG$8),IF(ISBLANK(Personalize!$E$10),(((VLOOKUP($C17,'Filtered-P'!$A$1:$P$700,2,FALSE))-'Filtered-P'!$AF$8)/'Filtered-P'!$AG$8)*0.5,"")),IF(Personalize!$E$4=TRUE,(((VLOOKUP($C17,Filtered!$A$1:$X$626,22,FALSE))-Filtered!$AK$35)/Filtered!$AL$35),IF(ISBLANK(Personalize!$E$4),(((VLOOKUP($C17,Filtered!$A$1:$X$626,22,FALSE))-Filtered!$AK$35)/Filtered!$AL$35)*0.5,""))),"") -> 0.3785156903 | P17: =IFERROR(IF((OR($D17="RP",$D17="SP")),IF(Personalize!$E$12=TRUE,(((VLOOKUP($C17,'Filtered-P'!$A$1:$P$700,9,FALSE))-'Filtered-P'!$AF$15)/'Filtered-P'!$AG$15),IF(ISBLANK(Personalize!$E$12),(((VLOOKUP($C17,'Filtered-P'!$A$1:$P$700,9,FALSE))-'Filtered-P'!$AF$15)/'Filtered-P'!$AG$15)*0.5,"")),IF(Personalize!$E$3=TRUE,(((VLOOKUP($C17,Filtered!$A$1:$AB$626,10,FALSE))-Filtered!$AK$25)/Filtered!$AL$25),IF(ISBLANK(Personalize!$E$3),(((VLOOKUP($C17,Filtered!$A$1:$AB$626,10,FALSE))-Filtered!$AK$25)/Filtered!$AL$25)*0.5,""))),"") -> 1.742643333 | Q17: =IFERROR(IF((OR($D17="RP",$D17="SP")),IF(Personalize!$E$11=TRUE,(((VLOOKUP($C17,'Filtered-P'!$A$1:$P$700,7,FALSE))-'Filtered-P'!$AF$13)/'Filtered-P'!$AG$13),IF(ISBLANK(Personalize!$E$11),(((VLOOKUP($C17,'Filtered-P'!$A$1:$P$700,7,FALSE))-'Filtered-P'!$AF$13)/'Filtered-P'!$AG$13)*0.5,"")),IF(Personalize!$E$2=TRUE,(((VLOOKUP($C17,Filtered!$A$1:$AB$626,5,FALSE))-Filtered!$AK$20)/Filtered!$AL$20),IF(ISBLANK(Personalize!$E$2),(((VLOOKUP($C17,Filtered!$A$1:$AB$626,5,FALSE))-Filtered!$AK$20)/Filtered!$AL$20)*0.5,""))),"") -> 1.775681397 | R17: =IFERROR(IF((OR($D17="RP",$D17="SP")),IF(Personalize!$E$13=TRUE,(((VLOOKUP($C17,'Filtered-P'!$A$1:$P$700,13,FALSE))-'Filtered-P'!$AF$19)/'Filtered-P'!$AG$19),IF(ISBLANK(Personalize!$E$13),(((VLOOKUP($C17,'Filtered-P'!$A$1:$P$700,13,FALSE))-'Filtered-P'!$AF$19)/'Filtered-P'!$AG$19)*0.5,"")),IF(Personalize!$E$5=TRUE,(((VLOOKUP($C17,Filtered!$A$1:$AB$626,11,FALSE))-Filtered!$AK$26)/Filtered!$AL$26),IF(ISBLANK(Personalize!$E$5),(((VLOOKUP($C17,Filtered!$A$1:$AB$626,11,FALSE))-Filtered!$AK$26)/Filtered!$AL$26)*0.5,""))),"") -> 1.814568606 | S17: =IFERROR(IF((OR($D17="RP",$D17="SP")),IF(Personalize!$E$14=TRUE,(((VLOOKUP($C17,'Filtered-P'!$A$1:$P$700,14,FALSE))-'Filtered-P'!$AF$20)/'Filtered-P'!$AG$20),IF(ISBLANK(Personalize!$E$14),(((VLOOKUP($C17,'Filtered-P'!$A$1:$P$700,14,FALSE))-'Filtered-P'!$AF$20)/'Filtered-P'!$AG$20)*0.5,"")),IF(Personalize!$E$6=TRUE,(((VLOOKUP($C17,Filtered!$A$1:$AB$626,12,FALSE))-Filtered!$AK$27)/Filtered!$AL$27),IF(ISBLANK(Personalize!$E$6),(((VLOOKUP($C17,Filtered!$A$1:$AB$626,12,FALSE))-Filtered!$AK$27)/Filtered!$AL$27)*0.5,""))),"") -> 0.008652920947 | T17: =IFERROR(IF((OR($D17="RP",$D17="SP")),IF(Personalize!$E$16=TRUE,(((VLOOKUP($C17,'Filtered-P'!$A$1:$P$700,3,FALSE))-'Filtered-P'!$AF$9)/'Filtered-P'!$AG$9),IF(ISBLANK(Personalize!$E$16),(((VLOOKUP($C17,'Filtered-P'!$A$1:$P$700,3,FALSE))-'Filtered-P'!$AF$9)/'Filtered-P'!$AG$9)*0.5,"")),IF(Personalize!$E$7=TRUE,(((VLOOKUP($C17,Filtered!$A$1:$BB$626,24,FALSE))-Filtered!$AK$37)/Filtered!$AL$37),IF(ISBLANK(Personalize!$E$7),(((VLOOKUP($C17,Filtered!$A$1:$BB$626,24,FALSE))-Filtered!$AK$37)/Filtered!$AL$37)*0.5,""))),"") -> 1.789030769 | U17: =IFERROR(IF((OR($D17="RP",$D17="SP")),IF(Personalize!$E$15=TRUE,(((VLOOKUP($C17,'Filtered-P'!$A$1:$P$700,15,FALSE))-'Filtered-P'!$AF$21)/'Filtered-P'!$AG$21),IF(ISBLANK(Personalize!$E$15),(((VLOOKUP($C17,'Filtered-P'!$A$1:$P$700,15,FALSE))-'Filtered-P'!$AF$21)/'Filtered-P'!$AG$21)*0.5,"")),IF(Personalize!$E$8=TRUE,(((VLOOKUP($C17,Filtered!$A$1:$BB$626,23,FALSE))-Filtered!$AK$36)/Filtered!$AL$36),IF(ISBLANK(Personalize!$E$8),(((VLOOKUP($C17,Filtered!$A$1:$BB$626,23,FALSE))-Filtered!$AK$36)/Filtered!$AL$36)*0.5,""))),"") ->  | V17: =IFERROR(IF((OR($D17="RP",$D17="SP")),IF(Personalize!$E$17=TRUE,(((VLOOKUP($C17,'Filtered-P'!$A$1:$P$700,16,FALSE))-'Filtered-P'!$AF$22)/'Filtered-P'!$AG$22),IF(ISBLANK(Personalize!$E$17),(((VLOOKUP($C17,'Filtered-P'!$A$1:$P$700,16,FALSE))-'Filtered-P'!$AF$22)/'Filtered-P'!$AG$22)*0.5,"")),IF(Personalize!$E$9=TRUE,(((VLOOKUP($C17,Filtered!$A$1:$BB$626,25,FALSE))-Filtered!$AK$38)/Filtered!$AL$38),IF(ISBLANK(Personalize!$E$9),(((VLOOKUP($C17,Filtered!$A$1:$BB$626,25,FALSE))-Filtered!$AK$38)/Filtered!$AL$38)*0.5,""))),"") ->  | W17: =IFERROR(IF((OR($D17="RP",$D17="SP")),IF(Personalize!$E$37=TRUE,(((VLOOKUP($C17,'Filtered-P'!$A$1:$Z$700,17,FALSE))-'Filtered-P'!$AF$25)/'Filtered-P'!$AG$25),IF(ISBLANK(Personalize!$E$37),(((VLOOKUP($C17,'Filtered-P'!$A$1:$Z$700,17,FALSE))-'Filtered-P'!$AF$25)/'Filtered-P'!$AG$25)*0.5,"")),IF(Personalize!$E$39=TRUE,(((VLOOKUP($C17,Filtered!$A$1:$X$626,14,FALSE))-Filtered!$AK$29)/Filtered!$AL$29),IF(ISBLANK(Personalize!$E$39),(((VLOOKUP($C17,Filtered!$A$1:$X$626,14,FALSE))-Filtered!$AK$29)/Filtered!$AL$29)*0.5,""))),"") ->  | X17: =IFERROR(IF((OR($D17="RP",$D17="SP")),IF(Personalize!$E$38=TRUE,(((VLOOKUP($C17,'Filtered-P'!$A$1:$Z$700,18,FALSE))-'Filtered-P'!$AF$26)/'Filtered-P'!$AG$26),IF(ISBLANK(Personalize!$E$38),(((VLOOKUP($C17,'Filtered-P'!$A$1:$Z$700,18,FALSE))-'Filtered-P'!$AF$26)/'Filtered-P'!$AG$26)*0.5,"")),IF(Personalize!$E$40=TRUE,(((VLOOKUP($C17,Filtered!$A$1:$X$626,6,FALSE))-Filtered!$AK$21)/Filtered!$AL$21),IF(ISBLANK(Personalize!$E$40),(((VLOOKUP($C17,Filtered!$A$1:$X$626,6,FALSE))-Filtered!$AK$21)/Filtered!$AL$21)*0.5,""))),"") ->  | Y17: =IFERROR(IF((OR($D17="RP",$D17="SP")),IF(Personalize!$E$45=TRUE,(((VLOOKUP($C17,'Filtered-P'!$A$1:$Z$700,4,FALSE))-'Filtered-P'!$AF$10)/'Filtered-P'!$AG$10),IF(ISBLANK(Personalize!$E$45),(((VLOOKUP($C17,'Filtered-P'!$A$1:$Z$700,4,FALSE))-'Filtered-P'!$AF$10)/'Filtered-P'!$AG$10)*0.5,"")),IF(Personalize!$E$41=TRUE,(((VLOOKUP($C17,Filtered!$A$1:$BB$626,20,FALSE))-Filtered!$AK$43)/Filtered!$AL$43),IF(ISBLANK(Personalize!$E$41),(((VLOOKUP($C17,Filtered!$A$1:$BB$626,20,FALSE))-Filtered!$AK$43)/Filtered!$AL$43)*0.5,""))),"") ->  | Z17: =IFERROR(IF((OR($D17="RP",$D17="SP")),IF(Personalize!$E$46=TRUE,(((VLOOKUP($C17,'Filtered-P'!$A$1:$Z$700,19,FALSE))-'Filtered-P'!$AF$27)/'Filtered-P'!$AG$27),IF(ISBLANK(Personalize!$E$46),(((VLOOKUP($C17,'Filtered-P'!$A$1:$Z$700,19,FALSE))-'Filtered-P'!$AF$27)/'Filtered-P'!$AG$27)*0.5,"")),IF(Personalize!$E$44=TRUE,(((VLOOKUP($C17,Filtered!$A$1:$BB$626,21,FALSE))-Filtered!$AK$44)/Filtered!$AL$44),IF(ISBLANK(Personalize!$E$44),(((VLOOKUP($C17,Filtered!$A$1:$BB$626,21,FALSE))-Filtered!$AK$44)/Filtered!$AL$44)*0.5,""))),"") ->  | AA17: =IFERROR(IF((OR($D17="RP",$D17="SP")),IF(Personalize!$E$47=TRUE,(((VLOOKUP($C17,'Filtered-P'!$A$1:$Z$700,6,FALSE))-'Filtered-P'!$AF$12)/'Filtered-P'!$AG$12),IF(ISBLANK(Personalize!$E$47),(((VLOOKUP($C17,'Filtered-P'!$A$1:$Z$700,6,FALSE))-'Filtered-P'!$AF$12)/'Filtered-P'!$AG$12)*0.5,"")),IF(Personalize!$E$42=TRUE,(((VLOOKUP($C17,Filtered!$A$1:$BB$626,8,FALSE))-Filtered!$AK$23)/Filtered!$AL$23),IF(ISBLANK(Personalize!$E$42),(((VLOOKUP($C17,Filtered!$A$1:$BB$626,8,FALSE))-Filtered!$AK$23)/Filtered!$AL$23)*0.5,""))),"") ->  | AB17: =IFERROR(IF((OR($D17="RP",$D17="SP")),IF(Personalize!$E$48=TRUE,(((VLOOKUP($C17,'Filtered-P'!$A$1:$Z$700,5,FALSE))-'Filtered-P'!$AF$11)/'Filtered-P'!$AG$11),IF(ISBLANK(Personalize!$E$48),(((VLOOKUP($C17,'Filtered-P'!$A$1:$Z$700,5,FALSE))-'Filtered-P'!$AF$11)/'Filtered-P'!$AG$11)*0.5,"")),IF(Personalize!$E$43=TRUE,(((VLOOKUP($C17,Filtered!$A$1:$BB$626,9,FALSE))-Filtered!$AK$24)/Filtered!$AL$24),IF(ISBLANK(Personalize!$E$43),(((VLOOKUP($C17,Filtered!$A$1:$BB$626,9,FALSE))-Filtered!$AK$24)/Filtered!$AL$24)*0.5,""))),"") ->  | AC17: =IFERROR(IF((OR($D17="RP",$D17="SP")),IF(Personalize!$E$52=TRUE,(((VLOOKUP($C17,'Filtered-P'!$A$1:$AD$700,21,FALSE))-'Filtered-P'!$AF$29)/(-1*'Filtered-P'!$AG$29)),IF(ISBLANK(Personalize!$E$52),(((VLOOKUP($C17,'Filtered-P'!$A$1:$AD$700,21,FALSE))-'Filtered-P'!$AF$29)/(-1*'Filtered-P'!$AG$29))*0.5,"")),IF(Personalize!$E$49=TRUE,(((VLOOKUP($C17,Filtered!$A$1:$AF$626,30,FALSE))-Filtered!$AK$45)/Filtered!$AL$45),IF(ISBLANK(Personalize!$E$49),(((VLOOKUP($C17,Filtered!$A$1:$AF$626,30,FALSE))-Filtered!$AK$45)/Filtered!$AL$45)*0.5,""))),"") ->  | AD17: =IFERROR(IF((OR($D17="RP",$D17="SP")),IF(Personalize!$E$53=TRUE,(((VLOOKUP($C17,'Filtered-P'!$A$1:$AD$700,23,FALSE))-'Filtered-P'!$AF$31)/(-1*'Filtered-P'!$AG$31)),IF(ISBLANK(Personalize!$E$53),(((VLOOKUP($C17,'Filtered-P'!$A$1:$AD$700,23,FALSE))-'Filtered-P'!$AF$31)/(-1*'Filtered-P'!$AG$31))*0.5,"")),IF(Personalize!$E$50=TRUE,(((VLOOKUP($C17,Filtered!$A$1:$AF$626,31,FALSE))-Filtered!$AK$46)/Filtered!$AL$46),IF(ISBLANK(Personalize!$E$50),(((VLOOKUP($C17,Filtered!$A$1:$AF$626,31,FALSE))-Filtered!$AK$46)/Filtered!$AL$46)*0.5,""))),"") ->  | AE17: =IFERROR(IF((OR($D17="RP",$D17="SP")),IF(Personalize!$E$54=TRUE,(((VLOOKUP($C17,'Filtered-P'!$A$1:$AD$700,24,FALSE))-'Filtered-P'!$AF$32)/'Filtered-P'!$AG$32),IF(ISBLANK(Personalize!$E$54),(((VLOOKUP($C17,'Filtered-P'!$A$1:$AD$700,24,FALSE))-'Filtered-P'!$AF$32)/'Filtered-P'!$AG$32)*0.5,"")),IF(Personalize!$E$51=TRUE,(((VLOOKUP($C17,Filtered!$A$1:$AF$626,15,FALSE))-Filtered!$AK$30)/(-1*Filtered!$AL$30)),IF(ISBLANK(Personalize!$E$51),(((VLOOKUP($C17,Filtered!$A$1:$AF$626,15,FALSE))-Filtered!$AK$30)/(-1*Filtered!$AL$30))*0.5,""))),"") ->  | AF17: =IFERROR(IF((OR($D17="RP",$D17="SP")),IF(Personalize!$E$56=TRUE,(((VLOOKUP($C17,'Filtered-P'!$A$1:$AD$700,29,FALSE))-'Filtered-P'!$AF$35)/'Filtered-P'!$AG$35),IF(ISBLANK(Personalize!$E$56),(((VLOOKUP($C17,'Filtered-P'!$A$1:$AD$700,29,FALSE))-'Filtered-P'!$AF$35)/'Filtered-P'!$AG$35)*0.5,"")),IF(Personalize!$E$60=TRUE,(((VLOOKUP($C17,Filtered!$A$1:$AF$626,7,FALSE))-Filtered!$AK$22)/Filtered!$AL$22),IF(ISBLANK(Personalize!$E$60),(((VLOOKUP($C17,Filtered!$A$1:$AF$626,7,FALSE))-Filtered!$AK$22)/Filtered!$AL$22)*0.5,""))),"") ->  | AG17: =IFERROR(IF((OR($D17="RP",$D17="SP")),IF(Personalize!$E$57=TRUE,(((VLOOKUP($C17,'Filtered-P'!$A$1:$AD$700,28,FALSE))-'Filtered-P'!$AF$34)/'Filtered-P'!$AG$34),IF(ISBLANK(Personalize!$E$57),(((VLOOKUP($C17,'Filtered-P'!$A$1:$AD$700,28,FALSE))-'Filtered-P'!$AF$34)/'Filtered-P'!$AG$34)*0.5,"")),IF(Personalize!$E$61=TRUE,(((VLOOKUP($C17,Filtered!$A$1:$AZ$626,34,FALSE))-Filtered!$AK$47)/Filtered!$AL$47),IF(ISBLANK(Personalize!$E$61),(((VLOOKUP($C17,Filtered!$A$1:$AZ$626,34,FALSE))-Filtered!$AK$47)/Filtered!$AL$47)*0.5,""))),"") ->  | AH17: =IFERROR(IF((OR($D17="RP",$D17="SP")),IF(Personalize!$E$58=TRUE,(((VLOOKUP($C17,'Filtered-P'!$A$1:$Z$700,8,FALSE))-'Filtered-P'!$AF$14)/'Filtered-P'!$AG$14),IF(ISBLANK(Personalize!$E$58),(((VLOOKUP($C17,'Filtered-P'!$A$1:$Z$700,8,FALSE))-'Filtered-P'!$AF$14)/'Filtered-P'!$AG$14)*0.5,"")),IF(Personalize!$E$62=TRUE,(((VLOOKUP($C17,Filtered!$A$1:$AF$626,13,FALSE))-Filtered!$AK$28)/(-1*Filtered!$AL$28)),IF(ISBLANK(Personalize!$E$62),(((VLOOKUP($C17,Filtered!$A$1:$AF$626,13,FALSE))-Filtered!$AK$28)/(-1*Filtered!$AL$28))*0.5,""))),"") ->  | AI17: =IFERROR(IF((OR($D17="RP",$D17="SP")),IF(Personalize!$E$59=TRUE,(((VLOOKUP($C17,'Filtered-P'!$A$1:$AD$700,27,FALSE))-'Filtered-P'!$AF$33)/'Filtered-P'!$AG$33),IF(ISBLANK(Personalize!$E$59),(((VLOOKUP($C17,'Filtered-P'!$A$1:$AD$700,27,FALSE))-'Filtered-P'!$AF$33)/'Filtered-P'!$AG$33)*0.5,"")),IF(Personalize!$E$63=TRUE,(((VLOOKUP($C17,Filtered!$A$1:$AZ$626,35,FALSE))-Filtered!$AK$48)/(-1*Filtered!$AL$48)),IF(ISBLANK(Personalize!$E$63),(((VLOOKUP($C17,Filtered!$A$1:$AZ$626,35,FALSE))-Filtered!$AK$48)/(-1*Filtered!$AL$48))*0.5,""))),"") ->  | AJ17: =IFERROR(IF((OR($D17="RP",$D17="SP")),VLOOKUP($C17,'Filtered-P'!$A$1:$P$580,2,FALSE),""),"") ->  | AK17: =IFERROR(IF((OR($D17="RP",$D17="SP")),VLOOKUP($C17,'Filtered-P'!$A$1:$P$580,9,FALSE),""),"") ->  | AL17: =IFERROR(IF((OR($D17="RP",$D17="SP")),VLOOKUP($C17,'Filtered-P'!$A$1:$P$580,7,FALSE),""),"") ->  | AM17: =IFERROR(IF((OR($D17="RP",$D17="SP")),VLOOKUP($C17,'Filtered-P'!$A$1:$P$580,10,FALSE),""),"") ->  | AN17: =IFERROR(IF((OR($D17="RP",$D17="SP")),VLOOKUP($C17,'Filtered-P'!$A$1:$P$580,11,FALSE),""),"") ->  | AO17: =IFERROR(IF((OR($D17="RP",$D17="SP")),"",VLOOKUP($C17,Filtered!$A$1:$X$600,16,FALSE)),"") -> 0.2738872265 | AP17: =IFERROR(IF((OR($D17="RP",$D17="SP")),"",VLOOKUP($C17,Filtered!$A$1:$X$600,10,FALSE)),"") -> 32.04465295 | AQ17: =IFERROR(IF((OR($D17="RP",$D17="SP")),"",VLOOKUP($C17,Filtered!$A$1:$X$600,11,FALSE)),"") -> 98.82347699 | AR17: =IFERROR(IF((OR($D17="RP",$D17="SP")),"",VLOOKUP($C17,Filtered!$A$1:$X$600,5,FALSE)),"") -> 95.09803114 | AS17: =IFERROR(IF((OR($D17="RP",$D17="SP")),"",VLOOKUP($C17,Filtered!$A$1:$X$600,12,FALSE)),"") -> 9.504983852 | AU17: =IF(ISBLANK(A17),0,1) -> 0 | AV17: =IF(M17="",0,1) -> 1 | AW17: =A17 -> 0 | AX17: =IF(D17="C",1,IF(D17="1B",2,IF(D17="2B",3,IF(D17="3B",4,IF(D17="SS",5,IF(D17="CI",6,IF(D17="MI",7,IF(D17="OF",11,IF(D17="LF",8,IF(D17="CF",9,IF(D17="RF",10,IF(D17="DH",12,IF(D17="SP",13,IF(D17="RP",14,IF(D17="P",15,16))))))))))))))) -> 2 | AY17: =VLOOKUP(C17,'Starter Calc'!$B$2:$BS$700,70,FALSE) -> Bench | AZ17: =VLOOKUP(C17,'Starter Calc'!$B$2:$AO$700,40,FALSE) -> Yes | BA17: =IFERROR(IF(ISTEXT($A17),"",IF((OR($D17="RP",$D17="SP")),ABS(VLOOKUP(D17,'Filtered-P'!$AE$3:$AI$4,5,FALSE))+M17,ABS(VLOOKUP(D17,Filtered!$AJ$3:$AN$14,5,FALSE))+M17)),"") -> 9.212585959 | BB17: =IFERROR(BA17+ABS($BA$4),"") -> 9.936409035 | BC17: =IF(AND($A17<>"",$B17<>""),B17,"N") -> N | BD17: =IFERROR(VLOOKUP($C17,'ADP-Rank'!$A$2:$AB$581,25,FALSE),TRUE) -> TRUE | BE17: =IFERROR((BB17-BB$3)^2,"") -> 25.94311103 | BF17: =VLOOKUP(C17,'Starter Calc'!$B$2:$CD$700,71,FALSE) -> 1B.Yes | BG17: =IFERROR(((Personalize!$A$1-(1*Personalize!$A$2))/Personalize!$A$2)*(N17/$BG$3)+1,"") -> 24.12498398 | BH17: 26.92177964 | BI17: 26.92177964
C18: Kris Bryant | D18: 3B | E18: =IFERROR(IF(VLOOKUP(C18,'Starter Calc'!$B$2:$E$700,4,FALSE)="","",VLOOKUP(C18,'Starter Calc'!$B$2:$E$700,4,FALSE)),"") -> ,, | F18: =IFERROR(VLOOKUP($C18,'ADP-Rank'!$A$2:$G$581,5,FALSE),"") -> CHC | G18: =IFERROR(VLOOKUP($C18,'ADP-Rank'!$A$2:$X$581,6,FALSE),"") -> 24 | H18: =IFERROR(IF(ISBLANK($B18),"$"&(ROUND(BI18,0))&" | $"&ROUND(BH18,0),""),"") -> $29 | $29 | I18: =IFERROR(IF(RIGHT(D18,1)="P",J18*$BE$2,J18*$BE$1),"") -> 33.06666667 | J18: =IFERROR(CHOOSE(Personalize!$E$31,(VLOOKUP(C18,'ADP-Rank'!$A$2:$Z$581,7,FALSE)*(Personalize!$A$3)+1),(VLOOKUP(C18,'ADP-Rank'!$A$2:$Z$581,8,FALSE)*(Personalize!$A$3)+1),(VLOOKUP(C18,'ADP-Rank'!$A$2:$Z$581,9,FALSE)*(Personalize!$A$3)+1),(VLOOKUP(C18,'ADP-Rank'!$A$2:$AA$581,10,FALSE)*(Personalize!$A$3)+1),(VLOOKUP(C18,'ADP-Rank'!$A$2:$AA$581,11,FALSE)*(Personalize!$A$3)+1),(VLOOKUP(C18,'ADP-Rank'!$A$2:$AA$581,12,FALSE)*(Personalize!$A$3)+1),(VLOOKUP(C18,'ADP-Rank'!$A$2:$AA$581,13,FALSE)*(Personalize!$A$3)+1),(VLOOKUP(C18,'ADP-Rank'!$A$2:$AA$581,14,FALSE)*(Personalize!$A$3)+1),(VLOOKUP(C18,'ADP-Rank'!$A$2:$AA$581,15,FALSE)*(Personalize!$A$3)+1),(VLOOKUP(C18,'ADP-Rank'!$A$2:$AG$581,28,FALSE)*(Personalize!$A$3)+1)),"") -> 33.06666667 | K18: =VLOOKUP($C18,'ADP-Rank'!$A$2:$AB$581,26,FALSE) -> 13 | L18: =IFERROR(RANK($M18,$M$7:$M$746,0),"") -> 12 | M18: =IF((SUM(O18:AI18)=0),"",SUM(O18:AI18)) -> 7.482786597 | N18: =IFERROR(IF((OR($D18="RP",$D18="SP")),ABS(VLOOKUP(D18,'Filtered-P'!$AE$3:$AI$4,5,FALSE))+M18,ABS(VLOOKUP(D18,Filtered!$AJ$3:$AN$14,5,FALSE))+M18),"") -> 9.856228446 | O18: =IFERROR(IF((OR($D18="RP",$D18="SP")),IF(Personalize!$E$10=TRUE,(((VLOOKUP($C18,'Filtered-P'!$A$1:$P$700,2,FALSE))-'Filtered-P'!$AF$8)/'Filtered-P'!$AG$8),IF(ISBLANK(Personalize!$E$10),(((VLOOKUP($C18,'Filtered-P'!$A$1:$P$700,2,FALSE))-'Filtered-P'!$AF$8)/'Filtered-P'!$AG$8)*0.5,"")),IF(Personalize!$E$4=TRUE,(((VLOOKUP($C18,Filtered!$A$1:$X$626,22,FALSE))-Filtered!$AK$35)/Filtered!$AL$35),IF(ISBLANK(Personalize!$E$4),(((VLOOKUP($C18,Filtered!$A$1:$X$626,22,FALSE))-Filtered!$AK$35)/Filtered!$AL$35)*0.5,""))),"") -> 0.2786676807 | P18: =IFERROR(IF((OR($D18="RP",$D18="SP")),IF(Personalize!$E$12=TRUE,(((VLOOKUP($C18,'Filtered-P'!$A$1:$P$700,9,FALSE))-'Filtered-P'!$AF$15)/'Filtered-P'!$AG$15),IF(ISBLANK(Personalize!$E$12),(((VLOOKUP($C18,'Filtered-P'!$A$1:$P$700,9,FALSE))-'Filtered-P'!$AF$15)/'Filtered-P'!$AG$15)*0.5,"")),IF(Personalize!$E$3=TRUE,(((VLOOKUP($C18,Filtered!$A$1:$AB$626,10,FALSE))-Filtered!$AK$25)/Filtered!$AL$25),IF(ISBLANK(Personalize!$E$3),(((VLOOKUP($C18,Filtered!$A$1:$AB$626,10,FALSE))-Filtered!$AK$25)/Filtered!$AL$25)*0.5,""))),"") -> 1.559697658 | Q18: =IFERROR(IF((OR($D18="RP",$D18="SP")),IF(Personalize!$E$11=TRUE,(((VLOOKUP($C18,'Filtered-P'!$A$1:$P$700,7,FALSE))-'Filtered-P'!$AF$13)/'Filtered-P'!$AG$13),IF(ISBLANK(Personalize!$E$11),(((VLOOKUP($C18,'Filtered-P'!$A$1:$P$700,7,FALSE))-'Filtered-P'!$AF$13)/'Filtered-P'!$AG$13)*0.5,"")),IF(Personalize!$E$2=TRUE,(((VLOOKUP($C18,Filtered!$A$1:$AB$626,5,FALSE))-Filtered!$AK$20)/Filtered!$AL$20),IF(ISBLANK(Personalize!$E$2),(((VLOOKUP($C18,Filtered!$A$1:$AB$626,5,FALSE))-Filtered!$AK$20)/Filtered!$AL$20)*0.5,""))),"") -> 1.576172926 | R18: =IFERROR(IF((OR($D18="RP",$D18="SP")),IF(Personalize!$E$13=TRUE,(((VLOOKUP($C18,'Filtered-P'!$A$1:$P$700,13,FALSE))-'Filtered-P'!$AF$19)/'Filtered-P'!$AG$19),IF(ISBLANK(Personalize!$E$13),(((VLOOKUP($C18,'Filtered-P'!$A$1:$P$700,13,FALSE))-'Filtered-P'!$AF$19)/'Filtered-P'!$AG$19)*0.5,"")),IF(Personalize!$E$5=TRUE,(((VLOOKUP($C18,Filtered!$A$1:$AB$626,11,FALSE))-Filtered!$AK$26)/Filtered!$AL$26),IF(ISBLANK(Personalize!$E$5),(((VLOOKUP($C18,Filtered!$A$1:$AB$626,11,FALSE))-Filtered!$AK$26)/Filtered!$AL$26)*0.5,""))),"") -> 2.059216246 | S18: =IFERROR(IF((OR($D18="RP",$D18="SP")),IF(Personalize!$E$14=TRUE,(((VLOOKUP($C18,'Filtered-P'!$A$1:$P$700,14,FALSE))-'Filtered-P'!$AF$20)/'Filtered-P'!$AG$20),IF(ISBLANK(Personalize!$E$14),(((VLOOKUP($C18,'Filtered-P'!$A$1:$P$700,14,FALSE))-'Filtered-P'!$AF$20)/'Filtered-P'!$AG$20)*0.5,"")),IF(Personalize!$E$6=TRUE,(((VLOOKUP($C18,Filtered!$A$1:$AB$626,12,FALSE))-Filtered!$AK$27)/Filtered!$AL$27),IF(ISBLANK(Personalize!$E$6),(((VLOOKUP($C18,Filtered!$A$1:$AB$626,12,FALSE))-Filtered!$AK$27)/Filtered!$AL$27)*0.5,""))),"") -> 0.3802813581 | T18: =IFERROR(IF((OR($D18="RP",$D18="SP")),IF(Personalize!$E$16=TRUE,(((VLOOKUP($C18,'Filtered-P'!$A$1:$P$700,3,FALSE))-'Filtered-P'!$AF$9)/'Filtered-P'!$AG$9),IF(ISBLANK(Personalize!$E$16),(((VLOOKUP($C18,'Filtered-P'!$A$1:$P$700,3,FALSE))-'Filtered-P'!$AF$9)/'Filtered-P'!$AG$9)*0.5,"")),IF(Personalize!$E$7=TRUE,(((VLOOKUP($C18,Filtered!$A$1:$BB$626,24,FALSE))-Filtered!$AK$37)/Filtered!$AL$37),IF(ISBLANK(Personalize!$E$7),(((VLOOKUP($C18,Filtered!$A$1:$BB$626,24,FALSE))-Filtered!$AK$37)/Filtered!$AL$37)*0.5,""))),"") -> 1.628750729 | U18: =IFERROR(IF((OR($D18="RP",$D18="SP")),IF(Personalize!$E$15=TRUE,(((VLOOKUP($C18,'Filtered-P'!$A$1:$P$700,15,FALSE))-'Filtered-P'!$AF$21)/'Filtered-P'!$AG$21),IF(ISBLANK(Personalize!$E$15),(((VLOOKUP($C18,'Filtered-P'!$A$1:$P$700,15,FALSE))-'Filtered-P'!$AF$21)/'Filtered-P'!$AG$21)*0.5,"")),IF(Personalize!$E$8=TRUE,(((VLOOKUP($C18,Filtered!$A$1:$BB$626,23,FALSE))-Filtered!$AK$36)/Filtered!$AL$36),IF(ISBLANK(Personalize!$E$8),(((VLOOKUP($C18,Filtered!$A$1:$BB$626,23,FALSE))-Filtered!$AK$36)/Filtered!$AL$36)*0.5,""))),"") ->  | V18: =IFERROR(IF((OR($D18="RP",$D18="SP")),IF(Personalize!$E$17=TRUE,(((VLOOKUP($C18,'Filtered-P'!$A$1:$P$700,16,FALSE))-'Filtered-P'!$AF$22)/'Filtered-P'!$AG$22),IF(ISBLANK(Personalize!$E$17),(((VLOOKUP($C18,'Filtered-P'!$A$1:$P$700,16,FALSE))-'Filtered-P'!$AF$22)/'Filtered-P'!$AG$22)*0.5,"")),IF(Personalize!$E$9=TRUE,(((VLOOKUP($C18,Filtered!$A$1:$BB$626,25,FALSE))-Filtered!$AK$38)/Filtered!$AL$38),IF(ISBLANK(Personalize!$E$9),(((VLOOKUP($C18,Filtered!$A$1:$BB$626,25,FALSE))-Filtered!$AK$38)/Filtered!$AL$38)*0.5,""))),"") ->  | W18: =IFERROR(IF((OR($D18="RP",$D18="SP")),IF(Personalize!$E$37=TRUE,(((VLOOKUP($C18,'Filtered-P'!$A$1:$Z$700,17,FALSE))-'Filtered-P'!$AF$25)/'Filtered-P'!$AG$25),IF(ISBLANK(Personalize!$E$37),(((VLOOKUP($C18,'Filtered-P'!$A$1:$Z$700,17,FALSE))-'Filtered-P'!$AF$25)/'Filtered-P'!$AG$25)*0.5,"")),IF(Personalize!$E$39=TRUE,(((VLOOKUP($C18,Filtered!$A$1:$X$626,14,FALSE))-Filtered!$AK$29)/Filtered!$AL$29),IF(ISBLANK(Personalize!$E$39),(((VLOOKUP($C18,Filtered!$A$1:$X$626,14,FALSE))-Filtered!$AK$29)/Filtered!$AL$29)*0.5,""))),"") ->  | X18: =IFERROR(IF((OR($D18="RP",$D18="SP")),IF(Personalize!$E$38=TRUE,(((VLOOKUP($C18,'Filtered-P'!$A$1:$Z$700,18,FALSE))-'Filtered-P'!$AF$26)/'Filtered-P'!$AG$26),IF(ISBLANK(Personalize!$E$38),(((VLOOKUP($C18,'Filtered-P'!$A$1:$Z$700,18,FALSE))-'Filtered-P'!$AF$26)/'Filtered-P'!$AG$26)*0.5,"")),IF(Personalize!$E$40=TRUE,(((VLOOKUP($C18,Filtered!$A$1:$X$626,6,FALSE))-Filtered!$AK$21)/Filtered!$AL$21),IF(ISBLANK(Personalize!$E$40),(((VLOOKUP($C18,Filtered!$A$1:$X$626,6,FALSE))-Filtered!$AK$21)/Filtered!$AL$21)*0.5,""))),"") ->  | Y18: =IFERROR(IF((OR($D18="RP",$D18="SP")),IF(Personalize!$E$45=TRUE,(((VLOOKUP($C18,'Filtered-P'!$A$1:$Z$700,4,FALSE))-'Filtered-P'!$AF$10)/'Filtered-P'!$AG$10),IF(ISBLANK(Personalize!$E$45),(((VLOOKUP($C18,'Filtered-P'!$A$1:$Z$700,4,FALSE))-'Filtered-P'!$AF$10)/'Filtered-P'!$AG$10)*0.5,"")),IF(Personalize!$E$41=TRUE,(((VLOOKUP($C18,Filtered!$A$1:$BB$626,20,FALSE))-Filtered!$AK$43)/Filtered!$AL$43),IF(ISBLANK(Personalize!$E$41),(((VLOOKUP($C18,Filtered!$A$1:$BB$626,20,FALSE))-Filtered!$AK$43)/Filtered!$AL$43)*0.5,""))),"") ->  | Z18: =IFERROR(IF((OR($D18="RP",$D18="SP")),IF(Personalize!$E$46=TRUE,(((VLOOKUP($C18,'Filtered-P'!$A$1:$Z$700,19,FALSE))-'Filtered-P'!$AF$27)/'Filtered-P'!$AG$27),IF(ISBLANK(Personalize!$E$46),(((VLOOKUP($C18,'Filtered-P'!$A$1:$Z$700,19,FALSE))-'Filtered-P'!$AF$27)/'Filtered-P'!$AG$27)*0.5,"")),IF(Personalize!$E$44=TRUE,(((VLOOKUP($C18,Filtered!$A$1:$BB$626,21,FALSE))-Filtered!$AK$44)/Filtered!$AL$44),IF(ISBLANK(Personalize!$E$44),(((VLOOKUP($C18,Filtered!$A$1:$BB$626,21,FALSE))-Filtered!$AK$44)/Filtered!$AL$44)*0.5,""))),"") ->  | AA18: =IFERROR(IF((OR($D18="RP",$D18="SP")),IF(Personalize!$E$47=TRUE,(((VLOOKUP($C18,'Filtered-P'!$A$1:$Z$700,6,FALSE))-'Filtered-P'!$AF$12)/'Filtered-P'!$AG$12),IF(ISBLANK(Personalize!$E$47),(((VLOOKUP($C18,'Filtered-P'!$A$1:$Z$700,6,FALSE))-'Filtered-P'!$AF$12)/'Filtered-P'!$AG$12)*0.5,"")),IF(Personalize!$E$42=TRUE,(((VLOOKUP($C18,Filtered!$A$1:$BB$626,8,FALSE))-Filtered!$AK$23)/Filtered!$AL$23),IF(ISBLANK(Personalize!$E$42),(((VLOOKUP($C18,Filtered!$A$1:$BB$626,8,FALSE))-Filtered!$AK$23)/Filtered!$AL$23)*0.5,""))),"") ->  | AB18: =IFERROR(IF((OR($D18="RP",$D18="SP")),IF(Personalize!$E$48=TRUE,(((VLOOKUP($C18,'Filtered-P'!$A$1:$Z$700,5,FALSE))-'Filtered-P'!$AF$11)/'Filtered-P'!$AG$11),IF(ISBLANK(Personalize!$E$48),(((VLOOKUP($C18,'Filtered-P'!$A$1:$Z$700,5,FALSE))-'Filtered-P'!$AF$11)/'Filtered-P'!$AG$11)*0.5,"")),IF(Personalize!$E$43=TRUE,(((VLOOKUP($C18,Filtered!$A$1:$BB$626,9,FALSE))-Filtered!$AK$24)/Filtered!$AL$24),IF(ISBLANK(Personalize!$E$43),(((VLOOKUP($C18,Filtered!$A$1:$BB$626,9,FALSE))-Filtered!$AK$24)/Filtered!$AL$24)*0.5,""))),"") ->  | AC18: =IFERROR(IF((OR($D18="RP",$D18="SP")),IF(Personalize!$E$52=TRUE,(((VLOOKUP($C18,'Filtered-P'!$A$1:$AD$700,21,FALSE))-'Filtered-P'!$AF$29)/(-1*'Filtered-P'!$AG$29)),IF(ISBLANK(Personalize!$E$52),(((VLOOKUP($C18,'Filtered-P'!$A$1:$AD$700,21,FALSE))-'Filtered-P'!$AF$29)/(-1*'Filtered-P'!$AG$29))*0.5,"")),IF(Personalize!$E$49=TRUE,(((VLOOKUP($C18,Filtered!$A$1:$AF$626,30,FALSE))-Filtered!$AK$45)/Filtered!$AL$45),IF(ISBLANK(Personalize!$E$49),(((VLOOKUP($C18,Filtered!$A$1:$AF$626,30,FALSE))-Filtered!$AK$45)/Filtered!$AL$45)*0.5,""))),"") ->  | AD18: =IFERROR(IF((OR($D18="RP",$D18="SP")),IF(Personalize!$E$53=TRUE,(((VLOOKUP($C18,'Filtered-P'!$A$1:$AD$700,23,FALSE))-'Filtered-P'!$AF$31)/(-1*'Filtered-P'!$AG$31)),IF(ISBLANK(Personalize!$E$53),(((VLOOKUP($C18,'Filtered-P'!$A$1:$AD$700,23,FALSE))-'Filtered-P'!$AF$31)/(-1*'Filtered-P'!$AG$31))*0.5,"")),IF(Personalize!$E$50=TRUE,(((VLOOKUP($C18,Filtered!$A$1:$AF$626,31,FALSE))-Filtered!$AK$46)/Filtered!$AL$46),IF(ISBLANK(Personalize!$E$50),(((VLOOKUP($C18,Filtered!$A$1:$AF$626,31,FALSE))-Filtered!$AK$46)/Filtered!$AL$46)*0.5,""))),"") ->  | AE18: =IFERROR(IF((OR($D18="RP",$D18="SP")),IF(Personalize!$E$54=TRUE,(((VLOOKUP($C18,'Filtered-P'!$A$1:$AD$700,24,FALSE))-'Filtered-P'!$AF$32)/'Filtered-P'!$AG$32),IF(ISBLANK(Personalize!$E$54),(((VLOOKUP($C18,'Filtered-P'!$A$1:$AD$700,24,FALSE))-'Filtered-P'!$AF$32)/'Filtered-P'!$AG$32)*0.5,"")),IF(Personalize!$E$51=TRUE,(((VLOOKUP($C18,Filtered!$A$1:$AF$626,15,FALSE))-Filtered!$AK$30)/(-1*Filtered!$AL$30)),IF(ISBLANK(Personalize!$E$51),(((VLOOKUP($C18,Filtered!$A$1:$AF$626,15,FALSE))-Filtered!$AK$30)/(-1*Filtered!$AL$30))*0.5,""))),"") ->  | AF18: =IFERROR(IF((OR($D18="RP",$D18="SP")),IF(Personalize!$E$56=TRUE,(((VLOOKUP($C18,'Filtered-P'!$A$1:$AD$700,29,FALSE))-'Filtered-P'!$AF$35)/'Filtered-P'!$AG$35),IF(ISBLANK(Personalize!$E$56),(((VLOOKUP($C18,'Filtered-P'!$A$1:$AD$700,29,FALSE))-'Filtered-P'!$AF$35)/'Filtered-P'!$AG$35)*0.5,"")),IF(Personalize!$E$60=TRUE,(((VLOOKUP($C18,Filtered!$A$1:$AF$626,7,FALSE))-Filtered!$AK$22)/Filtered!$AL$22),IF(ISBLANK(Personalize!$E$60),(((VLOOKUP($C18,Filtered!$A$1:$AF$626,7,FALSE))-Filtered!$AK$22)/Filtered!$AL$22)*0.5,""))),"") ->  | AG18: =IFERROR(IF((OR($D18="RP",$D18="SP")),IF(Personalize!$E$57=TRUE,(((VLOOKUP($C18,'Filtered-P'!$A$1:$AD$700,28,FALSE))-'Filtered-P'!$AF$34)/'Filtered-P'!$AG$34),IF(ISBLANK(Personalize!$E$57),(((VLOOKUP($C18,'Filtered-P'!$A$1:$AD$700,28,FALSE))-'Filtered-P'!$AF$34)/'Filtered-P'!$AG$34)*0.5,"")),IF(Personalize!$E$61=TRUE,(((VLOOKUP($C18,Filtered!$A$1:$AZ$626,34,FALSE))-Filtered!$AK$47)/Filtered!$AL$47),IF(ISBLANK(Personalize!$E$61),(((VLOOKUP($C18,Filtered!$A$1:$AZ$626,34,FALSE))-Filtered!$AK$47)/Filtered!$AL$47)*0.5,""))),"") ->  | AH18: =IFERROR(IF((OR($D18="RP",$D18="SP")),IF(Personalize!$E$58=TRUE,(((VLOOKUP($C18,'Filtered-P'!$A$1:$Z$700,8,FALSE))-'Filtered-P'!$AF$14)/'Filtered-P'!$AG$14),IF(ISBLANK(Personalize!$E$58),(((VLOOKUP($C18,'Filtered-P'!$A$1:$Z$700,8,FALSE))-'Filtered-P'!$AF$14)/'Filtered-P'!$AG$14)*0.5,"")),IF(Personalize!$E$62=TRUE,(((VLOOKUP($C18,Filtered!$A$1:$AF$626,13,FALSE))-Filtered!$AK$28)/(-1*Filtered!$AL$28)),IF(ISBLANK(Personalize!$E$62),(((VLOOKUP($C18,Filtered!$A$1:$AF$626,13,FALSE))-Filtered!$AK$28)/(-1*Filtered!$AL$28))*0.5,""))),"") ->  | AI18: =IFERROR(IF((OR($D18="RP",$D18="SP")),IF(Personalize!$E$59=TRUE,(((VLOOKUP($C18,'Filtered-P'!$A$1:$AD$700,27,FALSE))-'Filtered-P'!$AF$33)/'Filtered-P'!$AG$33),IF(ISBLANK(Personalize!$E$59),(((VLOOKUP($C18,'Filtered-P'!$A$1:$AD$700,27,FALSE))-'Filtered-P'!$AF$33)/'Filtered-P'!$AG$33)*0.5,"")),IF(Personalize!$E$63=TRUE,(((VLOOKUP($C18,Filtered!$A$1:$AZ$626,35,FALSE))-Filtered!$AK$48)/(-1*Filtered!$AL$48)),IF(ISBLANK(Personalize!$E$63),(((VLOOKUP($C18,Filtered!$A$1:$AZ$626,35,FALSE))-Filtered!$AK$48)/(-1*Filtered!$AL$48))*0.5,""))),"") ->  | AJ18: =IFERROR(IF((OR($D18="RP",$D18="SP")),VLOOKUP($C18,'Filtered-P'!$A$1:$P$580,2,FALSE),""),"") ->  | AK18: =IFERROR(IF((OR($D18="RP",$D18="SP")),VLOOKUP($C18,'Filtered-P'!$A$1:$P$580,9,FALSE),""),"") ->  | AL18: =IFERROR(IF((OR($D18="RP",$D18="SP")),VLOOKUP($C18,'Filtered-P'!$A$1:$P$580,7,FALSE),""),"") ->  | AM18: =IFERROR(IF((OR($D18="RP",$D18="SP")),VLOOKUP($C18,'Filtered-P'!$A$1:$P$580,10,FALSE),""),"") ->  | AN18: =IFERROR(IF((OR($D18="RP",$D18="SP")),VLOOKUP($C18,'Filtered-P'!$A$1:$P$580,11,FALSE),""),"") ->  | AO18: =IFERROR(IF((OR($D18="RP",$D18="SP")),"",VLOOKUP($C18,Filtered!$A$1:$X$600,16,FALSE)),"") -> 0.272501096 | AP18: =IFERROR(IF((OR($D18="RP",$D18="SP")),"",VLOOKUP($C18,Filtered!$A$1:$X$600,10,FALSE)),"") -> 30.56549046 | AQ18: =IFERROR(IF((OR($D18="RP",$D18="SP")),"",VLOOKUP($C18,Filtered!$A$1:$X$600,11,FALSE)),"") -> 102.9208361 | AR18: =IFERROR(IF((OR($D18="RP",$D18="SP")),"",VLOOKUP($C18,Filtered!$A$1:$X$600,5,FALSE)),"") -> 92.26531581 | AS18: =IFERROR(IF((OR($D18="RP",$D18="SP")),"",VLOOKUP($C18,Filtered!$A$1:$X$600,12,FALSE)),"") -> 12.68789401 | AU18: =IF(ISBLANK(A18),0,1) -> 0 | AV18: =IF(M18="",0,1) -> 1 | AW18: =A18 -> 0 | AX18: =IF(D18="C",1,IF(D18="1B",2,IF(D18="2B",3,IF(D18="3B",4,IF(D18="SS",5,IF(D18="CI",6,IF(D18="MI",7,IF(D18="OF",11,IF(D18="LF",8,IF(D18="CF",9,IF(D18="RF",10,IF(D18="DH",12,IF(D18="SP",13,IF(D18="RP",14,IF(D18="P",15,16))))))))))))))) -> 4 | AY18: =VLOOKUP(C18,'Starter Calc'!$B$2:$BS$700,70,FALSE) -> Bench | AZ18: =VLOOKUP(C18,'Starter Calc'!$B$2:$AO$700,40,FALSE) -> Yes | BA18: =IFERROR(IF(ISTEXT($A18),"",IF((OR($D18="RP",$D18="SP")),ABS(VLOOKUP(D18,'Filtered-P'!$AE$3:$AI$4,5,FALSE))+M18,ABS(VLOOKUP(D18,Filtered!$AJ$3:$AN$14,5,FALSE))+M18)),"") -> 9.856228446 | BB18: =IFERROR(BA18+ABS($BA$4),"") -> 10.58005152 | BC18: =IF(AND($A18<>"",$B18<>""),B18,"N") -> N | BD18: =IFERROR(VLOOKUP($C18,'ADP-Rank'!$A$2:$AB$581,25,FALSE),TRUE) -> TRUE | BE18: =IFERROR((BB18-BB$3)^2,"") -> 32.91409293 | BF18: =VLOOKUP(C18,'Starter Calc'!$B$2:$CD$700,71,FALSE) -> 3B.Yes | BG18: =IFERROR(((Personalize!$A$1-(1*Personalize!$A$2))/Personalize!$A$2)*(N18/$BG$3)+1,"") -> 25.74062396 | BH18: 28.72471984 | BI18: 28.72471984
C19: Chris Sale | D19: SP | E19: =IFERROR(IF(VLOOKUP(C19,'Starter Calc'!$B$2:$E$700,4,FALSE)="","",VLOOKUP(C19,'Starter Calc'!$B$2:$E$700,4,FALSE)),"") -> ,, | F19: =IFERROR(VLOOKUP($C19,'ADP-Rank'!$A$2:$G$581,5,FALSE),"") -> CHW | G19: =IFERROR(VLOOKUP($C19,'ADP-Rank'!$A$2:$X$581,6,FALSE),"") -> 26 | H19: =IFERROR(IF(ISBLANK($B19),"$"&(ROUND(BI19,0))&" | $"&ROUND(BH19,0),""),"") -> $28 | $28 | I19: =IFERROR(IF(RIGHT(D19,1)="P",J19*$BE$2,J19*$BE$1),"") -> 24.4 | J19: =IFERROR(CHOOSE(Personalize!$E$31,(VLOOKUP(C19,'ADP-Rank'!$A$2:$Z$581,7,FALSE)*(Personalize!$A$3)+1),(VLOOKUP(C19,'ADP-Rank'!$A$2:$Z$581,8,FALSE)*(Personalize!$A$3)+1),(VLOOKUP(C19,'ADP-Rank'!$A$2:$Z$581,9,FALSE)*(Personalize!$A$3)+1),(VLOOKUP(C19,'ADP-Rank'!$A$2:$AA$581,10,FALSE)*(Personalize!$A$3)+1),(VLOOKUP(C19,'ADP-Rank'!$A$2:$AA$581,11,FALSE)*(Personalize!$A$3)+1),(VLOOKUP(C19,'ADP-Rank'!$A$2:$AA$581,12,FALSE)*(Personalize!$A$3)+1),(VLOOKUP(C19,'ADP-Rank'!$A$2:$AA$581,13,FALSE)*(Personalize!$A$3)+1),(VLOOKUP(C19,'ADP-Rank'!$A$2:$AA$581,14,FALSE)*(Personalize!$A$3)+1),(VLOOKUP(C19,'ADP-Rank'!$A$2:$AA$581,15,FALSE)*(Personalize!$A$3)+1),(VLOOKUP(C19,'ADP-Rank'!$A$2:$AG$581,28,FALSE)*(Personalize!$A$3)+1)),"") -> 24.4 | K19: =VLOOKUP($C19,'ADP-Rank'!$A$2:$AB$581,26,FALSE) -> 22 | L19: =IFERROR(RANK($M19,$M$7:$M$746,0),"") -> 13 | M19: =IF((SUM(O19:AI19)=0),"",SUM(O19:AI19)) -> 7.461880917 | N19: =IFERROR(IF((OR($D19="RP",$D19="SP")),ABS(VLOOKUP(D19,'Filtered-P'!$AE$3:$AI$4,5,FALSE))+M19,ABS(VLOOKUP(D19,Filtered!$AJ$3:$AN$14,5,FALSE))+M19),"") -> 10.57529186 | O19: =IFERROR(IF((OR($D19="RP",$D19="SP")),IF(Personalize!$E$10=TRUE,(((VLOOKUP($C19,'Filtered-P'!$A$1:$P$700,2,FALSE))-'Filtered-P'!$AF$8)/'Filtered-P'!$AG$8),IF(ISBLANK(Personalize!$E$10),(((VLOOKUP($C19,'Filtered-P'!$A$1:$P$700,2,FALSE))-'Filtered-P'!$AF$8)/'Filtered-P'!$AG$8)*0.5,"")),IF(Personalize!$E$4=TRUE,(((VLOOKUP($C19,Filtered!$A$1:$X$626,22,FALSE))-Filtered!$AK$35)/Filtered!$AL$35),IF(ISBLANK(Personalize!$E$4),(((VLOOKUP($C19,Filtered!$A$1:$X$626,22,FALSE))-Filtered!$AK$35)/Filtered!$AL$35)*0.5,""))),"") -> 1.304170416 | P19: =IFERROR(IF((OR($D19="RP",$D19="SP")),IF(Personalize!$E$12=TRUE,(((VLOOKUP($C19,'Filtered-P'!$A$1:$P$700,9,FALSE))-'Filtered-P'!$AF$15)/'Filtered-P'!$AG$15),IF(ISBLANK(Personalize!$E$12),(((VLOOKUP($C19,'Filtered-P'!$A$1:$P$700,9,FALSE))-'Filtered-P'!$AF$15)/'Filtered-P'!$AG$15)*0.5,"")),IF(Personalize!$E$3=TRUE,(((VLOOKUP($C19,Filtered!$A$1:$AB$626,10,FALSE))-Filtered!$AK$25)/Filtered!$AL$25),IF(ISBLANK(Personalize!$E$3),(((VLOOKUP($C19,Filtered!$A$1:$AB$626,10,FALSE))-Filtered!$AK$25)/Filtered!$AL$25)*0.5,""))),"") -> -0.4827187472 | Q19: =IFERROR(IF((OR($D19="RP",$D19="SP")),IF(Personalize!$E$11=TRUE,(((VLOOKUP($C19,'Filtered-P'!$A$1:$P$700,7,FALSE))-'Filtered-P'!$AF$13)/'Filtered-P'!$AG$13),IF(ISBLANK(Personalize!$E$11),(((VLOOKUP($C19,'Filtered-P'!$A$1:$P$700,7,FALSE))-'Filtered-P'!$AF$13)/'Filtered-P'!$AG$13)*0.5,"")),IF(Personalize!$E$2=TRUE,(((VLOOKUP($C19,Filtered!$A$1:$AB$626,5,FALSE))-Filtered!$AK$20)/Filtered!$AL$20),IF(ISBLANK(Personalize!$E$2),(((VLOOKUP($C19,Filtered!$A$1:$AB$626,5,FALSE))-Filtered!$AK$20)/Filtered!$AL$20)*0.5,""))),"") -> 2.00832304 | R19: =IFERROR(IF((OR($D19="RP",$D19="SP")),IF(Personalize!$E$13=TRUE,(((VLOOKUP($C19,'Filtered-P'!$A$1:$P$700,13,FALSE))-'Filtered-P'!$AF$19)/'Filtered-P'!$AG$19),IF(ISBLANK(Personalize!$E$13),(((VLOOKUP($C19,'Filtered-P'!$A$1:$P$700,13,FALSE))-'Filtered-P'!$AF$19)/'Filtered-P'!$AG$19)*0.5,"")),IF(Personalize!$E$5=TRUE,(((VLOOKUP($C19,Filtered!$A$1:$AB$626,11,FALSE))-Filtered!$AK$26)/Filtered!$AL$26),IF(ISBLANK(Personalize!$E$5),(((VLOOKUP($C19,Filtered!$A$1:$AB$626,11,FALSE))-Filtered!$AK$26)/Filtered!$AL$26)*0.5,""))),"") -> 2.014394888 | S19: =IFERROR(IF((OR($D19="RP",$D19="SP")),IF(Personalize!$E$14=TRUE,(((VLOOKUP($C19,'Filtered-P'!$A$1:$P$700,14,FALSE))-'Filtered-P'!$AF$20)/'Filtered-P'!$AG$20),IF(ISBLANK(Personalize!$E$14),(((VLOOKUP($C19,'Filtered-P'!$A$1:$P$700,14,FALSE))-'Filtered-P'!$AF$20)/'Filtered-P'!$AG$20)*0.5,"")),IF(Personalize!$E$6=TRUE,(((VLOOKUP($C19,Filtered!$A$1:$AB$626,12,FALSE))-Filtered!$AK$27)/Filtered!$AL$27),IF(ISBLANK(Personalize!$E$6),(((VLOOKUP($C19,Filtered!$A$1:$AB$626,12,FALSE))-Filtered!$AK$27)/Filtered!$AL$27)*0.5,""))),"") -> 2.61771132 | T19: =IFERROR(IF((OR($D19="RP",$D19="SP")),IF(Personalize!$E$16=TRUE,(((VLOOKUP($C19,'Filtered-P'!$A$1:$P$700,3,FALSE))-'Filtered-P'!$AF$9)/'Filtered-P'!$AG$9),IF(ISBLANK(Personalize!$E$16),(((VLOOKUP($C19,'Filtered-P'!$A$1:$P$700,3,FALSE))-'Filtered-P'!$AF$9)/'Filtered-P'!$AG$9)*0.5,"")),IF(Personalize!$E$7=TRUE,(((VLOOKUP($C19,Filtered!$A$1:$BB$626,24,FALSE))-Filtered!$AK$37)/Filtered!$AL$37),IF(ISBLANK(Personalize!$E$7),(((VLOOKUP($C19,Filtered!$A$1:$BB$626,24,FALSE))-Filtered!$AK$37)/Filtered!$AL$37)*0.5,""))),"") ->  | U19: =IFERROR(IF((OR($D19="RP",$D19="SP")),IF(Personalize!$E$15=TRUE,(((VLOOKUP($C19,'Filtered-P'!$A$1:$P$700,15,FALSE))-'Filtered-P'!$AF$21)/'Filtered-P'!$AG$21),IF(ISBLANK(Personalize!$E$15),(((VLOOKUP($C19,'Filtered-P'!$A$1:$P$700,15,FALSE))-'Filtered-P'!$AF$21)/'Filtered-P'!$AG$21)*0.5,"")),IF(Personalize!$E$8=TRUE,(((VLOOKUP($C19,Filtered!$A$1:$BB$626,23,FALSE))-Filtered!$AK$36)/Filtered!$AL$36),IF(ISBLANK(Personalize!$E$8),(((VLOOKUP($C19,Filtered!$A$1:$BB$626,23,FALSE))-Filtered!$AK$36)/Filtered!$AL$36)*0.5,""))),"") ->  | V19: =IFERROR(IF((OR($D19="RP",$D19="SP")),IF(Personalize!$E$17=TRUE,(((VLOOKUP($C19,'Filtered-P'!$A$1:$P$700,16,FALSE))-'Filtered-P'!$AF$22)/'Filtered-P'!$AG$22),IF(ISBLANK(Personalize!$E$17),(((VLOOKUP($C19,'Filtered-P'!$A$1:$P$700,16,FALSE))-'Filtered-P'!$AF$22)/'Filtered-P'!$AG$22)*0.5,"")),IF(Personalize!$E$9=TRUE,(((VLOOKUP($C19,Filtered!$A$1:$BB$626,25,FALSE))-Filtered!$AK$38)/Filtered!$AL$38),IF(ISBLANK(Personalize!$E$9),(((VLOOKUP($C19,Filtered!$A$1:$BB$626,25,FALSE))-Filtered!$AK$38)/Filtered!$AL$38)*0.5,""))),"") ->  | W19: =IFERROR(IF((OR($D19="RP",$D19="SP")),IF(Personalize!$E$37=TRUE,(((VLOOKUP($C19,'Filtered-P'!$A$1:$Z$700,17,FALSE))-'Filtered-P'!$AF$25)/'Filtered-P'!$AG$25),IF(ISBLANK(Personalize!$E$37),(((VLOOKUP($C19,'Filtered-P'!$A$1:$Z$700,17,FALSE))-'Filtered-P'!$AF$25)/'Filtered-P'!$AG$25)*0.5,"")),IF(Personalize!$E$39=TRUE,(((VLOOKUP($C19,Filtered!$A$1:$X$626,14,FALSE))-Filtered!$AK$29)/Filtered!$AL$29),IF(ISBLANK(Personalize!$E$39),(((VLOOKUP($C19,Filtered!$A$1:$X$626,14,FALSE))-Filtered!$AK$29)/Filtered!$AL$29)*0.5,""))),"") ->  | X19: =IFERROR(IF((OR($D19="RP",$D19="SP")),IF(Personalize!$E$38=TRUE,(((VLOOKUP($C19,'Filtered-P'!$A$1:$Z$700,18,FALSE))-'Filtered-P'!$AF$26)/'Filtered-P'!$AG$26),IF(ISBLANK(Personalize!$E$38),(((VLOOKUP($C19,'Filtered-P'!$A$1:$Z$700,18,FALSE))-'Filtered-P'!$AF$26)/'Filtered-P'!$AG$26)*0.5,"")),IF(Personalize!$E$40=TRUE,(((VLOOKUP($C19,Filtered!$A$1:$X$626,6,FALSE))-Filtered!$AK$21)/Filtered!$AL$21),IF(ISBLANK(Personalize!$E$40),(((VLOOKUP($C19,Filtered!$A$1:$X$626,6,FALSE))-Filtered!$AK$21)/Filtered!$AL$21)*0.5,""))),"") ->  | Y19: =IFERROR(IF((OR($D19="RP",$D19="SP")),IF(Personalize!$E$45=TRUE,(((VLOOKUP($C19,'Filtered-P'!$A$1:$Z$700,4,FALSE))-'Filtered-P'!$AF$10)/'Filtered-P'!$AG$10),IF(ISBLANK(Personalize!$E$45),(((VLOOKUP($C19,'Filtered-P'!$A$1:$Z$700,4,FALSE))-'Filtered-P'!$AF$10)/'Filtered-P'!$AG$10)*0.5,"")),IF(Personalize!$E$41=TRUE,(((VLOOKUP($C19,Filtered!$A$1:$BB$626,20,FALSE))-Filtered!$AK$43)/Filtered!$AL$43),IF(ISBLANK(Personalize!$E$41),(((VLOOKUP($C19,Filtered!$A$1:$BB$626,20,FALSE))-Filtered!$AK$43)/Filtered!$AL$43)*0.5,""))),"") ->  | Z19: =IFERROR(IF((OR($D19="RP",$D19="SP")),IF(Personalize!$E$46=TRUE,(((VLOOKUP($C19,'Filtered-P'!$A$1:$Z$700,19,FALSE))-'Filtered-P'!$AF$27)/'Filtered-P'!$AG$27),IF(ISBLANK(Personalize!$E$46),(((VLOOKUP($C19,'Filtered-P'!$A$1:$Z$700,19,FALSE))-'Filtered-P'!$AF$27)/'Filtered-P'!$AG$27)*0.5,"")),IF(Personalize!$E$44=TRUE,(((VLOOKUP($C19,Filtered!$A$1:$BB$626,21,FALSE))-Filtered!$AK$44)/Filtered!$AL$44),IF(ISBLANK(Personalize!$E$44),(((VLOOKUP($C19,Filtered!$A$1:$BB$626,21,FALSE))-Filtered!$AK$44)/Filtered!$AL$44)*0.5,""))),"") ->  | AA19: =IFERROR(IF((OR($D19="RP",$D19="SP")),IF(Personalize!$E$47=TRUE,(((VLOOKUP($C19,'Filtered-P'!$A$1:$Z$700,6,FALSE))-'Filtered-P'!$AF$12)/'Filtered-P'!$AG$12),IF(ISBLANK(Personalize!$E$47),(((VLOOKUP($C19,'Filtered-P'!$A$1:$Z$700,6,FALSE))-'Filtered-P'!$AF$12)/'Filtered-P'!$AG$12)*0.5,"")),IF(Personalize!$E$42=TRUE,(((VLOOKUP($C19,Filtered!$A$1:$BB$626,8,FALSE))-Filtered!$AK$23)/Filtered!$AL$23),IF(ISBLANK(Personalize!$E$42),(((VLOOKUP($C19,Filtered!$A$1:$BB$626,8,FALSE))-Filtered!$AK$23)/Filtered!$AL$23)*0.5,""))),"") ->  | AB19: =IFERROR(IF((OR($D19="RP",$D19="SP")),IF(Personalize!$E$48=TRUE,(((VLOOKUP($C19,'Filtered-P'!$A$1:$Z$700,5,FALSE))-'Filtered-P'!$AF$11)/'Filtered-P'!$AG$11),IF(ISBLANK(Personalize!$E$48),(((VLOOKUP($C19,'Filtered-P'!$A$1:$Z$700,5,FALSE))-'Filtered-P'!$AF$11)/'Filtered-P'!$AG$11)*0.5,"")),IF(Personalize!$E$43=TRUE,(((VLOOKUP($C19,Filtered!$A$1:$BB$626,9,FALSE))-Filtered!$AK$24)/Filtered!$AL$24),IF(ISBLANK(Personalize!$E$43),(((VLOOKUP($C19,Filtered!$A$1:$BB$626,9,FALSE))-Filtered!$AK$24)/Filtered!$AL$24)*0.5,""))),"") ->  | AC19: =IFERROR(IF((OR($D19="RP",$D19="SP")),IF(Personalize!$E$52=TRUE,(((VLOOKUP($C19,'Filtered-P'!$A$1:$AD$700,21,FALSE))-'Filtered-P'!$AF$29)/(-1*'Filtered-P'!$AG$29)),IF(ISBLANK(Personalize!$E$52),(((VLOOKUP($C19,'Filtered-P'!$A$1:$AD$700,21,FALSE))-'Filtered-P'!$AF$29)/(-1*'Filtered-P'!$AG$29))*0.5,"")),IF(Personalize!$E$49=TRUE,(((VLOOKUP($C19,Filtered!$A$1:$AF$626,30,FALSE))-Filtered!$AK$45)/Filtered!$AL$45),IF(ISBLANK(Personalize!$E$49),(((VLOOKUP($C19,Filtered!$A$1:$AF$626,30,FALSE))-Filtered!$AK$45)/Filtered!$AL$45)*0.5,""))),"") ->  | AD19: =IFERROR(IF((OR($D19="RP",$D19="SP")),IF(Personalize!$E$53=TRUE,(((VLOOKUP($C19,'Filtered-P'!$A$1:$AD$700,23,FALSE))-'Filtered-P'!$AF$31)/(-1*'Filtered-P'!$AG$31)),IF(ISBLANK(Personalize!$E$53),(((VLOOKUP($C19,'Filtered-P'!$A$1:$AD$700,23,FALSE))-'Filtered-P'!$AF$31)/(-1*'Filtered-P'!$AG$31))*0.5,"")),IF(Personalize!$E$50=TRUE,(((VLOOKUP($C19,Filtered!$A$1:$AF$626,31,FALSE))-Filtered!$AK$46)/Filtered!$AL$46),IF(ISBLANK(Personalize!$E$50),(((VLOOKUP($C19,Filtered!$A$1:$AF$626,31,FALSE))-Filtered!$AK$46)/Filtered!$AL$46)*0.5,""))),"") ->  | AE19: =IFERROR(IF((OR($D19="RP",$D19="SP")),IF(Personalize!$E$54=TRUE,(((VLOOKUP($C19,'Filtered-P'!$A$1:$AD$700,24,FALSE))-'Filtered-P'!$AF$32)/'Filtered-P'!$AG$32),IF(ISBLANK(Personalize!$E$54),(((VLOOKUP($C19,'Filtered-P'!$A$1:$AD$700,24,FALSE))-'Filtered-P'!$AF$32)/'Filtered-P'!$AG$32)*0.5,"")),IF(Personalize!$E$51=TRUE,(((VLOOKUP($C19,Filtered!$A$1:$AF$626,15,FALSE))-Filtered!$AK$30)/(-1*Filtered!$AL$30)),IF(ISBLANK(Personalize!$E$51),(((VLOOKUP($C19,Filtered!$A$1:$AF$626,15,FALSE))-Filtered!$AK$30)/(-1*Filtered!$AL$30))*0.5,""))),"") ->  | AF19: =IFERROR(IF((OR($D19="RP",$D19="SP")),IF(Personalize!$E$56=TRUE,(((VLOOKUP($C19,'Filtered-P'!$A$1:$AD$700,29,FALSE))-'Filtered-P'!$AF$35)/'Filtered-P'!$AG$35),IF(ISBLANK(Personalize!$E$56),(((VLOOKUP($C19,'Filtered-P'!$A$1:$AD$700,29,FALSE))-'Filtered-P'!$AF$35)/'Filtered-P'!$AG$35)*0.5,"")),IF(Personalize!$E$60=TRUE,(((VLOOKUP($C19,Filtered!$A$1:$AF$626,7,FALSE))-Filtered!$AK$22)/Filtered!$AL$22),IF(ISBLANK(Personalize!$E$60),(((VLOOKUP($C19,Filtered!$A$1:$AF$626,7,FALSE))-Filtered!$AK$22)/Filtered!$AL$22)*0.5,""))),"") ->  | AG19: =IFERROR(IF((OR($D19="RP",$D19="SP")),IF(Personalize!$E$57=TRUE,(((VLOOKUP($C19,'Filtered-P'!$A$1:$AD$700,28,FALSE))-'Filtered-P'!$AF$34)/'Filtered-P'!$AG$34),IF(ISBLANK(Personalize!$E$57),(((VLOOKUP($C19,'Filtered-P'!$A$1:$AD$700,28,FALSE))-'Filtered-P'!$AF$34)/'Filtered-P'!$AG$34)*0.5,"")),IF(Personalize!$E$61=TRUE,(((VLOOKUP($C19,Filtered!$A$1:$AZ$626,34,FALSE))-Filtered!$AK$47)/Filtered!$AL$47),IF(ISBLANK(Personalize!$E$61),(((VLOOKUP($C19,Filtered!$A$1:$AZ$626,34,FALSE))-Filtered!$AK$47)/Filtered!$AL$47)*0.5,""))),"") ->  | AH19: =IFERROR(IF((OR($D19="RP",$D19="SP")),IF(Personalize!$E$58=TRUE,(((VLOOKUP($C19,'Filtered-P'!$A$1:$Z$700,8,FALSE))-'Filtered-P'!$AF$14)/'Filtered-P'!$AG$14),IF(ISBLANK(Personalize!$E$58),(((VLOOKUP($C19,'Filtered-P'!$A$1:$Z$700,8,FALSE))-'Filtered-P'!$AF$14)/'Filtered-P'!$AG$14)*0.5,"")),IF(Personalize!$E$62=TRUE,(((VLOOKUP($C19,Filtered!$A$1:$AF$626,13,FALSE))-Filtered!$AK$28)/(-1*Filtered!$AL$28)),IF(ISBLANK(Personalize!$E$62),(((VLOOKUP($C19,Filtered!$A$1:$AF$626,13,FALSE))-Filtered!$AK$28)/(-1*Filtered!$AL$28))*0.5,""))),"") ->  | AI19: =IFERROR(IF((OR($D19="RP",$D19="SP")),IF(Personalize!$E$59=TRUE,(((VLOOKUP($C19,'Filtered-P'!$A$1:$AD$700,27,FALSE))-'Filtered-P'!$AF$33)/'Filtered-P'!$AG$33),IF(ISBLANK(Personalize!$E$59),(((VLOOKUP($C19,'Filtered-P'!$A$1:$AD$700,27,FALSE))-'Filtered-P'!$AF$33)/'Filtered-P'!$AG$33)*0.5,"")),IF(Personalize!$E$63=TRUE,(((VLOOKUP($C19,Filtered!$A$1:$AZ$626,35,FALSE))-Filtered!$AK$48)/(-1*Filtered!$AL$48)),IF(ISBLANK(Personalize!$E$63),(((VLOOKUP($C19,Filtered!$A$1:$AZ$626,35,FALSE))-Filtered!$AK$48)/(-1*Filtered!$AL$48))*0.5,""))),"") ->  | AJ19: =IFERROR(IF((OR($D19="RP",$D19="SP")),VLOOKUP($C19,'Filtered-P'!$A$1:$P$580,2,FALSE),""),"") -> 14.73513384 | AK19: =IFERROR(IF((OR($D19="RP",$D19="SP")),VLOOKUP($C19,'Filtered-P'!$A$1:$P$580,9,FALSE),""),"") -> 0 | AL19: =IFERROR(IF((OR($D19="RP",$D19="SP")),VLOOKUP($C19,'Filtered-P'!$A$1:$P$580,7,FALSE),""),"") -> 243.4282631 | AM19: =IFERROR(IF((OR($D19="RP",$D19="SP")),VLOOKUP($C19,'Filtered-P'!$A$1:$P$580,10,FALSE),""),"") -> 2.843627508 | AN19: =IFERROR(IF((OR($D19="RP",$D19="SP")),VLOOKUP($C19,'Filtered-P'!$A$1:$P$580,11,FALSE),""),"") -> 1.03096004 | AO19: =IFERROR(IF((OR($D19="RP",$D19="SP")),"",VLOOKUP($C19,Filtered!$A$1:$X$600,16,FALSE)),"") ->  | AP19: =IFERROR(IF((OR($D19="RP",$D19="SP")),"",VLOOKUP($C19,Filtered!$A$1:$X$600,10,FALSE)),"") ->  | AQ19: =IFERROR(IF((OR($D19="RP",$D19="SP")),"",VLOOKUP($C19,Filtered!$A$1:$X$600,11,FALSE)),"") ->  | AR19: =IFERROR(IF((OR($D19="RP",$D19="SP")),"",VLOOKUP($C19,Filtered!$A$1:$X$600,5,FALSE)),"") ->  | AS19: =IFERROR(IF((OR($D19="RP",$D19="SP")),"",VLOOKUP($C19,Filtered!$A$1:$X$600,12,FALSE)),"") ->  | AU19: =IF(ISBLANK(A19),0,1) -> 0 | AV19: =IF(M19="",0,1) -> 1 | AW19: =A19 -> 0 | AX19: =IF(D19="C",1,IF(D19="1B",2,IF(D19="2B",3,IF(D19="3B",4,IF(D19="SS",5,IF(D19="CI",6,IF(D19="MI",7,IF(D19="OF",11,IF(D19="LF",8,IF(D19="CF",9,IF(D19="RF",10,IF(D19="DH",12,IF(D19="SP",13,IF(D19="RP",14,IF(D19="P",15,16))))))))))))))) -> 13 | AY19: =VLOOKUP(C19,'Starter Calc'!$B$2:$BS$700,70,FALSE) -> Bench | AZ19: =VLOOKUP(C19,'Starter Calc'!$B$2:$AO$700,40,FALSE) -> Yes | BA19: =IFERROR(IF(ISTEXT($A19),"",IF((OR($D19="RP",$D19="SP")),ABS(VLOOKUP(D19,'Filtered-P'!$AE$3:$AI$4,5,FALSE))+M19,ABS(VLOOKUP(D19,Filtered!$AJ$3:$AN$14,5,FALSE))+M19)),"") -> 10.57529186 | BB19: =IFERROR(BA19+ABS($BA$4),"") -> 11.29911494 | BC19: =IF(AND($A19<>"",$B19<>""),B19,"N") -> N | BD19: =IFERROR(VLOOKUP($C19,'ADP-Rank'!$A$2:$AB$581,25,FALSE),TRUE) -> TRUE | BE19: =IFERROR((BB19-BB$3)^2,"") -> 41.68179458 | BF19: =VLOOKUP(C19,'Starter Calc'!$B$2:$CD$700,71,FALSE) -> SP.No | BG19: =IFERROR(((Personalize!$A$1-(1*Personalize!$A$2))/Personalize!$A$2)*(N19/$BG$3)+1,"") -> 27.54558189 | BH19: 28.43393898 | BI19: 28.43393898
C20: Jose Abreu | D20: 1B | E20: =IFERROR(IF(VLOOKUP(C20,'Starter Calc'!$B$2:$E$700,4,FALSE)="","",VLOOKUP(C20,'Starter Calc'!$B$2:$E$700,4,FALSE)),"") -> ,, | F20: =IFERROR(VLOOKUP($C20,'ADP-Rank'!$A$2:$G$581,5,FALSE),"") -> CHW | G20: =IFERROR(VLOOKUP($C20,'ADP-Rank'!$A$2:$X$581,6,FALSE),"") -> 29 | H20: =IFERROR(IF(ISBLANK($B20),"$"&(ROUND(BI20,0))&" | $"&ROUND(BH20,0),""),"") -> $26 | $26 | I20: =IFERROR(IF(RIGHT(D20,1)="P",J20*$BE$2,J20*$BE$1),"") -> 29.6 | J20: =IFERROR(CHOOSE(Personalize!$E$31,(VLOOKUP(C20,'ADP-Rank'!$A$2:$Z$581,7,FALSE)*(Personalize!$A$3)+1),(VLOOKUP(C20,'ADP-Rank'!$A$2:$Z$581,8,FALSE)*(Personalize!$A$3)+1),(VLOOKUP(C20,'ADP-Rank'!$A$2:$Z$581,9,FALSE)*(Personalize!$A$3)+1),(VLOOKUP(C20,'ADP-Rank'!$A$2:$AA$581,10,FALSE)*(Personalize!$A$3)+1),(VLOOKUP(C20,'ADP-Rank'!$A$2:$AA$581,11,FALSE)*(Personalize!$A$3)+1),(VLOOKUP(C20,'ADP-Rank'!$A$2:$AA$581,12,FALSE)*(Personalize!$A$3)+1),(VLOOKUP(C20,'ADP-Rank'!$A$2:$AA$581,13,FALSE)*(Personalize!$A$3)+1),(VLOOKUP(C20,'ADP-Rank'!$A$2:$AA$581,14,FALSE)*(Personalize!$A$3)+1),(VLOOKUP(C20,'ADP-Rank'!$A$2:$AA$581,15,FALSE)*(Personalize!$A$3)+1),(VLOOKUP(C20,'ADP-Rank'!$A$2:$AG$581,28,FALSE)*(Personalize!$A$3)+1)),"") -> 29.6 | K20: =VLOOKUP($C20,'ADP-Rank'!$A$2:$AB$581,26,FALSE) -> 21 | L20: =IFERROR(RANK($M20,$M$7:$M$746,0),"") -> 14 | M20: =IF((SUM(O20:AI20)=0),"",SUM(O20:AI20)) -> 7.12497137 | N20: =IFERROR(IF((OR($D20="RP",$D20="SP")),ABS(VLOOKUP(D20,'Filtered-P'!$AE$3:$AI$4,5,FALSE))+M20,ABS(VLOOKUP(D20,Filtered!$AJ$3:$AN$14,5,FALSE))+M20),"") -> 8.828464613 | O20: =IFERROR(IF((OR($D20="RP",$D20="SP")),IF(Personalize!$E$10=TRUE,(((VLOOKUP($C20,'Filtered-P'!$A$1:$P$700,2,FALSE))-'Filtered-P'!$AF$8)/'Filtered-P'!$AG$8),IF(ISBLANK(Personalize!$E$10),(((VLOOKUP($C20,'Filtered-P'!$A$1:$P$700,2,FALSE))-'Filtered-P'!$AF$8)/'Filtered-P'!$AG$8)*0.5,"")),IF(Personalize!$E$4=TRUE,(((VLOOKUP($C20,Filtered!$A$1:$X$626,22,FALSE))-Filtered!$AK$35)/Filtered!$AL$35),IF(ISBLANK(Personalize!$E$4),(((VLOOKUP($C20,Filtered!$A$1:$X$626,22,FALSE))-Filtered!$AK$35)/Filtered!$AL$35)*0.5,""))),"") -> 1.277416818 | P20: =IFERROR(IF((OR($D20="RP",$D20="SP")),IF(Personalize!$E$12=TRUE,(((VLOOKUP($C20,'Filtered-P'!$A$1:$P$700,9,FALSE))-'Filtered-P'!$AF$15)/'Filtered-P'!$AG$15),IF(ISBLANK(Personalize!$E$12),(((VLOOKUP($C20,'Filtered-P'!$A$1:$P$700,9,FALSE))-'Filtered-P'!$AF$15)/'Filtered-P'!$AG$15)*0.5,"")),IF(Personalize!$E$3=TRUE,(((VLOOKUP($C20,Filtered!$A$1:$AB$626,10,FALSE))-Filtered!$AK$25)/Filtered!$AL$25),IF(ISBLANK(Personalize!$E$3),(((VLOOKUP($C20,Filtered!$A$1:$AB$626,10,FALSE))-Filtered!$AK$25)/Filtered!$AL$25)*0.5,""))),"") -> 1.646184029 | Q20: =IFERROR(IF((OR($D20="RP",$D20="SP")),IF(Personalize!$E$11=TRUE,(((VLOOKUP($C20,'Filtered-P'!$A$1:$P$700,7,FALSE))-'Filtered-P'!$AF$13)/'Filtered-P'!$AG$13),IF(ISBLANK(Personalize!$E$11),(((VLOOKUP($C20,'Filtered-P'!$A$1:$P$700,7,FALSE))-'Filtered-P'!$AF$13)/'Filtered-P'!$AG$13)*0.5,"")),IF(Personalize!$E$2=TRUE,(((VLOOKUP($C20,Filtered!$A$1:$AB$626,5,FALSE))-Filtered!$AK$20)/Filtered!$AL$20),IF(ISBLANK(Personalize!$E$2),(((VLOOKUP($C20,Filtered!$A$1:$AB$626,5,FALSE))-Filtered!$AK$20)/Filtered!$AL$20)*0.5,""))),"") -> 1.390920851 | R20: =IFERROR(IF((OR($D20="RP",$D20="SP")),IF(Personalize!$E$13=TRUE,(((VLOOKUP($C20,'Filtered-P'!$A$1:$P$700,13,FALSE))-'Filtered-P'!$AF$19)/'Filtered-P'!$AG$19),IF(ISBLANK(Personalize!$E$13),(((VLOOKUP($C20,'Filtered-P'!$A$1:$P$700,13,FALSE))-'Filtered-P'!$AF$19)/'Filtered-P'!$AG$19)*0.5,"")),IF(Personalize!$E$5=TRUE,(((VLOOKUP($C20,Filtered!$A$1:$AB$626,11,FALSE))-Filtered!$AK$26)/Filtered!$AL$26),IF(ISBLANK(Personalize!$E$5),(((VLOOKUP($C20,Filtered!$A$1:$AB$626,11,FALSE))-Filtered!$AK$26)/Filtered!$AL$26)*0.5,""))),"") -> 1.881514237 | S20: =IFERROR(IF((OR($D20="RP",$D20="SP")),IF(Personalize!$E$14=TRUE,(((VLOOKUP($C20,'Filtered-P'!$A$1:$P$700,14,FALSE))-'Filtered-P'!$AF$20)/'Filtered-P'!$AG$20),IF(ISBLANK(Personalize!$E$14),(((VLOOKUP($C20,'Filtered-P'!$A$1:$P$700,14,FALSE))-'Filtered-P'!$AF$20)/'Filtered-P'!$AG$20)*0.5,"")),IF(Personalize!$E$6=TRUE,(((VLOOKUP($C20,Filtered!$A$1:$AB$626,12,FALSE))-Filtered!$AK$27)/Filtered!$AL$27),IF(ISBLANK(Personalize!$E$6),(((VLOOKUP($C20,Filtered!$A$1:$AB$626,12,FALSE))-Filtered!$AK$27)/Filtered!$AL$27)*0.5,""))),"") -> -0.9239065363 | T20: =IFERROR(IF((OR($D20="RP",$D20="SP")),IF(Personalize!$E$16=TRUE,(((VLOOKUP($C20,'Filtered-P'!$A$1:$P$700,3,FALSE))-'Filtered-P'!$AF$9)/'Filtered-P'!$AG$9),IF(ISBLANK(Personalize!$E$16),(((VLOOKUP($C20,'Filtered-P'!$A$1:$P$700,3,FALSE))-'Filtered-P'!$AF$9)/'Filtered-P'!$AG$9)*0.5,"")),IF(Personalize!$E$7=TRUE,(((VLOOKUP($C20,Filtered!$A$1:$BB$626,24,FALSE))-Filtered!$AK$37)/Filtered!$AL$37),IF(ISBLANK(Personalize!$E$7),(((VLOOKUP($C20,Filtered!$A$1:$BB$626,24,FALSE))-Filtered!$AK$37)/Filtered!$AL$37)*0.5,""))),"") -> 1.852841972 | U20: =IFERROR(IF((OR($D20="RP",$D20="SP")),IF(Personalize!$E$15=TRUE,(((VLOOKUP($C20,'Filtered-P'!$A$1:$P$700,15,FALSE))-'Filtered-P'!$AF$21)/'Filtered-P'!$AG$21),IF(ISBLANK(Personalize!$E$15),(((VLOOKUP($C20,'Filtered-P'!$A$1:$P$700,15,FALSE))-'Filtered-P'!$AF$21)/'Filtered-P'!$AG$21)*0.5,"")),IF(Personalize!$E$8=TRUE,(((VLOOKUP($C20,Filtered!$A$1:$BB$626,23,FALSE))-Filtered!$AK$36)/Filtered!$AL$36),IF(ISBLANK(Personalize!$E$8),(((VLOOKUP($C20,Filtered!$A$1:$BB$626,23,FALSE))-Filtered!$AK$36)/Filtered!$AL$36)*0.5,""))),"") ->  | V20: =IFERROR(IF((OR($D20="RP",$D20="SP")),IF(Personalize!$E$17=TRUE,(((VLOOKUP($C20,'Filtered-P'!$A$1:$P$700,16,FALSE))-'Filtered-P'!$AF$22)/'Filtered-P'!$AG$22),IF(ISBLANK(Personalize!$E$17),(((VLOOKUP($C20,'Filtered-P'!$A$1:$P$700,16,FALSE))-'Filtered-P'!$AF$22)/'Filtered-P'!$AG$22)*0.5,"")),IF(Personalize!$E$9=TRUE,(((VLOOKUP($C20,Filtered!$A$1:$BB$626,25,FALSE))-Filtered!$AK$38)/Filtered!$AL$38),IF(ISBLANK(Personalize!$E$9),(((VLOOKUP($C20,Filtered!$A$1:$BB$626,25,FALSE))-Filtered!$AK$38)/Filtered!$AL$38)*0.5,""))),"") ->  | W20: =IFERROR(IF((OR($D20="RP",$D20="SP")),IF(Personalize!$E$37=TRUE,(((VLOOKUP($C20,'Filtered-P'!$A$1:$Z$700,17,FALSE))-'Filtered-P'!$AF$25)/'Filtered-P'!$AG$25),IF(ISBLANK(Personalize!$E$37),(((VLOOKUP($C20,'Filtered-P'!$A$1:$Z$700,17,FALSE))-'Filtered-P'!$AF$25)/'Filtered-P'!$AG$25)*0.5,"")),IF(Personalize!$E$39=TRUE,(((VLOOKUP($C20,Filtered!$A$1:$X$626,14,FALSE))-Filtered!$AK$29)/Filtered!$AL$29),IF(ISBLANK(Personalize!$E$39),(((VLOOKUP($C20,Filtered!$A$1:$X$626,14,FALSE))-Filtered!$AK$29)/Filtered!$AL$29)*0.5,""))),"") ->  | X20: =IFERROR(IF((OR($D20="RP",$D20="SP")),IF(Personalize!$E$38=TRUE,(((VLOOKUP($C20,'Filtered-P'!$A$1:$Z$700,18,FALSE))-'Filtered-P'!$AF$26)/'Filtered-P'!$AG$26),IF(ISBLANK(Personalize!$E$38),(((VLOOKUP($C20,'Filtered-P'!$A$1:$Z$700,18,FALSE))-'Filtered-P'!$AF$26)/'Filtered-P'!$AG$26)*0.5,"")),IF(Personalize!$E$40=TRUE,(((VLOOKUP($C20,Filtered!$A$1:$X$626,6,FALSE))-Filtered!$AK$21)/Filtered!$AL$21),IF(ISBLANK(Personalize!$E$40),(((VLOOKUP($C20,Filtered!$A$1:$X$626,6,FALSE))-Filtered!$AK$21)/Filtered!$AL$21)*0.5,""))),"") ->  | Y20: =IFERROR(IF((OR($D20="RP",$D20="SP")),IF(Personalize!$E$45=TRUE,(((VLOOKUP($C20,'Filtered-P'!$A$1:$Z$700,4,FALSE))-'Filtered-P'!$AF$10)/'Filtered-P'!$AG$10),IF(ISBLANK(Personalize!$E$45),(((VLOOKUP($C20,'Filtered-P'!$A$1:$Z$700,4,FALSE))-'Filtered-P'!$AF$10)/'Filtered-P'!$AG$10)*0.5,"")),IF(Personalize!$E$41=TRUE,(((VLOOKUP($C20,Filtered!$A$1:$BB$626,20,FALSE))-Filtered!$AK$43)/Filtered!$AL$43),IF(ISBLANK(Personalize!$E$41),(((VLOOKUP($C20,Filtered!$A$1:$BB$626,20,FALSE))-Filtered!$AK$43)/Filtered!$AL$43)*0.5,""))),"") ->  | Z20: =IFERROR(IF((OR($D20="RP",$D20="SP")),IF(Personalize!$E$46=TRUE,(((VLOOKUP($C20,'Filtered-P'!$A$1:$Z$700,19,FALSE))-'Filtered-P'!$AF$27)/'Filtered-P'!$AG$27),IF(ISBLANK(Personalize!$E$46),(((VLOOKUP($C20,'Filtered-P'!$A$1:$Z$700,19,FALSE))-'Filtered-P'!$AF$27)/'Filtered-P'!$AG$27)*0.5,"")),IF(Personalize!$E$44=TRUE,(((VLOOKUP($C20,Filtered!$A$1:$BB$626,21,FALSE))-Filtered!$AK$44)/Filtered!$AL$44),IF(ISBLANK(Personalize!$E$44),(((VLOOKUP($C20,Filtered!$A$1:$BB$626,21,FALSE))-Filtered!$AK$44)/Filtered!$AL$44)*0.5,""))),"") ->  | AA20: =IFERROR(IF((OR($D20="RP",$D20="SP")),IF(Personalize!$E$47=TRUE,(((VLOOKUP($C20,'Filtered-P'!$A$1:$Z$700,6,FALSE))-'Filtered-P'!$AF$12)/'Filtered-P'!$AG$12),IF(ISBLANK(Personalize!$E$47),(((VLOOKUP($C20,'Filtered-P'!$A$1:$Z$700,6,FALSE))-'Filtered-P'!$AF$12)/'Filtered-P'!$AG$12)*0.5,"")),IF(Personalize!$E$42=TRUE,(((VLOOKUP($C20,Filtered!$A$1:$BB$626,8,FALSE))-Filtered!$AK$23)/Filtered!$AL$23),IF(ISBLANK(Personalize!$E$42),(((VLOOKUP($C20,Filtered!$A$1:$BB$626,8,FALSE))-Filtered!$AK$23)/Filtered!$AL$23)*0.5,""))),"") ->  | AB20: =IFERROR(IF((OR($D20="RP",$D20="SP")),IF(Personalize!$E$48=TRUE,(((VLOOKUP($C20,'Filtered-P'!$A$1:$Z$700,5,FALSE))-'Filtered-P'!$AF$11)/'Filtered-P'!$AG$11),IF(ISBLANK(Personalize!$E$48),(((VLOOKUP($C20,'Filtered-P'!$A$1:$Z$700,5,FALSE))-'Filtered-P'!$AF$11)/'Filtered-P'!$AG$11)*0.5,"")),IF(Personalize!$E$43=TRUE,(((VLOOKUP($C20,Filtered!$A$1:$BB$626,9,FALSE))-Filtered!$AK$24)/Filtered!$AL$24),IF(ISBLANK(Personalize!$E$43),(((VLOOKUP($C20,Filtered!$A$1:$BB$626,9,FALSE))-Filtered!$AK$24)/Filtered!$AL$24)*0.5,""))),"") ->  | AC20: =IFERROR(IF((OR($D20="RP",$D20="SP")),IF(Personalize!$E$52=TRUE,(((VLOOKUP($C20,'Filtered-P'!$A$1:$AD$700,21,FALSE))-'Filtered-P'!$AF$29)/(-1*'Filtered-P'!$AG$29)),IF(ISBLANK(Personalize!$E$52),(((VLOOKUP($C20,'Filtered-P'!$A$1:$AD$700,21,FALSE))-'Filtered-P'!$AF$29)/(-1*'Filtered-P'!$AG$29))*0.5,"")),IF(Personalize!$E$49=TRUE,(((VLOOKUP($C20,Filtered!$A$1:$AF$626,30,FALSE))-Filtered!$AK$45)/Filtered!$AL$45),IF(ISBLANK(Personalize!$E$49),(((VLOOKUP($C20,Filtered!$A$1:$AF$626,30,FALSE))-Filtered!$AK$45)/Filtered!$AL$45)*0.5,""))),"") ->  | AD20: =IFERROR(IF((OR($D20="RP",$D20="SP")),IF(Personalize!$E$53=TRUE,(((VLOOKUP($C20,'Filtered-P'!$A$1:$AD$700,23,FALSE))-'Filtered-P'!$AF$31)/(-1*'Filtered-P'!$AG$31)),IF(ISBLANK(Personalize!$E$53),(((VLOOKUP($C20,'Filtered-P'!$A$1:$AD$700,23,FALSE))-'Filtered-P'!$AF$31)/(-1*'Filtered-P'!$AG$31))*0.5,"")),IF(Personalize!$E$50=TRUE,(((VLOOKUP($C20,Filtered!$A$1:$AF$626,31,FALSE))-Filtered!$AK$46)/Filtered!$AL$46),IF(ISBLANK(Personalize!$E$50),(((VLOOKUP($C20,Filtered!$A$1:$AF$626,31,FALSE))-Filtered!$AK$46)/Filtered!$AL$46)*0.5,""))),"") ->  | AE20: =IFERROR(IF((OR($D20="RP",$D20="SP")),IF(Personalize!$E$54=TRUE,(((VLOOKUP($C20,'Filtered-P'!$A$1:$AD$700,24,FALSE))-'Filtered-P'!$AF$32)/'Filtered-P'!$AG$32),IF(ISBLANK(Personalize!$E$54),(((VLOOKUP($C20,'Filtered-P'!$A$1:$AD$700,24,FALSE))-'Filtered-P'!$AF$32)/'Filtered-P'!$AG$32)*0.5,"")),IF(Personalize!$E$51=TRUE,(((VLOOKUP($C20,Filtered!$A$1:$AF$626,15,FALSE))-Filtered!$AK$30)/(-1*Filtered!$AL$30)),IF(ISBLANK(Personalize!$E$51),(((VLOOKUP($C20,Filtered!$A$1:$AF$626,15,FALSE))-Filtered!$AK$30)/(-1*Filtered!$AL$30))*0.5,""))),"") ->  | AF20: =IFERROR(IF((OR($D20="RP",$D20="SP")),IF(Personalize!$E$56=TRUE,(((VLOOKUP($C20,'Filtered-P'!$A$1:$AD$700,29,FALSE))-'Filtered-P'!$AF$35)/'Filtered-P'!$AG$35),IF(ISBLANK(Personalize!$E$56),(((VLOOKUP($C20,'Filtered-P'!$A$1:$AD$700,29,FALSE))-'Filtered-P'!$AF$35)/'Filtered-P'!$AG$35)*0.5,"")),IF(Personalize!$E$60=TRUE,(((VLOOKUP($C20,Filtered!$A$1:$AF$626,7,FALSE))-Filtered!$AK$22)/Filtered!$AL$22),IF(ISBLANK(Personalize!$E$60),(((VLOOKUP($C20,Filtered!$A$1:$AF$626,7,FALSE))-Filtered!$AK$22)/Filtered!$AL$22)*0.5,""))),"") ->  | AG20: =IFERROR(IF((OR($D20="RP",$D20="SP")),IF(Personalize!$E$57=TRUE,(((VLOOKUP($C20,'Filtered-P'!$A$1:$AD$700,28,FALSE))-'Filtered-P'!$AF$34)/'Filtered-P'!$AG$34),IF(ISBLANK(Personalize!$E$57),(((VLOOKUP($C20,'Filtered-P'!$A$1:$AD$700,28,FALSE))-'Filtered-P'!$AF$34)/'Filtered-P'!$AG$34)*0.5,"")),IF(Personalize!$E$61=TRUE,(((VLOOKUP($C20,Filtered!$A$1:$AZ$626,34,FALSE))-Filtered!$AK$47)/Filtered!$AL$47),IF(ISBLANK(Personalize!$E$61),(((VLOOKUP($C20,Filtered!$A$1:$AZ$626,34,FALSE))-Filtered!$AK$47)/Filtered!$AL$47)*0.5,""))),"") ->  | AH20: =IFERROR(IF((OR($D20="RP",$D20="SP")),IF(Personalize!$E$58=TRUE,(((VLOOKUP($C20,'Filtered-P'!$A$1:$Z$700,8,FALSE))-'Filtered-P'!$AF$14)/'Filtered-P'!$AG$14),IF(ISBLANK(Personalize!$E$58),(((VLOOKUP($C20,'Filtered-P'!$A$1:$Z$700,8,FALSE))-'Filtered-P'!$AF$14)/'Filtered-P'!$AG$14)*0.5,"")),IF(Personalize!$E$62=TRUE,(((VLOOKUP($C20,Filtered!$A$1:$AF$626,13,FALSE))-Filtered!$AK$28)/(-1*Filtered!$AL$28)),IF(ISBLANK(Personalize!$E$62),(((VLOOKUP($C20,Filtered!$A$1:$AF$626,13,FALSE))-Filtered!$AK$28)/(-1*Filtered!$AL$28))*0.5,""))),"") ->  | AI20: =IFERROR(IF((OR($D20="RP",$D20="SP")),IF(Personalize!$E$59=TRUE,(((VLOOKUP($C20,'Filtered-P'!$A$1:$AD$700,27,FALSE))-'Filtered-P'!$AF$33)/'Filtered-P'!$AG$33),IF(ISBLANK(Personalize!$E$59),(((VLOOKUP($C20,'Filtered-P'!$A$1:$AD$700,27,FALSE))-'Filtered-P'!$AF$33)/'Filtered-P'!$AG$33)*0.5,"")),IF(Personalize!$E$63=TRUE,(((VLOOKUP($C20,Filtered!$A$1:$AZ$626,35,FALSE))-Filtered!$AK$48)/(-1*Filtered!$AL$48)),IF(ISBLANK(Personalize!$E$63),(((VLOOKUP($C20,Filtered!$A$1:$AZ$626,35,FALSE))-Filtered!$AK$48)/(-1*Filtered!$AL$48))*0.5,""))),"") ->  | AJ20: =IFERROR(IF((OR($D20="RP",$D20="SP")),VLOOKUP($C20,'Filtered-P'!$A$1:$P$580,2,FALSE),""),"") ->  | AK20: =IFERROR(IF((OR($D20="RP",$D20="SP")),VLOOKUP($C20,'Filtered-P'!$A$1:$P$580,9,FALSE),""),"") ->  | AL20: =IFERROR(IF((OR($D20="RP",$D20="SP")),VLOOKUP($C20,'Filtered-P'!$A$1:$P$580,7,FALSE),""),"") ->  | AM20: =IFERROR(IF((OR($D20="RP",$D20="SP")),VLOOKUP($C20,'Filtered-P'!$A$1:$P$580,10,FALSE),""),"") ->  | AN20: =IFERROR(IF((OR($D20="RP",$D20="SP")),VLOOKUP($C20,'Filtered-P'!$A$1:$P$580,11,FALSE),""),"") ->  | AO20: =IFERROR(IF((OR($D20="RP",$D20="SP")),"",VLOOKUP($C20,Filtered!$A$1:$X$600,16,FALSE)),"") -> 0.2876499302 | AP20: =IFERROR(IF((OR($D20="RP",$D20="SP")),"",VLOOKUP($C20,Filtered!$A$1:$X$600,10,FALSE)),"") -> 31.26475485 | AQ20: =IFERROR(IF((OR($D20="RP",$D20="SP")),"",VLOOKUP($C20,Filtered!$A$1:$X$600,11,FALSE)),"") -> 99.94468254 | AR20: =IFERROR(IF((OR($D20="RP",$D20="SP")),"",VLOOKUP($C20,Filtered!$A$1:$X$600,5,FALSE)),"") -> 89.63501951 | AS20: =IFERROR(IF((OR($D20="RP",$D20="SP")),"",VLOOKUP($C20,Filtered!$A$1:$X$600,12,FALSE)),"") -> 1.517831447 | AT20: Should have decrease in HR's in 2016 | AU20: =IF(ISBLANK(A20),0,1) -> 0 | AV20: =IF(M20="",0,1) -> 1 | AW20: =A20 -> 0 | AX20: =IF(D20="C",1,IF(D20="1B",2,IF(D20="2B",3,IF(D20="3B",4,IF(D20="SS",5,IF(D20="CI",6,IF(D20="MI",7,IF(D20="OF",11,IF(D20="LF",8,IF(D20="CF",9,IF(D20="RF",10,IF(D20="DH",12,IF(D20="SP",13,IF(D20="RP",14,IF(D20="P",15,16))))))))))))))) -> 2 | AY20: =VLOOKUP(C20,'Starter Calc'!$B$2:$BS$700,70,FALSE) -> Bench | AZ20: =VLOOKUP(C20,'Starter Calc'!$B$2:$AO$700,40,FALSE) -> Yes | BA20: =IFERROR(IF(ISTEXT($A20),"",IF((OR($D20="RP",$D20="SP")),ABS(VLOOKUP(D20,'Filtered-P'!$AE$3:$AI$4,5,FALSE))+M20,ABS(VLOOKUP(D20,Filtered!$AJ$3:$AN$14,5,FALSE))+M20)),"") -> 8.828464613 | BB20: =IFERROR(BA20+ABS($BA$4),"") -> 9.552287689 | BC20: =IF(AND($A20<>"",$B20<>""),B20,"N") -> N | BD20: =IFERROR(VLOOKUP($C20,'ADP-Rank'!$A$2:$AB$581,25,FALSE),TRUE) -> TRUE | BE20: =IFERROR((BB20-BB$3)^2,"") -> 22.17766368 | BF20: =VLOOKUP(C20,'Starter Calc'!$B$2:$CD$700,71,FALSE) -> 1B.Yes | BG20: =IFERROR(((Personalize!$A$1-(1*Personalize!$A$2))/Personalize!$A$2)*(N20/$BG$3)+1,"") -> 23.16078131 | BH20: 25.8457975 | BI20: 25.8457975
C21: Carlos Correa | D21: SS | E21: =IFERROR(IF(VLOOKUP(C21,'Starter Calc'!$B$2:$E$700,4,FALSE)="","",VLOOKUP(C21,'Starter Calc'!$B$2:$E$700,4,FALSE)),"") -> ,, | F21: =IFERROR(VLOOKUP($C21,'ADP-Rank'!$A$2:$G$581,5,FALSE),"") -> HOU | G21: =IFERROR(VLOOKUP($C21,'ADP-Rank'!$A$2:$X$581,6,FALSE),"") -> 21 | H21: =IFERROR(IF(ISBLANK($B21),"$"&(ROUND(BI21,0))&" | $"&ROUND(BH21,0),""),"") -> $34 | $34 | I21: =IFERROR(IF(RIGHT(D21,1)="P",J21*$BE$2,J21*$BE$1),"") -> 27.86666667 | J21: =IFERROR(CHOOSE(Personalize!$E$31,(VLOOKUP(C21,'ADP-Rank'!$A$2:$Z$581,7,FALSE)*(Personalize!$A$3)+1),(VLOOKUP(C21,'ADP-Rank'!$A$2:$Z$581,8,FALSE)*(Personalize!$A$3)+1),(VLOOKUP(C21,'ADP-Rank'!$A$2:$Z$581,9,FALSE)*(Personalize!$A$3)+1),(VLOOKUP(C21,'ADP-Rank'!$A$2:$AA$581,10,FALSE)*(Personalize!$A$3)+1),(VLOOKUP(C21,'ADP-Rank'!$A$2:$AA$581,11,FALSE)*(Personalize!$A$3)+1),(VLOOKUP(C21,'ADP-Rank'!$A$2:$AA$581,12,FALSE)*(Personalize!$A$3)+1),(VLOOKUP(C21,'ADP-Rank'!$A$2:$AA$581,13,FALSE)*(Personalize!$A$3)+1),(VLOOKUP(C21,'ADP-Rank'!$A$2:$AA$581,14,FALSE)*(Personalize!$A$3)+1),(VLOOKUP(C21,'ADP-Rank'!$A$2:$AA$581,15,FALSE)*(Personalize!$A$3)+1),(VLOOKUP(C21,'ADP-Rank'!$A$2:$AG$581,28,FALSE)*(Personalize!$A$3)+1)),"") -> 27.86666667 | K21: =VLOOKUP($C21,'ADP-Rank'!$A$2:$AB$581,26,FALSE) -> 12 | L21: =IFERROR(RANK($M21,$M$7:$M$746,0),"") -> 15 | M21: =IF((SUM(O21:AI21)=0),"",SUM(O21:AI21)) -> 6.934412547 | N21: =IFERROR(IF((OR($D21="RP",$D21="SP")),ABS(VLOOKUP(D21,'Filtered-P'!$AE$3:$AI$4,5,FALSE))+M21,ABS(VLOOKUP(D21,Filtered!$AJ$3:$AN$14,5,FALSE))+M21),"") -> 11.81100803 | O21: =IFERROR(IF((OR($D21="RP",$D21="SP")),IF(Personalize!$E$10=TRUE,(((VLOOKUP($C21,'Filtered-P'!$A$1:$P$700,2,FALSE))-'Filtered-P'!$AF$8)/'Filtered-P'!$AG$8),IF(ISBLANK(Personalize!$E$10),(((VLOOKUP($C21,'Filtered-P'!$A$1:$P$700,2,FALSE))-'Filtered-P'!$AF$8)/'Filtered-P'!$AG$8)*0.5,"")),IF(Personalize!$E$4=TRUE,(((VLOOKUP($C21,Filtered!$A$1:$X$626,22,FALSE))-Filtered!$AK$35)/Filtered!$AL$35),IF(ISBLANK(Personalize!$E$4),(((VLOOKUP($C21,Filtered!$A$1:$X$626,22,FALSE))-Filtered!$AK$35)/Filtered!$AL$35)*0.5,""))),"") -> 0.8787624188 | P21: =IFERROR(IF((OR($D21="RP",$D21="SP")),IF(Personalize!$E$12=TRUE,(((VLOOKUP($C21,'Filtered-P'!$A$1:$P$700,9,FALSE))-'Filtered-P'!$AF$15)/'Filtered-P'!$AG$15),IF(ISBLANK(Personalize!$E$12),(((VLOOKUP($C21,'Filtered-P'!$A$1:$P$700,9,FALSE))-'Filtered-P'!$AF$15)/'Filtered-P'!$AG$15)*0.5,"")),IF(Personalize!$E$3=TRUE,(((VLOOKUP($C21,Filtered!$A$1:$AB$626,10,FALSE))-Filtered!$AK$25)/Filtered!$AL$25),IF(ISBLANK(Personalize!$E$3),(((VLOOKUP($C21,Filtered!$A$1:$AB$626,10,FALSE))-Filtered!$AK$25)/Filtered!$AL$25)*0.5,""))),"") -> 0.9499401697 | Q21: =IFERROR(IF((OR($D21="RP",$D21="SP")),IF(Personalize!$E$11=TRUE,(((VLOOKUP($C21,'Filtered-P'!$A$1:$P$700,7,FALSE))-'Filtered-P'!$AF$13)/'Filtered-P'!$AG$13),IF(ISBLANK(Personalize!$E$11),(((VLOOKUP($C21,'Filtered-P'!$A$1:$P$700,7,FALSE))-'Filtered-P'!$AF$13)/'Filtered-P'!$AG$13)*0.5,"")),IF(Personalize!$E$2=TRUE,(((VLOOKUP($C21,Filtered!$A$1:$AB$626,5,FALSE))-Filtered!$AK$20)/Filtered!$AL$20),IF(ISBLANK(Personalize!$E$2),(((VLOOKUP($C21,Filtered!$A$1:$AB$626,5,FALSE))-Filtered!$AK$20)/Filtered!$AL$20)*0.5,""))),"") -> 0.9414515122 | R21: =IFERROR(IF((OR($D21="RP",$D21="SP")),IF(Personalize!$E$13=TRUE,(((VLOOKUP($C21,'Filtered-P'!$A$1:$P$700,13,FALSE))-'Filtered-P'!$AF$19)/'Filtered-P'!$AG$19),IF(ISBLANK(Personalize!$E$13),(((VLOOKUP($C21,'Filtered-P'!$A$1:$P$700,13,FALSE))-'Filtered-P'!$AF$19)/'Filtered-P'!$AG$19)*0.5,"")),IF(Personalize!$E$5=TRUE,(((VLOOKUP($C21,Filtered!$A$1:$AB$626,11,FALSE))-Filtered!$AK$26)/Filtered!$AL$26),IF(ISBLANK(Personalize!$E$5),(((VLOOKUP($C21,Filtered!$A$1:$AB$626,11,FALSE))-Filtered!$AK$26)/Filtered!$AL$26)*0.5,""))),"") -> 1.37693848 | S21: =IFERROR(IF((OR($D21="RP",$D21="SP")),IF(Personalize!$E$14=TRUE,(((VLOOKUP($C21,'Filtered-P'!$A$1:$P$700,14,FALSE))-'Filtered-P'!$AF$20)/'Filtered-P'!$AG$20),IF(ISBLANK(Personalize!$E$14),(((VLOOKUP($C21,'Filtered-P'!$A$1:$P$700,14,FALSE))-'Filtered-P'!$AF$20)/'Filtered-P'!$AG$20)*0.5,"")),IF(Personalize!$E$6=TRUE,(((VLOOKUP($C21,Filtered!$A$1:$AB$626,12,FALSE))-Filtered!$AK$27)/Filtered!$AL$27),IF(ISBLANK(Personalize!$E$6),(((VLOOKUP($C21,Filtered!$A$1:$AB$626,12,FALSE))-Filtered!$AK$27)/Filtered!$AL$27)*0.5,""))),"") -> 1.56198195 | T21: =IFERROR(IF((OR($D21="RP",$D21="SP")),IF(Personalize!$E$16=TRUE,(((VLOOKUP($C21,'Filtered-P'!$A$1:$P$700,3,FALSE))-'Filtered-P'!$AF$9)/'Filtered-P'!$AG$9),IF(ISBLANK(Personalize!$E$16),(((VLOOKUP($C21,'Filtered-P'!$A$1:$P$700,3,FALSE))-'Filtered-P'!$AF$9)/'Filtered-P'!$AG$9)*0.5,"")),IF(Personalize!$E$7=TRUE,(((VLOOKUP($C21,Filtered!$A$1:$BB$626,24,FALSE))-Filtered!$AK$37)/Filtered!$AL$37),IF(ISBLANK(Personalize!$E$7),(((VLOOKUP($C21,Filtered!$A$1:$BB$626,24,FALSE))-Filtered!$AK$37)/Filtered!$AL$37)*0.5,""))),"") -> 1.225338016 | U21: =IFERROR(IF((OR($D21="RP",$D21="SP")),IF(Personalize!$E$15=TRUE,(((VLOOKUP($C21,'Filtered-P'!$A$1:$P$700,15,FALSE))-'Filtered-P'!$AF$21)/'Filtered-P'!$AG$21),IF(ISBLANK(Personalize!$E$15),(((VLOOKUP($C21,'Filtered-P'!$A$1:$P$700,15,FALSE))-'Filtered-P'!$AF$21)/'Filtered-P'!$AG$21)*0.5,"")),IF(Personalize!$E$8=TRUE,(((VLOOKUP($C21,Filtered!$A$1:$BB$626,23,FALSE))-Filtered!$AK$36)/Filtered!$AL$36),IF(ISBLANK(Personalize!$E$8),(((VLOOKUP($C21,Filtered!$A$1:$BB$626,23,FALSE))-Filtered!$AK$36)/Filtered!$AL$36)*0.5,""))),"") ->  | V21: =IFERROR(IF((OR($D21="RP",$D21="SP")),IF(Personalize!$E$17=TRUE,(((VLOOKUP($C21,'Filtered-P'!$A$1:$P$700,16,FALSE))-'Filtered-P'!$AF$22)/'Filtered-P'!$AG$22),IF(ISBLANK(Personalize!$E$17),(((VLOOKUP($C21,'Filtered-P'!$A$1:$P$700,16,FALSE))-'Filtered-P'!$AF$22)/'Filtered-P'!$AG$22)*0.5,"")),IF(Personalize!$E$9=TRUE,(((VLOOKUP($C21,Filtered!$A$1:$BB$626,25,FALSE))-Filtered!$AK$38)/Filtered!$AL$38),IF(ISBLANK(Personalize!$E$9),(((VLOOKUP($C21,Filtered!$A$1:$BB$626,25,FALSE))-Filtered!$AK$38)/Filtered!$AL$38)*0.5,""))),"") ->  | W21: =IFERROR(IF((OR($D21="RP",$D21="SP")),IF(Personalize!$E$37=TRUE,(((VLOOKUP($C21,'Filtered-P'!$A$1:$Z$700,17,FALSE))-'Filtered-P'!$AF$25)/'Filtered-P'!$AG$25),IF(ISBLANK(Personalize!$E$37),(((VLOOKUP($C21,'Filtered-P'!$A$1:$Z$700,17,FALSE))-'Filtered-P'!$AF$25)/'Filtered-P'!$AG$25)*0.5,"")),IF(Personalize!$E$39=TRUE,(((VLOOKUP($C21,Filtered!$A$1:$X$626,14,FALSE))-Filtered!$AK$29)/Filtered!$AL$29),IF(ISBLANK(Personalize!$E$39),(((VLOOKUP($C21,Filtered!$A$1:$X$626,14,FALSE))-Filtered!$AK$29)/Filtered!$AL$29)*0.5,""))),"") ->  | X21: =IFERROR(IF((OR($D21="RP",$D21="SP")),IF(Personalize!$E$38=TRUE,(((VLOOKUP($C21,'Filtered-P'!$A$1:$Z$700,18,FALSE))-'Filtered-P'!$AF$26)/'Filtered-P'!$AG$26),IF(ISBLANK(Personalize!$E$38),(((VLOOKUP($C21,'Filtered-P'!$A$1:$Z$700,18,FALSE))-'Filtered-P'!$AF$26)/'Filtered-P'!$AG$26)*0.5,"")),IF(Personalize!$E$40=TRUE,(((VLOOKUP($C21,Filtered!$A$1:$X$626,6,FALSE))-Filtered!$AK$21)/Filtered!$AL$21),IF(ISBLANK(Personalize!$E$40),(((VLOOKUP($C21,Filtered!$A$1:$X$626,6,FALSE))-Filtered!$AK$21)/Filtered!$AL$21)*0.5,""))),"") ->  | Y21: =IFERROR(IF((OR($D21="RP",$D21="SP")),IF(Personalize!$E$45=TRUE,(((VLOOKUP($C21,'Filtered-P'!$A$1:$Z$700,4,FALSE))-'Filtered-P'!$AF$10)/'Filtered-P'!$AG$10),IF(ISBLANK(Personalize!$E$45),(((VLOOKUP($C21,'Filtered-P'!$A$1:$Z$700,4,FALSE))-'Filtered-P'!$AF$10)/'Filtered-P'!$AG$10)*0.5,"")),IF(Personalize!$E$41=TRUE,(((VLOOKUP($C21,Filtered!$A$1:$BB$626,20,FALSE))-Filtered!$AK$43)/Filtered!$AL$43),IF(ISBLANK(Personalize!$E$41),(((VLOOKUP($C21,Filtered!$A$1:$BB$626,20,FALSE))-Filtered!$AK$43)/Filtered!$AL$43)*0.5,""))),"") ->  | Z21: =IFERROR(IF((OR($D21="RP",$D21="SP")),IF(Personalize!$E$46=TRUE,(((VLOOKUP($C21,'Filtered-P'!$A$1:$Z$700,19,FALSE))-'Filtered-P'!$AF$27)/'Filtered-P'!$AG$27),IF(ISBLANK(Personalize!$E$46),(((VLOOKUP($C21,'Filtered-P'!$A$1:$Z$700,19,FALSE))-'Filtered-P'!$AF$27)/'Filtered-P'!$AG$27)*0.5,"")),IF(Personalize!$E$44=TRUE,(((VLOOKUP($C21,Filtered!$A$1:$BB$626,21,FALSE))-Filtered!$AK$44)/Filtered!$AL$44),IF(ISBLANK(Personalize!$E$44),(((VLOOKUP($C21,Filtered!$A$1:$BB$626,21,FALSE))-Filtered!$AK$44)/Filtered!$AL$44)*0.5,""))),"") ->  | AA21: =IFERROR(IF((OR($D21="RP",$D21="SP")),IF(Personalize!$E$47=TRUE,(((VLOOKUP($C21,'Filtered-P'!$A$1:$Z$700,6,FALSE))-'Filtered-P'!$AF$12)/'Filtered-P'!$AG$12),IF(ISBLANK(Personalize!$E$47),(((VLOOKUP($C21,'Filtered-P'!$A$1:$Z$700,6,FALSE))-'Filtered-P'!$AF$12)/'Filtered-P'!$AG$12)*0.5,"")),IF(Personalize!$E$42=TRUE,(((VLOOKUP($C21,Filtered!$A$1:$BB$626,8,FALSE))-Filtered!$AK$23)/Filtered!$AL$23),IF(ISBLANK(Personalize!$E$42),(((VLOOKUP($C21,Filtered!$A$1:$BB$626,8,FALSE))-Filtered!$AK$23)/Filtered!$AL$23)*0.5,""))),"") ->  | AB21: =IFERROR(IF((OR($D21="RP",$D21="SP")),IF(Personalize!$E$48=TRUE,(((VLOOKUP($C21,'Filtered-P'!$A$1:$Z$700,5,FALSE))-'Filtered-P'!$AF$11)/'Filtered-P'!$AG$11),IF(ISBLANK(Personalize!$E$48),(((VLOOKUP($C21,'Filtered-P'!$A$1:$Z$700,5,FALSE))-'Filtered-P'!$AF$11)/'Filtered-P'!$AG$11)*0.5,"")),IF(Personalize!$E$43=TRUE,(((VLOOKUP($C21,Filtered!$A$1:$BB$626,9,FALSE))-Filtered!$AK$24)/Filtered!$AL$24),IF(ISBLANK(Personalize!$E$43),(((VLOOKUP($C21,Filtered!$A$1:$BB$626,9,FALSE))-Filtered!$AK$24)/Filtered!$AL$24)*0.5,""))),"") ->  | AC21: =IFERROR(IF((OR($D21="RP",$D21="SP")),IF(Personalize!$E$52=TRUE,(((VLOOKUP($C21,'Filtered-P'!$A$1:$AD$700,21,FALSE))-'Filtered-P'!$AF$29)/(-1*'Filtered-P'!$AG$29)),IF(ISBLANK(Personalize!$E$52),(((VLOOKUP($C21,'Filtered-P'!$A$1:$AD$700,21,FALSE))-'Filtered-P'!$AF$29)/(-1*'Filtered-P'!$AG$29))*0.5,"")),IF(Personalize!$E$49=TRUE,(((VLOOKUP($C21,Filtered!$A$1:$AF$626,30,FALSE))-Filtered!$AK$45)/Filtered!$AL$45),IF(ISBLANK(Personalize!$E$49),(((VLOOKUP($C21,Filtered!$A$1:$AF$626,30,FALSE))-Filtered!$AK$45)/Filtered!$AL$45)*0.5,""))),"") ->  | AD21: =IFERROR(IF((OR($D21="RP",$D21="SP")),IF(Personalize!$E$53=TRUE,(((VLOOKUP($C21,'Filtered-P'!$A$1:$AD$700,23,FALSE))-'Filtered-P'!$AF$31)/(-1*'Filtered-P'!$AG$31)),IF(ISBLANK(Personalize!$E$53),(((VLOOKUP($C21,'Filtered-P'!$A$1:$AD$700,23,FALSE))-'Filtered-P'!$AF$31)/(-1*'Filtered-P'!$AG$31))*0.5,"")),IF(Personalize!$E$50=TRUE,(((VLOOKUP($C21,Filtered!$A$1:$AF$626,31,FALSE))-Filtered!$AK$46)/Filtered!$AL$46),IF(ISBLANK(Personalize!$E$50),(((VLOOKUP($C21,Filtered!$A$1:$AF$626,31,FALSE))-Filtered!$AK$46)/Filtered!$AL$46)*0.5,""))),"") ->  | AE21: =IFERROR(IF((OR($D21="RP",$D21="SP")),IF(Personalize!$E$54=TRUE,(((VLOOKUP($C21,'Filtered-P'!$A$1:$AD$700,24,FALSE))-'Filtered-P'!$AF$32)/'Filtered-P'!$AG$32),IF(ISBLANK(Personalize!$E$54),(((VLOOKUP($C21,'Filtered-P'!$A$1:$AD$700,24,FALSE))-'Filtered-P'!$AF$32)/'Filtered-P'!$AG$32)*0.5,"")),IF(Personalize!$E$51=TRUE,(((VLOOKUP($C21,Filtered!$A$1:$AF$626,15,FALSE))-Filtered!$AK$30)/(-1*Filtered!$AL$30)),IF(ISBLANK(Personalize!$E$51),(((VLOOKUP($C21,Filtered!$A$1:$AF$626,15,FALSE))-Filtered!$AK$30)/(-1*Filtered!$AL$30))*0.5,""))),"") ->  | AF21: =IFERROR(IF((OR($D21="RP",$D21="SP")),IF(Personalize!$E$56=TRUE,(((VLOOKUP($C21,'Filtered-P'!$A$1:$AD$700,29,FALSE))-'Filtered-P'!$AF$35)/'Filtered-P'!$AG$35),IF(ISBLANK(Personalize!$E$56),(((VLOOKUP($C21,'Filtered-P'!$A$1:$AD$700,29,FALSE))-'Filtered-P'!$AF$35)/'Filtered-P'!$AG$35)*0.5,"")),IF(Personalize!$E$60=TRUE,(((VLOOKUP($C21,Filtered!$A$1:$AF$626,7,FALSE))-Filtered!$AK$22)/Filtered!$AL$22),IF(ISBLANK(Personalize!$E$60),(((VLOOKUP($C21,Filtered!$A$1:$AF$626,7,FALSE))-Filtered!$AK$22)/Filtered!$AL$22)*0.5,""))),"") ->  | AG21: =IFERROR(IF((OR($D21="RP",$D21="SP")),IF(Personalize!$E$57=TRUE,(((VLOOKUP($C21,'Filtered-P'!$A$1:$AD$700,28,FALSE))-'Filtered-P'!$AF$34)/'Filtered-P'!$AG$34),IF(ISBLANK(Personalize!$E$57),(((VLOOKUP($C21,'Filtered-P'!$A$1:$AD$700,28,FALSE))-'Filtered-P'!$AF$34)/'Filtered-P'!$AG$34)*0.5,"")),IF(Personalize!$E$61=TRUE,(((VLOOKUP($C21,Filtered!$A$1:$AZ$626,34,FALSE))-Filtered!$AK$47)/Filtered!$AL$47),IF(ISBLANK(Personalize!$E$61),(((VLOOKUP($C21,Filtered!$A$1:$AZ$626,34,FALSE))-Filtered!$AK$47)/Filtered!$AL$47)*0.5,""))),"") ->  | AH21: =IFERROR(IF((OR($D21="RP",$D21="SP")),IF(Personalize!$E$58=TRUE,(((VLOOKUP($C21,'Filtered-P'!$A$1:$Z$700,8,FALSE))-'Filtered-P'!$AF$14)/'Filtered-P'!$AG$14),IF(ISBLANK(Personalize!$E$58),(((VLOOKUP($C21,'Filtered-P'!$A$1:$Z$700,8,FALSE))-'Filtered-P'!$AF$14)/'Filtered-P'!$AG$14)*0.5,"")),IF(Personalize!$E$62=TRUE,(((VLOOKUP($C21,Filtered!$A$1:$AF$626,13,FALSE))-Filtered!$AK$28)/(-1*Filtered!$AL$28)),IF(ISBLANK(Personalize!$E$62),(((VLOOKUP($C21,Filtered!$A$1:$AF$626,13,FALSE))-Filtered!$AK$28)/(-1*Filtered!$AL$28))*0.5,""))),"") ->  | AI21: =IFERROR(IF((OR($D21="RP",$D21="SP")),IF(Personalize!$E$59=TRUE,(((VLOOKUP($C21,'Filtered-P'!$A$1:$AD$700,27,FALSE))-'Filtered-P'!$AF$33)/'Filtered-P'!$AG$33),IF(ISBLANK(Personalize!$E$59),(((VLOOKUP($C21,'Filtered-P'!$A$1:$AD$700,27,FALSE))-'Filtered-P'!$AF$33)/'Filtered-P'!$AG$33)*0.5,"")),IF(Personalize!$E$63=TRUE,(((VLOOKUP($C21,Filtered!$A$1:$AZ$626,35,FALSE))-Filtered!$AK$48)/(-1*Filtered!$AL$48)),IF(ISBLANK(Personalize!$E$63),(((VLOOKUP($C21,Filtered!$A$1:$AZ$626,35,FALSE))-Filtered!$AK$48)/(-1*Filtered!$AL$48))*0.5,""))),"") ->  | AJ21: =IFERROR(IF((OR($D21="RP",$D21="SP")),VLOOKUP($C21,'Filtered-P'!$A$1:$P$580,2,FALSE),""),"") ->  | AK21: =IFERROR(IF((OR($D21="RP",$D21="SP")),VLOOKUP($C21,'Filtered-P'!$A$1:$P$580,9,FALSE),""),"") ->  | AL21: =IFERROR(IF((OR($D21="RP",$D21="SP")),VLOOKUP($C21,'Filtered-P'!$A$1:$P$580,7,FALSE),""),"") ->  | AM21: =IFERROR(IF((OR($D21="RP",$D21="SP")),VLOOKUP($C21,'Filtered-P'!$A$1:$P$580,10,FALSE),""),"") ->  | AN21: =IFERROR(IF((OR($D21="RP",$D21="SP")),VLOOKUP($C21,'Filtered-P'!$A$1:$P$580,11,FALSE),""),"") ->  | AO21: =IFERROR(IF((OR($D21="RP",$D21="SP")),"",VLOOKUP($C21,Filtered!$A$1:$X$600,16,FALSE)),"") -> 0.2819136033 | AP21: =IFERROR(IF((OR($D21="RP",$D21="SP")),"",VLOOKUP($C21,Filtered!$A$1:$X$600,10,FALSE)),"") -> 25.63544551 | AQ21: =IFERROR(IF((OR($D21="RP",$D21="SP")),"",VLOOKUP($C21,Filtered!$A$1:$X$600,11,FALSE)),"") -> 91.49404683 | AR21: =IFERROR(IF((OR($D21="RP",$D21="SP")),"",VLOOKUP($C21,Filtered!$A$1:$X$600,5,FALSE)),"") -> 83.25324193 | AS21: =IFERROR(IF((OR($D21="RP",$D21="SP")),"",VLOOKUP($C21,Filtered!$A$1:$X$600,12,FALSE)),"") -> 22.80888163 | AU21: =IF(ISBLANK(A21),0,1) -> 0 | AV21: =IF(M21="",0,1) -> 1 | AW21: =A21 -> 0 | AX21: =IF(D21="C",1,IF(D21="1B",2,IF(D21="2B",3,IF(D21="3B",4,IF(D21="SS",5,IF(D21="CI",6,IF(D21="MI",7,IF(D21="OF",11,IF(D21="LF",8,IF(D21="CF",9,IF(D21="RF",10,IF(D21="DH",12,IF(D21="SP",13,IF(D21="RP",14,IF(D21="P",15,16))))))))))))))) -> 5 | AY21: =VLOOKUP(C21,'Starter Calc'!$B$2:$BS$700,70,FALSE) -> Bench | AZ21: =VLOOKUP(C21,'Starter Calc'!$B$2:$AO$700,40,FALSE) -> Yes | BA21: =IFERROR(IF(ISTEXT($A21),"",IF((OR($D21="RP",$D21="SP")),ABS(VLOOKUP(D21,'Filtered-P'!$AE$3:$AI$4,5,FALSE))+M21,ABS(VLOOKUP(D21,Filtered!$AJ$3:$AN$14,5,FALSE))+M21)),"") -> 11.81100803 | BB21: =IFERROR(BA21+ABS($BA$4),"") -> 12.53483111 | BC21: =IF(AND($A21<>"",$B21<>""),B21,"N") -> N | BD21: =IFERROR(VLOOKUP($C21,'ADP-Rank'!$A$2:$AB$581,25,FALSE),TRUE) -> TRUE | BE21: =IFERROR((BB21-BB$3)^2,"") -> 59.16471193 | BF21: =VLOOKUP(C21,'Starter Calc'!$B$2:$CD$700,71,FALSE) -> SS.Yes | BG21: =IFERROR(((Personalize!$A$1-(1*Personalize!$A$2))/Personalize!$A$2)*(N21/$BG$3)+1,"") -> 30.64741634 | BH21: 34.20035387 | BI21: 34.20035387
C22: Madison Bumgarner | D22: SP | E22: =IFERROR(IF(VLOOKUP(C22,'Starter Calc'!$B$2:$E$700,4,FALSE)="","",VLOOKUP(C22,'Starter Calc'!$B$2:$E$700,4,FALSE)),"") -> ,, | F22: =IFERROR(VLOOKUP($C22,'ADP-Rank'!$A$2:$G$581,5,FALSE),"") -> SF | G22: =IFERROR(VLOOKUP($C22,'ADP-Rank'!$A$2:$X$581,6,FALSE),"") -> 26 | H22: =IFERROR(IF(ISBLANK($B22),"$"&(ROUND(BI22,0))&" | $"&ROUND(BH22,0),""),"") -> $27 | $27 | I22: =IFERROR(IF(RIGHT(D22,1)="P",J22*$BE$2,J22*$BE$1),"") -> 22.66666667 | J22: =IFERROR(CHOOSE(Personalize!$E$31,(VLOOKUP(C22,'ADP-Rank'!$A$2:$Z$581,7,FALSE)*(Personalize!$A$3)+1),(VLOOKUP(C22,'ADP-Rank'!$A$2:$Z$581,8,FALSE)*(Personalize!$A$3)+1),(VLOOKUP(C22,'ADP-Rank'!$A$2:$Z$581,9,FALSE)*(Personalize!$A$3)+1),(VLOOKUP(C22,'ADP-Rank'!$A$2:$AA$581,10,FALSE)*(Personalize!$A$3)+1),(VLOOKUP(C22,'ADP-Rank'!$A$2:$AA$581,11,FALSE)*(Personalize!$A$3)+1),(VLOOKUP(C22,'ADP-Rank'!$A$2:$AA$581,12,FALSE)*(Personalize!$A$3)+1),(VLOOKUP(C22,'ADP-Rank'!$A$2:$AA$581,13,FALSE)*(Personalize!$A$3)+1),(VLOOKUP(C22,'ADP-Rank'!$A$2:$AA$581,14,FALSE)*(Personalize!$A$3)+1),(VLOOKUP(C22,'ADP-Rank'!$A$2:$AA$581,15,FALSE)*(Personalize!$A$3)+1),(VLOOKUP(C22,'ADP-Rank'!$A$2:$AG$581,28,FALSE)*(Personalize!$A$3)+1)),"") -> 22.66666667 | K22: =VLOOKUP($C22,'ADP-Rank'!$A$2:$AB$581,26,FALSE) -> 29 | L22: =IFERROR(RANK($M22,$M$7:$M$746,0),"") -> 16 | M22: =IF((SUM(O22:AI22)=0),"",SUM(O22:AI22)) -> 6.835980255 | N22: =IFERROR(IF((OR($D22="RP",$D22="SP")),ABS(VLOOKUP(D22,'Filtered-P'!$AE$3:$AI$4,5,FALSE))+M22,ABS(VLOOKUP(D22,Filtered!$AJ$3:$AN$14,5,FALSE))+M22),"") -> 9.949391202 | O22: =IFERROR(IF((OR($D22="RP",$D22="SP")),IF(Personalize!$E$10=TRUE,(((VLOOKUP($C22,'Filtered-P'!$A$1:$P$700,2,FALSE))-'Filtered-P'!$AF$8)/'Filtered-P'!$AG$8),IF(ISBLANK(Personalize!$E$10),(((VLOOKUP($C22,'Filtered-P'!$A$1:$P$700,2,FALSE))-'Filtered-P'!$AF$8)/'Filtered-P'!$AG$8)*0.5,"")),IF(Personalize!$E$4=TRUE,(((VLOOKUP($C22,Filtered!$A$1:$X$626,22,FALSE))-Filtered!$AK$35)/Filtered!$AL$35),IF(ISBLANK(Personalize!$E$4),(((VLOOKUP($C22,Filtered!$A$1:$X$626,22,FALSE))-Filtered!$AK$35)/Filtered!$AL$35)*0.5,""))),"") -> 1.449765919 | P22: =IFERROR(IF((OR($D22="RP",$D22="SP")),IF(Personalize!$E$12=TRUE,(((VLOOKUP($C22,'Filtered-P'!$A$1:$P$700,9,FALSE))-'Filtered-P'!$AF$15)/'Filtered-P'!$AG$15),IF(ISBLANK(Personalize!$E$12),(((VLOOKUP($C22,'Filtered-P'!$A$1:$P$700,9,FALSE))-'Filtered-P'!$AF$15)/'Filtered-P'!$AG$15)*0.5,"")),IF(Personalize!$E$3=TRUE,(((VLOOKUP($C22,Filtered!$A$1:$AB$626,10,FALSE))-Filtered!$AK$25)/Filtered!$AL$25),IF(ISBLANK(Personalize!$E$3),(((VLOOKUP($C22,Filtered!$A$1:$AB$626,10,FALSE))-Filtered!$AK$25)/Filtered!$AL$25)*0.5,""))),"") -> -0.4827187472 | Q22: =IFERROR(IF((OR($D22="RP",$D22="SP")),IF(Personalize!$E$11=TRUE,(((VLOOKUP($C22,'Filtered-P'!$A$1:$P$700,7,FALSE))-'Filtered-P'!$AF$13)/'Filtered-P'!$AG$13),IF(ISBLANK(Personalize!$E$11),(((VLOOKUP($C22,'Filtered-P'!$A$1:$P$700,7,FALSE))-'Filtered-P'!$AF$13)/'Filtered-P'!$AG$13)*0.5,"")),IF(Personalize!$E$2=TRUE,(((VLOOKUP($C22,Filtered!$A$1:$AB$626,5,FALSE))-Filtered!$AK$20)/Filtered!$AL$20),IF(ISBLANK(Personalize!$E$2),(((VLOOKUP($C22,Filtered!$A$1:$AB$626,5,FALSE))-Filtered!$AK$20)/Filtered!$AL$20)*0.5,""))),"") -> 1.502527473 | R22: =IFERROR(IF((OR($D22="RP",$D22="SP")),IF(Personalize!$E$13=TRUE,(((VLOOKUP($C22,'Filtered-P'!$A$1:$P$700,13,FALSE))-'Filtered-P'!$AF$19)/'Filtered-P'!$AG$19),IF(ISBLANK(Personalize!$E$13),(((VLOOKUP($C22,'Filtered-P'!$A$1:$P$700,13,FALSE))-'Filtered-P'!$AF$19)/'Filtered-P'!$AG$19)*0.5,"")),IF(Personalize!$E$5=TRUE,(((VLOOKUP($C22,Filtered!$A$1:$AB$626,11,FALSE))-Filtered!$AK$26)/Filtered!$AL$26),IF(ISBLANK(Personalize!$E$5),(((VLOOKUP($C22,Filtered!$A$1:$AB$626,11,FALSE))-Filtered!$AK$26)/Filtered!$AL$26)*0.5,""))),"") -> 2.213802449 | S22: =IFERROR(IF((OR($D22="RP",$D22="SP")),IF(Personalize!$E$14=TRUE,(((VLOOKUP($C22,'Filtered-P'!$A$1:$P$700,14,FALSE))-'Filtered-P'!$AF$20)/'Filtered-P'!$AG$20),IF(ISBLANK(Personalize!$E$14),(((VLOOKUP($C22,'Filtered-P'!$A$1:$P$700,14,FALSE))-'Filtered-P'!$AF$20)/'Filtered-P'!$AG$20)*0.5,"")),IF(Personalize!$E$6=TRUE,(((VLOOKUP($C22,Filtered!$A$1:$AB$626,12,FALSE))-Filtered!$AK$27)/Filtered!$AL$27),IF(ISBLANK(Personalize!$E$6),(((VLOOKUP($C22,Filtered!$A$1:$AB$626,12,FALSE))-Filtered!$AK$27)/Filtered!$AL$27)*0.5,""))),"") -> 2.152603161 | T22: =IFERROR(IF((OR($D22="RP",$D22="SP")),IF(Personalize!$E$16=TRUE,(((VLOOKUP($C22,'Filtered-P'!$A$1:$P$700,3,FALSE))-'Filtered-P'!$AF$9)/'Filtered-P'!$AG$9),IF(ISBLANK(Personalize!$E$16),(((VLOOKUP($C22,'Filtered-P'!$A$1:$P$700,3,FALSE))-'Filtered-P'!$AF$9)/'Filtered-P'!$AG$9)*0.5,"")),IF(Personalize!$E$7=TRUE,(((VLOOKUP($C22,Filtered!$A$1:$BB$626,24,FALSE))-Filtered!$AK$37)/Filtered!$AL$37),IF(ISBLANK(Personalize!$E$7),(((VLOOKUP($C22,Filtered!$A$1:$BB$626,24,FALSE))-Filtered!$AK$37)/Filtered!$AL$37)*0.5,""))),"") ->  | U22: =IFERROR(IF((OR($D22="RP",$D22="SP")),IF(Personalize!$E$15=TRUE,(((VLOOKUP($C22,'Filtered-P'!$A$1:$P$700,15,FALSE))-'Filtered-P'!$AF$21)/'Filtered-P'!$AG$21),IF(ISBLANK(Personalize!$E$15),(((VLOOKUP($C22,'Filtered-P'!$A$1:$P$700,15,FALSE))-'Filtered-P'!$AF$21)/'Filtered-P'!$AG$21)*0.5,"")),IF(Personalize!$E$8=TRUE,(((VLOOKUP($C22,Filtered!$A$1:$BB$626,23,FALSE))-Filtered!$AK$36)/Filtered!$AL$36),IF(ISBLANK(Personalize!$E$8),(((VLOOKUP($C22,Filtered!$A$1:$BB$626,23,FALSE))-Filtered!$AK$36)/Filtered!$AL$36)*0.5,""))),"") ->  | V22: =IFERROR(IF((OR($D22="RP",$D22="SP")),IF(Personalize!$E$17=TRUE,(((VLOOKUP($C22,'Filtered-P'!$A$1:$P$700,16,FALSE))-'Filtered-P'!$AF$22)/'Filtered-P'!$AG$22),IF(ISBLANK(Personalize!$E$17),(((VLOOKUP($C22,'Filtered-P'!$A$1:$P$700,16,FALSE))-'Filtered-P'!$AF$22)/'Filtered-P'!$AG$22)*0.5,"")),IF(Personalize!$E$9=TRUE,(((VLOOKUP($C22,Filtered!$A$1:$BB$626,25,FALSE))-Filtered!$AK$38)/Filtered!$AL$38),IF(ISBLANK(Personalize!$E$9),(((VLOOKUP($C22,Filtered!$A$1:$BB$626,25,FALSE))-Filtered!$AK$38)/Filtered!$AL$38)*0.5,""))),"") ->  | W22: =IFERROR(IF((OR($D22="RP",$D22="SP")),IF(Personalize!$E$37=TRUE,(((VLOOKUP($C22,'Filtered-P'!$A$1:$Z$700,17,FALSE))-'Filtered-P'!$AF$25)/'Filtered-P'!$AG$25),IF(ISBLANK(Personalize!$E$37),(((VLOOKUP($C22,'Filtered-P'!$A$1:$Z$700,17,FALSE))-'Filtered-P'!$AF$25)/'Filtered-P'!$AG$25)*0.5,"")),IF(Personalize!$E$39=TRUE,(((VLOOKUP($C22,Filtered!$A$1:$X$626,14,FALSE))-Filtered!$AK$29)/Filtered!$AL$29),IF(ISBLANK(Personalize!$E$39),(((VLOOKUP($C22,Filtered!$A$1:$X$626,14,FALSE))-Filtered!$AK$29)/Filtered!$AL$29)*0.5,""))),"") ->  | X22: =IFERROR(IF((OR($D22="RP",$D22="SP")),IF(Personalize!$E$38=TRUE,(((VLOOKUP($C22,'Filtered-P'!$A$1:$Z$700,18,FALSE))-'Filtered-P'!$AF$26)/'Filtered-P'!$AG$26),IF(ISBLANK(Personalize!$E$38),(((VLOOKUP($C22,'Filtered-P'!$A$1:$Z$700,18,FALSE))-'Filtered-P'!$AF$26)/'Filtered-P'!$AG$26)*0.5,"")),IF(Personalize!$E$40=TRUE,(((VLOOKUP($C22,Filtered!$A$1:$X$626,6,FALSE))-Filtered!$AK$21)/Filtered!$AL$21),IF(ISBLANK(Personalize!$E$40),(((VLOOKUP($C22,Filtered!$A$1:$X$626,6,FALSE))-Filtered!$AK$21)/Filtered!$AL$21)*0.5,""))),"") ->  | Y22: =IFERROR(IF((OR($D22="RP",$D22="SP")),IF(Personalize!$E$45=TRUE,(((VLOOKUP($C22,'Filtered-P'!$A$1:$Z$700,4,FALSE))-'Filtered-P'!$AF$10)/'Filtered-P'!$AG$10),IF(ISBLANK(Personalize!$E$45),(((VLOOKUP($C22,'Filtered-P'!$A$1:$Z$700,4,FALSE))-'Filtered-P'!$AF$10)/'Filtered-P'!$AG$10)*0.5,"")),IF(Personalize!$E$41=TRUE,(((VLOOKUP($C22,Filtered!$A$1:$BB$626,20,FALSE))-Filtered!$AK$43)/Filtered!$AL$43),IF(ISBLANK(Personalize!$E$41),(((VLOOKUP($C22,Filtered!$A$1:$BB$626,20,FALSE))-Filtered!$AK$43)/Filtered!$AL$43)*0.5,""))),"") ->  | Z22: =IFERROR(IF((OR($D22="RP",$D22="SP")),IF(Personalize!$E$46=TRUE,(((VLOOKUP($C22,'Filtered-P'!$A$1:$Z$700,19,FALSE))-'Filtered-P'!$AF$27)/'Filtered-P'!$AG$27),IF(ISBLANK(Personalize!$E$46),(((VLOOKUP($C22,'Filtered-P'!$A$1:$Z$700,19,FALSE))-'Filtered-P'!$AF$27)/'Filtered-P'!$AG$27)*0.5,"")),IF(Personalize!$E$44=TRUE,(((VLOOKUP($C22,Filtered!$A$1:$BB$626,21,FALSE))-Filtered!$AK$44)/Filtered!$AL$44),IF(ISBLANK(Personalize!$E$44),(((VLOOKUP($C22,Filtered!$A$1:$BB$626,21,FALSE))-Filtered!$AK$44)/Filtered!$AL$44)*0.5,""))),"") ->  | AA22: =IFERROR(IF((OR($D22="RP",$D22="SP")),IF(Personalize!$E$47=TRUE,(((VLOOKUP($C22,'Filtered-P'!$A$1:$Z$700,6,FALSE))-'Filtered-P'!$AF$12)/'Filtered-P'!$AG$12),IF(ISBLANK(Personalize!$E$47),(((VLOOKUP($C22,'Filtered-P'!$A$1:$Z$700,6,FALSE))-'Filtered-P'!$AF$12)/'Filtered-P'!$AG$12)*0.5,"")),IF(Personalize!$E$42=TRUE,(((VLOOKUP($C22,Filtered!$A$1:$BB$626,8,FALSE))-Filtered!$AK$23)/Filtered!$AL$23),IF(ISBLANK(Personalize!$E$42),(((VLOOKUP($C22,Filtered!$A$1:$BB$626,8,FALSE))-Filtered!$AK$23)/Filtered!$AL$23)*0.5,""))),"") ->  | AB22: =IFERROR(IF((OR($D22="RP",$D22="SP")),IF(Personalize!$E$48=TRUE,(((VLOOKUP($C22,'Filtered-P'!$A$1:$Z$700,5,FALSE))-'Filtered-P'!$AF$11)/'Filtered-P'!$AG$11),IF(ISBLANK(Personalize!$E$48),(((VLOOKUP($C22,'Filtered-P'!$A$1:$Z$700,5,FALSE))-'Filtered-P'!$AF$11)/'Filtered-P'!$AG$11)*0.5,"")),IF(Personalize!$E$43=TRUE,(((VLOOKUP($C22,Filtered!$A$1:$BB$626,9,FALSE))-Filtered!$AK$24)/Filtered!$AL$24),IF(ISBLANK(Personalize!$E$43),(((VLOOKUP($C22,Filtered!$A$1:$BB$626,9,FALSE))-Filtered!$AK$24)/Filtered!$AL$24)*0.5,""))),"") ->  | AC22: =IFERROR(IF((OR($D22="RP",$D22="SP")),IF(Personalize!$E$52=TRUE,(((VLOOKUP($C22,'Filtered-P'!$A$1:$AD$700,21,FALSE))-'Filtered-P'!$AF$29)/(-1*'Filtered-P'!$AG$29)),IF(ISBLANK(Personalize!$E$52),(((VLOOKUP($C22,'Filtered-P'!$A$1:$AD$700,21,FALSE))-'Filtered-P'!$AF$29)/(-1*'Filtered-P'!$AG$29))*0.5,"")),IF(Personalize!$E$49=TRUE,(((VLOOKUP($C22,Filtered!$A$1:$AF$626,30,FALSE))-Filtered!$AK$45)/Filtered!$AL$45),IF(ISBLANK(Personalize!$E$49),(((VLOOKUP($C22,Filtered!$A$1:$AF$626,30,FALSE))-Filtered!$AK$45)/Filtered!$AL$45)*0.5,""))),"") ->  | AD22: =IFERROR(IF((OR($D22="RP",$D22="SP")),IF(Personalize!$E$53=TRUE,(((VLOOKUP($C22,'Filtered-P'!$A$1:$AD$700,23,FALSE))-'Filtered-P'!$AF$31)/(-1*'Filtered-P'!$AG$31)),IF(ISBLANK(Personalize!$E$53),(((VLOOKUP($C22,'Filtered-P'!$A$1:$AD$700,23,FALSE))-'Filtered-P'!$AF$31)/(-1*'Filtered-P'!$AG$31))*0.5,"")),IF(Personalize!$E$50=TRUE,(((VLOOKUP($C22,Filtered!$A$1:$AF$626,31,FALSE))-Filtered!$AK$46)/Filtered!$AL$46),IF(ISBLANK(Personalize!$E$50),(((VLOOKUP($C22,Filtered!$A$1:$AF$626,31,FALSE))-Filtered!$AK$46)/Filtered!$AL$46)*0.5,""))),"") ->  | AE22: =IFERROR(IF((OR($D22="RP",$D22="SP")),IF(Personalize!$E$54=TRUE,(((VLOOKUP($C22,'Filtered-P'!$A$1:$AD$700,24,FALSE))-'Filtered-P'!$AF$32)/'Filtered-P'!$AG$32),IF(ISBLANK(Personalize!$E$54),(((VLOOKUP($C22,'Filtered-P'!$A$1:$AD$700,24,FALSE))-'Filtered-P'!$AF$32)/'Filtered-P'!$AG$32)*0.5,"")),IF(Personalize!$E$51=TRUE,(((VLOOKUP($C22,Filtered!$A$1:$AF$626,15,FALSE))-Filtered!$AK$30)/(-1*Filtered!$AL$30)),IF(ISBLANK(Personalize!$E$51),(((VLOOKUP($C22,Filtered!$A$1:$AF$626,15,FALSE))-Filtered!$AK$30)/(-1*Filtered!$AL$30))*0.5,""))),"") ->  | AF22: =IFERROR(IF((OR($D22="RP",$D22="SP")),IF(Personalize!$E$56=TRUE,(((VLOOKUP($C22,'Filtered-P'!$A$1:$AD$700,29,FALSE))-'Filtered-P'!$AF$35)/'Filtered-P'!$AG$35),IF(ISBLANK(Personalize!$E$56),(((VLOOKUP($C22,'Filtered-P'!$A$1:$AD$700,29,FALSE))-'Filtered-P'!$AF$35)/'Filtered-P'!$AG$35)*0.5,"")),IF(Personalize!$E$60=TRUE,(((VLOOKUP($C22,Filtered!$A$1:$AF$626,7,FALSE))-Filtered!$AK$22)/Filtered!$AL$22),IF(ISBLANK(Personalize!$E$60),(((VLOOKUP($C22,Filtered!$A$1:$AF$626,7,FALSE))-Filtered!$AK$22)/Filtered!$AL$22)*0.5,""))),"") ->  | AG22: =IFERROR(IF((OR($D22="RP",$D22="SP")),IF(Personalize!$E$57=TRUE,(((VLOOKUP($C22,'Filtered-P'!$A$1:$AD$700,28,FALSE))-'Filtered-P'!$AF$34)/'Filtered-P'!$AG$34),IF(ISBLANK(Personalize!$E$57),(((VLOOKUP($C22,'Filtered-P'!$A$1:$AD$700,28,FALSE))-'Filtered-P'!$AF$34)/'Filtered-P'!$AG$34)*0.5,"")),IF(Personalize!$E$61=TRUE,(((VLOOKUP($C22,Filtered!$A$1:$AZ$626,34,FALSE))-Filtered!$AK$47)/Filtered!$AL$47),IF(ISBLANK(Personalize!$E$61),(((VLOOKUP($C22,Filtered!$A$1:$AZ$626,34,FALSE))-Filtered!$AK$47)/Filtered!$AL$47)*0.5,""))),"") ->  | AH22: =IFERROR(IF((OR($D22="RP",$D22="SP")),IF(Personalize!$E$58=TRUE,(((VLOOKUP($C22,'Filtered-P'!$A$1:$Z$700,8,FALSE))-'Filtered-P'!$AF$14)/'Filtered-P'!$AG$14),IF(ISBLANK(Personalize!$E$58),(((VLOOKUP($C22,'Filtered-P'!$A$1:$Z$700,8,FALSE))-'Filtered-P'!$AF$14)/'Filtered-P'!$AG$14)*0.5,"")),IF(Personalize!$E$62=TRUE,(((VLOOKUP($C22,Filtered!$A$1:$AF$626,13,FALSE))-Filtered!$AK$28)/(-1*Filtered!$AL$28)),IF(ISBLANK(Personalize!$E$62),(((VLOOKUP($C22,Filtered!$A$1:$AF$626,13,FALSE))-Filtered!$AK$28)/(-1*Filtered!$AL$28))*0.5,""))),"") ->  | AI22: =IFERROR(IF((OR($D22="RP",$D22="SP")),IF(Personalize!$E$59=TRUE,(((VLOOKUP($C22,'Filtered-P'!$A$1:$AD$700,27,FALSE))-'Filtered-P'!$AF$33)/'Filtered-P'!$AG$33),IF(ISBLANK(Personalize!$E$59),(((VLOOKUP($C22,'Filtered-P'!$A$1:$AD$700,27,FALSE))-'Filtered-P'!$AF$33)/'Filtered-P'!$AG$33)*0.5,"")),IF(Personalize!$E$63=TRUE,(((VLOOKUP($C22,Filtered!$A$1:$AZ$626,35,FALSE))-Filtered!$AK$48)/(-1*Filtered!$AL$48)),IF(ISBLANK(Personalize!$E$63),(((VLOOKUP($C22,Filtered!$A$1:$AZ$626,35,FALSE))-Filtered!$AK$48)/(-1*Filtered!$AL$48))*0.5,""))),"") ->  | AJ22: =IFERROR(IF((OR($D22="RP",$D22="SP")),VLOOKUP($C22,'Filtered-P'!$A$1:$P$580,2,FALSE),""),"") -> 15.31878719 | AK22: =IFERROR(IF((OR($D22="RP",$D22="SP")),VLOOKUP($C22,'Filtered-P'!$A$1:$P$580,9,FALSE),""),"") -> 0 | AL22: =IFERROR(IF((OR($D22="RP",$D22="SP")),VLOOKUP($C22,'Filtered-P'!$A$1:$P$580,7,FALSE),""),"") -> 218.2619036 | AM22: =IFERROR(IF((OR($D22="RP",$D22="SP")),VLOOKUP($C22,'Filtered-P'!$A$1:$P$580,10,FALSE),""),"") -> 2.813171116 | AN22: =IFERROR(IF((OR($D22="RP",$D22="SP")),VLOOKUP($C22,'Filtered-P'!$A$1:$P$580,11,FALSE),""),"") -> 1.064357216 | AO22: =IFERROR(IF((OR($D22="RP",$D22="SP")),"",VLOOKUP($C22,Filtered!$A$1:$X$600,16,FALSE)),"") ->  | AP22: =IFERROR(IF((OR($D22="RP",$D22="SP")),"",VLOOKUP($C22,Filtered!$A$1:$X$600,10,FALSE)),"") ->  | AQ22: =IFERROR(IF((OR($D22="RP",$D22="SP")),"",VLOOKUP($C22,Filtered!$A$1:$X$600,11,FALSE)),"") ->  | AR22: =IFERROR(IF((OR($D22="RP",$D22="SP")),"",VLOOKUP($C22,Filtered!$A$1:$X$600,5,FALSE)),"") ->  | AS22: =IFERROR(IF((OR($D22="RP",$D22="SP")),"",VLOOKUP($C22,Filtered!$A$1:$X$600,12,FALSE)),"") ->  | AU22: =IF(ISBLANK(A22),0,1) -> 0 | AV22: =IF(M22="",0,1) -> 1 | AW22: =A22 -> 0 | AX22: =IF(D22="C",1,IF(D22="1B",2,IF(D22="2B",3,IF(D22="3B",4,IF(D22="SS",5,IF(D22="CI",6,IF(D22="MI",7,IF(D22="OF",11,IF(D22="LF",8,IF(D22="CF",9,IF(D22="RF",10,IF(D22="DH",12,IF(D22="SP",13,IF(D22="RP",14,IF(D22="P",15,16))))))))))))))) -> 13 | AY22: =VLOOKUP(C22,'Starter Calc'!$B$2:$BS$700,70,FALSE) -> Bench | AZ22: =VLOOKUP(C22,'Starter Calc'!$B$2:$AO$700,40,FALSE) -> Yes | BA22: =IFERROR(IF(ISTEXT($A22),"",IF((OR($D22="RP",$D22="SP")),ABS(VLOOKUP(D22,'Filtered-P'!$AE$3:$AI$4,5,FALSE))+M22,ABS(VLOOKUP(D22,Filtered!$AJ$3:$AN$14,5,FALSE))+M22)),"") -> 9.949391202 | BB22: =IFERROR(BA22+ABS($BA$4),"") -> 10.67321428 | BC22: =IF(AND($A22<>"",$B22<>""),B22,"N") -> N | BD22: =IFERROR(VLOOKUP($C22,'ADP-Rank'!$A$2:$AB$581,25,FALSE),TRUE) -> TRUE | BE22: =IFERROR((BB22-BB$3)^2,"") -> 33.99173669 | BF22: =VLOOKUP(C22,'Starter Calc'!$B$2:$CD$700,71,FALSE) -> SP.No | BG22: =IFERROR(((Personalize!$A$1-(1*Personalize!$A$2))/Personalize!$A$2)*(N22/$BG$3)+1,"") -> 25.97447657 | BH22: 26.81216482 | BI22: 26.81216482
C23: Manny Machado | D23: 3B | E23: =IFERROR(IF(VLOOKUP(C23,'Starter Calc'!$B$2:$E$700,4,FALSE)="","",VLOOKUP(C23,'Starter Calc'!$B$2:$E$700,4,FALSE)),"") -> ,, | F23: =IFERROR(VLOOKUP($C23,'ADP-Rank'!$A$2:$G$581,5,FALSE),"") -> BAL | G23: =IFERROR(VLOOKUP($C23,'ADP-Rank'!$A$2:$X$581,6,FALSE),"") -> 23 | H23: =IFERROR(IF(ISBLANK($B23),"$"&(ROUND(BI23,0))&" | $"&ROUND(BH23,0),""),"") -> $26 | $26 | I23: =IFERROR(IF(RIGHT(D23,1)="P",J23*$BE$2,J23*$BE$1),"") -> 28.73333333 | J23: =IFERROR(CHOOSE(Personalize!$E$31,(VLOOKUP(C23,'ADP-Rank'!$A$2:$Z$581,7,FALSE)*(Personalize!$A$3)+1),(VLOOKUP(C23,'ADP-Rank'!$A$2:$Z$581,8,FALSE)*(Personalize!$A$3)+1),(VLOOKUP(C23,'ADP-Rank'!$A$2:$Z$581,9,FALSE)*(Personalize!$A$3)+1),(VLOOKUP(C23,'ADP-Rank'!$A$2:$AA$581,10,FALSE)*(Personalize!$A$3)+1),(VLOOKUP(C23,'ADP-Rank'!$A$2:$AA$581,11,FALSE)*(Personalize!$A$3)+1),(VLOOKUP(C23,'ADP-Rank'!$A$2:$AA$581,12,FALSE)*(Personalize!$A$3)+1),(VLOOKUP(C23,'ADP-Rank'!$A$2:$AA$581,13,FALSE)*(Personalize!$A$3)+1),(VLOOKUP(C23,'ADP-Rank'!$A$2:$AA$581,14,FALSE)*(Personalize!$A$3)+1),(VLOOKUP(C23,'ADP-Rank'!$A$2:$AA$581,15,FALSE)*(Personalize!$A$3)+1),(VLOOKUP(C23,'ADP-Rank'!$A$2:$AG$581,28,FALSE)*(Personalize!$A$3)+1)),"") -> 28.73333333 | K23: =VLOOKUP($C23,'ADP-Rank'!$A$2:$AB$581,26,FALSE) -> 7 | L23: =IFERROR(RANK($M23,$M$7:$M$746,0),"") -> 17 | M23: =IF((SUM(O23:AI23)=0),"",SUM(O23:AI23)) -> 6.407357448 | N23: =IFERROR(IF((OR($D23="RP",$D23="SP")),ABS(VLOOKUP(D23,'Filtered-P'!$AE$3:$AI$4,5,FALSE))+M23,ABS(VLOOKUP(D23,Filtered!$AJ$3:$AN$14,5,FALSE))+M23),"") -> 8.780799297 | O23: =IFERROR(IF((OR($D23="RP",$D23="SP")),IF(Personalize!$E$10=TRUE,(((VLOOKUP($C23,'Filtered-P'!$A$1:$P$700,2,FALSE))-'Filtered-P'!$AF$8)/'Filtered-P'!$AG$8),IF(ISBLANK(Personalize!$E$10),(((VLOOKUP($C23,'Filtered-P'!$A$1:$P$700,2,FALSE))-'Filtered-P'!$AF$8)/'Filtered-P'!$AG$8)*0.5,"")),IF(Personalize!$E$4=TRUE,(((VLOOKUP($C23,Filtered!$A$1:$X$626,22,FALSE))-Filtered!$AK$35)/Filtered!$AL$35),IF(ISBLANK(Personalize!$E$4),(((VLOOKUP($C23,Filtered!$A$1:$X$626,22,FALSE))-Filtered!$AK$35)/Filtered!$AL$35)*0.5,""))),"") -> 1.3717047 | P23: =IFERROR(IF((OR($D23="RP",$D23="SP")),IF(Personalize!$E$12=TRUE,(((VLOOKUP($C23,'Filtered-P'!$A$1:$P$700,9,FALSE))-'Filtered-P'!$AF$15)/'Filtered-P'!$AG$15),IF(ISBLANK(Personalize!$E$12),(((VLOOKUP($C23,'Filtered-P'!$A$1:$P$700,9,FALSE))-'Filtered-P'!$AF$15)/'Filtered-P'!$AG$15)*0.5,"")),IF(Personalize!$E$3=TRUE,(((VLOOKUP($C23,Filtered!$A$1:$AB$626,10,FALSE))-Filtered!$AK$25)/Filtered!$AL$25),IF(ISBLANK(Personalize!$E$3),(((VLOOKUP($C23,Filtered!$A$1:$AB$626,10,FALSE))-Filtered!$AK$25)/Filtered!$AL$25)*0.5,""))),"") -> 1.147135074 | Q23: =IFERROR(IF((OR($D23="RP",$D23="SP")),IF(Personalize!$E$11=TRUE,(((VLOOKUP($C23,'Filtered-P'!$A$1:$P$700,7,FALSE))-'Filtered-P'!$AF$13)/'Filtered-P'!$AG$13),IF(ISBLANK(Personalize!$E$11),(((VLOOKUP($C23,'Filtered-P'!$A$1:$P$700,7,FALSE))-'Filtered-P'!$AF$13)/'Filtered-P'!$AG$13)*0.5,"")),IF(Personalize!$E$2=TRUE,(((VLOOKUP($C23,Filtered!$A$1:$AB$626,5,FALSE))-Filtered!$AK$20)/Filtered!$AL$20),IF(ISBLANK(Personalize!$E$2),(((VLOOKUP($C23,Filtered!$A$1:$AB$626,5,FALSE))-Filtered!$AK$20)/Filtered!$AL$20)*0.5,""))),"") -> 1.253289373 | R23: =IFERROR(IF((OR($D23="RP",$D23="SP")),IF(Personalize!$E$13=TRUE,(((VLOOKUP($C23,'Filtered-P'!$A$1:$P$700,13,FALSE))-'Filtered-P'!$AF$19)/'Filtered-P'!$AG$19),IF(ISBLANK(Personalize!$E$13),(((VLOOKUP($C23,'Filtered-P'!$A$1:$P$700,13,FALSE))-'Filtered-P'!$AF$19)/'Filtered-P'!$AG$19)*0.5,"")),IF(Personalize!$E$5=TRUE,(((VLOOKUP($C23,Filtered!$A$1:$AB$626,11,FALSE))-Filtered!$AK$26)/Filtered!$AL$26),IF(ISBLANK(Personalize!$E$5),(((VLOOKUP($C23,Filtered!$A$1:$AB$626,11,FALSE))-Filtered!$AK$26)/Filtered!$AL$26)*0.5,""))),"") -> 0.5949828967 | S23: =IFERROR(IF((OR($D23="RP",$D23="SP")),IF(Personalize!$E$14=TRUE,(((VLOOKUP($C23,'Filtered-P'!$A$1:$P$700,14,FALSE))-'Filtered-P'!$AF$20)/'Filtered-P'!$AG$20),IF(ISBLANK(Personalize!$E$14),(((VLOOKUP($C23,'Filtered-P'!$A$1:$P$700,14,FALSE))-'Filtered-P'!$AF$20)/'Filtered-P'!$AG$20)*0.5,"")),IF(Personalize!$E$6=TRUE,(((VLOOKUP($C23,Filtered!$A$1:$AB$626,12,FALSE))-Filtered!$AK$27)/Filtered!$AL$27),IF(ISBLANK(Personalize!$E$6),(((VLOOKUP($C23,Filtered!$A$1:$AB$626,12,FALSE))-Filtered!$AK$27)/Filtered!$AL$27)*0.5,""))),"") -> 0.5582648559 | T23: =IFERROR(IF((OR($D23="RP",$D23="SP")),IF(Personalize!$E$16=TRUE,(((VLOOKUP($C23,'Filtered-P'!$A$1:$P$700,3,FALSE))-'Filtered-P'!$AF$9)/'Filtered-P'!$AG$9),IF(ISBLANK(Personalize!$E$16),(((VLOOKUP($C23,'Filtered-P'!$A$1:$P$700,3,FALSE))-'Filtered-P'!$AF$9)/'Filtered-P'!$AG$9)*0.5,"")),IF(Personalize!$E$7=TRUE,(((VLOOKUP($C23,Filtered!$A$1:$BB$626,24,FALSE))-Filtered!$AK$37)/Filtered!$AL$37),IF(ISBLANK(Personalize!$E$7),(((VLOOKUP($C23,Filtered!$A$1:$BB$626,24,FALSE))-Filtered!$AK$37)/Filtered!$AL$37)*0.5,""))),"") -> 1.481980549 | U23: =IFERROR(IF((OR($D23="RP",$D23="SP")),IF(Personalize!$E$15=TRUE,(((VLOOKUP($C23,'Filtered-P'!$A$1:$P$700,15,FALSE))-'Filtered-P'!$AF$21)/'Filtered-P'!$AG$21),IF(ISBLANK(Personalize!$E$15),(((VLOOKUP($C23,'Filtered-P'!$A$1:$P$700,15,FALSE))-'Filtered-P'!$AF$21)/'Filtered-P'!$AG$21)*0.5,"")),IF(Personalize!$E$8=TRUE,(((VLOOKUP($C23,Filtered!$A$1:$BB$626,23,FALSE))-Filtered!$AK$36)/Filtered!$AL$36),IF(ISBLANK(Personalize!$E$8),(((VLOOKUP($C23,Filtered!$A$1:$BB$626,23,FALSE))-Filtered!$AK$36)/Filtered!$AL$36)*0.5,""))),"") ->  | V23: =IFERROR(IF((OR($D23="RP",$D23="SP")),IF(Personalize!$E$17=TRUE,(((VLOOKUP($C23,'Filtered-P'!$A$1:$P$700,16,FALSE))-'Filtered-P'!$AF$22)/'Filtered-P'!$AG$22),IF(ISBLANK(Personalize!$E$17),(((VLOOKUP($C23,'Filtered-P'!$A$1:$P$700,16,FALSE))-'Filtered-P'!$AF$22)/'Filtered-P'!$AG$22)*0.5,"")),IF(Personalize!$E$9=TRUE,(((VLOOKUP($C23,Filtered!$A$1:$BB$626,25,FALSE))-Filtered!$AK$38)/Filtered!$AL$38),IF(ISBLANK(Personalize!$E$9),(((VLOOKUP($C23,Filtered!$A$1:$BB$626,25,FALSE))-Filtered!$AK$38)/Filtered!$AL$38)*0.5,""))),"") ->  | W23: =IFERROR(IF((OR($D23="RP",$D23="SP")),IF(Personalize!$E$37=TRUE,(((VLOOKUP($C23,'Filtered-P'!$A$1:$Z$700,17,FALSE))-'Filtered-P'!$AF$25)/'Filtered-P'!$AG$25),IF(ISBLANK(Personalize!$E$37),(((VLOOKUP($C23,'Filtered-P'!$A$1:$Z$700,17,FALSE))-'Filtered-P'!$AF$25)/'Filtered-P'!$AG$25)*0.5,"")),IF(Personalize!$E$39=TRUE,(((VLOOKUP($C23,Filtered!$A$1:$X$626,14,FALSE))-Filtered!$AK$29)/Filtered!$AL$29),IF(ISBLANK(Personalize!$E$39),(((VLOOKUP($C23,Filtered!$A$1:$X$626,14,FALSE))-Filtered!$AK$29)/Filtered!$AL$29)*0.5,""))),"") ->  | X23: =IFERROR(IF((OR($D23="RP",$D23="SP")),IF(Personalize!$E$38=TRUE,(((VLOOKUP($C23,'Filtered-P'!$A$1:$Z$700,18,FALSE))-'Filtered-P'!$AF$26)/'Filtered-P'!$AG$26),IF(ISBLANK(Personalize!$E$38),(((VLOOKUP($C23,'Filtered-P'!$A$1:$Z$700,18,FALSE))-'Filtered-P'!$AF$26)/'Filtered-P'!$AG$26)*0.5,"")),IF(Personalize!$E$40=TRUE,(((VLOOKUP($C23,Filtered!$A$1:$X$626,6,FALSE))-Filtered!$AK$21)/Filtered!$AL$21),IF(ISBLANK(Personalize!$E$40),(((VLOOKUP($C23,Filtered!$A$1:$X$626,6,FALSE))-Filtered!$AK$21)/Filtered!$AL$21)*0.5,""))),"") ->  | Y23: =IFERROR(IF((OR($D23="RP",$D23="SP")),IF(Personalize!$E$45=TRUE,(((VLOOKUP($C23,'Filtered-P'!$A$1:$Z$700,4,FALSE))-'Filtered-P'!$AF$10)/'Filtered-P'!$AG$10),IF(ISBLANK(Personalize!$E$45),(((VLOOKUP($C23,'Filtered-P'!$A$1:$Z$700,4,FALSE))-'Filtered-P'!$AF$10)/'Filtered-P'!$AG$10)*0.5,"")),IF(Personalize!$E$41=TRUE,(((VLOOKUP($C23,Filtered!$A$1:$BB$626,20,FALSE))-Filtered!$AK$43)/Filtered!$AL$43),IF(ISBLANK(Personalize!$E$41),(((VLOOKUP($C23,Filtered!$A$1:$BB$626,20,FALSE))-Filtered!$AK$43)/Filtered!$AL$43)*0.5,""))),"") ->  | Z23: =IFERROR(IF((OR($D23="RP",$D23="SP")),IF(Personalize!$E$46=TRUE,(((VLOOKUP($C23,'Filtered-P'!$A$1:$Z$700,19,FALSE))-'Filtered-P'!$AF$27)/'Filtered-P'!$AG$27),IF(ISBLANK(Personalize!$E$46),(((VLOOKUP($C23,'Filtered-P'!$A$1:$Z$700,19,FALSE))-'Filtered-P'!$AF$27)/'Filtered-P'!$AG$27)*0.5,"")),IF(Personalize!$E$44=TRUE,(((VLOOKUP($C23,Filtered!$A$1:$BB$626,21,FALSE))-Filtered!$AK$44)/Filtered!$AL$44),IF(ISBLANK(Personalize!$E$44),(((VLOOKUP($C23,Filtered!$A$1:$BB$626,21,FALSE))-Filtered!$AK$44)/Filtered!$AL$44)*0.5,""))),"") ->  | AA23: =IFERROR(IF((OR($D23="RP",$D23="SP")),IF(Personalize!$E$47=TRUE,(((VLOOKUP($C23,'Filtered-P'!$A$1:$Z$700,6,FALSE))-'Filtered-P'!$AF$12)/'Filtered-P'!$AG$12),IF(ISBLANK(Personalize!$E$47),(((VLOOKUP($C23,'Filtered-P'!$A$1:$Z$700,6,FALSE))-'Filtered-P'!$AF$12)/'Filtered-P'!$AG$12)*0.5,"")),IF(Personalize!$E$42=TRUE,(((VLOOKUP($C23,Filtered!$A$1:$BB$626,8,FALSE))-Filtered!$AK$23)/Filtered!$AL$23),IF(ISBLANK(Personalize!$E$42),(((VLOOKUP($C23,Filtered!$A$1:$BB$626,8,FALSE))-Filtered!$AK$23)/Filtered!$AL$23)*0.5,""))),"") ->  | AB23: =IFERROR(IF((OR($D23="RP",$D23="SP")),IF(Personalize!$E$48=TRUE,(((VLOOKUP($C23,'Filtered-P'!$A$1:$Z$700,5,FALSE))-'Filtered-P'!$AF$11)/'Filtered-P'!$AG$11),IF(ISBLANK(Personalize!$E$48),(((VLOOKUP($C23,'Filtered-P'!$A$1:$Z$700,5,FALSE))-'Filtered-P'!$AF$11)/'Filtered-P'!$AG$11)*0.5,"")),IF(Personalize!$E$43=TRUE,(((VLOOKUP($C23,Filtered!$A$1:$BB$626,9,FALSE))-Filtered!$AK$24)/Filtered!$AL$24),IF(ISBLANK(Personalize!$E$43),(((VLOOKUP($C23,Filtered!$A$1:$BB$626,9,FALSE))-Filtered!$AK$24)/Filtered!$AL$24)*0.5,""))),"") ->  | AC23: =IFERROR(IF((OR($D23="RP",$D23="SP")),IF(Personalize!$E$52=TRUE,(((VLOOKUP($C23,'Filtered-P'!$A$1:$AD$700,21,FALSE))-'Filtered-P'!$AF$29)/(-1*'Filtered-P'!$AG$29)),IF(ISBLANK(Personalize!$E$52),(((VLOOKUP($C23,'Filtered-P'!$A$1:$AD$700,21,FALSE))-'Filtered-P'!$AF$29)/(-1*'Filtered-P'!$AG$29))*0.5,"")),IF(Personalize!$E$49=TRUE,(((VLOOKUP($C23,Filtered!$A$1:$AF$626,30,FALSE))-Filtered!$AK$45)/Filtered!$AL$45),IF(ISBLANK(Personalize!$E$49),(((VLOOKUP($C23,Filtered!$A$1:$AF$626,30,FALSE))-Filtered!$AK$45)/Filtered!$AL$45)*0.5,""))),"") ->  | AD23: =IFERROR(IF((OR($D23="RP",$D23="SP")),IF(Personalize!$E$53=TRUE,(((VLOOKUP($C23,'Filtered-P'!$A$1:$AD$700,23,FALSE))-'Filtered-P'!$AF$31)/(-1*'Filtered-P'!$AG$31)),IF(ISBLANK(Personalize!$E$53),(((VLOOKUP($C23,'Filtered-P'!$A$1:$AD$700,23,FALSE))-'Filtered-P'!$AF$31)/(-1*'Filtered-P'!$AG$31))*0.5,"")),IF(Personalize!$E$50=TRUE,(((VLOOKUP($C23,Filtered!$A$1:$AF$626,31,FALSE))-Filtered!$AK$46)/Filtered!$AL$46),IF(ISBLANK(Personalize!$E$50),(((VLOOKUP($C23,Filtered!$A$1:$AF$626,31,FALSE))-Filtered!$AK$46)/Filtered!$AL$46)*0.5,""))),"") ->  | AE23: =IFERROR(IF((OR($D23="RP",$D23="SP")),IF(Personalize!$E$54=TRUE,(((VLOOKUP($C23,'Filtered-P'!$A$1:$AD$700,24,FALSE))-'Filtered-P'!$AF$32)/'Filtered-P'!$AG$32),IF(ISBLANK(Personalize!$E$54),(((VLOOKUP($C23,'Filtered-P'!$A$1:$AD$700,24,FALSE))-'Filtered-P'!$AF$32)/'Filtered-P'!$AG$32)*0.5,"")),IF(Personalize!$E$51=TRUE,(((VLOOKUP($C23,Filtered!$A$1:$AF$626,15,FALSE))-Filtered!$AK$30)/(-1*Filtered!$AL$30)),IF(ISBLANK(Personalize!$E$51),(((VLOOKUP($C23,Filtered!$A$1:$AF$626,15,FALSE))-Filtered!$AK$30)/(-1*Filtered!$AL$30))*0.5,""))),"") ->  | AF23: =IFERROR(IF((OR($D23="RP",$D23="SP")),IF(Personalize!$E$56=TRUE,(((VLOOKUP($C23,'Filtered-P'!$A$1:$AD$700,29,FALSE))-'Filtered-P'!$AF$35)/'Filtered-P'!$AG$35),IF(ISBLANK(Personalize!$E$56),(((VLOOKUP($C23,'Filtered-P'!$A$1:$AD$700,29,FALSE))-'Filtered-P'!$AF$35)/'Filtered-P'!$AG$35)*0.5,"")),IF(Personalize!$E$60=TRUE,(((VLOOKUP($C23,Filtered!$A$1:$AF$626,7,FALSE))-Filtered!$AK$22)/Filtered!$AL$22),IF(ISBLANK(Personalize!$E$60),(((VLOOKUP($C23,Filtered!$A$1:$AF$626,7,FALSE))-Filtered!$AK$22)/Filtered!$AL$22)*0.5,""))),"") ->  | AG23: =IFERROR(IF((OR($D23="RP",$D23="SP")),IF(Personalize!$E$57=TRUE,(((VLOOKUP($C23,'Filtered-P'!$A$1:$AD$700,28,FALSE))-'Filtered-P'!$AF$34)/'Filtered-P'!$AG$34),IF(ISBLANK(Personalize!$E$57),(((VLOOKUP($C23,'Filtered-P'!$A$1:$AD$700,28,FALSE))-'Filtered-P'!$AF$34)/'Filtered-P'!$AG$34)*0.5,"")),IF(Personalize!$E$61=TRUE,(((VLOOKUP($C23,Filtered!$A$1:$AZ$626,34,FALSE))-Filtered!$AK$47)/Filtered!$AL$47),IF(ISBLANK(Personalize!$E$61),(((VLOOKUP($C23,Filtered!$A$1:$AZ$626,34,FALSE))-Filtered!$AK$47)/Filtered!$AL$47)*0.5,""))),"") ->  | AH23: =IFERROR(IF((OR($D23="RP",$D23="SP")),IF(Personalize!$E$58=TRUE,(((VLOOKUP($C23,'Filtered-P'!$A$1:$Z$700,8,FALSE))-'Filtered-P'!$AF$14)/'Filtered-P'!$AG$14),IF(ISBLANK(Personalize!$E$58),(((VLOOKUP($C23,'Filtered-P'!$A$1:$Z$700,8,FALSE))-'Filtered-P'!$AF$14)/'Filtered-P'!$AG$14)*0.5,"")),IF(Personalize!$E$62=TRUE,(((VLOOKUP($C23,Filtered!$A$1:$AF$626,13,FALSE))-Filtered!$AK$28)/(-1*Filtered!$AL$28)),IF(ISBLANK(Personalize!$E$62),(((VLOOKUP($C23,Filtered!$A$1:$AF$626,13,FALSE))-Filtered!$AK$28)/(-1*Filtered!$AL$28))*0.5,""))),"") ->  | AI23: =IFERROR(IF((OR($D23="RP",$D23="SP")),IF(Personalize!$E$59=TRUE,(((VLOOKUP($C23,'Filtered-P'!$A$1:$AD$700,27,FALSE))-'Filtered-P'!$AF$33)/'Filtered-P'!$AG$33),IF(ISBLANK(Personalize!$E$59),(((VLOOKUP($C23,'Filtered-P'!$A$1:$AD$700,27,FALSE))-'Filtered-P'!$AF$33)/'Filtered-P'!$AG$33)*0.5,"")),IF(Personalize!$E$63=TRUE,(((VLOOKUP($C23,Filtered!$A$1:$AZ$626,35,FALSE))-Filtered!$AK$48)/(-1*Filtered!$AL$48)),IF(ISBLANK(Personalize!$E$63),(((VLOOKUP($C23,Filtered!$A$1:$AZ$626,35,FALSE))-Filtered!$AK$48)/(-1*Filtered!$AL$48))*0.5,""))),"") ->  | AJ23: =IFERROR(IF((OR($D23="RP",$D23="SP")),VLOOKUP($C23,'Filtered-P'!$A$1:$P$580,2,FALSE),""),"") ->  | AK23: =IFERROR(IF((OR($D23="RP",$D23="SP")),VLOOKUP($C23,'Filtered-P'!$A$1:$P$580,9,FALSE),""),"") ->  | AL23: =IFERROR(IF((OR($D23="RP",$D23="SP")),VLOOKUP($C23,'Filtered-P'!$A$1:$P$580,7,FALSE),""),"") ->  | AM23: =IFERROR(IF((OR($D23="RP",$D23="SP")),VLOOKUP($C23,'Filtered-P'!$A$1:$P$580,10,FALSE),""),"") ->  | AN23: =IFERROR(IF((OR($D23="RP",$D23="SP")),VLOOKUP($C23,'Filtered-P'!$A$1:$P$580,11,FALSE),""),"") ->  | AO23: =IFERROR(IF((OR($D23="RP",$D23="SP")),"",VLOOKUP($C23,Filtered!$A$1:$X$600,16,FALSE)),"") -> 0.2901931043 | AP23: =IFERROR(IF((OR($D23="RP",$D23="SP")),"",VLOOKUP($C23,Filtered!$A$1:$X$600,10,FALSE)),"") -> 27.22981665 | AQ23: =IFERROR(IF((OR($D23="RP",$D23="SP")),"",VLOOKUP($C23,Filtered!$A$1:$X$600,11,FALSE)),"") -> 78.39785328 | AR23: =IFERROR(IF((OR($D23="RP",$D23="SP")),"",VLOOKUP($C23,Filtered!$A$1:$X$600,5,FALSE)),"") -> 87.6808629 | AS23: =IFERROR(IF((OR($D23="RP",$D23="SP")),"",VLOOKUP($C23,Filtered!$A$1:$X$600,12,FALSE)),"") -> 14.2122808 | AT23: Should have decrease in HR's in 2016 | AU23: =IF(ISBLANK(A23),0,1) -> 0 | AV23: =IF(M23="",0,1) -> 1 | AW23: =A23 -> 0 | AX23: =IF(D23="C",1,IF(D23="1B",2,IF(D23="2B",3,IF(D23="3B",4,IF(D23="SS",5,IF(D23="CI",6,IF(D23="MI",7,IF(D23="OF",11,IF(D23="LF",8,IF(D23="CF",9,IF(D23="RF",10,IF(D23="DH",12,IF(D23="SP",13,IF(D23="RP",14,IF(D23="P",15,16))))))))))))))) -> 4 | AY23: =VLOOKUP(C23,'Starter Calc'!$B$2:$BS$700,70,FALSE) -> Bench | AZ23: =VLOOKUP(C23,'Starter Calc'!$B$2:$AO$700,40,FALSE) -> Yes | BA23: =IFERROR(IF(ISTEXT($A23),"",IF((OR($D23="RP",$D23="SP")),ABS(VLOOKUP(D23,'Filtered-P'!$AE$3:$AI$4,5,FALSE))+M23,ABS(VLOOKUP(D23,Filtered!$AJ$3:$AN$14,5,FALSE))+M23)),"") -> 8.780799297 | BB23: =IFERROR(BA23+ABS($BA$4),"") -> 9.504622373 | BC23: =IF(AND($A23<>"",$B23<>""),B23,"N") -> N | BD23: =IFERROR(VLOOKUP($C23,'ADP-Rank'!$A$2:$AB$581,25,FALSE),TRUE) -> TRUE | BE23: =IFERROR((BB23-BB$3)^2,"") -> 21.73099353 | BF23: =VLOOKUP(C23,'Starter Calc'!$B$2:$CD$700,71,FALSE) -> 3B.Yes | BG23: =IFERROR(((Personalize!$A$1-(1*Personalize!$A$2))/Personalize!$A$2)*(N23/$BG$3)+1,"") -> 23.04113416 | BH23: 25.71227972 | BI23: 25.71227972
C24: Chris Davis | D24: 1B | E24: =IFERROR(IF(VLOOKUP(C24,'Starter Calc'!$B$2:$E$700,4,FALSE)="","",VLOOKUP(C24,'Starter Calc'!$B$2:$E$700,4,FALSE)),"") -> ,, | F24: =IFERROR(VLOOKUP($C24,'ADP-Rank'!$A$2:$G$581,5,FALSE),"") -> BAL | G24: =IFERROR(VLOOKUP($C24,'ADP-Rank'!$A$2:$X$581,6,FALSE),"") -> 29 | H24: =IFERROR(IF(ISBLANK($B24),"$"&(ROUND(BI24,0))&" | $"&ROUND(BH24,0),""),"") -> $23 | $23 | I24: =IFERROR(IF(RIGHT(D24,1)="P",J24*$BE$2,J24*$BE$1),"") -> 27.86666667 | J24: =IFERROR(CHOOSE(Personalize!$E$31,(VLOOKUP(C24,'ADP-Rank'!$A$2:$Z$581,7,FALSE)*(Personalize!$A$3)+1),(VLOOKUP(C24,'ADP-Rank'!$A$2:$Z$581,8,FALSE)*(Personalize!$A$3)+1),(VLOOKUP(C24,'ADP-Rank'!$A$2:$Z$581,9,FALSE)*(Personalize!$A$3)+1),(VLOOKUP(C24,'ADP-Rank'!$A$2:$AA$581,10,FALSE)*(Personalize!$A$3)+1),(VLOOKUP(C24,'ADP-Rank'!$A$2:$AA$581,11,FALSE)*(Personalize!$A$3)+1),(VLOOKUP(C24,'ADP-Rank'!$A$2:$AA$581,12,FALSE)*(Personalize!$A$3)+1),(VLOOKUP(C24,'ADP-Rank'!$A$2:$AA$581,13,FALSE)*(Personalize!$A$3)+1),(VLOOKUP(C24,'ADP-Rank'!$A$2:$AA$581,14,FALSE)*(Personalize!$A$3)+1),(VLOOKUP(C24,'ADP-Rank'!$A$2:$AA$581,15,FALSE)*(Personalize!$A$3)+1),(VLOOKUP(C24,'ADP-Rank'!$A$2:$AG$581,28,FALSE)*(Personalize!$A$3)+1)),"") -> 27.86666667 | K24: =VLOOKUP($C24,'ADP-Rank'!$A$2:$AB$581,26,FALSE) -> 27 | L24: =IFERROR(RANK($M24,$M$7:$M$746,0),"") -> 18 | M24: =IF((SUM(O24:AI24)=0),"",SUM(O24:AI24)) -> 6.208776122 | N24: =IFERROR(IF((OR($D24="RP",$D24="SP")),ABS(VLOOKUP(D24,'Filtered-P'!$AE$3:$AI$4,5,FALSE))+M24,ABS(VLOOKUP(D24,Filtered!$AJ$3:$AN$14,5,FALSE))+M24),"") -> 7.912269364 | O24: =IFERROR(IF((OR($D24="RP",$D24="SP")),IF(Personalize!$E$10=TRUE,(((VLOOKUP($C24,'Filtered-P'!$A$1:$P$700,2,FALSE))-'Filtered-P'!$AF$8)/'Filtered-P'!$AG$8),IF(ISBLANK(Personalize!$E$10),(((VLOOKUP($C24,'Filtered-P'!$A$1:$P$700,2,FALSE))-'Filtered-P'!$AF$8)/'Filtered-P'!$AG$8)*0.5,"")),IF(Personalize!$E$4=TRUE,(((VLOOKUP($C24,Filtered!$A$1:$X$626,22,FALSE))-Filtered!$AK$35)/Filtered!$AL$35),IF(ISBLANK(Personalize!$E$4),(((VLOOKUP($C24,Filtered!$A$1:$X$626,22,FALSE))-Filtered!$AK$35)/Filtered!$AL$35)*0.5,""))),"") -> -1.161099827 | P24: =IFERROR(IF((OR($D24="RP",$D24="SP")),IF(Personalize!$E$12=TRUE,(((VLOOKUP($C24,'Filtered-P'!$A$1:$P$700,9,FALSE))-'Filtered-P'!$AF$15)/'Filtered-P'!$AG$15),IF(ISBLANK(Personalize!$E$12),(((VLOOKUP($C24,'Filtered-P'!$A$1:$P$700,9,FALSE))-'Filtered-P'!$AF$15)/'Filtered-P'!$AG$15)*0.5,"")),IF(Personalize!$E$3=TRUE,(((VLOOKUP($C24,Filtered!$A$1:$AB$626,10,FALSE))-Filtered!$AK$25)/Filtered!$AL$25),IF(ISBLANK(Personalize!$E$3),(((VLOOKUP($C24,Filtered!$A$1:$AB$626,10,FALSE))-Filtered!$AK$25)/Filtered!$AL$25)*0.5,""))),"") -> 2.733268349 | Q24: =IFERROR(IF((OR($D24="RP",$D24="SP")),IF(Personalize!$E$11=TRUE,(((VLOOKUP($C24,'Filtered-P'!$A$1:$P$700,7,FALSE))-'Filtered-P'!$AF$13)/'Filtered-P'!$AG$13),IF(ISBLANK(Personalize!$E$11),(((VLOOKUP($C24,'Filtered-P'!$A$1:$P$700,7,FALSE))-'Filtered-P'!$AF$13)/'Filtered-P'!$AG$13)*0.5,"")),IF(Personalize!$E$2=TRUE,(((VLOOKUP($C24,Filtered!$A$1:$AB$626,5,FALSE))-Filtered!$AK$20)/Filtered!$AL$20),IF(ISBLANK(Personalize!$E$2),(((VLOOKUP($C24,Filtered!$A$1:$AB$626,5,FALSE))-Filtered!$AK$20)/Filtered!$AL$20)*0.5,""))),"") -> 1.336487301 | R24: =IFERROR(IF((OR($D24="RP",$D24="SP")),IF(Personalize!$E$13=TRUE,(((VLOOKUP($C24,'Filtered-P'!$A$1:$P$700,13,FALSE))-'Filtered-P'!$AF$19)/'Filtered-P'!$AG$19),IF(ISBLANK(Personalize!$E$13),(((VLOOKUP($C24,'Filtered-P'!$A$1:$P$700,13,FALSE))-'Filtered-P'!$AF$19)/'Filtered-P'!$AG$19)*0.5,"")),IF(Personalize!$E$5=TRUE,(((VLOOKUP($C24,Filtered!$A$1:$AB$626,11,FALSE))-Filtered!$AK$26)/Filtered!$AL$26),IF(ISBLANK(Personalize!$E$5),(((VLOOKUP($C24,Filtered!$A$1:$AB$626,11,FALSE))-Filtered!$AK$26)/Filtered!$AL$26)*0.5,""))),"") -> 2.220621932 | S24: =IFERROR(IF((OR($D24="RP",$D24="SP")),IF(Personalize!$E$14=TRUE,(((VLOOKUP($C24,'Filtered-P'!$A$1:$P$700,14,FALSE))-'Filtered-P'!$AF$20)/'Filtered-P'!$AG$20),IF(ISBLANK(Personalize!$E$14),(((VLOOKUP($C24,'Filtered-P'!$A$1:$P$700,14,FALSE))-'Filtered-P'!$AF$20)/'Filtered-P'!$AG$20)*0.5,"")),IF(Personalize!$E$6=TRUE,(((VLOOKUP($C24,Filtered!$A$1:$AB$626,12,FALSE))-Filtered!$AK$27)/Filtered!$AL$27),IF(ISBLANK(Personalize!$E$6),(((VLOOKUP($C24,Filtered!$A$1:$AB$626,12,FALSE))-Filtered!$AK$27)/Filtered!$AL$27)*0.5,""))),"") -> -0.7931604688 | T24: =IFERROR(IF((OR($D24="RP",$D24="SP")),IF(Personalize!$E$16=TRUE,(((VLOOKUP($C24,'Filtered-P'!$A$1:$P$700,3,FALSE))-'Filtered-P'!$AF$9)/'Filtered-P'!$AG$9),IF(ISBLANK(Personalize!$E$16),(((VLOOKUP($C24,'Filtered-P'!$A$1:$P$700,3,FALSE))-'Filtered-P'!$AF$9)/'Filtered-P'!$AG$9)*0.5,"")),IF(Personalize!$E$7=TRUE,(((VLOOKUP($C24,Filtered!$A$1:$BB$626,24,FALSE))-Filtered!$AK$37)/Filtered!$AL$37),IF(ISBLANK(Personalize!$E$7),(((VLOOKUP($C24,Filtered!$A$1:$BB$626,24,FALSE))-Filtered!$AK$37)/Filtered!$AL$37)*0.5,""))),"") -> 1.872658835 | U24: =IFERROR(IF((OR($D24="RP",$D24="SP")),IF(Personalize!$E$15=TRUE,(((VLOOKUP($C24,'Filtered-P'!$A$1:$P$700,15,FALSE))-'Filtered-P'!$AF$21)/'Filtered-P'!$AG$21),IF(ISBLANK(Personalize!$E$15),(((VLOOKUP($C24,'Filtered-P'!$A$1:$P$700,15,FALSE))-'Filtered-P'!$AF$21)/'Filtered-P'!$AG$21)*0.5,"")),IF(Personalize!$E$8=TRUE,(((VLOOKUP($C24,Filtered!$A$1:$BB$626,23,FALSE))-Filtered!$AK$36)/Filtered!$AL$36),IF(ISBLANK(Personalize!$E$8),(((VLOOKUP($C24,Filtered!$A$1:$BB$626,23,FALSE))-Filtered!$AK$36)/Filtered!$AL$36)*0.5,""))),"") ->  | V24: =IFERROR(IF((OR($D24="RP",$D24="SP")),IF(Personalize!$E$17=TRUE,(((VLOOKUP($C24,'Filtered-P'!$A$1:$P$700,16,FALSE))-'Filtered-P'!$AF$22)/'Filtered-P'!$AG$22),IF(ISBLANK(Personalize!$E$17),(((VLOOKUP($C24,'Filtered-P'!$A$1:$P$700,16,FALSE))-'Filtered-P'!$AF$22)/'Filtered-P'!$AG$22)*0.5,"")),IF(Personalize!$E$9=TRUE,(((VLOOKUP($C24,Filtered!$A$1:$BB$626,25,FALSE))-Filtered!$AK$38)/Filtered!$AL$38),IF(ISBLANK(Personalize!$E$9),(((VLOOKUP($C24,Filtered!$A$1:$BB$626,25,FALSE))-Filtered!$AK$38)/Filtered!$AL$38)*0.5,""))),"") ->  | W24: =IFERROR(IF((OR($D24="RP",$D24="SP")),IF(Personalize!$E$37=TRUE,(((VLOOKUP($C24,'Filtered-P'!$A$1:$Z$700,17,FALSE))-'Filtered-P'!$AF$25)/'Filtered-P'!$AG$25),IF(ISBLANK(Personalize!$E$37),(((VLOOKUP($C24,'Filtered-P'!$A$1:$Z$700,17,FALSE))-'Filtered-P'!$AF$25)/'Filtered-P'!$AG$25)*0.5,"")),IF(Personalize!$E$39=TRUE,(((VLOOKUP($C24,Filtered!$A$1:$X$626,14,FALSE))-Filtered!$AK$29)/Filtered!$AL$29),IF(ISBLANK(Personalize!$E$39),(((VLOOKUP($C24,Filtered!$A$1:$X$626,14,FALSE))-Filtered!$AK$29)/Filtered!$AL$29)*0.5,""))),"") ->  | X24: =IFERROR(IF((OR($D24="RP",$D24="SP")),IF(Personalize!$E$38=TRUE,(((VLOOKUP($C24,'Filtered-P'!$A$1:$Z$700,18,FALSE))-'Filtered-P'!$AF$26)/'Filtered-P'!$AG$26),IF(ISBLANK(Personalize!$E$38),(((VLOOKUP($C24,'Filtered-P'!$A$1:$Z$700,18,FALSE))-'Filtered-P'!$AF$26)/'Filtered-P'!$AG$26)*0.5,"")),IF(Personalize!$E$40=TRUE,(((VLOOKUP($C24,Filtered!$A$1:$X$626,6,FALSE))-Filtered!$AK$21)/Filtered!$AL$21),IF(ISBLANK(Personalize!$E$40),(((VLOOKUP($C24,Filtered!$A$1:$X$626,6,FALSE))-Filtered!$AK$21)/Filtered!$AL$21)*0.5,""))),"") ->  | Y24: =IFERROR(IF((OR($D24="RP",$D24="SP")),IF(Personalize!$E$45=TRUE,(((VLOOKUP($C24,'Filtered-P'!$A$1:$Z$700,4,FALSE))-'Filtered-P'!$AF$10)/'Filtered-P'!$AG$10),IF(ISBLANK(Personalize!$E$45),(((VLOOKUP($C24,'Filtered-P'!$A$1:$Z$700,4,FALSE))-'Filtered-P'!$AF$10)/'Filtered-P'!$AG$10)*0.5,"")),IF(Personalize!$E$41=TRUE,(((VLOOKUP($C24,Filtered!$A$1:$BB$626,20,FALSE))-Filtered!$AK$43)/Filtered!$AL$43),IF(ISBLANK(Personalize!$E$41),(((VLOOKUP($C24,Filtered!$A$1:$BB$626,20,FALSE))-Filtered!$AK$43)/Filtered!$AL$43)*0.5,""))),"") ->  | Z24: =IFERROR(IF((OR($D24="RP",$D24="SP")),IF(Personalize!$E$46=TRUE,(((VLOOKUP($C24,'Filtered-P'!$A$1:$Z$700,19,FALSE))-'Filtered-P'!$AF$27)/'Filtered-P'!$AG$27),IF(ISBLANK(Personalize!$E$46),(((VLOOKUP($C24,'Filtered-P'!$A$1:$Z$700,19,FALSE))-'Filtered-P'!$AF$27)/'Filtered-P'!$AG$27)*0.5,"")),IF(Personalize!$E$44=TRUE,(((VLOOKUP($C24,Filtered!$A$1:$BB$626,21,FALSE))-Filtered!$AK$44)/Filtered!$AL$44),IF(ISBLANK(Personalize!$E$44),(((VLOOKUP($C24,Filtered!$A$1:$BB$626,21,FALSE))-Filtered!$AK$44)/Filtered!$AL$44)*0.5,""))),"") ->  | AA24: =IFERROR(IF((OR($D24="RP",$D24="SP")),IF(Personalize!$E$47=TRUE,(((VLOOKUP($C24,'Filtered-P'!$A$1:$Z$700,6,FALSE))-'Filtered-P'!$AF$12)/'Filtered-P'!$AG$12),IF(ISBLANK(Personalize!$E$47),(((VLOOKUP($C24,'Filtered-P'!$A$1:$Z$700,6,FALSE))-'Filtered-P'!$AF$12)/'Filtered-P'!$AG$12)*0.5,"")),IF(Personalize!$E$42=TRUE,(((VLOOKUP($C24,Filtered!$A$1:$BB$626,8,FALSE))-Filtered!$AK$23)/Filtered!$AL$23),IF(ISBLANK(Personalize!$E$42),(((VLOOKUP($C24,Filtered!$A$1:$BB$626,8,FALSE))-Filtered!$AK$23)/Filtered!$AL$23)*0.5,""))),"") ->  | AB24: =IFERROR(IF((OR($D24="RP",$D24="SP")),IF(Personalize!$E$48=TRUE,(((VLOOKUP($C24,'Filtered-P'!$A$1:$Z$700,5,FALSE))-'Filtered-P'!$AF$11)/'Filtered-P'!$AG$11),IF(ISBLANK(Personalize!$E$48),(((VLOOKUP($C24,'Filtered-P'!$A$1:$Z$700,5,FALSE))-'Filtered-P'!$AF$11)/'Filtered-P'!$AG$11)*0.5,"")),IF(Personalize!$E$43=TRUE,(((VLOOKUP($C24,Filtered!$A$1:$BB$626,9,FALSE))-Filtered!$AK$24)/Filtered!$AL$24),IF(ISBLANK(Personalize!$E$43),(((VLOOKUP($C24,Filtered!$A$1:$BB$626,9,FALSE))-Filtered!$AK$24)/Filtered!$AL$24)*0.5,""))),"") ->  | AC24: =IFERROR(IF((OR($D24="RP",$D24="SP")),IF(Personalize!$E$52=TRUE,(((VLOOKUP($C24,'Filtered-P'!$A$1:$AD$700,21,FALSE))-'Filtered-P'!$AF$29)/(-1*'Filtered-P'!$AG$29)),IF(ISBLANK(Personalize!$E$52),(((VLOOKUP($C24,'Filtered-P'!$A$1:$AD$700,21,FALSE))-'Filtered-P'!$AF$29)/(-1*'Filtered-P'!$AG$29))*0.5,"")),IF(Personalize!$E$49=TRUE,(((VLOOKUP($C24,Filtered!$A$1:$AF$626,30,FALSE))-Filtered!$AK$45)/Filtered!$AL$45),IF(ISBLANK(Personalize!$E$49),(((VLOOKUP($C24,Filtered!$A$1:$AF$626,30,FALSE))-Filtered!$AK$45)/Filtered!$AL$45)*0.5,""))),"") ->  | AD24: =IFERROR(IF((OR($D24="RP",$D24="SP")),IF(Personalize!$E$53=TRUE,(((VLOOKUP($C24,'Filtered-P'!$A$1:$AD$700,23,FALSE))-'Filtered-P'!$AF$31)/(-1*'Filtered-P'!$AG$31)),IF(ISBLANK(Personalize!$E$53),(((VLOOKUP($C24,'Filtered-P'!$A$1:$AD$700,23,FALSE))-'Filtered-P'!$AF$31)/(-1*'Filtered-P'!$AG$31))*0.5,"")),IF(Personalize!$E$50=TRUE,(((VLOOKUP($C24,Filtered!$A$1:$AF$626,31,FALSE))-Filtered!$AK$46)/Filtered!$AL$46),IF(ISBLANK(Personalize!$E$50),(((VLOOKUP($C24,Filtered!$A$1:$AF$626,31,FALSE))-Filtered!$AK$46)/Filtered!$AL$46)*0.5,""))),"") ->  | AE24: =IFERROR(IF((OR($D24="RP",$D24="SP")),IF(Personalize!$E$54=TRUE,(((VLOOKUP($C24,'Filtered-P'!$A$1:$AD$700,24,FALSE))-'Filtered-P'!$AF$32)/'Filtered-P'!$AG$32),IF(ISBLANK(Personalize!$E$54),(((VLOOKUP($C24,'Filtered-P'!$A$1:$AD$700,24,FALSE))-'Filtered-P'!$AF$32)/'Filtered-P'!$AG$32)*0.5,"")),IF(Personalize!$E$51=TRUE,(((VLOOKUP($C24,Filtered!$A$1:$AF$626,15,FALSE))-Filtered!$AK$30)/(-1*Filtered!$AL$30)),IF(ISBLANK(Personalize!$E$51),(((VLOOKUP($C24,Filtered!$A$1:$AF$626,15,FALSE))-Filtered!$AK$30)/(-1*Filtered!$AL$30))*0.5,""))),"") ->  | AF24: =IFERROR(IF((OR($D24="RP",$D24="SP")),IF(Personalize!$E$56=TRUE,(((VLOOKUP($C24,'Filtered-P'!$A$1:$AD$700,29,FALSE))-'Filtered-P'!$AF$35)/'Filtered-P'!$AG$35),IF(ISBLANK(Personalize!$E$56),(((VLOOKUP($C24,'Filtered-P'!$A$1:$AD$700,29,FALSE))-'Filtered-P'!$AF$35)/'Filtered-P'!$AG$35)*0.5,"")),IF(Personalize!$E$60=TRUE,(((VLOOKUP($C24,Filtered!$A$1:$AF$626,7,FALSE))-Filtered!$AK$22)/Filtered!$AL$22),IF(ISBLANK(Personalize!$E$60),(((VLOOKUP($C24,Filtered!$A$1:$AF$626,7,FALSE))-Filtered!$AK$22)/Filtered!$AL$22)*0.5,""))),"") ->  | AG24: =IFERROR(IF((OR($D24="RP",$D24="SP")),IF(Personalize!$E$57=TRUE,(((VLOOKUP($C24,'Filtered-P'!$A$1:$AD$700,28,FALSE))-'Filtered-P'!$AF$34)/'Filtered-P'!$AG$34),IF(ISBLANK(Personalize!$E$57),(((VLOOKUP($C24,'Filtered-P'!$A$1:$AD$700,28,FALSE))-'Filtered-P'!$AF$34)/'Filtered-P'!$AG$34)*0.5,"")),IF(Personalize!$E$61=TRUE,(((VLOOKUP($C24,Filtered!$A$1:$AZ$626,34,FALSE))-Filtered!$AK$47)/Filtered!$AL$47),IF(ISBLANK(Personalize!$E$61),(((VLOOKUP($C24,Filtered!$A$1:$AZ$626,34,FALSE))-Filtered!$AK$47)/Filtered!$AL$47)*0.5,""))),"") ->  | AH24: =IFERROR(IF((OR($D24="RP",$D24="SP")),IF(Personalize!$E$58=TRUE,(((VLOOKUP($C24,'Filtered-P'!$A$1:$Z$700,8,FALSE))-'Filtered-P'!$AF$14)/'Filtered-P'!$AG$14),IF(ISBLANK(Personalize!$E$58),(((VLOOKUP($C24,'Filtered-P'!$A$1:$Z$700,8,FALSE))-'Filtered-P'!$AF$14)/'Filtered-P'!$AG$14)*0.5,"")),IF(Personalize!$E$62=TRUE,(((VLOOKUP($C24,Filtered!$A$1:$AF$626,13,FALSE))-Filtered!$AK$28)/(-1*Filtered!$AL$28)),IF(ISBLANK(Personalize!$E$62),(((VLOOKUP($C24,Filtered!$A$1:$AF$626,13,FALSE))-Filtered!$AK$28)/(-1*Filtered!$AL$28))*0.5,""))),"") ->  | AI24: =IFERROR(IF((OR($D24="RP",$D24="SP")),IF(Personalize!$E$59=TRUE,(((VLOOKUP($C24,'Filtered-P'!$A$1:$AD$700,27,FALSE))-'Filtered-P'!$AF$33)/'Filtered-P'!$AG$33),IF(ISBLANK(Personalize!$E$59),(((VLOOKUP($C24,'Filtered-P'!$A$1:$AD$700,27,FALSE))-'Filtered-P'!$AF$33)/'Filtered-P'!$AG$33)*0.5,"")),IF(Personalize!$E$63=TRUE,(((VLOOKUP($C24,Filtered!$A$1:$AZ$626,35,FALSE))-Filtered!$AK$48)/(-1*Filtered!$AL$48)),IF(ISBLANK(Personalize!$E$63),(((VLOOKUP($C24,Filtered!$A$1:$AZ$626,35,FALSE))-Filtered!$AK$48)/(-1*Filtered!$AL$48))*0.5,""))),"") ->  | AJ24: =IFERROR(IF((OR($D24="RP",$D24="SP")),VLOOKUP($C24,'Filtered-P'!$A$1:$P$580,2,FALSE),""),"") ->  | AK24: =IFERROR(IF((OR($D24="RP",$D24="SP")),VLOOKUP($C24,'Filtered-P'!$A$1:$P$580,9,FALSE),""),"") ->  | AL24: =IFERROR(IF((OR($D24="RP",$D24="SP")),VLOOKUP($C24,'Filtered-P'!$A$1:$P$580,7,FALSE),""),"") ->  | AM24: =IFERROR(IF((OR($D24="RP",$D24="SP")),VLOOKUP($C24,'Filtered-P'!$A$1:$P$580,10,FALSE),""),"") ->  | AN24: =IFERROR(IF((OR($D24="RP",$D24="SP")),VLOOKUP($C24,'Filtered-P'!$A$1:$P$580,11,FALSE),""),"") ->  | AO24: =IFERROR(IF((OR($D24="RP",$D24="SP")),"",VLOOKUP($C24,Filtered!$A$1:$X$600,16,FALSE)),"") -> 0.2486158726 | AP24: =IFERROR(IF((OR($D24="RP",$D24="SP")),"",VLOOKUP($C24,Filtered!$A$1:$X$600,10,FALSE)),"") -> 40.05410909 | AQ24: =IFERROR(IF((OR($D24="RP",$D24="SP")),"",VLOOKUP($C24,Filtered!$A$1:$X$600,11,FALSE)),"") -> 105.6240588 | AR24: =IFERROR(IF((OR($D24="RP",$D24="SP")),"",VLOOKUP($C24,Filtered!$A$1:$X$600,5,FALSE)),"") -> 88.86214631 | AS24: =IFERROR(IF((OR($D24="RP",$D24="SP")),"",VLOOKUP($C24,Filtered!$A$1:$X$600,12,FALSE)),"") -> 2.637640763 | AU24: =IF(ISBLANK(A24),0,1) -> 0 | AV24: =IF(M24="",0,1) -> 1 | AW24: =A24 -> 0 | AX24: =IF(D24="C",1,IF(D24="1B",2,IF(D24="2B",3,IF(D24="3B",4,IF(D24="SS",5,IF(D24="CI",6,IF(D24="MI",7,IF(D24="OF",11,IF(D24="LF",8,IF(D24="CF",9,IF(D24="RF",10,IF(D24="DH",12,IF(D24="SP",13,IF(D24="RP",14,IF(D24="P",15,16))))))))))))))) -> 2 | AY24: =VLOOKUP(C24,'Starter Calc'!$B$2:$BS$700,70,FALSE) -> Bench | AZ24: =VLOOKUP(C24,'Starter Calc'!$B$2:$AO$700,40,FALSE) -> Yes | BA24: =IFERROR(IF(ISTEXT($A24),"",IF((OR($D24="RP",$D24="SP")),ABS(VLOOKUP(D24,'Filtered-P'!$AE$3:$AI$4,5,FALSE))+M24,ABS(VLOOKUP(D24,Filtered!$AJ$3:$AN$14,5,FALSE))+M24)),"") -> 7.912269364 | BB24: =IFERROR(BA24+ABS($BA$4),"") -> 8.636092441 | BC24: =IF(AND($A24<>"",$B24<>""),B24,"N") -> N | BD24: =IFERROR(VLOOKUP($C24,'ADP-Rank'!$A$2:$AB$581,25,FALSE),TRUE) -> TRUE | BE24: =IFERROR((BB24-BB$3)^2,"") -> 14.38777027 | BF24: =VLOOKUP(C24,'Starter Calc'!$B$2:$CD$700,71,FALSE) -> 1B.Yes | BG24: =IFERROR(((Personalize!$A$1-(1*Personalize!$A$2))/Personalize!$A$2)*(N24/$BG$3)+1,"") -> 20.86099268 | BH24: 23.27939568 | BI24: 23.27939568
C25: Jake Arrieta | D25: SP | E25: =IFERROR(IF(VLOOKUP(C25,'Starter Calc'!$B$2:$E$700,4,FALSE)="","",VLOOKUP(C25,'Starter Calc'!$B$2:$E$700,4,FALSE)),"") -> ,, | F25: =IFERROR(VLOOKUP($C25,'ADP-Rank'!$A$2:$G$581,5,FALSE),"") -> CHC | G25: =IFERROR(VLOOKUP($C25,'ADP-Rank'!$A$2:$X$581,6,FALSE),"") -> 29 | H25: =IFERROR(IF(ISBLANK($B25),"$"&(ROUND(BI25,0))&" | $"&ROUND(BH25,0),""),"") -> $25 | $25 | I25: =IFERROR(IF(RIGHT(D25,1)="P",J25*$BE$2,J25*$BE$1),"") -> 24.4 | J25: =IFERROR(CHOOSE(Personalize!$E$31,(VLOOKUP(C25,'ADP-Rank'!$A$2:$Z$581,7,FALSE)*(Personalize!$A$3)+1),(VLOOKUP(C25,'ADP-Rank'!$A$2:$Z$581,8,FALSE)*(Personalize!$A$3)+1),(VLOOKUP(C25,'ADP-Rank'!$A$2:$Z$581,9,FALSE)*(Personalize!$A$3)+1),(VLOOKUP(C25,'ADP-Rank'!$A$2:$AA$581,10,FALSE)*(Personalize!$A$3)+1),(VLOOKUP(C25,'ADP-Rank'!$A$2:$AA$581,11,FALSE)*(Personalize!$A$3)+1),(VLOOKUP(C25,'ADP-Rank'!$A$2:$AA$581,12,FALSE)*(Personalize!$A$3)+1),(VLOOKUP(C25,'ADP-Rank'!$A$2:$AA$581,13,FALSE)*(Personalize!$A$3)+1),(VLOOKUP(C25,'ADP-Rank'!$A$2:$AA$581,14,FALSE)*(Personalize!$A$3)+1),(VLOOKUP(C25,'ADP-Rank'!$A$2:$AA$581,15,FALSE)*(Personalize!$A$3)+1),(VLOOKUP(C25,'ADP-Rank'!$A$2:$AG$581,28,FALSE)*(Personalize!$A$3)+1)),"") -> 24.4 | K25: =VLOOKUP($C25,'ADP-Rank'!$A$2:$AB$581,26,FALSE) -> 24 | L25: =IFERROR(RANK($M25,$M$7:$M$746,0),"") -> 19 | M25: =IF((SUM(O25:AI25)=0),"",SUM(O25:AI25)) -> 6.141500571 | N25: =IFERROR(IF((OR($D25="RP",$D25="SP")),ABS(VLOOKUP(D25,'Filtered-P'!$AE$3:$AI$4,5,FALSE))+M25,ABS(VLOOKUP(D25,Filtered!$AJ$3:$AN$14,5,FALSE))+M25),"") -> 9.254911518 | O25: =IFERROR(IF((OR($D25="RP",$D25="SP")),IF(Personalize!$E$10=TRUE,(((VLOOKUP($C25,'Filtered-P'!$A$1:$P$700,2,FALSE))-'Filtered-P'!$AF$8)/'Filtered-P'!$AG$8),IF(ISBLANK(Personalize!$E$10),(((VLOOKUP($C25,'Filtered-P'!$A$1:$P$700,2,FALSE))-'Filtered-P'!$AF$8)/'Filtered-P'!$AG$8)*0.5,"")),IF(Personalize!$E$4=TRUE,(((VLOOKUP($C25,Filtered!$A$1:$X$626,22,FALSE))-Filtered!$AK$35)/Filtered!$AL$35),IF(ISBLANK(Personalize!$E$4),(((VLOOKUP($C25,Filtered!$A$1:$X$626,22,FALSE))-Filtered!$AK$35)/Filtered!$AL$35)*0.5,""))),"") -> 1.613988026 | P25: =IFERROR(IF((OR($D25="RP",$D25="SP")),IF(Personalize!$E$12=TRUE,(((VLOOKUP($C25,'Filtered-P'!$A$1:$P$700,9,FALSE))-'Filtered-P'!$AF$15)/'Filtered-P'!$AG$15),IF(ISBLANK(Personalize!$E$12),(((VLOOKUP($C25,'Filtered-P'!$A$1:$P$700,9,FALSE))-'Filtered-P'!$AF$15)/'Filtered-P'!$AG$15)*0.5,"")),IF(Personalize!$E$3=TRUE,(((VLOOKUP($C25,Filtered!$A$1:$AB$626,10,FALSE))-Filtered!$AK$25)/Filtered!$AL$25),IF(ISBLANK(Personalize!$E$3),(((VLOOKUP($C25,Filtered!$A$1:$AB$626,10,FALSE))-Filtered!$AK$25)/Filtered!$AL$25)*0.5,""))),"") -> -0.4827187472 | Q25: =IFERROR(IF((OR($D25="RP",$D25="SP")),IF(Personalize!$E$11=TRUE,(((VLOOKUP($C25,'Filtered-P'!$A$1:$P$700,7,FALSE))-'Filtered-P'!$AF$13)/'Filtered-P'!$AG$13),IF(ISBLANK(Personalize!$E$11),(((VLOOKUP($C25,'Filtered-P'!$A$1:$P$700,7,FALSE))-'Filtered-P'!$AF$13)/'Filtered-P'!$AG$13)*0.5,"")),IF(Personalize!$E$2=TRUE,(((VLOOKUP($C25,Filtered!$A$1:$AB$626,5,FALSE))-Filtered!$AK$20)/Filtered!$AL$20),IF(ISBLANK(Personalize!$E$2),(((VLOOKUP($C25,Filtered!$A$1:$AB$626,5,FALSE))-Filtered!$AK$20)/Filtered!$AL$20)*0.5,""))),"") -> 1.308507759 | R25: =IFERROR(IF((OR($D25="RP",$D25="SP")),IF(Personalize!$E$13=TRUE,(((VLOOKUP($C25,'Filtered-P'!$A$1:$P$700,13,FALSE))-'Filtered-P'!$AF$19)/'Filtered-P'!$AG$19),IF(ISBLANK(Personalize!$E$13),(((VLOOKUP($C25,'Filtered-P'!$A$1:$P$700,13,FALSE))-'Filtered-P'!$AF$19)/'Filtered-P'!$AG$19)*0.5,"")),IF(Personalize!$E$5=TRUE,(((VLOOKUP($C25,Filtered!$A$1:$AB$626,11,FALSE))-Filtered!$AK$26)/Filtered!$AL$26),IF(ISBLANK(Personalize!$E$5),(((VLOOKUP($C25,Filtered!$A$1:$AB$626,11,FALSE))-Filtered!$AK$26)/Filtered!$AL$26)*0.5,""))),"") -> 1.937010136 | S25: =IFERROR(IF((OR($D25="RP",$D25="SP")),IF(Personalize!$E$14=TRUE,(((VLOOKUP($C25,'Filtered-P'!$A$1:$P$700,14,FALSE))-'Filtered-P'!$AF$20)/'Filtered-P'!$AG$20),IF(ISBLANK(Personalize!$E$14),(((VLOOKUP($C25,'Filtered-P'!$A$1:$P$700,14,FALSE))-'Filtered-P'!$AF$20)/'Filtered-P'!$AG$20)*0.5,"")),IF(Personalize!$E$6=TRUE,(((VLOOKUP($C25,Filtered!$A$1:$AB$626,12,FALSE))-Filtered!$AK$27)/Filtered!$AL$27),IF(ISBLANK(Personalize!$E$6),(((VLOOKUP($C25,Filtered!$A$1:$AB$626,12,FALSE))-Filtered!$AK$27)/Filtered!$AL$27)*0.5,""))),"") -> 1.764713397 | T25: =IFERROR(IF((OR($D25="RP",$D25="SP")),IF(Personalize!$E$16=TRUE,(((VLOOKUP($C25,'Filtered-P'!$A$1:$P$700,3,FALSE))-'Filtered-P'!$AF$9)/'Filtered-P'!$AG$9),IF(ISBLANK(Personalize!$E$16),(((VLOOKUP($C25,'Filtered-P'!$A$1:$P$700,3,FALSE))-'Filtered-P'!$AF$9)/'Filtered-P'!$AG$9)*0.5,"")),IF(Personalize!$E$7=TRUE,(((VLOOKUP($C25,Filtered!$A$1:$BB$626,24,FALSE))-Filtered!$AK$37)/Filtered!$AL$37),IF(ISBLANK(Personalize!$E$7),(((VLOOKUP($C25,Filtered!$A$1:$BB$626,24,FALSE))-Filtered!$AK$37)/Filtered!$AL$37)*0.5,""))),"") ->  | U25: =IFERROR(IF((OR($D25="RP",$D25="SP")),IF(Personalize!$E$15=TRUE,(((VLOOKUP($C25,'Filtered-P'!$A$1:$P$700,15,FALSE))-'Filtered-P'!$AF$21)/'Filtered-P'!$AG$21),IF(ISBLANK(Personalize!$E$15),(((VLOOKUP($C25,'Filtered-P'!$A$1:$P$700,15,FALSE))-'Filtered-P'!$AF$21)/'Filtered-P'!$AG$21)*0.5,"")),IF(Personalize!$E$8=TRUE,(((VLOOKUP($C25,Filtered!$A$1:$BB$626,23,FALSE))-Filtered!$AK$36)/Filtered!$AL$36),IF(ISBLANK(Personalize!$E$8),(((VLOOKUP($C25,Filtered!$A$1:$BB$626,23,FALSE))-Filtered!$AK$36)/Filtered!$AL$36)*0.5,""))),"") ->  | V25: =IFERROR(IF((OR($D25="RP",$D25="SP")),IF(Personalize!$E$17=TRUE,(((VLOOKUP($C25,'Filtered-P'!$A$1:$P$700,16,FALSE))-'Filtered-P'!$AF$22)/'Filtered-P'!$AG$22),IF(ISBLANK(Personalize!$E$17),(((VLOOKUP($C25,'Filtered-P'!$A$1:$P$700,16,FALSE))-'Filtered-P'!$AF$22)/'Filtered-P'!$AG$22)*0.5,"")),IF(Personalize!$E$9=TRUE,(((VLOOKUP($C25,Filtered!$A$1:$BB$626,25,FALSE))-Filtered!$AK$38)/Filtered!$AL$38),IF(ISBLANK(Personalize!$E$9),(((VLOOKUP($C25,Filtered!$A$1:$BB$626,25,FALSE))-Filtered!$AK$38)/Filtered!$AL$38)*0.5,""))),"") ->  | W25: =IFERROR(IF((OR($D25="RP",$D25="SP")),IF(Personalize!$E$37=TRUE,(((VLOOKUP($C25,'Filtered-P'!$A$1:$Z$700,17,FALSE))-'Filtered-P'!$AF$25)/'Filtered-P'!$AG$25),IF(ISBLANK(Personalize!$E$37),(((VLOOKUP($C25,'Filtered-P'!$A$1:$Z$700,17,FALSE))-'Filtered-P'!$AF$25)/'Filtered-P'!$AG$25)*0.5,"")),IF(Personalize!$E$39=TRUE,(((VLOOKUP($C25,Filtered!$A$1:$X$626,14,FALSE))-Filtered!$AK$29)/Filtered!$AL$29),IF(ISBLANK(Personalize!$E$39),(((VLOOKUP($C25,Filtered!$A$1:$X$626,14,FALSE))-Filtered!$AK$29)/Filtered!$AL$29)*0.5,""))),"") ->  | X25: =IFERROR(IF((OR($D25="RP",$D25="SP")),IF(Personalize!$E$38=TRUE,(((VLOOKUP($C25,'Filtered-P'!$A$1:$Z$700,18,FALSE))-'Filtered-P'!$AF$26)/'Filtered-P'!$AG$26),IF(ISBLANK(Personalize!$E$38),(((VLOOKUP($C25,'Filtered-P'!$A$1:$Z$700,18,FALSE))-'Filtered-P'!$AF$26)/'Filtered-P'!$AG$26)*0.5,"")),IF(Personalize!$E$40=TRUE,(((VLOOKUP($C25,Filtered!$A$1:$X$626,6,FALSE))-Filtered!$AK$21)/Filtered!$AL$21),IF(ISBLANK(Personalize!$E$40),(((VLOOKUP($C25,Filtered!$A$1:$X$626,6,FALSE))-Filtered!$AK$21)/Filtered!$AL$21)*0.5,""))),"") ->  | Y25: =IFERROR(IF((OR($D25="RP",$D25="SP")),IF(Personalize!$E$45=TRUE,(((VLOOKUP($C25,'Filtered-P'!$A$1:$Z$700,4,FALSE))-'Filtered-P'!$AF$10)/'Filtered-P'!$AG$10),IF(ISBLANK(Personalize!$E$45),(((VLOOKUP($C25,'Filtered-P'!$A$1:$Z$700,4,FALSE))-'Filtered-P'!$AF$10)/'Filtered-P'!$AG$10)*0.5,"")),IF(Personalize!$E$41=TRUE,(((VLOOKUP($C25,Filtered!$A$1:$BB$626,20,FALSE))-Filtered!$AK$43)/Filtered!$AL$43),IF(ISBLANK(Personalize!$E$41),(((VLOOKUP($C25,Filtered!$A$1:$BB$626,20,FALSE))-Filtered!$AK$43)/Filtered!$AL$43)*0.5,""))),"") ->  | Z25: =IFERROR(IF((OR($D25="RP",$D25="SP")),IF(Personalize!$E$46=TRUE,(((VLOOKUP($C25,'Filtered-P'!$A$1:$Z$700,19,FALSE))-'Filtered-P'!$AF$27)/'Filtered-P'!$AG$27),IF(ISBLANK(Personalize!$E$46),(((VLOOKUP($C25,'Filtered-P'!$A$1:$Z$700,19,FALSE))-'Filtered-P'!$AF$27)/'Filtered-P'!$AG$27)*0.5,"")),IF(Personalize!$E$44=TRUE,(((VLOOKUP($C25,Filtered!$A$1:$BB$626,21,FALSE))-Filtered!$AK$44)/Filtered!$AL$44),IF(ISBLANK(Personalize!$E$44),(((VLOOKUP($C25,Filtered!$A$1:$BB$626,21,FALSE))-Filtered!$AK$44)/Filtered!$AL$44)*0.5,""))),"") ->  | AA25: =IFERROR(IF((OR($D25="RP",$D25="SP")),IF(Personalize!$E$47=TRUE,(((VLOOKUP($C25,'Filtered-P'!$A$1:$Z$700,6,FALSE))-'Filtered-P'!$AF$12)/'Filtered-P'!$AG$12),IF(ISBLANK(Personalize!$E$47),(((VLOOKUP($C25,'Filtered-P'!$A$1:$Z$700,6,FALSE))-'Filtered-P'!$AF$12)/'Filtered-P'!$AG$12)*0.5,"")),IF(Personalize!$E$42=TRUE,(((VLOOKUP($C25,Filtered!$A$1:$BB$626,8,FALSE))-Filtered!$AK$23)/Filtered!$AL$23),IF(ISBLANK(Personalize!$E$42),(((VLOOKUP($C25,Filtered!$A$1:$BB$626,8,FALSE))-Filtered!$AK$23)/Filtered!$AL$23)*0.5,""))),"") ->  | AB25: =IFERROR(IF((OR($D25="RP",$D25="SP")),IF(Personalize!$E$48=TRUE,(((VLOOKUP($C25,'Filtered-P'!$A$1:$Z$700,5,FALSE))-'Filtered-P'!$AF$11)/'Filtered-P'!$AG$11),IF(ISBLANK(Personalize!$E$48),(((VLOOKUP($C25,'Filtered-P'!$A$1:$Z$700,5,FALSE))-'Filtered-P'!$AF$11)/'Filtered-P'!$AG$11)*0.5,"")),IF(Personalize!$E$43=TRUE,(((VLOOKUP($C25,Filtered!$A$1:$BB$626,9,FALSE))-Filtered!$AK$24)/Filtered!$AL$24),IF(ISBLANK(Personalize!$E$43),(((VLOOKUP($C25,Filtered!$A$1:$BB$626,9,FALSE))-Filtered!$AK$24)/Filtered!$AL$24)*0.5,""))),"") ->  | AC25: =IFERROR(IF((OR($D25="RP",$D25="SP")),IF(Personalize!$E$52=TRUE,(((VLOOKUP($C25,'Filtered-P'!$A$1:$AD$700,21,FALSE))-'Filtered-P'!$AF$29)/(-1*'Filtered-P'!$AG$29)),IF(ISBLANK(Personalize!$E$52),(((VLOOKUP($C25,'Filtered-P'!$A$1:$AD$700,21,FALSE))-'Filtered-P'!$AF$29)/(-1*'Filtered-P'!$AG$29))*0.5,"")),IF(Personalize!$E$49=TRUE,(((VLOOKUP($C25,Filtered!$A$1:$AF$626,30,FALSE))-Filtered!$AK$45)/Filtered!$AL$45),IF(ISBLANK(Personalize!$E$49),(((VLOOKUP($C25,Filtered!$A$1:$AF$626,30,FALSE))-Filtered!$AK$45)/Filtered!$AL$45)*0.5,""))),"") ->  | AD25: =IFERROR(IF((OR($D25="RP",$D25="SP")),IF(Personalize!$E$53=TRUE,(((VLOOKUP($C25,'Filtered-P'!$A$1:$AD$700,23,FALSE))-'Filtered-P'!$AF$31)/(-1*'Filtered-P'!$AG$31)),IF(ISBLANK(Personalize!$E$53),(((VLOOKUP($C25,'Filtered-P'!$A$1:$AD$700,23,FALSE))-'Filtered-P'!$AF$31)/(-1*'Filtered-P'!$AG$31))*0.5,"")),IF(Personalize!$E$50=TRUE,(((VLOOKUP($C25,Filtered!$A$1:$AF$626,31,FALSE))-Filtered!$AK$46)/Filtered!$AL$46),IF(ISBLANK(Personalize!$E$50),(((VLOOKUP($C25,Filtered!$A$1:$AF$626,31,FALSE))-Filtered!$AK$46)/Filtered!$AL$46)*0.5,""))),"") ->  | AE25: =IFERROR(IF((OR($D25="RP",$D25="SP")),IF(Personalize!$E$54=TRUE,(((VLOOKUP($C25,'Filtered-P'!$A$1:$AD$700,24,FALSE))-'Filtered-P'!$AF$32)/'Filtered-P'!$AG$32),IF(ISBLANK(Personalize!$E$54),(((VLOOKUP($C25,'Filtered-P'!$A$1:$AD$700,24,FALSE))-'Filtered-P'!$AF$32)/'Filtered-P'!$AG$32)*0.5,"")),IF(Personalize!$E$51=TRUE,(((VLOOKUP($C25,Filtered!$A$1:$AF$626,15,FALSE))-Filtered!$AK$30)/(-1*Filtered!$AL$30)),IF(ISBLANK(Personalize!$E$51),(((VLOOKUP($C25,Filtered!$A$1:$AF$626,15,FALSE))-Filtered!$AK$30)/(-1*Filtered!$AL$30))*0.5,""))),"") ->  | AF25: =IFERROR(IF((OR($D25="RP",$D25="SP")),IF(Personalize!$E$56=TRUE,(((VLOOKUP($C25,'Filtered-P'!$A$1:$AD$700,29,FALSE))-'Filtered-P'!$AF$35)/'Filtered-P'!$AG$35),IF(ISBLANK(Personalize!$E$56),(((VLOOKUP($C25,'Filtered-P'!$A$1:$AD$700,29,FALSE))-'Filtered-P'!$AF$35)/'Filtered-P'!$AG$35)*0.5,"")),IF(Personalize!$E$60=TRUE,(((VLOOKUP($C25,Filtered!$A$1:$AF$626,7,FALSE))-Filtered!$AK$22)/Filtered!$AL$22),IF(ISBLANK(Personalize!$E$60),(((VLOOKUP($C25,Filtered!$A$1:$AF$626,7,FALSE))-Filtered!$AK$22)/Filtered!$AL$22)*0.5,""))),"") ->  | AG25: =IFERROR(IF((OR($D25="RP",$D25="SP")),IF(Personalize!$E$57=TRUE,(((VLOOKUP($C25,'Filtered-P'!$A$1:$AD$700,28,FALSE))-'Filtered-P'!$AF$34)/'Filtered-P'!$AG$34),IF(ISBLANK(Personalize!$E$57),(((VLOOKUP($C25,'Filtered-P'!$A$1:$AD$700,28,FALSE))-'Filtered-P'!$AF$34)/'Filtered-P'!$AG$34)*0.5,"")),IF(Personalize!$E$61=TRUE,(((VLOOKUP($C25,Filtered!$A$1:$AZ$626,34,FALSE))-Filtered!$AK$47)/Filtered!$AL$47),IF(ISBLANK(Personalize!$E$61),(((VLOOKUP($C25,Filtered!$A$1:$AZ$626,34,FALSE))-Filtered!$AK$47)/Filtered!$AL$47)*0.5,""))),"") ->  | AH25: =IFERROR(IF((OR($D25="RP",$D25="SP")),IF(Personalize!$E$58=TRUE,(((VLOOKUP($C25,'Filtered-P'!$A$1:$Z$700,8,FALSE))-'Filtered-P'!$AF$14)/'Filtered-P'!$AG$14),IF(ISBLANK(Personalize!$E$58),(((VLOOKUP($C25,'Filtered-P'!$A$1:$Z$700,8,FALSE))-'Filtered-P'!$AF$14)/'Filtered-P'!$AG$14)*0.5,"")),IF(Personalize!$E$62=TRUE,(((VLOOKUP($C25,Filtered!$A$1:$AF$626,13,FALSE))-Filtered!$AK$28)/(-1*Filtered!$AL$28)),IF(ISBLANK(Personalize!$E$62),(((VLOOKUP($C25,Filtered!$A$1:$AF$626,13,FALSE))-Filtered!$AK$28)/(-1*Filtered!$AL$28))*0.5,""))),"") ->  | AI25: =IFERROR(IF((OR($D25="RP",$D25="SP")),IF(Personalize!$E$59=TRUE,(((VLOOKUP($C25,'Filtered-P'!$A$1:$AD$700,27,FALSE))-'Filtered-P'!$AF$33)/'Filtered-P'!$AG$33),IF(ISBLANK(Personalize!$E$59),(((VLOOKUP($C25,'Filtered-P'!$A$1:$AD$700,27,FALSE))-'Filtered-P'!$AF$33)/'Filtered-P'!$AG$33)*0.5,"")),IF(Personalize!$E$63=TRUE,(((VLOOKUP($C25,Filtered!$A$1:$AZ$626,35,FALSE))-Filtered!$AK$48)/(-1*Filtered!$AL$48)),IF(ISBLANK(Personalize!$E$63),(((VLOOKUP($C25,Filtered!$A$1:$AZ$626,35,FALSE))-Filtered!$AK$48)/(-1*Filtered!$AL$48))*0.5,""))),"") ->  | AJ25: =IFERROR(IF((OR($D25="RP",$D25="SP")),VLOOKUP($C25,'Filtered-P'!$A$1:$P$580,2,FALSE),""),"") -> 15.9771096 | AK25: =IFERROR(IF((OR($D25="RP",$D25="SP")),VLOOKUP($C25,'Filtered-P'!$A$1:$P$580,9,FALSE),""),"") -> 0 | AL25: =IFERROR(IF((OR($D25="RP",$D25="SP")),VLOOKUP($C25,'Filtered-P'!$A$1:$P$580,7,FALSE),""),"") -> 208.6082605 | AM25: =IFERROR(IF((OR($D25="RP",$D25="SP")),VLOOKUP($C25,'Filtered-P'!$A$1:$P$580,10,FALSE),""),"") -> 2.856141266 | AN25: =IFERROR(IF((OR($D25="RP",$D25="SP")),VLOOKUP($C25,'Filtered-P'!$A$1:$P$580,11,FALSE),""),"") -> 1.08162506 | AO25: =IFERROR(IF((OR($D25="RP",$D25="SP")),"",VLOOKUP($C25,Filtered!$A$1:$X$600,16,FALSE)),"") ->  | AP25: =IFERROR(IF((OR($D25="RP",$D25="SP")),"",VLOOKUP($C25,Filtered!$A$1:$X$600,10,FALSE)),"") ->  | AQ25: =IFERROR(IF((OR($D25="RP",$D25="SP")),"",VLOOKUP($C25,Filtered!$A$1:$X$600,11,FALSE)),"") ->  | AR25: =IFERROR(IF((OR($D25="RP",$D25="SP")),"",VLOOKUP($C25,Filtered!$A$1:$X$600,5,FALSE)),"") ->  | AS25: =IFERROR(IF((OR($D25="RP",$D25="SP")),"",VLOOKUP($C25,Filtered!$A$1:$X$600,12,FALSE)),"") ->  | AU25: =IF(ISBLANK(A25),0,1) -> 0 | AV25: =IF(M25="",0,1) -> 1 | AW25: =A25 -> 0 | AX25: =IF(D25="C",1,IF(D25="1B",2,IF(D25="2B",3,IF(D25="3B",4,IF(D25="SS",5,IF(D25="CI",6,IF(D25="MI",7,IF(D25="OF",11,IF(D25="LF",8,IF(D25="CF",9,IF(D25="RF",10,IF(D25="DH",12,IF(D25="SP",13,IF(D25="RP",14,IF(D25="P",15,16))))))))))))))) -> 13 | AY25: =VLOOKUP(C25,'Starter Calc'!$B$2:$BS$700,70,FALSE) -> Bench | AZ25: =VLOOKUP(C25,'Starter Calc'!$B$2:$AO$700,40,FALSE) -> Yes | BA25: =IFERROR(IF(ISTEXT($A25),"",IF((OR($D25="RP",$D25="SP")),ABS(VLOOKUP(D25,'Filtered-P'!$AE$3:$AI$4,5,FALSE))+M25,ABS(VLOOKUP(D25,Filtered!$AJ$3:$AN$14,5,FALSE))+M25)),"") -> 9.254911518 | BB25: =IFERROR(BA25+ABS($BA$4),"") -> 9.978734594 | BC25: =IF(AND($A25<>"",$B25<>""),B25,"N") -> N | BD25: =IFERROR(VLOOKUP($C25,'ADP-Rank'!$A$2:$AB$581,25,FALSE),TRUE) -> TRUE | BE25: =IFERROR((BB25-BB$3)^2,"") -> 26.3760677 | BF25: =VLOOKUP(C25,'Starter Calc'!$B$2:$CD$700,71,FALSE) -> SP.No | BG25: =IFERROR(((Personalize!$A$1-(1*Personalize!$A$2))/Personalize!$A$2)*(N25/$BG$3)+1,"") -> 24.23122753 | BH25: 25.01269524 | BI25: 25.01269524
